Workbook

Sheet 生販
D2: 確定 | E2: 103期 | F2: =生産管理!F3 -> 4gatu | G2: =生産管理!G3 -> 5gatu | H2: =生産管理!H3 -> 6gatu | I2: =生産管理!I3 -> 7gatu | J2: =生産管理!J3 -> 8gatu | K2: =生産管理!K3 -> 9gatu | L2: =生産管理!L3 -> 10gatu | M2: 11gatu | N2: 12gatu | O2: 1gatu | P2: 2gatu | Q2: 3gatu
C4: 20 | D4: HL4M_CB SxS | E4: MA計画 | F4: 4190 | H4: 3460 | I4: 5600 | J4: 3250 | K4: 3900 | L4: 2250 | M4: 2850 | N4: 2700 | O4: 3350 | P4: 2710 | Q4: 3200
C5: 20 | D5: HL4_CB SxS | E5: 鋳造実行数 | F5: 3500 | H5: 5100 | I5: 5300 | J5: 3500 | K5: 3000 | L5: 2600 | M5: 5900 | N5: 3000 | O5: 0 | P5: 3000 | Q5: 3500
C6: 20 | D6: HL4_CB SxS | E6: 在庫計画 | F6: 1241 | H6: 1966 | I6: 1666 | J6: 1916 | K6: 1016 | L6: 1366 | M6: 4416 | N6: 4716 | O6: 1366 | P6: 1656 | Q6: 1956
C7: 20 | D7: HL4K CB SxS | E7: MA計画 | F7: 0 | H7: 0 | I7: 0 | J7: 0 | K7: 0 | L7: 0 | M7: 0 | N7: 0 | O7: 0 | P7: 0 | Q7: 0
C8: 20 | D8: MJPB_CB L2 | E8: 鋳造実行数 | F8: 0 | H8: 0 | I8: 0 | J8: 0 | K8: 0 | L8: 0 | M8: 0 | N8: 0 | O8: 0 | P8: 0 | Q8: 0
C9: 20 | D9: MJPB_CB L2 | E9: 在庫計画 | F9: 0 | H9: 0 | I9: 0 | J9: 0 | K9: 0 | L9: 0 | M9: 0 | N9: 0 | O9: 0 | P9: 0 | Q9: 0
C10: 20 | D10: MCA_R_CB | E10: MA計画 | F10: 0 | H10: 0 | I10: 0 | J10: 0 | K10: 0 | L10: 0 | M10: 0 | N10: 0 | O10: 0 | P10: 0 | Q10: 0
C11: 20 | D11: MCA_R_CB | E11: 鋳造実行数 | F11: 0 | H11: 0 | I11: 0 | J11: 0 | K11: 0 | L11: 0 | M11: 0 | N11: 0 | O11: 0 | P11: 0 | Q11: 0
C12: 20 | D12: MCA_R_CB | E12: 在庫計画 | F12: 56 | H12: 0 | I12: 0 | J12: 0 | K12: 0 | L12: 0 | M12: 0 | N12: 0 | O12: 0 | P12: 0 | Q12: 0
C13: 20 | D13: MKS DCT_CB | E13: MA計画 | F13: 1970 | H13: 0 | I13: 4850 | J13: 0 | K13: 3110 | L13: 4630 | M13: 1400 | N13: 2000 | O13: 1350 | P13: 1010 | Q13: 2300
C14: 20 | D14: MCA_L_CB | E14: 鋳造実行数 | F14: 0 | H14: 2000 | I14: 1000 | J14: 1200 | K14: 3800 | L14: 3000 | M14: 1800 | N14: 1700 | O14: 1100 | P14: 1700 | Q14: 2100
C15: 20 | D15: MCA_L_CB | E15: 在庫計画 | F15: 1353 | H15: 4196 | I15: 346 | J15: 1546 | K15: 2236 | L15: 606 | M15: 1006 | N15: 706 | O15: 456 | P15: 1146 | Q15: 946
C16: 20 | D16: MKT CB | E16: MA計画 | F16: 3950 | H16: 700 | I16: 1040 | J16: 0 | K16: 0 | L16: 1050 | M16: 600 | N16: 0 | O16: 0 | P16: 0 | Q16: 400
C17: 20 | D17: MGS_CB | E17: 鋳造実行数 | F17: 3300 | H17: 0 | I17: 0 | J17: 0 | K17: 0 | L17: 0 | M17: 0 | N17: 0 | O17: 0 | P17: 0 | Q17: 0
C18: 20 | D18: MGS_CB | E18: 在庫計画 | F18: 4525 | H18: 1137 | I18: 97 | J18: 97 | K18: 1097 | L18: 647 | M18: 47 | N18: 47 | O18: 47 | P18: 447 | Q18: 47
C19: 20 | D19: MJM_CB | E19: MA計画 | F19: 0 | H19: 0 | I19: 0 | J19: 0 | K19: 0 | L19: 0 | M19: 0 | N19: 0 | O19: 0 | P19: 0 | Q19: 0
C20: 20 | D20: MJM_CB | E20: 鋳造実行数 | F20: 0 | H20: 0 | I20: 0 | J20: 0 | K20: 0 | L20: 0 | M20: 0 | N20: 0 | O20: 0 | P20: 0 | Q20: 0
C21: 20 | D21: MJM_CB | E21: 在庫計画 | F21: 102 | H21: 151 | I21: 151 | J21: 151 | K21: 151 | L21: 151 | M21: 151 | N21: 151 | O21: 151 | P21: 151 | Q21: 151
C22: 20 | D22: ZVL_MC | E22: MA計画 | F22: 500 | H22: 600 | I22: 660 | J22: 330 | K22: 330 | L22: 660 | M22: 660 | N22: 660 | O22: 660 | P22: 660 | Q22: 660
C23: 20 | D23: MGE_C/B JD-1 | E23: 鋳造実行数 | F23: 700 | H23: 700 | I23: 700 | J23: 700 | K23: 750 | L23: 800 | M23: 1100 | N23: 0 | O23: 0 | P23: 800 | Q23: 800
C24: 20 | D24: MGE_C/B JD-1 | E24: 在庫計画 | F24: 780 | H24: 251 | I24: 191 | J24: 561 | K24: 981 | L24: 1121 | M24: 1561 | N24: 901 | O24: 241 | P24: 381 | Q24: 521
C25: 20 | D25: MKS MT_CB | E25: MA計画 | F25: 1440 | H25: 0 | I25: 4550 | J25: 0 | K25: 0 | L25: 900 | M25: 1000 | N25: 800 | O25: 2150 | P25: 1250 | Q25: 2390
C26: 20 | D26: MCS_CB | E26: 鋳造実行数 | F26: 0 | H26: 1000 | I26: 3000 | J26: 0 | K26: 1000 | L26: 800 | M26: 900 | N26: 1500 | O26: 1700 | P26: 1800 | Q26: 1500
C27: 20 | D27: MCS_CB | E27: 在庫計画 | F27: 634 | H27: 1847 | I27: 297 | J27: 297 | K27: 1297 | L27: 1197 | M27: 1097 | N27: 1797 | O27: 1347 | P27: 1897 | Q27: 1007
C28: 16 | D28: MKRG_UP | E28: MA計画 | F28: 450 | H28: 0 | I28: 0 | J28: 0 | K28: 0 | L28: 0 | M28: 0 | N28: 0 | O28: 0 | P28: 0 | Q28: 0
C29: 16 | D29: MJG_RRC | E29: 鋳造実行数 | F29: 700 | H29: 0 | I29: 0 | J29: 0 | K29: 0 | L29: 0 | M29: 0 | N29: 0 | O29: 0 | P29: 0 | Q29: 0
C30: 16 | D30: MJG_RRC | E30: 在庫計画 | F30: 450 | H30: 1081 | I30: 1081 | J30: 1081 | K30: 1081 | L30: 1081 | M30: 1081 | N30: 1081 | O30: 1081 | P30: 1081 | Q30: 1081
C31: 16 | D31: MJH_CB | E31: MA計画 | F31: 0 | H31: 0 | I31: 0 | J31: 0 | K31: 0 | L31: 0 | M31: 0 | N31: 0 | O31: 0 | P31: 0 | Q31: 0
C32: 16 | D32: MJH_CB | E32: 鋳造実行数 | F32: 0 | H32: 0 | I32: 0 | J32: 0 | K32: 0 | L32: 0 | M32: 0 | N32: 0 | O32: 0 | P32: 0 | Q32: 0
C33: 16 | D33: MJH_CB | E33: 在庫計画 | F33: 0
C34: 16 | D34: MJM_LC | E34: MA計画 | F34: 0 | H34: 0 | I34: 0 | J34: 0 | K34: 0 | L34: 0 | M34: 0 | N34: 0 | O34: 0 | P34: 0 | Q34: 0
C35: 16 | D35: MJM_LC | E35: 鋳造実行数 | F35: 0 | H35: 0 | I35: 0 | J35: 0 | K35: 0 | L35: 0 | M35: 0 | N35: 0 | O35: 0 | P35: 0 | Q35: 0
C36: 16 | D36: MJM_LC | E36: 在庫計画 | F36: 43
C37: 16 | D37: MGCJ_UC | E37: MA計画 | F37: 0 | H37: 0 | I37: 0 | J37: 0 | K37: 0 | L37: 0 | M37: 0 | N37: 0 | O37: 0 | P37: 0 | Q37: 0
C38: 16 | D38: MGCJ_UC | E38: 鋳造実行数 | F38: 0 | H38: 0 | I38: 0 | J38: 0 | K38: 0 | L38: 0 | M38: 0 | N38: 0 | O38: 0 | P38: 0 | Q38: 0
C39: 16 | D39: MGCJ_UC | E39: 在庫計画 | F39: 198 | H39: 203 | I39: 203 | J39: 203 | K39: 203 | L39: 203 | M39: 203 | N39: 203 | O39: 203 | P39: 203 | Q39: 203
C40: 16 | D40: MGC_CYL | E40: MA計画 | F40: 0 | H40: 0 | I40: 0 | J40: 0 | K40: 0 | L40: 0 | M40: 0 | N40: 0 | O40: 0 | P40: 0 | Q40: 0
C41: 16 | D41: MEJ_UC | E41: 鋳造実行数 | F41: 0 | H41: 0 | I41: 0 | J41: 0 | K41: 0 | L41: 0 | M41: 0 | N41: 0 | O41: 0 | P41: 0 | Q41: 0
C42: 16 | D42: MEJ_UC | E42: 在庫計画 | F42: 341 | H42: 0 | I42: 0 | J42: 0 | K42: 0 | L42: 0 | M42: 0 | N42: 0 | O42: 0 | P42: 0 | Q42: 0
C43: 16 | D43: MFJ_CB | E43: MA計画 | F43: 0 | H43: 1140 | I43: 0 | J43: 0 | K43: 0 | L43: 0 | M43: 0 | N43: 0 | O43: 0 | P43: 0 | Q43: 0
C44: 16 | D44: MFJ_CB | E44: 鋳造実行数 | F44: 1300 | H44: 400 | I44: 0 | J44: 0 | K44: 0 | L44: 0 | M44: 0 | N44: 0 | O44: 0 | P44: 0 | Q44: 0
C45: 16 | D45: MFJ_CB | E45: 在庫計画 | F45: 1711 | H45: 36 | I45: 36 | J45: 36 | K45: 36 | L45: 36 | M45: 36 | N45: 36 | O45: 36 | P45: 36 | Q45: 36
C46: 16 | D46: MKZ_CB | E46: MA計画 | F46: 1060 | H46: 1330 | I46: 950 | J46: 660 | K46: 860 | L46: 910 | M46: 870 | N46: 790 | O46: 790 | P46: 820 | Q46: 860
C47: 16 | D47: MFJ_CB | E47: 鋳造実行数 | F47: 500 | H47: 1300 | I47: 1700 | J47: 0 | K47: 1000 | L47: 900 | M47: 800 | N47: 700 | O47: 800 | P47: 860 | Q47: 830
C48: 16 | D48: MFJ_CB | E48: 在庫計画 | F48: 691 | H48: 815 | I48: 1565 | J48: 905 | K48: 1045 | L48: 1035 | M48: 965 | N48: 875 | O48: 885 | P48: 925 | Q48: 895
C49: 16 | D49: MEA_RC | E49: MA計画 | F49: 0 | H49: 0 | I49: 0 | J49: 0 | K49: 0 | L49: 0 | M49: 0 | N49: 0 | O49: 0 | P49: 0 | Q49: 0
C50: 16 | D50: MEA_RC | E50: 鋳造実行数 | F50: 0 | H50: 0 | I50: 0 | J50: 0 | K50: 0 | L50: 0 | M50: 0 | N50: 0 | O50: 0 | P50: 0 | Q50: 0
C51: 16 | D51: MEA_RC | E51: 在庫計画 | F51: 60 | H51: 60 | I51: 60 | J51: 60 | K51: 60 | L51: 60 | M51: 60 | N51: 60 | O51: 60 | P51: 60 | Q51: 60
C52: 16 | D52: MEA_LC | E52: MA計画 | F52: 0 | H52: 0 | I52: 0 | J52: 0 | K52: 0 | L52: 0 | M52: 0 | N52: 0 | O52: 0 | P52: 0 | Q52: 0
C53: 16 | D53: MEA_LC | E53: 鋳造実行数 | F53: 0 | H53: 0 | I53: 0 | J53: 0 | K53: 0 | L53: 0 | M53: 0 | N53: 0 | O53: 0 | P53: 0 | Q53: 0
C54: 16 | D54: MEA_LC | E54: 在庫計画 | F54: 79 | H54: 79 | I54: 79 | J54: 79 | K54: 79 | L54: 79 | M54: 79 | N54: 79 | O54: 79 | P54: 79 | Q54: 79
C55: 16 | D55: MKR_LC | E55: MA計画 | F55: 450 | H55: 0 | I55: 0 | J55: 0 | K55: 0 | L55: 0 | M55: 0 | N55: 0 | O55: 0 | P55: 0 | Q55: 0
C56: 16 | D56: MEJ_UC | E56: 鋳造実行数 | F56: 1000 | H56: 0 | I56: 0 | J56: 0 | K56: 0 | L56: 0 | M56: 0 | N56: 0 | O56: 0 | P56: 0 | Q56: 0
C57: 16 | D57: MEJ_UC | E57: 在庫計画 | F57: 828 | H57: 1008 | I57: 1008 | J57: 1008 | K57: 1008 | L57: 1008 | M57: 1008 | N57: 1008 | O57: 1008 | P57: 1008 | Q57: 1008
C58: 16 | D58: MLB LC | E58: MA計画 | F58: 3460 | H58: 3740 | I58: 3900 | J58: 2630 | K58: 2800 | L58: 2930 | M58: 2800 | N58: 4160 | O58: 3945 | P58: 3435 | Q58: 2850
C59: 16 | D59: MEJ_UC | E59: 鋳造実行数 | F59: 4000 | H59: 3600 | I59: 3300 | J59: 2700 | K59: 3000 | L59: 2700 | M59: 3400 | N59: 4200 | O59: 3600 | P59: 3100 | Q59: 3300
C60: 16 | D60: MEJ_UC | E60: 在庫計画 | F60: 1183 | H60: 1916 | I60: 1316 | J60: 1386 | K60: 1586 | L60: 1356 | M60: 1956 | N60: 1996 | O60: 1651 | P60: 1316 | Q60: 1766
C61: 14 | D61: HL4K_LC SxS | E61: MA計画 | F61: 4190 | H61: 3460 | I61: 5600 | J61: 3250 | K61: 3900 | L61: 2250 | M61: 2850 | N61: 2700 | O61: 3350 | P61: 2710 | Q61: 3200
C62: 14 | D62: HL4_LC SxS | E62: 鋳造実行数 | F62: 3700 | H62: 4800 | I62: 4400 | J62: 3700 | K62: 3000 | L62: 2400 | M62: 3400 | N62: 2500 | O62: 3000 | P62: 3000 | Q62: 3300
C63: 14 | D63: HL4_LC SxS | E63: 在庫計画 | F63: 947 | H63: 2830 | I63: 1630 | J63: 2080 | K63: 1180 | L63: 1330 | M63: 1880 | N63: 1680 | O63: 1330 | P63: 1620 | Q63: 1720
C64: 14 | D64: HL4M_LC SxS | E64: MA計画 | F64: 840
C65: 14 | D65: MJPB_LC L2 | E65: 鋳造実行数
C66: 14 | D66: MJPB_LC L2 | E66: 在庫計画 | F66: 1161
C67: 14 | D67: 11200 MKA_LC | E67: MA計画 | F67: 0 | H67: 0 | I67: 0 | J67: 0 | K67: 0 | L67: 0 | M67: 0 | N67: 0 | O67: 0 | P67: 0 | Q67: 0
C68: 14 | D68: 11200 MGS_LC | E68: 鋳造実行数 | F68: 0 | H68: 0 | I68: 0 | J68: 0 | K68: 0 | L68: 0 | M68: 0 | N68: 0 | O68: 0 | P68: 0 | Q68: 0
C69: 14 | D69: 11200 MGS_LC | E69: 在庫計画 | F69: 0 | H69: 0 | I69: 0 | J69: 0 | K69: 0 | L69: 0 | M69: 0 | N69: 0 | O69: 0 | P69: 0 | Q69: 0
C70: 14 | D70: 11200 MGS_LC | E70: MA計画 | F70: 0 | H70: 0 | I70: 0 | J70: 0 | K70: 0 | L70: 0 | M70: 0 | N70: 0 | O70: 0 | P70: 0 | Q70: 0
C71: 14 | D71: 11200 MGS_LC | E71: 鋳造実行数 | F71: 0 | H71: 0 | I71: 0 | J71: 0 | K71: 0 | L71: 0 | M71: 0 | N71: 0 | O71: 0 | P71: 0 | Q71: 0
C72: 14 | D72: 11200 MGS_LC | E72: 在庫計画 | F72: 39
C73: 14 | D73: 11100 MKF_UC | E73: MA計画 | F73: 840 | H73: 2450 | I73: 3930 | J73: 2730 | K73: 3590 | L73: 3760 | M73: 3590 | N73: 1660 | O73: 960 | P73: 2400 | Q73: 2560
C74: 14 | D74: 11100 MGP_UC | E74: 鋳造実行数 | F74: 1000 | H74: 3100 | I74: 3300 | J74: 3100 | K74: 4200 | L74: 3500 | M74: 3900 | N74: 1400 | O74: 0 | P74: 2500 | Q74: 2700
C75: 14 | D75: 11100 MGP_UC | E75: 在庫計画 | F75: 1336 | H75: 1980 | I75: 1350 | J75: 1720 | K75: 2330 | L75: 2070 | M75: 2380 | N75: 2120 | O75: 1160 | P75: 1260 | Q75: 1400
C76: 14 | D76: 11200 MGP_LC | E76: MA計画 | F76: 840 | H76: 2450 | I76: 3930 | J76: 2730 | K76: 3590 | L76: 3760 | M76: 3590 | N76: 1660 | O76: 960 | P76: 2400 | Q76: 2560
C77: 14 | D77: 11200 MGP_LC | E77: 鋳造実行数 | F77: 1000 | H77: 4100 | I77: 3700 | J77: 3200 | K77: 3500 | L77: 4200 | M77: 3200 | N77: 700 | O77: 0 | P77: 2700 | Q77: 2800
C78: 14 | D78: 11200 MGP_LC | E78: 在庫計画 | F78: 4501 | H78: 2063 | I78: 1553 | J78: 2283 | K78: 3213 | L78: 2233 | M78: 1553 | N78: 963 | O78: 1663 | P78: 2043 | Q78: 1703
C79: 14 | D79: 11200 MFN_LC | E79: MA計画 | F79: 0 | H79: 0 | I79: 0 | J79: 0 | K79: 0 | L79: 0 | M79: 0 | N79: 0 | O79: 0 | P79: 0 | Q79: 0
C80: 14 | D80: 11200 MFN_LC | E80: 鋳造実行数 | F80: 0 | H80: 0 | I80: 0 | J80: 0 | K80: 0 | L80: 0 | M80: 0 | N80: 0 | O80: 0 | P80: 0 | Q80: 0
C81: 14 | D81: 11200 MFN_LC | E81: 在庫計画 | F81: 16 | H81: 0 | I81: 0 | J81: 0 | K81: 0 | L81: 0 | M81: 0 | N81: 0 | O81: 0 | P81: 0 | Q81: 0
C82: 14 | D82: 11200 MKS 0000AA | E82: MA計画 | F82: 3410 | H82: 0 | I82: 9400 | J82: 0 | K82: 3110 | L82: 5530 | M82: 2400 | N82: 2800 | O82: 3500 | P82: 2260 | Q82: 4690
C83: 13 | D83: 11100 RV4 0000XA | E83: 鋳造実行数 | F83: 4000 | H83: 6000 | I83: 6000 | J83: 3000 | K83: 2500 | L83: 900 | M83: 4000 | N83: 3200 | O83: 0 | P83: 3400 | Q83: 3200
C84: 13 | D84: 11100 RV4 0000XA | E84: 在庫計画 | F84: 1013 | H84: 8455 | I84: 5055 | J84: 8055 | K84: 7445 | L84: 2815 | M84: 4415 | N84: 4815 | O84: 1315 | P84: 2455 | Q84: 965
C85: 13 | D85: ZDY_CB | E85: MA計画 | F85: 0 | H85: 2880 | I85: 1680 | J85: 480 | K85: 120 | L85: 960 | M85: 840 | N85: 720 | O85: 720 | P85: 1200 | Q85: 720
C86: 13 | D86: 11100 PTF 0000XA | E86: 鋳造実行数 | F86: 0 | H86: 0 | I86: 2000 | J86: 0 | K86: 0 | L86: 2000 | M86: 0 | N86: 0 | O86: 2000 | P86: 0 | Q86: 0
C87: 13 | D87: 11100 PTF 0000XA | E87: 在庫計画 | F87: 0 | H87: 1769 | I87: 2089 | J87: 1609 | K87: 1489 | L87: 2529 | M87: 1689 | N87: 969 | O87: 2249 | P87: 1049 | Q87: 329
C88: 14 | D88: 21111 PFN_TC | E88: MA計画 | F88: 0 | H88: 0 | I88: 3900 | J88: 2630 | K88: 2800 | L88: 2930 | M88: 2800 | N88: 4160 | O88: 3945 | P88: 3435 | Q88: 2850
C89: 13 | D89: 21111 PFN_TC | E89: 鋳造実行数 | F89: 0 | H89: 0 | I89: 0 | J89: 0 | K89: 0 | L89: 0 | M89: 0 | N89: 0 | O89: 0 | P89: 0 | Q89: 0
C90: 13 | D90: 21111 PFN_TC | E90: 在庫計画 | F90: 1017 | H90: 1017 | I90: -2883 | J90: -5513 | K90: -8313 | L90: -11243 | M90: -14043 | N90: -18203 | O90: -22148 | P90: -25583 | Q90: -28433
C91: 14 | D91: 21211 PFN_MC | E91: MA計画 | F91: 0 | H91: 0 | I91: 3900 | J91: 2630 | K91: 2800 | L91: 2930 | M91: 2800 | N91: 4160 | O91: 3945 | P91: 3435 | Q91: 2850
C92: 13 | D92: 21211 PFN_MC | E92: 鋳造実行数 | F92: 0 | H92: 0 | I92: 0 | J92: 0 | K92: 0 | L92: 0 | M92: 0 | N92: 0 | O92: 0 | P92: 0 | Q92: 0
C93: 13 | D93: 21211 PFN_MC | E93: 在庫計画 | F93: 810 | H93: 810 | I93: -3090 | J93: -5720 | K93: -8520 | L93: -11450 | M93: -14250 | N93: -18410 | O93: -22355 | P93: -25790 | Q93: -28640
C94: 19 | D94: K95_RC | E94: MA計画 | F94: 1968 | H94: 560 | I94: 1040 | J94: 1400 | K94: 320 | L94: 1600 | M94: 476 | N94: 0 | O94: 0 | P94: 0 | Q94: 0
C95: 19 | D95: KRN_RC | E95: 鋳造実行数 | F95: 1000 | H95: 0 | I95: 1000 | J95: 1200 | K95: 1600 | L95: 500 | M95: 0 | N95: 0 | O95: 0 | P95: 0 | Q95: 0
C96: 19 | D96: KRN_RC | E96: 在庫計画 | F96: 896 | H96: 631 | I96: 591 | J96: 391 | K96: 1671 | L96: 571 | M96: 95 | N96: 95 | O96: 95 | P96: 95 | Q96: 95
C97: 19 | D97: K95_LC | E97: MA計画 | F97: 1968 | H97: 560 | I97: 1040 | J97: 1400 | K97: 320 | L97: 1600 | M97: 476 | N97: 0 | O97: 0 | P97: 0 | Q97: 0
C98: 19 | D98: KRN_LC | E98: 鋳造実行数 | F98: 1000 | H98: 0 | I98: 1000 | J98: 1200 | K98: 1600 | L98: 500 | M98: 0 | N98: 0 | O98: 0 | P98: 0 | Q98: 0
C99: 19 | D99: KRN_LC | E99: 在庫計画 | F99: 1238 | H99: 1028 | I99: 988 | J99: 788 | K99: 2068 | L99: 968 | M99: 492 | N99: 492 | O99: 492 | P99: 492 | Q99: 492
C100: 19 | D100: MKE_RC | E100: MA計画 | F100: 0 | H100: 1608 | I100: 1675 | J100: 1172 | K100: 1407 | L100: 1474 | M100: 504 | N100: 447 | O100: 447 | P100: 480 | Q100: 0
C101: 19 | D101: MKE_RC | E101: 鋳造実行数 | F101: 0 | H101: 0 | I101: 0 | J101: 0 | K101: 0 | L101: 0 | M101: 0 | N101: 0 | O101: 0 | P101: 0 | Q101: 0
C102: 19 | D102: MKE_RC | E102: 在庫計画 | F102: 0 | H102: -703 | I102: -2378 | J102: -3550 | K102: -4957 | L102: -6431 | M102: -6935 | N102: -7382 | O102: -7829 | P102: -8309 | Q102: -8309
C103: 19 | D103: MKE_LC | E103: MA計画 | F103: 0 | H103: 1608 | I103: 1675 | J103: 1172 | K103: 1407 | L103: 1474 | M103: 504 | N103: 447 | O103: 447 | P103: 480 | Q103: 0
C104: 19 | D104: MKE_LC | E104: 鋳造実行数 | F104: 0 | H104: 0 | I104: 0 | J104: 0 | K104: 0 | L104: 0 | M104: 0 | N104: 0 | O104: 0 | P104: 0 | Q104: 0
C105: 19 | D105: MKE_LC | E105: 在庫計画 | F105: 0 | H105: -703 | I105: -2378 | J105: -3550 | K105: -4957 | L105: -6431 | M105: -6935 | N105: -7382 | O105: -7829 | P105: -8309 | Q105: -8309
C106: 19 | D106: KSC_RC | E106: MA計画 | F106: 0 | H106: 0 | I106: 0 | J106: 0 | K106: 0 | L106: 0 | M106: 0 | N106: 0 | O106: 0 | P106: 0 | Q106: 0
C107: 19 | D107: KSC_RC | E107: 鋳造実行数 | F107: 0 | H107: 0 | I107: 0 | J107: 0 | K107: 0 | L107: 0 | M107: 0 | N107: 0 | O107: 0 | P107: 0 | Q107: 0
C108: 19 | D108: KSC_RC | E108: 在庫計画 | F108: 0 | H108: 0 | I108: 0 | J108: 0 | K108: 0 | L108: 0 | M108: 0 | N108: 0 | O108: 0 | P108: 0 | Q108: 0
C109: 19 | D109: KSC_LC | E109: MA計画 | F109: 0 | H109: 0 | I109: 0 | J109: 0 | K109: 0 | L109: 0 | M109: 0 | N109: 0 | O109: 0 | P109: 0 | Q109: 0
C110: 19 | D110: KSC_LC | E110: 鋳造実行数 | F110: 0 | H110: 0 | I110: 0 | J110: 0 | K110: 0 | L110: 0 | M110: 0 | N110: 0 | O110: 0 | P110: 0 | Q110: 0
C111: 19 | D111: KSC_LC | E111: 在庫計画 | F111: 0 | H111: 0 | I111: 0 | J111: 0 | K111: 0 | L111: 0 | M111: 0 | N111: 0 | O111: 0 | P111: 0 | Q111: 0
C112: 19 | D112: MKEG_RC | E112: MA計画 | F112: 0 | H112: 1072 | I112: 603 | J112: 0 | K112: 0 | L112: 0 | M112: 72 | N112: 447 | O112: 192 | P112: 0 | Q112: 0
C113: 19 | D113: MEY_RC | E113: 鋳造実行数 | F113: 0 | H113: 2500 | I113: 2300 | J113: 1500 | K113: 1500 | L113: 1100 | M113: 400 | N113: 600 | O113: 600 | P113: 0 | Q113: 1300
C114: 19 | D114: MEY_RC | E114: 在庫計画 | F114: 470 | H114: 2709 | I114: 4406 | J114: 5906 | K114: 7406 | L114: 8506 | M114: 8834 | N114: 8987 | O114: 9395 | P114: 9395 | Q114: 10695
C115: 19 | D115: MKEG_LC | E115: MA計画 | F115: 0 | H115: 1072 | I115: 603 | J115: 0 | K115: 0 | L115: 0 | M115: 72 | N115: 447 | O115: 192 | P115: 0 | Q115: 0
C116: 19 | D116: MEY_RC | E116: 鋳造実行数 | F116: 0 | H116: 2500 | I116: 2300 | J116: 1500 | K116: 1500 | L116: 1100 | M116: 400 | N116: 600 | O116: 600 | P116: 0 | Q116: 1300
C117: 19 | D117: MEY_RC | E117: 在庫計画 | F117: 125 | H117: 2567 | I117: 4264 | J117: 5764 | K117: 7264 | L117: 8364 | M117: 8692 | N117: 8845 | O117: 9253 | P117: 9253 | Q117: 10553
C118: 19 | D118: NN4_RC | E118: MA計画 | F118: 0 | H118: 0 | I118: 0 | J118: 0 | K118: 0 | L118: 0 | M118: 0 | N118: 0 | O118: 0 | P118: 0 | Q118: 0
C119: 19 | D119: NN4_RC | E119: 鋳造実行数 | F119: 0 | H119: 0 | I119: 0 | J119: 0 | K119: 0 | L119: 0 | M119: 0 | N119: 0 | O119: 0 | P119: 0 | Q119: 0
C120: 19 | D120: NN4_RC | E120: 在庫計画 | F120: 0 | H120: 0 | I120: 0 | J120: 0 | K120: 0 | L120: 0 | M120: 0 | N120: 0 | O120: 0 | P120: 0 | Q120: 0
C121: 19 | D121: NN4_LC | E121: MA計画 | F121: 0 | H121: 0 | I121: 0 | J121: 0 | K121: 0 | L121: 0 | M121: 0 | N121: 0 | O121: 0 | P121: 0 | Q121: 0
C122: 19 | D122: NN4_LC | E122: 鋳造実行数 | F122: 0 | H122: 0 | I122: 0 | J122: 0 | K122: 0 | L122: 0 | M122: 0 | N122: 0 | O122: 0 | P122: 0 | Q122: 0
C123: 19 | D123: NN4_LC | E123: 在庫計画 | F123: 0 | H123: 0 | I123: 0 | J123: 0 | K123: 0 | L123: 0 | M123: 0 | N123: 0 | O123: 0 | P123: 0 | Q123: 0
C124: 19 | D124: ZVT | E124: MA計画 | F124: 380 | H124: 330 | I124: 330 | J124: 330 | K124: 330 | L124: 330 | M124: 330 | N124: 330 | O124: 330 | P124: 330 | Q124: 330
C125: 19 | D125: ZG3_CB | E125: 鋳造実行数 | F125: 400 | H125: 400 | I125: 400 | J125: 400 | K125: 400 | L125: 400 | M125: 400 | N125: 400 | O125: 400 | P125: 400 | Q125: 400
C126: 19 | D126: ZG3_CB | E126: 在庫計画 | F126: 693 | H126: 402 | I126: 472 | J126: 542 | K126: 612 | L126: 682 | M126: 752 | N126: 822 | O126: 892 | P126: 962 | Q126: 1032
C127: 19 | D127: 11310_Z2E_CO | E127: MA計画 | F127: 100 | H127: 120 | I127: 120 | J127: 120 | K127: 75 | L127: 140 | M127: 75 | N127: 75 | O127: 75 | P127: 75 | Q127: 75
C128: 19 | D128: Z2E_CO | E128: 鋳造実行数 | F128: 0 | H128: 500 | I128: 0 | J128: 0 | K128: 400 | L128: 0 | M128: 0 | N128: 0 | O128: 0 | P128: 300 | Q128: 0
C129: 19 | D129: Z2E_CO | E129: 在庫計画 | F129: 219 | H129: 395 | I129: 275 | J129: 155 | K129: 480 | L129: 340 | M129: 265 | N129: 190 | O129: 115 | P129: 340 | Q129: 265
C130: 17 | D130: 11100 HN8_FR | E130: MA計画 | F130: 1560 | H130: 0 | I130: 0 | J130: 0 | K130: 338 | L130: 1584 | M130: 0 | N130: 0 | O130: 114 | P130: 1470 | Q130: 0
C131: 17 | D131: 11100 HN8_FR | E131: 鋳造実行数 | F131: 700 | H131: 0 | I131: 0 | J131: 0 | K131: 0 | L131: 1500 | M131: 0 | N131: 0 | O131: 0 | P131: 2000 | Q131: 0
C132: 17 | D132: 11100 HN8_FR | E132: 在庫計画 | F132: 2 | H132: 548 | I132: 548 | J132: 548 | K132: 210 | L132: 126 | M132: 126 | N132: 126 | O132: 12 | P132: 542 | Q132: 542
C133: 17 | D133: 11200 HN8_RR | E133: MA計画 | F133: 1560 | H133: 0 | I133: 0 | J133: 0 | K133: 338 | L133: 1584 | M133: 0 | N133: 0 | O133: 114 | P133: 1470 | Q133: 0
C134: 17 | D134: 11200 HN8_RR | E134: 鋳造実行数 | F134: 0 | H134: 0 | I134: 0 | J134: 0 | K134: 0 | L134: 1200 | M134: 0 | N134: 0 | O134: 0 | P134: 2000 | Q134: 0
C135: 17 | D135: 11200 HN8_RR | E135: 在庫計画 | F135: 549 | H135: 948 | I135: 948 | J135: 948 | K135: 610 | L135: 226 | M135: 226 | N135: 226 | O135: 112 | P135: 642 | Q135: 642
C136: 17 | D136: 11100 MN9_RC | E136: MA計画 | F136: 480 | H136: 0 | I136: 0 | J136: 0 | K136: 0 | L136: 0 | M136: 0 | N136: 0 | O136: 0 | P136: 0 | Q136: 0
C137: 17 | D137: 11100 MN9_RC | E137: 鋳造実行数 | F137: 1500 | H137: 0 | I137: 0 | J137: 0 | K137: 0 | L137: 0 | M137: 0 | N137: 0 | O137: 0 | P137: 0 | Q137: 0
C138: 17 | D138: 11100 MN9_RC | E138: 在庫計画 | F138: 920 | H138: 292 | I138: 292 | J138: 292 | K138: 292 | L138: 292 | M138: 292 | N138: 292 | O138: 292 | P138: 292 | Q138: 292
C139: 17 | D139: 11200 MN9_LC | E139: MA計画 | F139: 480 | H139: 0 | I139: 0 | J139: 0 | K139: 0 | L139: 0 | M139: 0 | N139: 0 | O139: 0 | P139: 0 | Q139: 0
C140: 17 | D140: 11200 MN9_LC | E140: 鋳造実行数 | F140: 1400 | H140: 0 | I140: 0 | J140: 0 | K140: 0 | L140: 0 | M140: 0 | N140: 0 | O140: 0 | P140: 0 | Q140: 0
C141: 17 | D141: 11200 MN9_LC | E141: 在庫計画 | F141: 1056 | H141: 513 | I141: 513 | J141: 513 | K141: 513 | L141: 513 | M141: 513 | N141: 513 | O141: 513 | P141: 513 | Q141: 513
C142: 17 | D142: 12100 Z2E_CB | E142: MA計画 | F142: 100 | H142: 120 | I142: 120 | J142: 120 | K142: 75 | L142: 140 | M142: 75 | N142: 75 | O142: 75 | P142: 75 | Q142: 75
C143: 17 | D143: 12100 Z2E_CB | E143: 鋳造実行数 | F143: 0 | H143: 0 | I143: 600 | J143: 0 | K143: 0 | L143: 0 | M143: 0 | N143: 0 | O143: 0 | P143: 0 | Q143: 200
C144: 17 | D144: 12100 Z2E_CB | E144: 在庫計画 | F144: 10 | H144: 249 | I144: 729 | J144: 609 | K144: 534 | L144: 394 | M144: 319 | N144: 244 | O144: 169 | P144: 94 | Q144: 219
C145: 7 | D145: GET_CB | E145: MA計画 | F145: 0 | H145: 0 | I145: 0 | J145: 0 | K145: 0 | L145: 0 | M145: 360 | N145: 0 | O145: 0 | P145: 0 | Q145: 0
C146: 7 | D146: GET_CB | E146: 鋳造実行数 | F146: 0 | H146: 0 | I146: 0 | J146: 0 | K146: 0 | L146: 0 | M146: 0 | N146: 0 | O146: 0 | P146: 0 | Q146: 0
C147: 7 | D147: GET_CB | E147: 在庫計画 | F147: 612 | H147: 612 | I147: 612 | J147: 612 | K147: 612 | L147: 612 | M147: 252 | N147: 252 | O147: 252 | P147: 252 | Q147: 252
C148: 7 | D148: GEV_CB | E148: MA計画 | F148: 0 | H148: 0 | I148: 0 | J148: 0 | K148: 0 | L148: 0 | M148: 0 | N148: 0 | O148: 0 | P148: 0 | Q148: 0
C149: 7 | D149: GEV_CB | E149: 鋳造実行数 | F149: 0 | H149: 0 | I149: 0 | J149: 0 | K149: 0 | L149: 0 | M149: 0 | N149: 0 | O149: 0 | P149: 0 | Q149: 0
C150: 7 | D150: GEV_CB | E150: 在庫計画 | F150: 0 | H150: 0 | I150: 0 | J150: 0 | K150: 0 | L150: 0 | M150: 0 | N150: 0 | O150: 0 | P150: 0 | Q150: 0
C151: 7 | D151: GFZ_CB | E151: MA計画 | F151: 0 | H151: 0 | I151: 0 | J151: 0 | K151: 0 | L151: 0 | M151: 0 | N151: 0 | O151: 0 | P151: 0 | Q151: 0
C152: 7 | D152: GFZ_CB | E152: 鋳造実行数 | F152: 0 | H152: 0 | I152: 0 | J152: 0 | K152: 0 | L152: 0 | M152: 0 | N152: 0 | O152: 0 | P152: 0 | Q152: 0
C153: 7 | D153: GFZ_CB | E153: 在庫計画 | F153: 125 | H153: 50 | I153: 50 | J153: 50 | K153: 50 | L153: 50 | M153: 50 | N153: 50 | O153: 50 | P153: 50 | Q153: 50
C154: 7 | D154: GBJ_CH | E154: MA計画 | F154: 0 | H154: 0 | I154: 0 | J154: 0 | K154: 0 | L154: 0 | M154: 0 | N154: 0 | O154: 0 | P154: 0 | Q154: 0
C155: 7 | D155: GBJ_CH | E155: 鋳造実行数 | F155: 0 | H155: 0 | I155: 0 | J155: 0 | K155: 0 | L155: 0 | M155: 0 | N155: 0 | O155: 0 | P155: 0 | Q155: 0
C156: 7 | D156: GBJ_CH | E156: 在庫計画 | F156: 0 | H156: 0 | I156: 0 | J156: 0 | K156: 0 | L156: 0 | M156: 0 | N156: 0 | O156: 0 | P156: 0 | Q156: 0
C157: 7 | D157: KSE_RC | E157: MA計画 | F157: 0 | H157: 0 | I157: 0 | J157: 0 | K157: 0 | L157: 0 | M157: 0 | N157: 0 | O157: 0 | P157: 0 | Q157: 0
C158: 7 | D158: KSE_RC | E158: 鋳造実行数 | F158: 0 | H158: 0 | I158: 0 | J158: 0 | K158: 0 | L158: 0 | M158: 0 | N158: 0 | O158: 0 | P158: 0 | Q158: 0
C159: 7 | D159: KSE_RC | E159: 在庫計画 | F159: 200 | H159: 6 | I159: 6 | J159: 6 | K159: 6 | L159: 6 | M159: 6 | N159: 6 | O159: 6 | P159: 6 | Q159: 6
C160: 7 | D160: KSE_LC | E160: MA計画 | F160: 0 | H160: 0 | I160: 0 | J160: 0 | K160: 0 | L160: 0 | M160: 0 | N160: 0 | O160: 0 | P160: 0 | Q160: 0
C161: 7 | D161: KSE_LC | E161: 鋳造実行数 | F161: 0 | H161: 0 | I161: 0 | J161: 0 | K161: 0 | L161: 0 | M161: 0 | N161: 0 | O161: 0 | P161: 0 | Q161: 0
C162: 7 | D162: KSE_LC | E162: 在庫計画 | F162: 357 | H162: 16 | I162: 16 | J162: 16 | K162: 16 | L162: 16 | M162: 16 | N162: 16 | O162: 16 | P162: 16 | Q162: 16
C163: 20 | D163: 11200_MKC_LCB | E163: MA計画 | F163: 1030 | H163: 1140 | I163: 1190 | J163: 830 | K163: 1080 | L163: 560 | M163: 510 | N163: 0 | O163: 0 | P163: 500 | Q163: 520
C164: 7 | D164: ZG3_CH | E164: 鋳造実行数 | F164: 850 | H164: 900 | I164: 1000 | J164: 1000 | K164: 800 | L164: 600 | M164: 400 | N164: 0 | O164: 0 | P164: 500 | Q164: 600
C165: 7 | D165: ZG3_CH | E165: 在庫計画 | F165: 522 | H165: 615 | I165: 425 | J165: 595 | K165: 315 | L165: 355 | M165: 245 | N165: 245 | O165: 245 | P165: 245 | Q165: 325
C166: 16 | D166: 11100_MKC_RCB | E166: MA計画 | F166: 1030 | H166: 1140 | I166: 1190 | J166: 830 | K166: 1080 | L166: 560 | M166: 510 | N166: 0 | O166: 0 | P166: 500 | Q166: 520
C167: 7 | D167: ZG3_CH | E167: 鋳造実行数 | F167: 800 | H167: 1700 | I167: 2500 | J167: 0 | K167: 500 | L167: 500 | M167: 0 | N167: 0 | O167: 600 | P167: 500 | Q167: 850
C168: 7 | D168: ZG3_CH | E168: 在庫計画 | F168: 890 | H168: 707 | I168: 2017 | J168: 1187 | K168: 607 | L168: 547 | M168: 37 | N168: 37 | O168: 637 | P168: 637 | Q168: 967
C169: 17 | D169: 11100_HR0_FR | E169: MA計画 | F169: 3785 | H169: 4360 | I169: 4180 | J169: 2116 | K169: 4642 | L169: 2894 | M169: 4524 | N169: 3686 | O169: 4544 | P169: 3556 | Q169: 4286
C170: 7 | D170: ZG3_CH | E170: 鋳造実行数 | F170: 4500 | H170: 4700 | I170: 5000 | J170: 3000 | K170: 5800 | L170: 1000 | M170: 5100 | N170: 4100 | O170: 2700 | P170: 2900 | Q170: 3800
C171: 7 | D171: ZG3_CH | E171: 在庫計画 | F171: 665 | H171: 2621 | I171: 3441 | J171: 4325 | K171: 5483 | L171: 3589 | M171: 4165 | N171: 4579 | O171: 2735 | P171: 2079 | Q171: 1593
C172: 17 | D172: 11200_HR0_RR | E172: MA計画 | F172: 3785 | H172: 4360 | I172: 4180 | J172: 2116 | K172: 4642 | L172: 2894 | M172: 4524 | N172: 3686 | O172: 4544 | P172: 3556 | Q172: 4286
C173: 7 | D173: ZG3_CH | E173: 鋳造実行数 | F173: 3000 | H173: 5200 | I173: 4200 | J173: 3400 | K173: 5500 | L173: 1000 | M173: 6000 | N173: 3400 | O173: 2900 | P173: 2900 | Q173: 3800
C174: 7 | D174: ZG3_CH | E174: 在庫計画 | F174: 2090 | H174: 2927 | I174: 2947 | J174: 4231 | K174: 5089 | L174: 3195 | M174: 4671 | N174: 4385 | O174: 2741 | P174: 2085 | Q174: 1599
C175: 17 | D175: 11100_HR6_FR | E175: MA計画 | F175: 3080 | H175: 2196 | I175: 1292 | J175: 418 | K175: 1296 | L175: 1684 | M175: 722 | N175: 1798 | O175: 1520 | P175: 1516 | Q175: 2360
C176: 7 | D176: ZG3_CH | E176: 鋳造実行数 | F176: 1000 | H176: 2200 | I176: 800 | J176: 2200 | K176: 1200 | L176: 0 | M176: 1200 | N176: 2200 | O176: 1200 | P176: 1400 | Q176: 1400
C177: 7 | D177: ZG3_CH | E177: 在庫計画 | F177: 1732 | H177: 1253 | I177: 761 | J177: 2543 | K177: 2447 | L177: 763 | M177: 1241 | N177: 1643 | O177: 1323 | P177: 1207 | Q177: 247
C178: 17 | D178: 11200_HR6_RR | E178: MA計画 | F178: 3080 | H178: 2196 | I178: 1292 | J178: 418 | K178: 1296 | L178: 1684 | M178: 722 | N178: 1798 | O178: 1520 | P178: 1516 | Q178: 2360
C179: 7 | D179: ZG3_CH | E179: 鋳造実行数 | F179: 2200 | H179: 1600 | I179: 1000 | J179: 2000 | K179: 1500 | L179: 0 | M179: 1200 | N179: 1700 | O179: 1600 | P179: 1800 | Q179: 1400
C180: 7 | D180: ZG3_CH | E180: 在庫計画 | F180: 942 | H180: 560 | I180: 268 | J180: 1850 | K180: 2054 | L180: 370 | M180: 848 | N180: 750 | O180: 830 | P180: 1114 | Q180: 154
C181: 17 | D181: 11100_HP7_FR | E181: MA計画 | F181: 0 | H181: 0 | I181: 0 | J181: 0 | K181: 0 | L181: 0 | M181: 0 | N181: 0 | O181: 0 | P181: 0 | Q181: 0
C182: 7 | D182: ZG3_CH | E182: 鋳造実行数 | F182: 0 | H182: 0 | I182: 0 | J182: 0 | K182: 0 | L182: 0 | M182: 0 | N182: 0 | O182: 0 | P182: 0 | Q182: 0
C183: 7 | D183: ZG3_CH | E183: 在庫計画 | F183: 26 | H183: 6 | I183: 6 | J183: 6 | K183: 6 | L183: 6 | M183: 6 | N183: 6 | O183: 6 | P183: 6 | Q183: 6
C184: 17 | D184: 11200_HP7_RR | E184: MA計画 | F184: 0 | H184: 0 | I184: 0 | J184: 0 | K184: 0 | L184: 0 | M184: 0 | N184: 0 | O184: 0 | P184: 0 | Q184: 0
C185: 7 | D185: ZG3_CH | E185: 鋳造実行数 | F185: 0 | H185: 0 | I185: 0 | J185: 0 | K185: 0 | L185: 0 | M185: 0 | N185: 0 | O185: 0 | P185: 0 | Q185: 0
C186: 7 | D186: ZG3_CH | E186: 在庫計画 | F186: 26 | H186: 6 | I186: 6 | J186: 6 | K186: 6 | L186: 6 | M186: 6 | N186: 6 | O186: 6 | P186: 6 | Q186: 6
C187: 7 | D187: 11100_HM8_FR | E187: MA計画 | F187: 665 | H187: 680 | I187: 2158 | J187: 0 | K187: 0 | L187: 1022 | M187: 1698 | N187: 566 | O187: 0 | P187: 0 | Q187: 0
C188: 7 | D188: ZG3_CH | E188: 鋳造実行数 | F188: 1500 | H188: 1600 | I188: 1200 | J188: 0 | K188: 1000 | L188: 1500 | M188: 700 | N188: 0 | O188: 0 | P188: 0 | Q188: 1100
C189: 7 | D189: ZG3_CH | E189: 在庫計画 | F189: 1112 | H189: 1097 | I189: 139 | J189: 139 | K189: 1139 | L189: 1617 | M189: 619 | N189: 53 | O189: 53 | P189: 53 | Q189: 1153
C190: 7 | D190: 11200_HM8_RR | E190: MA計画 | F190: 665 | H190: 680 | I190: 2158 | J190: 0 | K190: 0 | L190: 1022 | M190: 1698 | N190: 566 | O190: 0 | P190: 0 | Q190: 0
C191: 7 | D191: ZG3_CH | E191: 鋳造実行数 | F191: 1500 | H191: 1200 | I191: 1200 | J191: 0 | K191: 1000 | L191: 1200 | M191: 1000 | N191: 0 | O191: 0 | P191: 0 | Q191: 1100
C192: 7 | D192: ZG3_CH | E192: 在庫計画 | F192: 965 | H192: 1077 | I192: 119 | J192: 119 | K192: 1119 | L192: 1297 | M192: 599 | N192: 33 | O192: 33 | P192: 33 | Q192: 1133
C193: 19 | D193: MKC_SCD | E193: MA計画 | F193: 576 | H193: 576 | I193: 1056 | J193: 864 | K193: 480 | L193: 672 | M193: 576 | N193: 576 | O193: 576 | P193: 576 | Q193: 672
C194: 7 | D194: ZG3_CH | E194: 鋳造実行数 | F194: 550 | H194: 1500 | I194: 1500 | J194: 500 | K194: 0 | L194: 600 | M194: 600 | N194: 500 | O194: 500 | P194: 700 | Q194: 700
C195: 7 | D195: ZG3_CH | E195: 在庫計画 | F195: 1164 | H195: 1145 | I195: 1589 | J195: 1225 | K195: 745 | L195: 673 | M195: 697 | N195: 621 | O195: 545 | P195: 669 | Q195: 697
C196: 19 | D196: MKC_CCD | E196: MA計画 | F196: 576 | H196: 576 | I196: 1056 | J196: 864 | K196: 480 | L196: 672 | M196: 576 | N196: 576 | O196: 576 | P196: 576 | Q196: 672
C197: 7 | D197: ZG3_CH | E197: 鋳造実行数 | F197: 550 | H197: 1500 | I197: 1500 | J197: 500 | K197: 0 | L197: 600 | M197: 600 | N197: 500 | O197: 500 | P197: 700 | Q197: 700
C198: 7 | D198: ZG3_CH | E198: 在庫計画 | F198: 1164 | H198: 1145 | I198: 1589 | J198: 1225 | K198: 745 | L198: 673 | M198: 697 | N198: 621 | O198: 545 | P198: 669 | Q198: 697
C199: 19 | D199: MKC_SCM | E199: MA計画 | F199: 0 | H199: 0 | I199: 384 | J199: 0 | K199: 384 | L199: 0 | M199: 0 | N199: 0 | O199: 0 | P199: 0 | Q199: 0
C200: 7 | D200: ZG3_CH | E200: 鋳造実行数 | F200: 0 | H200: 0 | I200: 900 | J200: 0 | K200: 0 | L200: 0 | M200: 0 | N200: 0 | O200: 0 | P200: 0 | Q200: 0
C201: 7 | D201: ZG3_CH | E201: 在庫計画 | F201: 253 | H201: 249 | I201: 765 | J201: 765 | K201: 381 | L201: 381 | M201: 381 | N201: 381 | O201: 381 | P201: 381 | Q201: 381
C202: 19 | D202: MKC_CCM | E202: MA計画 | F202: 0 | H202: 0 | I202: 384 | J202: 0 | K202: 384 | L202: 0 | M202: 0 | N202: 0 | O202: 0 | P202: 0 | Q202: 0
... 44 more rows

Sheet SP在庫 (hidden)
M2: ※SP部品無し
C3: SP | F3: 9gatu | G3: =生産管理!F3 -> 4gatu | J3: =生産管理!G3 -> 5gatu | M3: =生産管理!H3 -> 6gatu | P3: =生産管理!I3 -> 7gatu | S3: =生産管理!J3 -> 8gatu | V3: =生産管理!K3 -> 9gatu | Y3: =生産管理!L3 -> 10gatu
B4: MC | C4: 部品名 | D4: 部番 | F4: 末在庫 | G4: 出荷数 | H4: 鋳造数 | I4: 末在庫 | J4: 出荷数 | K4: 鋳造数 | L4: 末在庫 | M4: 出荷数 | N4: 鋳造数 | O4: 末在庫 | P4: 出荷数 | Q4: 鋳造数 | R4: 末在庫 | S4: 出荷数 | T4: 鋳造数 | U4: 末在庫 | V4: 出荷数 | W4: 鋳造数 | X4: 末在庫 | Y4: 出荷数 | Z4: 鋳造数 | AA4: 末在庫
B6: 20 | C6: MCS-CB | I6: =F6-G6+H6 -> 0 | L6: =I6-J6+K6 -> 0 | O6: =L6-M6+N6 -> 0 | R6: =O6-P6+Q6 -> 0 | U6: =R6-S6+T6 -> 0 | X6: =U6-V6+W6 -> 0 | AA6: =X6-Y6+Z6 -> 0
B7: 20 | C7: MJPB-CB | I7: =F7-G7+H7 -> 0 | L7: =I7-J7+K7 -> 0 | O7: =L7-M7+N7 -> 0 | R7: =O7-P7+Q7 -> 0 | U7: =R7-S7+T7 -> 0 | X7: =U7-V7+W7 -> 0 | AA7: =X7-Y7+Z7 -> 0
B8: 20 | C8: MCA-RCB | I8: =F8-G8+H8 -> 0 | L8: =I8-J8+K8 -> 0 | O8: =L8-M8+N8 -> 0 | R8: =O8-P8+Q8 -> 0 | U8: =R8-S8+T8 -> 0 | X8: =U8-V8+W8 -> 0 | AA8: =X8-Y8+Z8 -> 0
B9: 20 | C9: MCA-LCB | I9: =F9-G9+H9 -> 0 | L9: =I9-J9+K9 -> 0 | O9: =L9-M9+N9 -> 0 | R9: =O9-P9+Q9 -> 0 | U9: =R9-S9+T9 -> 0 | X9: =U9-V9+W9 -> 0 | AA9: =X9-Y9+Z9 -> 0
A10: MBT-CB | B10: 20 | C10: MBT-CB | I10: =F10-G10+H10 -> 0 | L10: =I10-J10+K10 -> 0 | O10: =L10-M10+N10 -> 0 | R10: =O10-P10+Q10 -> 0 | U10: =R10-S10+T10 -> 0 | X10: =U10-V10+W10 -> 0 | AA10: =X10-Y10+Z10 -> 0
A11: HW5_CB | B11: 20 | C11: HW5_CB | D11: 1110A-HW5-9000-01 | I11: 0 | L11: 0 | O11: 0 | R11: 0 | U11: 0 | X11: 0 | AA11: 0
A12: MGR-R | B12: 16 | C12: MJG-R | I12: =F12-G12+H12 -> 0 | L12: =I12-J12+K12 -> 0 | O12: =L12-M12+N12 -> 0 | R12: =O12-P12+Q12 -> 0 | U12: =R12-S12+T12 -> 0 | X12: =U12-V12+W12 -> 0 | AA12: =X12-Y12+Z12 -> 0
A13: MGR-R | B13: 16 | C13: KFK-CB | I13: =F13-G13+H13 -> 0 | L13: =I13-J13+K13 -> 0 | O13: =L13-M13+N13 -> 0 | R13: =O13-P13+Q13 -> 0 | U13: =R13-S13+T13 -> 0 | X13: =U13-V13+W13 -> 0 | AA13: =X13-Y13+Z13 -> 0
A14: MGR-R | B14: 16 | C14: MGR-R | I14: 0 | L14: 0 | O14: 0 | R14: 0 | U14: 0 | X14: 0 | AA14: 0
A15: MFF-R | B15: 16 | C15: MFF-R | I15: 0 | L15: 0 | O15: 0 | R15: 0 | U15: 0 | X15: 0 | AA15: 0
A16: MENL(A701) | B16: 14 | C16: MGS LC DCT | I16: =F16-G16+H16 -> 0 | L16: =I16-J16+K16 -> 0 | O16: =L16-M16+N16 -> 0 | R16: =O16-P16+Q16 -> 0 | U16: =R16-S16+T16 -> 0 | X16: =U16-V16+W16 -> 0 | AA16: =X16-Y16+Z16 -> 0
B17: 14 | C17: MGP-UP | I17: =F17-G17+H17 -> 0 | L17: =I17-J17+K17 -> 0 | O17: =L17-M17+N17 -> 0 | R17: =O17-P17+Q17 -> 0 | U17: =R17-S17+T17 -> 0 | X17: =U17-V17+W17 -> 0 | AA17: =X17-Y17+Z17 -> 0
A18: MENL(A701) | B18: 19 | C18: MENL(A701) | D18: 11200-MEN-A701-AA | I18: 0 | L18: 0 | O18: 0 | R18: 0 | U18: 0 | X18: 0 | AA18: 0
A19: MEN-L(SP 100) | B19: 19 | C19: MEN-L(SP 100) | D19: 11200-MEN-A100-AA | I19: 0 | L19: 0 | O19: 0 | R19: 0 | U19: 0 | X19: 0 | AA19: 0
A20: MEN-R(SP 000) | B20: 19 | C20: MEN-R(SP 000) | D20: 11100-MEN-A000-AA | I20: 0 | L20: 0 | O20: 0 | R20: 0 | U20: 0 | X20: 0 | AA20: 0
A21: MEN-L(SP 500) | B21: 19 | C21: MEN-R(SP 851) | D21: 11100-MEN-8510-AA | I21: =F21-G21+H21 -> 0 | L21: =I21-J21+K21 -> 0 | O21: =L21-M21+N21 -> 0 | R21: =O21-P21+Q21 -> 0 | U21: =R21-S21+T21 -> 0 | X21: =U21-V21+W21 -> 0 | AA21: =X21-Y21+Z21 -> 0
A22: MEN-L(SP 500) | B22: 19 | C22: MENR-L(SP 500) | D22: 11200-MEN-A500-AA | I22: 0 | L22: 0 | O22: 0 | R22: 0 | U22: 0 | X22: 0 | AA22: 0
A23: MEN-R(SP 300) | B23: 19 | C23: MENR-R(SP 300) | D23: 11100-MEN-A300-AA | I23: =F23-G23+H23 -> 0 | L23: =I23-J23+K23 -> 0 | O23: =L23-M23+N23 -> 0 | R23: =O23-P23+Q23 -> 0 | U23: =R23-S23+T23 -> 0 | X23: =U23-V23+W23 -> 0 | AA23: =X23-Y23+Z23 -> 0
A24: MENT-L(900) | B24: 19 | C24: MENT_LC A701 | D24: 900 | I24: 0 | L24: 0 | O24: 0 | R24: 0 | U24: 0 | X24: 0 | AA24: 0
A25: MENT-R(700) | B25: 19 | C25: MENT_RC A700 | D25: 700 | I25: 0 | L25: 0 | O25: 0 | R25: 0 | U25: 0 | X25: 0 | AA25: 0
A26: KRN-L | B26: 19 | C26: KRN-L | D26: 11201-KRN-A400-AA | I26: 0 | L26: 0 | O26: 0 | R26: 0 | U26: 0 | X26: 0 | AA26: 0
A27: KRN-R | B27: 19 | C27: KRN-R | D27: 11101-KRN-A400-AA | F27: 0 | I27: 0 | L27: 0 | O27: 0 | R27: 0 | U27: 0 | X27: 0 | AA27: 0
B28: 19 | C28: KRN-L | D28: 11201-KRN-A800-AA | I28: =F28-G28+H28 -> 0 | L28: 0 | O28: 0 | R28: 0 | U28: 0 | X28: 0 | AA28: 0
B29: 19 | C29: KRN-R | D29: 11101-KRN-A800-AA | I29: 0 | L29: 0 | O29: 0 | R29: 0 | U29: 0 | X29: 0 | AA29: 0
B30: 19 | C30: MEY_L | I30: =F30-G30+H30 -> 0 | L30: 0 | O30: 0 | R30: 0 | U30: 0 | X30: 0 | AA30: 0
B31: 19 | C31: MEY_R | I31: =F31-G31+H31 -> 0 | L31: 0 | O31: 0 | R31: 0 | U31: 0 | X31: 0 | AA31: 0
B32: 19 | C32: MKEA_L | I32: 0 | L32: =I32-J32+K32 -> 0 | O32: =L32-M32+N32 -> 0 | R32: =O32-P32+Q32 -> 0 | U32: =R32-S32+T32 -> 0 | X32: =U32-V32+W32 -> 0 | AA32: =X32-Y32+Z32 -> 0
B33: 19 | C33: MKEA_R | I33: 0 | L33: =I33-J33+K33 -> 0 | O33: =L33-M33+N33 -> 0 | R33: =O33-P33+Q33 -> 0 | U33: =R33-S33+T33 -> 0 | X33: =U33-V33+W33 -> 0 | AA33: =X33-Y33+Z33 -> 0
A34: NX7-L | B34: 19 | C34: NX7-L | I34: 0 | L34: 0 | O34: 0 | R34: 0 | U34: 0 | X34: 0 | AA34: 0
A35: NX7-R | B35: 19 | C35: NX7-R | I35: 0 | L35: 0 | O35: 0 | R35: 0 | U35: 0 | X35: 0 | AA35: 0
A36: GGK UP | B36: 19 | C36: GGK UP | I36: 0 | L36: 0 | O36: 0 | R36: 0 | U36: 0 | X36: 0 | AA36: 0
A37: HN1M-L | B37: 17 | C37: HN1M-L | I37: =F37-G37+H37 -> 0 | L37: =I37-J37+K37 -> 0 | O37: =L37-M37+N37 -> 0 | R37: =O37-P37+Q37 -> 0 | U37: =R37-S37+T37 -> 0 | X37: =U37-V37+W37 -> 0 | AA37: =X37-Y37+Z37 -> 0
A38: HN1M-R | B38: 17 | C38: HN1M-R | I38: =F38-G38+H38 -> 0 | L38: =I38-J38+K38 -> 0 | O38: =L38-M38+N38 -> 0 | R38: =O38-P38+Q38 -> 0 | U38: =R38-S38+T38 -> 0 | X38: =U38-V38+W38 -> 0 | AA38: =X38-Y38+Z38 -> 0
A39: MCG-L | B39: 17 | C39: MCG-L | I39: =F39-G39+H39 -> 0 | L39: =I39-J39+K39 -> 0 | O39: =L39-M39+N39 -> 0 | R39: =O39-P39+Q39 -> 0 | U39: =R39-S39+T39 -> 0 | X39: =U39-V39+W39 -> 0 | AA39: =X39-Y39+Z39 -> 0
A40: MCG-R | B40: 17 | C40: MCG-R | I40: =F40-G40+H40 -> 0 | L40: =I40-J40+K40 -> 0 | O40: =L40-M40+N40 -> 0 | R40: =O40-P40+Q40 -> 0 | U40: =R40-S40+T40 -> 0 | X40: =U40-V40+W40 -> 0 | AA40: =X40-Y40+Z40 -> 0
A41: HN1 L (0001) | B41: 17 | C41: HN1_L | D41: 11200-HN1-0001-XA | I41: =F41-G41+H41 -> 0 | L41: =I41-J41+K41 -> 0 | O41: =L41-M41+N41 -> 0 | R41: =O41-P41+Q41 -> 0 | U41: =R41-S41+T41 -> 0 | X41: =U41-V41+W41 -> 0 | AA41: =X41-Y41+Z41 -> 0
A42: MCT-L | B42: 17 | C42: MCT-L | I42: 0 | L42: 0 | O42: 0 | R42: 0 | U42: 0 | X42: 0 | AA42: 0
A43: MCT-R | B43: 17 | C43: MCT-R | I43: 0 | L43: 0 | O43: 0 | R43: 0 | U43: 0 | X43: 0 | AA43: 0
A44: HM3 L | B44: 17 | C44: HM3 L | D44: 11200-HM3-A600-XA | I44: 0 | L44: 0 | O44: 0 | R44: 0 | U44: 0 | X44: 0 | AA44: 0
A45: HM3 R | B45: 17 | C45: HM3 R | D45: 11100-HM3-A600-XA | I45: 0 | L45: 0 | O45: 0 | R45: 0 | U45: 0 | X45: 0 | AA45: 0
A46: KCY-L | B46: 17 | C46: KCY_R | D46: 11100KCY 6702XA | I46: 0 | L46: 0 | O46: 0 | R46: 0 | U46: 0 | X46: 0 | AA46: 0
A47: KFH L | B47: 17 | C47: KCY-L | D47: 11200-KCY-6702XA | I47: 0 | L47: 0 | O47: 0 | R47: 0 | U47: 0 | X47: 0 | AA47: 0
A48: HC4 L | B48: 17 | C48: KFH L | I48: 0 | L48: 0 | O48: 0 | R48: 0 | U48: 0 | X48: 0 | AA48: 0
A49: HC4 R | B49: 17 | C49: HC4 L | I49: 0 | L49: 0 | O49: 0 | R49: 0 | U49: 0 | X49: 0 | AA49: 0
A50: HC5 L | B50: 17 | C50: HC4 R | D50: 11100-HC4-0006-XA | I50: 0 | L50: 0 | O50: 0 | R50: 0 | U50: 0 | X50: 0 | AA50: 0
A51: KS4 L | B51: 17 | C51: HC5 L | I51: 0 | L51: 0 | O51: 0 | R51: 0 | U51: 0 | X51: 0 | AA51: 0
A52: GW2 L | B52: 17 | C52: KS4 L | D52: 11200-KS4-0003-XA | I52: 0 | J52: 3 | L52: -3 | O52: -3 | R52: -3 | U52: -3 | X52: -3 | AA52: -3
A53: GW3 L | B53: 17 | C53: GW2 L | D53: 11200-GW2-0003-AA | I53: 0 | L53: 0 | O53: 0 | R53: 0 | U53: 0 | X53: 0 | AA53: 0
A54: KE5 L | B54: 17 | C54: GW3 L | D54: 11200-GW3-7101-KO | I54: 0 | L54: 0 | O54: 0 | R54: 0 | U54: 0 | X54: 0 | AA54: 0
A55: KE5 R | B55: 17 | C55: KE5 L | I55: 0 | L55: 0 | O55: 0 | R55: 0 | U55: 0 | X55: 0 | AA55: 0
A56: MG2 L | B56: 17 | C56: KE5 R | I56: 0 | L56: 0 | O56: 0 | R56: 0 | U56: 0 | X56: 0 | AA56: 0
A57: MG3 R | B57: 17 | C57: MG2 L | I57: 0 | L57: 0 | O57: 0 | R57: 0 | U57: 0 | X57: 0 | AA57: 0
A58: MBN-L | B58: 17 | C58: MG3 R | I58: 0 | L58: 0 | O58: 0 | R58: 0 | U58: 0 | X58: 0 | AA58: 0
A59: MBN-R | B59: 17 | C59: MBN-L | I59: 0 | L59: 0 | O59: 0 | R59: 0 | U59: 0 | X59: 0 | AA59: 0
A60: HM8-F | B60: 17 | C60: MBN-R | D60: 11100-MBN-6701XA | I60: 0 | L60: 0 | O60: 0 | R60: 0 | U60: 0 | X60: 0 | AA60: 0
A61: HM8-R | B61: 17 | C61: HM8-F | I61: 0 | L61: 0 | O61: 0 | R61: 0 | U61: 0 | X61: 0 | AA61: 0
A62: HA0 L | B62: 17 | C62: HM8-R | I62: 0 | L62: 0 | O62: 0 | R62: 0 | U62: 0 | X62: 0 | AA62: 0
A63: HP6-L | B63: 17 | C63: HA0 L | I63: 0 | L63: 0 | O63: 0 | R63: 0 | U63: 0 | X63: 0 | AA63: 0
A64: HP6-R | B64: 13 | C64: HP6-L | I64: =F64-G64+H64 -> 0 | L64: 0 | O64: 0 | R64: 0 | U64: 0 | X64: 0 | AA64: 0
A65: KCS-L | B65: 17 | C65: HP6-R | I65: 0 | L65: 0 | O65: 0 | R65: 0 | U65: 0 | X65: 0 | AA65: 0
A66: KCS-R | B66: 7 | C66: KCS-L | I66: 0 | L66: 0 | O66: 0 | R66: 0 | U66: 0 | X66: 0 | AA66: 0
A67: KC6-L | B67: 7 | C67: KCS-R | I67: 0 | L67: 0 | O67: 0 | R67: 0 | U67: 0 | X67: 0 | AA67: 0
A68: KC6-R | B68: 7 | C68: KC6-L | I68: 0 | L68: 0 | O68: 0 | R68: 0 | U68: 0 | X68: 0 | AA68: 0
A69: KCN-L | B69: 7 | C69: KC6-R | I69: 0 | L69: 0 | O69: 0 | R69: 0 | U69: 0 | X69: 0 | AA69: 0
A70: KCN-R | B70: 7 | C70: KCN-L | I70: 0 | L70: 0 | O70: 0 | R70: 0 | U70: 0 | X70: 0 | AA70: 0
A71: HP1G-L (6001) | B71: 7 | C71: KCN-R | I71: 0 | L71: 0 | O71: 0 | R71: 0 | U71: 0 | X71: 0 | AA71: 0
A72: HP1G-R (6000) | B72: 17 | C72: HP1G-L | D72: 11200HP1 6001AA | I72: 0 | L72: 0 | O72: 0 | R72: 0 | U72: 0 | X72: 0 | AA72: 0
A73: GJ0-L(GE2) | B73: 7 | C73: HP1G-R | D73: 11100HP1 6000AA | I73: 0 | L73: 0 | O73: 0 | R73: 0 | U73: 0 | X73: 0 | AA73: 0
A74: GE2-R | B74: 7 | C74: GJ0-L(GE2) | D74: 11200-GE2-7401 | I74: =F74-G74+H74 -> 0 | L74: =I74-J74+K74 -> 0 | O74: =L74-M74+N74 -> 0 | R74: =O74-P74+Q74 -> 0 | U74: =R74-S74+T74 -> 0 | X74: =U74-V74+W74 -> 0 | AA74: =X74-Y74+Z74 -> 0
A75: KK0-LL | B75: 7 | C75: GE2-R(GE4) | D75: 11100-GE2-0101-AA | I75: =F75-G75+H75 -> 0 | L75: =I75-J75+K75 -> 0 | O75: =L75-M75+N75 -> 0 | R75: =O75-P75+Q75 -> 0 | U75: =R75-S75+T75 -> 0 | X75: =U75-V75+W75 -> 0 | AA75: =X75-Y75+Z75 -> 0
A76: GBJ CH | B76: 7 | C76: GBJ CH | D76: 12200-GBJ-M30AD | I76: 210 | J76: 70 | L76: 140 | O76: 140 | R76: 140 | U76: 140 | X76: 140 | AA76: 140
A77: KSE-L(SP) | B77: 7 | C77: KK0-LR | I77: 0 | L77: 0 | O77: 0 | R77: 0 | U77: 0 | X77: 0 | AA77: 0
A78: KR8 L | B78: 7 | C78: KSE-L(SP) | I78: 0 | L78: 0 | O78: 0 | R78: 0 | U78: 0 | X78: 0 | AA78: 0
A79: KR8 R | B79: 7 | C79: KR8 L | I79: 0 | L79: 0 | O79: 0 | R79: 0 | U79: 0 | X79: 0 | AA79: 0
A80: HB3-L | B80: 7 | C80: KR8 R | I80: 0 | L80: 0 | O80: 0 | R80: 0 | U80: 0 | X80: 0 | AA80: 0
A81: GCS L | B81: 7 | C81: HB3-L | I81: 0 | L81: 0 | O81: 0 | R81: 0 | U81: 0 | X81: 0 | AA81: 0
A82: GE3-L | B82: 7 | C82: GCS L | I82: 0 | L82: 0 | O82: 0 | R82: 0 | U82: 0 | X82: 0 | AA82: 0
A83: GE3-R | B83: 7 | C83: GE3-L | I83: 0 | L83: 0 | O83: 0 | R83: 0 | U83: 0 | X83: 0 | AA83: 0
A84: KW3 L | B84: 7 | C84: GE3-R | D84: 11100-GE3-6106-AA | I84: 0 | L84: 0 | O84: 0 | R84: 0 | U84: 0 | X84: 0 | AA84: 0
A85: KW3 R | B85: 7 | C85: KW3 L | I85: 0 | L85: 0 | O85: 0 | R85: 0 | U85: 0 | X85: 0 | AA85: 0
A86: GBL L | B86: 7 | C86: KW3 R | I86: 0 | L86: 0 | O86: 0 | R86: 0 | U86: 0 | X86: 0 | AA86: 0
A87: GEE CB | B87: 7 | C87: GBL L | D87: 11200-GBL-3002-AA | I87: 0 | L87: 0 | O87: 0 | R87: 0 | U87: 0 | X87: 0 | AA87: 0
A88: GBC L | B88: 7 | C88: GEE CB | I88: 0 | L88: 0 | O88: 0 | R88: 0 | U88: 0 | X88: 0 | AA88: 0
A89: GCW L | B89: 7 | C89: GBC L | D89: 11200-GBC-3000-AA | I89: 0 | L89: 0 | O89: 0 | R89: 0 | U89: 0 | X89: 0 | AA89: 0
A90: GBB-L(SP) | B90: 7 | C90: GCW L | I90: 0 | L90: 0 | O90: 0 | R90: 0 | U90: 0 | X90: 0 | AA90: 0
A91: KTO-L | B91: 7 | C91: GBB-L(SP) | D91: 11200-GBB-3000-AA | I91: 0 | L91: 0 | O91: 0 | R91: 0 | U91: 0 | X91: 0 | AA91: 0
A92: KTO-R | B92: 7 | C92: KTO-L | I92: 0 | L92: 0 | O92: 0 | R92: 0 | U92: 0 | X92: 0 | AA92: 0
A93: KCZ-L | B93: 7 | C93: KTO-R | I93: 0 | L93: 0 | O93: 0 | R93: 0 | U93: 0 | X93: 0 | AA93: 0
A94: KCZ-R | B94: 7 | C94: KCZ-L | I94: 0 | L94: 0 | O94: 0 | R94: 0 | U94: 0 | X94: 0 | AA94: 0
A95: GAH-L | B95: 7 | C95: KCZ-R | I95: 0 | L95: 0 | O95: 0 | R95: 0 | U95: 0 | X95: 0 | AA95: 0
A96: GBLK-L | B96: 7 | C96: GAH-L | D96: 11200-GAH-7203-AA | I96: 0 | L96: 0 | O96: 0 | R96: 0 | U96: 0 | X96: 0 | AA96: 0
A97: GEE-SA | B97: 7 | C97: GBLK-L | D97: 11200-GBL-8702-AA | I97: 0 | L97: 0 | O97: 0 | R97: 0 | U97: 0 | X97: 0 | AA97: 0
A98: 958Y-L | B98: 7 | C98: GEE-SA | I98: 0 | L98: 0 | O98: 0 | R98: 0 | U98: 0 | X98: 0 | AA98: 0
A99: HP1A-L (6701) | B99: 7 | C99: 958Y-L | I99: 0 | L99: 0 | O99: 0 | R99: 0 | U99: 0 | X99: 0 | AA99: 0
A100: HP1A-R (6701) | B100: 7 | C100: HP1A-L | D100: 11200-HP1-6701-XA | I100: 0 | L100: 0 | O100: 0 | R100: 0 | U100: 0 | X100: 0 | AA100: 0
A101: ZG4-C/H | B101: 7 | C101: HP1A-R | D101: 11100-HP1-6701-XA | I101: 0 | L101: 0 | O101: 0 | R101: 0 | U101: 0 | X101: 0 | AA101: 0
A102: ZF6 C/B | B102: 汎用 | C102: ZG4-C/H | F102: 0 | I102: =F102-G102+H102 -> 0 | L102: 0 | O102: 0 | R102: 0 | U102: 0 | X102: 0 | AA102: 0
A103: ZF6 C/B | B103: 汎用 | C103: ZF6 C/B | D103: 12100-ZF6-0003XA | I103: 0 | L103: 0 | O103: 0 | R103: 0 | U103: 0 | X103: 0 | AA103: 0
A104: ZF6(Z11)CB | C104: ZF6(Z11)CB | D104: 12100-ZF6-F401XA | I104: 0 | L104: 0 | O104: 0 | R104: 0 | U104: 0 | X104: 0 | AA104: 0
A105: ZE3 C/B | C105: ZE3 C/B | D105: 12100-ZE3-0003XA | I105: 0 | L105: 0 | O105: 0 | R105: 0 | U105: 0 | X105: 0 | AA105: 0
A106: ZE3(Z12)C/B | C106: ZE3(Z12)C/B | I106: 0 | L106: 0 | O106: 0 | R106: 0 | U106: 0 | X106: 0 | AA106: 0
A107: ZH9 C/B | C107: ZH9 C/B | D107: 12100-ZH9-0001XA | I107: 0 | L107: 0 | O107: 0 | R107: 0 | U107: 0 | X107: 0 | AA107: 0
A108: ZE2 C/B | C108: ZE2 C/B | I108: =F108-G108+H108 -> 0 | L108: 0 | O108: 0 | R108: 0 | U108: 0 | X108: 0 | AA108: 0
A109: ZE3 CO | C109: ZE3 CO | I109: 0 | L109: 0 | O109: 0 | R109: 0 | U109: 0 | X109: 0 | AA109: 0
A110: ZE2 CO | C110: ZE2 CO | I110: 0 | L110: 0 | O110: 0 | R110: 0 | U110: 0 | X110: 0 | AA110: 0
A111: ZG3 C/B(X) | C111: ZG3 C/B(X) | I111: 0 | L111: 0 | O111: 0 | R111: 0 | U111: 0 | X111: 0 | AA111: 0
A112: Z2E CO | C112: Z2E CO | I112: 0 | L112: 0 | O112: 0 | R112: 0 | U112: 0 | X112: 0 | AA112: 0
A113: ZG4 C/B(X) | C113: ZG4 C/B(X) | I113: 0 | L113: 0 | O113: 0 | R113: 0 | U113: 0 | X113: 0 | AA113: 0
A114: RT0-T/C | B114: 4R | C114: RT0-T/C | I114: 0 | L114: 0 | O114: 0 | R114: 0 | U114: 0 | X114: 0 | AA114: 0
A115: RT1-T/C | C115: RT1-T/C | I115: 0 | L115: 0 | O115: 0 | R115: 0 | U115: 0 | X115: 0 | AA115: 0
A116: RGC-T/C | C116: RGC-T/C | D116: 21111-RGC-0005-AA | I116: 0 | L116: 0 | O116: 0 | R116: 0 | U116: 0 | X116: 0 | AA116: 0
A117: RGCNO-T/C | C117: RGCNO-T/C | I117: 0 | L117: 0 | O117: 0 | R117: 0 | U117: 0 | X117: 0 | AA117: 0
A118: RGD-T/C | C118: RGD-T/C | D118: 21111-RGD-0006-AA | I118: 0 | L118: 0 | O118: 0 | R118: 0 | U118: 0 | X118: 0 | AA118: 0
A119: RT0-M/C | C119: RT0-M/C | I119: 0 | L119: 0 | O119: =L119-M119+N119 -> 0 | R119: 0 | U119: 0 | X119: 0 | AA119: 0
A120: RT1-M/C | C120: RT1-M/C | I120: 0 | L120: 0 | O120: 0 | R120: 0 | U120: 0 | X120: 0 | AA120: 0
A121: RGC-M/C | C121: RGC-M/C | D121: 21211-RGC-3004-AA | I121: 0 | L121: 0 | O121: 0 | R121: 0 | U121: 0 | X121: 0 | AA121: 0
A122: RGCNO-M/C | C122: RGCNO-M/C | D122: 21211-RGC-N007-AA | I122: 0 | L122: 0 | O122: 0 | R122: 0 | U122: 0 | X122: 0 | AA122: 0
A123: RGD-M/C | C123: RGD-M/C | D123: 21211-RGD-3007-AA | I123: 0 | L123: 0 | O123: 0 | R123: 0 | U123: 0 | X123: 0 | AA123: 0
A124: RS8C/B | C124: RS8C/B | I124: 0 | L124: 0 | O124: 0 | R124: 0 | U124: 0 | X124: 0 | AA124: 0
A125: RGA C/B | C125: RGA C/B | I125: 0 | L125: 0 | O125: 0 | R125: 0 | U125: 0 | X125: 0 | AA125: 0
A126: R9G C/B | C126: R9G C/B | I126: 0 | L126: 0 | O126: 0 | R126: 0 | U126: 0 | X126: 0 | AA126: 0
A127: PFF-T/C | C127: PFF-T/C | I127: 0 | L127: 0 | O127: 0 | R127: 0 | U127: 0 | X127: 0 | AA127: 0
A128: PFF-NOT/C | C128: PFF-NOT/C | I128: 0 | L128: 0 | O128: 0 | R128: 0 | U128: 0 | X128: 0 | AA128: 0
A129: PFF-M/C | C129: PFF-M/C | I129: 0 | L129: 0 | O129: 0 | R129: 0 | U129: 0 | X129: 0 | AA129: 0
A130: PFF-NOM/C | C130: PFF-NOM/C | D130: 21211-PFF-N000-AA | I130: 0 | L130: 0 | O130: 0 | R130: 0 | U130: 0 | X130: 0 | AA130: 0
A131: PFG-T/C | C131: PFG-T/C | I131: 0 | L131: 0 | O131: 0 | R131: 0 | U131: 0 | X131: 0 | AA131: 0
A132: PFG-M/C | C132: PFG-M/C | I132: 0 | L132: 0 | O132: 0 | R132: 0 | U132: 0 | X132: 0 | AA132: 0
A133: PFG-NOT/C | C133: PFG-NOT/C | I133: 0 | L133: 0 | O133: 0 | R133: 0 | U133: 0 | X133: 0 | AA133: 0
A134: PFG-NOM/C | C134: PFG-NOM/C | I134: 0 | L134: 0 | O134: 0 | R134: 0 | U134: 0 | X134: 0 | AA134: 0
A135: PFB C/B | C135: PFB C/B | I135: 0 | L135: 0 | O135: 0 | R135: 0 | U135: 0 | X135: 0 | AA135: 0
A136: PFC C/B | C136: PFC C/B | I136: 0 | L136: 0 | O136: 0 | R136: 0 | U136: 0 | X136: 0 | AA136: 0
A137: PXH C/B | C137: PXH C/B | I137: 0 | L137: 0 | O137: 0 | R137: 0 | U137: 0 | X137: 0 | AA137: 0
A138: RGC-M/B | C138: RGC-M/B | I138: 0 | L138: 0 | O138: 0 | R138: 0 | U138: 0 | X138: 0 | AA138: 0
A139: RGC-AVD | C139: RGC-AVD | I139: 0 | L139: =I139-J139+K139 -> 0 | O139: =L139-M139+N139 -> 0 | R139: =O139-P139+Q139 -> 0 | U139: =R139-S139+T139 -> 0 | X139: =U139-V139+W139 -> 0 | AA139: =X139-Y139+Z139 -> 0
A140: PFF M/B | C140: PFF M/B | D140: 27111-PFF-3002-AA | I140: 0 | L140: 0 | O140: 0 | R140: 0 | U140: 0 | X140: 0 | AA140: 0
A141: PFF S/B | C141: PFF S/B | D141: 27411-PFF-3001-AA | I141: 0 | L141: 0 | O141: 0 | R141: 0 | U141: 0 | X141: 0 | AA141: 0
A142: PFF-NOM/B | C142: PFF-NOM/B | I142: 0 | L142: 0 | O142: 0 | R142: 0 | U142: 0 | X142: 0 | AA142: 0
A143: PFF-NOS/B | C143: PFF-NOS/B | D143: 27411-PFF-N001-AA | I143: 0 | L143: 0 | O143: 0 | R143: 0 | U143: 0 | X143: 0 | AA143: 0
A144: P4R M/B | C144: P4R M/B | D144: 27111-P4R-0001-AA-01 | I144: 0 | L144: 0 | O144: 0 | R144: 0 | U144: 0 | X144: 0 | AA144: 0
A145: P4R S/D | C145: P4R S/D | I145: 0 | L145: 0 | O145: 0 | R145: 0 | U145: 0 | X145: 0 | AA145: 0
A146: P68-S/B | C146: P68-S/B | I146: 0 | L146: 0 | O146: 0 | R146: 0 | U146: 0 | X146: 0 | AA146: 0
A147: P68-M/B | C147: P68-M/B | I147: 0 | L147: 0 | O147: 0 | R147: 0 | U147: 0 | X147: 0 | AA147: 0
A148: PLX-M/B | C148: PLX-M/B | I148: 0 | L148: 0 | O148: 0 | R148: 0 | U148: 0 | X148: 0 | AA148: 0
A149: PGC-NOM/B | C149: PGC-NOM/B | I149: 0 | L149: 0 | O149: 0 | R149: 0 | U149: 0 | X149: 0 | AA149: 0
A150: P4P-M/B | C150: P4P-M/B | I150: 0 | L150: 0 | O150: 0 | R150: 0 | U150: 0 | X150: 0 | AA150: 0
A151: PZ1-C/B | C151: PZ1-C/B | I151: 0 | L151: 0 | O151: 0 | R151: 0 | U151: 0 | X151: 0 | AA151: 0
B152: TTL | F152: =SUM(F10:F151) -> 0 | G152: =SUM(G8:G150) -> 0 | H152: =SUM(H10:H150) -> 0 | I152: =SUM(I10:I151) -> 210 | J152: 73 | K152: 0 | L152: =SUM(L10:L151) -> 137 | M152: =SUM(M10:M151) -> 0 | N152: =SUM(N10:N151) -> 0 | O152: =SUM(O10:O151) -> 137 | P152: 0 | Q152: 0 | R152: =SUM(R6:R151) -> 137 | S152: 0 | T152: 0 | U152: =SUM(U6:U151) -> 137 | V152: 0 | W152: 0 | X152: =SUM(X6:X151) -> 137 | Y152: 0 | Z152: 0 | AA152: =SUM(AA6:AA151) -> 137
L155: =80936+L152 -> 81073 | U155: 72932

Sheet 鋳造実績
F3: =生産管理!F3 -> 4gatu | G3: =生産管理!G3 -> 5gatu | H3: =生産管理!H3 -> 6gatu | I3: =生産管理!I3 -> 7gatu | J3: =生産管理!J3 -> 8gatu | K3: =生産管理!K3 -> 9gatu | L3: =生産管理!L3 -> 10gatu | N3: =F3 -> 4gatu | O3: 5gatu | P3: 6gatu | Q3: 7gatu | R3: 8gatu | S3: 9gatu | T3: 10gatu | V3: =生産管理!V3 -> 2026-04-01 | W3: =V3+1 -> 2026-04-02 | X3: =W3+1 -> 2026-04-03 | Y3: 2026-04-04 | Z3: 2026-04-05 | AA3: 2026-04-06 | AB3: 2026-04-07 | AC3: 2026-04-08 | AD3: 2026-04-09 | AE3: 2026-04-10 | AF3: 2026-04-11 | AG3: 2026-04-12 | AH3: 2026-04-13 | AI3: 2026-04-14 | AJ3: 2026-04-15 | AK3: 2026-04-16 | AL3: 2026-04-17 | AM3: 2026-04-18 | AN3: 2026-04-19 | AO3: 2026-04-20 | AP3: 2026-04-21 | AQ3: 2026-04-22 | AR3: 2026-04-23 | AS3: 2026-04-24 | AT3: 2026-04-25 | AU3: 2026-04-26 | AV3: 2026-04-27 | AW3: 2026-04-28 | AX3: 2026-04-29 | AY3: 2026-04-30 | AZ3: 2026-05-01 | BA3: 2026-05-02 | BB3: 2026-05-03 | BC3: 2026-05-04 | BD3: 2026-05-05 | BE3: 2026-05-06 | BF3: 2026-05-07 | BG3: 2026-05-08 | BH3: 2026-05-09 | BI3: 2026-05-10 | BJ3: 2026-05-11 | BK3: 2026-05-12 | BL3: 2026-05-13 | BM3: 2026-05-14 | BN3: 2026-05-15 | BO3: 2026-05-16 | BP3: 2026-05-17 | BQ3: 2026-05-18 | BR3: 2026-05-19 | BS3: 2026-05-20 | BT3: 2026-05-21 | BU3: 2026-05-22 | BV3: 2026-05-23 | BW3: 2026-05-24 | BX3: 2026-05-25 | BY3: 2026-05-26 | BZ3: 2026-05-27 | CA3: 2026-05-28 | CB3: 2026-05-29 | CC3: 2026-05-30 | CD3: 2026-05-31 | CE3: 2026-06-01 | CF3: 2026-06-02 | CG3: 2026-06-03 | CH3: 2026-06-04 | CI3: 2026-06-05 | CJ3: =CI3+1 -> 2026-06-06 | CK3: 2026-06-07 | CL3: 2026-06-08 | CM3: 2026-06-09 | CN3: 2026-06-10 | CO3: 2026-06-11 | CP3: 2026-06-12 | CQ3: 2026-06-13 | CR3: 2026-06-14 | CS3: 2026-06-15 | CT3: 2026-06-16 | CU3: 2026-06-17 | CV3: 2026-06-18 | CW3: 2026-06-19 | CX3: 2026-06-20 | CY3: 2026-06-21 | CZ3: 2026-06-22 | DA3: 2026-06-23 | DB3: 2026-06-24 | DC3: 2026-06-25 | DD3: 2026-06-26 | DE3: 2026-06-27 | DF3: 2026-06-28 | DG3: 2026-06-29 | DH3: 2026-06-30 | DI3: 2026-07-01 | DJ3: 2026-07-02 | DK3: 2026-07-03 | DL3: 2026-07-04 | DM3: 2026-07-05 | DN3: 2026-07-06 | DO3: 2026-07-07 | DP3: 2026-07-08 | DQ3: 2026-07-09 | DR3: 2026-07-10 | DS3: 2026-07-11 | DT3: 2026-07-12 | DU3: 2026-07-13 | DV3: 2026-07-14 | DW3: 2026-07-15 | DX3: 2026-07-16 | DY3: 2026-07-17 | DZ3: 2026-07-18 | EA3: 2026-07-19 | EB3: 2026-07-20 | EC3: 2026-07-21 | ED3: 2026-07-22 | EE3: 2026-07-23 | EF3: 2026-07-24 | EG3: 2026-07-25 | EH3: 2026-07-26 | EI3: 2026-07-27 | EJ3: 2026-07-28 | EK3: 2026-07-29 | EL3: 2026-07-30 | EM3: 2026-07-31 | EN3: 2026-08-01 | EO3: 2026-08-02 | EP3: 2026-08-03 | EQ3: 2026-08-04 | ER3: 2026-08-05 | ES3: 2026-08-06 | ET3: 2026-08-07 | EU3: 2026-08-08 | EV3: =EU3+1 -> 2026-08-09 | EW3: 2026-08-10 | EX3: 2026-08-11 | EY3: 2026-08-12 | EZ3: 2026-08-13 | FA3: 2026-08-14 | FB3: 2026-08-15 | FC3: 2026-08-16 | FD3: 2026-08-17 | FE3: 2026-08-18 | FF3: 2026-08-19 | FG3: 2026-08-20 | FH3: 2026-08-21 | FI3: 2026-08-22 | FJ3: 2026-08-23 | FK3: 2026-08-24 | FL3: 2026-08-25 | FM3: 2026-08-26 | FN3: 2026-08-27 | FO3: 2026-08-28 | FP3: 2026-08-29 | FQ3: 2026-08-30 | FR3: 2026-08-31 | FS3: 2026-09-01 | FT3: 2026-09-02 | FU3: 2026-09-03 | FV3: 2026-09-04 | FW3: 2026-09-05 | FX3: 2026-09-06 | FY3: 2026-09-07 | FZ3: 2026-09-08 | GA3: 2026-09-09 | GB3: 2026-09-10 | GC3: 2026-09-11 | GD3: 2026-09-12 | GE3: 2026-09-13 | GF3: 2026-09-14 | GG3: 2026-09-15 | GH3: 2026-09-16 | GI3: 2026-09-17 | GJ3: 2026-09-18 | GK3: 2026-09-19 | GL3: 2026-09-20 | GM3: 2026-09-21 | GN3: 2026-09-22 | GO3: 2026-09-23 | GP3: 2026-09-24 | GQ3: 2026-09-25 | GR3: 2026-09-26 | GS3: 2026-09-27 | GT3: 2026-09-28 | GU3: 2026-09-29 | GV3: 2026-09-30 | GW3: 2026-10-01 | GX3: 2026-10-02 | GY3: 2026-10-03 | GZ3: 2026-10-04 | HA3: 2026-10-05 | HB3: 2026-10-06 | HC3: 2026-10-07 | HD3: 2026-10-08 | HE3: 2026-10-09 | HF3: 2026-10-10 | HG3: 2026-10-11 | HH3: =HG3+1 -> 2026-10-12 | HI3: 2026-10-13 | HJ3: 2026-10-14 | HK3: 2026-10-15 | HL3: 2026-10-16 | HM3: 2026-10-17 | HN3: 2026-10-18 | HO3: 2026-10-19 | HP3: 2026-10-20 | HQ3: 2026-10-21 | HR3: 2026-10-22 | HS3: 2026-10-23 | HT3: 2026-10-24 | HU3: 2026-10-25 | HV3: 2026-10-26 | HW3: 2026-10-27 | HX3: 2026-10-28 | HY3: 2026-10-29 | HZ3: 2026-10-30 | IA3: 2026-10-31
A4: M/C | B4: 機種 | C4: M/C | D4: 機種 | V4: =TEXT(V3,"aaa") -> 水 | W4: =TEXT(W3,"aaa") -> 木 | X4: 金 | Y4: 土 | Z4: 日 | AA4: 月 | AB4: 火 | AC4: 水 | AD4: 木 | AE4: 金 | AF4: 土 | AG4: 日 | AH4: 月 | AI4: 火 | AJ4: 水 | AK4: 木 | AL4: 金 | AM4: 土 | AN4: 日 | AO4: 月 | AP4: 火 | AQ4: 水 | AR4: 木 | AS4: 金 | AT4: 土 | AU4: 日 | AV4: 月 | AW4: 火 | AX4: 水 | AY4: 木 | AZ4: 金 | BA4: 土 | BB4: 日 | BC4: 月 | BD4: 火 | BE4: 水 | BF4: 木 | BG4: 金 | BH4: 土 | BI4: 日 | BJ4: 月 | BK4: 火 | BL4: 水 | BM4: 木 | BN4: 金 | BO4: 土 | BP4: 日 | BQ4: 月 | BR4: 火 | BS4: 水 | BT4: 木 | BU4: 金 | BV4: 土 | BW4: 日 | BX4: 月 | BY4: 火 | BZ4: 水 | CA4: 木 | CB4: 金 | CC4: 土 | CD4: 日 | CE4: 月 | CF4: 火 | CG4: 水 | CH4: 木 | CI4: =TEXT(CI3,"aaa") -> 金 | CJ4: 土 | CK4: 日 | CL4: 月 | CM4: 火 | CN4: 水 | CO4: 木 | CP4: 金 | CQ4: 土 | CR4: 日 | CS4: 月 | CT4: 火 | CU4: 水 | CV4: 木 | CW4: 金 | CX4: 土 | CY4: 日 | CZ4: 月 | DA4: 火 | DB4: 水 | DC4: 木 | DD4: 金 | DE4: 土 | DF4: 日 | DG4: 月 | DH4: 火 | DI4: 水 | DJ4: 木 | DK4: 金 | DL4: 土 | DM4: 日 | DN4: 月 | DO4: 火 | DP4: 水 | DQ4: 木 | DR4: 金 | DS4: 土 | DT4: 日 | DU4: 月 | DV4: 火 | DW4: 水 | DX4: 木 | DY4: 金 | DZ4: 土 | EA4: 日 | EB4: 月 | EC4: 火 | ED4: 水 | EE4: 木 | EF4: 金 | EG4: 土 | EH4: 日 | EI4: 月 | EJ4: 火 | EK4: 水 | EL4: 木 | EM4: 金 | EN4: 土 | EO4: 日 | EP4: 月 | EQ4: 火 | ER4: 水 | ES4: 木 | ET4: 金 | EU4: =TEXT(EU3,"aaa") -> 土 | EV4: 日 | EW4: 月 | EX4: 火 | EY4: 水 | EZ4: 木 | FA4: 金 | FB4: 土 | FC4: 日 | FD4: 月 | FE4: 火 | FF4: 水 | FG4: 木 | FH4: 金 | FI4: 土 | FJ4: 日 | FK4: 月 | FL4: 火 | FM4: 水 | FN4: 木 | FO4: 金 | FP4: 土 | FQ4: 日 | FR4: 月 | FS4: 火 | FT4: 水 | FU4: 木 | FV4: 金 | FW4: 土 | FX4: 日 | FY4: 月 | FZ4: 火 | GA4: 水 | GB4: 木 | GC4: 金 | GD4: 土 | GE4: 日 | GF4: 月 | GG4: 火 | GH4: 水 | GI4: 木 | GJ4: 金 | GK4: 土 | GL4: 日 | GM4: 月 | GN4: 火 | GO4: 水 | GP4: 木 | GQ4: 金 | GR4: 土 | GS4: 日 | GT4: 月 | GU4: 火 | GV4: 水 | GW4: 木 | GX4: 金 | GY4: 土 | GZ4: 日 | HA4: 月 | HB4: 火 | HC4: 水 | HD4: 木 | HE4: 金 | HF4: 土 | HG4: =TEXT(HG3,"aaa") -> 日 | HH4: 月 | HI4: 火 | HJ4: 水 | HK4: 木 | HL4: 金 | HM4: 土 | HN4: 日 | HO4: 月 | HP4: 火 | HQ4: 水 | HR4: 木 | HS4: 金 | HT4: 土 | HU4: 日 | HV4: 月 | HW4: 火 | HX4: 水 | HY4: 木 | HZ4: 金 | IA4: 土
C5: 21 | D5: MLZ CB DCT | M5: 計画数 | N5: =SUM(V5:AY5) -> 0 | O5: =SUM(BA5:CD5) -> 0 | P5: =SUM(CE5:DH5) -> 0 | Q5: =SUM(DJ5:EM5) -> 0 | R5: =SUM(EN5:FP5) -> 0 | S5: =SUM(FQ5:GU5) -> 0 | T5: =SUM(GV5:HY5) -> 0 | V5: =生産管理!V6 -> 0 | W5: =生産管理!W6 -> 0 | X5: =生産管理!X6 -> 0 | Y5: =生産管理!Y6 -> 0 | Z5: =生産管理!Z6 -> 0 | AA5: =生産管理!AA6 -> 0 | AB5: =生産管理!AB6 -> 0 | AC5: =生産管理!AC6 -> 0 | AD5: =生産管理!AD6 -> 0 | AE5: =生産管理!AE6 -> 0 | AF5: =生産管理!AF6 -> 0 | AG5: =生産管理!AG6 -> 0 | AH5: =生産管理!AH6 -> 0 | AI5: =生産管理!AI6 -> 0 | AJ5: =生産管理!AJ6 -> 0 | AK5: =生産管理!AK6 -> 0 | AL5: =生産管理!AL6 -> 0 | AM5: =生産管理!AM6 -> 0 | AN5: =生産管理!AN6 -> 0 | AO5: =生産管理!AO6 -> 0 | AP5: =生産管理!AP6 -> 0 | AQ5: =生産管理!AQ6 -> 0 | AR5: =生産管理!AR6 -> 0 | AS5: =生産管理!AS6 -> 0 | AT5: =生産管理!AT6 -> 0 | AU5: =生産管理!AU6 -> 0 | AV5: =生産管理!AV6 -> 0 | AW5: =生産管理!AW6 -> 0 | AX5: =生産管理!AX6 -> 0 | AY5: =生産管理!AY6 -> 0 | AZ5: =生産管理!AZ6 -> 0 | BA5: =生産管理!BA6 -> 0 | BB5: =生産管理!BB6 -> 0 | BC5: =生産管理!BC6 -> 0 | BD5: =生産管理!BD6 -> 0 | BE5: =生産管理!BE6 -> 0 | BF5: =生産管理!BF6 -> 0 | BG5: =生産管理!BG6 -> 0 | BH5: =生産管理!BH6 -> 0 | BI5: =生産管理!BI6 -> 0 | BJ5: =生産管理!BJ6 -> 0 | BK5: =生産管理!BL6 -> 0 | BL5: =生産管理!BM6 -> 0 | BM5: =生産管理!BN6 -> 0 | BN5: =生産管理!BO6 -> 0 | BO5: =生産管理!BP6 -> 0 | BP5: =生産管理!BQ6 -> 0 | BQ5: =生産管理!BR6 -> 0 | BR5: =生産管理!BS6 -> 0 | BS5: =生産管理!BT6 -> 0 | BT5: =生産管理!BU6 -> 0 | BU5: =生産管理!BV6 -> 0 | BV5: =生産管理!BW6 -> 0 | BW5: =生産管理!BX6 -> 0 | BX5: =生産管理!BY6 -> 0 | BY5: =生産管理!BZ6 -> 0 | BZ5: =生産管理!CA6 -> 0 | CA5: =生産管理!CB6 -> 0 | CB5: =生産管理!CC6 -> 0 | CC5: =生産管理!CD6 -> 0 | CD5: =生産管理!CE6 -> 0 | CE5: =生産管理!CF6 -> 0 | CF5: =生産管理!CG6 -> 0 | CG5: =生産管理!CH6 -> 0 | CH5: =生産管理!CI6 -> 0 | CI5: =生産管理!CJ6 -> 0 | CJ5: =生産管理!CK6 -> 0 | CK5: =生産管理!CL6 -> 0 | CL5: =生産管理!CM6 -> 0 | CM5: =生産管理!CN6 -> 0 | CN5: =生産管理!CO6 -> 0 | CO5: =生産管理!CP6 -> 0 | CP5: =生産管理!CQ6 -> 0 | CQ5: =生産管理!CS6 -> 0 | CR5: =生産管理!CT6 -> 0 | CS5: =生産管理!CU6 -> 0 | CT5: =生産管理!CV6 -> 0 | CU5: =生産管理!CW6 -> 0 | CV5: =生産管理!CX6 -> 0 | CW5: =生産管理!CY6 -> 0 | CX5: =生産管理!CZ6 -> 0 | CY5: =生産管理!DA6 -> 0 | CZ5: =生産管理!DB6 -> 0 | DA5: =生産管理!DC6 -> 0 | DB5: =生産管理!DD6 -> 0 | DC5: =生産管理!DE6 -> 0 | DD5: =生産管理!DF6 -> 0 | DE5: =生産管理!DG6 -> 0 | DF5: =生産管理!DH6 -> 0 | DG5: =生産管理!DI6 -> 0 | DH5: =生産管理!DJ6 -> 0 | DI5: =生産管理!DK6 -> 0 | DJ5: =生産管理!DL6 -> 0 | DK5: =生産管理!DM6 -> 0 | DL5: =生産管理!DN6 -> 0 | DM5: =生産管理!DO6 -> 0 | DN5: =生産管理!DP6 -> 0 | DO5: =生産管理!DQ6 -> 0 | DP5: =生産管理!DR6 -> 0 | DQ5: =生産管理!DS6 -> 0 | DR5: =生産管理!DT6 -> 0 | DS5: =生産管理!DU6 -> 0 | DT5: =生産管理!DV6 -> 0 | DU5: =生産管理!DW6 -> 0 | DV5: =生産管理!DX6 -> 0 | DW5: =生産管理!DY6 -> 0 | DX5: =生産管理!DZ6 -> 0 | DY5: =生産管理!EA6 -> 0 | DZ5: =生産管理!EB6 -> 0 | EA5: =生産管理!EC6 -> 0 | EB5: =生産管理!ED6 -> 0 | EC5: =生産管理!EE6 -> 0 | ED5: =生産管理!EF6 -> 0 | EE5: =生産管理!EG6 -> 0 | EF5: =生産管理!EH6 -> 0 | EG5: =生産管理!EI6 -> 0 | EH5: =生産管理!EJ6 -> 0 | EI5: =生産管理!EK6 -> 0 | EJ5: =生産管理!EL6 -> 0 | EK5: =生産管理!EM6 -> 0 | EL5: =生産管理!EN6 -> 0 | EM5: =生産管理!EO6 -> 0 | EN5: =生産管理!EP6 -> 0 | EO5: =生産管理!EQ6 -> 0 | EP5: =生産管理!ER6 -> 0 | EQ5: =生産管理!ES6 -> 0 | ER5: =生産管理!ET6 -> 0 | ES5: =生産管理!EU6 -> 0 | ET5: =生産管理!EV6 -> 0 | EU5: =生産管理!EW6 -> 0 | EV5: =生産管理!EX6 -> 0 | EW5: =生産管理!EY6 -> 0 | EX5: =生産管理!EZ6 -> 0 | EY5: =生産管理!FA6 -> 0 | EZ5: =生産管理!FB6 -> 0 | FA5: =生産管理!FC6 -> 0 | FB5: =生産管理!FD6 -> 0 | FC5: =生産管理!FE6 -> 0 | FD5: =生産管理!FF6 -> 0 | FE5: =生産管理!FG6 -> 0 | FF5: =生産管理!FH6 -> 0 | FG5: =生産管理!FI6 -> 0 | FH5: =生産管理!FJ6 -> 0 | FI5: =生産管理!FK6 -> 0 | FJ5: =生産管理!FL6 -> 0 | FK5: =生産管理!FM6 -> 0 | FL5: =生産管理!FN6 -> 0 | FM5: =生産管理!FO6 -> 0 | FN5: =生産管理!FP6 -> 0 | FO5: =生産管理!FQ6 -> 0 | FP5: =生産管理!FR6 -> 0 | FQ5: =生産管理!FS6 -> 0 | FR5: =生産管理!FT6 -> 0 | FS5: =生産管理!FU6 -> 0 | FT5: =生産管理!FV6 -> 0 | FU5: =生産管理!FW6 -> 0 | FV5: =生産管理!FX6 -> 0 | FW5: =生産管理!FY6 -> 0 | FX5: =生産管理!FZ6 -> 0 | FY5: =生産管理!GA6 -> 0 | FZ5: =生産管理!GB6 -> 0 | GA5: =生産管理!GC6 -> 0 | GB5: =生産管理!GD6 -> 0 | GC5: =生産管理!GE6 -> 0 | GD5: =生産管理!GF6 -> 0 | GE5: =生産管理!GG6 -> 0 | GF5: =生産管理!GH6 -> 0 | GG5: =生産管理!GI6 -> 0 | GH5: =生産管理!GJ6 -> 0 | GI5: =生産管理!GK6 -> 0 | GJ5: =生産管理!GL6 -> 0 | GK5: =生産管理!GM6 -> 0 | GL5: =生産管理!GN6 -> 0 | GM5: =生産管理!GO6 -> 0 | GN5: =生産管理!GP6 -> 0 | GO5: =生産管理!GQ6 -> 0 | GP5: =生産管理!GR6 -> 0 | GQ5: =生産管理!GS6 -> 0 | GR5: =生産管理!GT6 -> 0 | GS5: =生産管理!GU6 -> 0 | GT5: =生産管理!GV6 -> 0 | GU5: =生産管理!GW6 -> 0 | GV5: =生産管理!GX6 -> 0 | GW5: =生産管理!GY6 -> 0 | GX5: =生産管理!GZ6 -> 0 | GY5: =生産管理!HA6 -> 0 | GZ5: =生産管理!HB6 -> 0 | HA5: =生産管理!HC6 -> 0 | HB5: =生産管理!HD6 -> 0 | HC5: =生産管理!HE6 -> 0 | HD5: =生産管理!HF6 -> 0 | HE5: =生産管理!HG6 -> 0 | HF5: =生産管理!HH6 -> 0 | HG5: =生産管理!HI6 -> 0 | HH5: =生産管理!HJ6 -> 0 | HI5: =生産管理!HK6 -> 0 | HJ5: =生産管理!HL6 -> 0 | HK5: =生産管理!HM6 -> 0 | HL5: =生産管理!HN6 -> 0 | HM5: =生産管理!HO6 -> 0 | HN5: =生産管理!HP6 -> 0 | HO5: =生産管理!HQ6 -> 0 | HP5: =生産管理!HR6 -> 0 | HQ5: =生産管理!HS6 -> 0 | HR5: =生産管理!HT6 -> 0 | HS5: =生産管理!HU6 -> 0 | HT5: =生産管理!HV6 -> 0 | HU5: =生産管理!HW6 -> 0 | HV5: =生産管理!HX6 -> 0 | HW5: =生産管理!HY6 -> 0 | HX5: =生産管理!HZ6 -> 0 | HY5: =生産管理!IA6 -> 0 | HZ5: =生産管理!IB6 -> 0 | IA5: =生産管理!IC6 -> 0
M6: 鋳造数 | N6: =SUM(V6:AY6) -> 0 | O6: 0 | P6: 0 | Q6: 0 | R6: 0 | S6: 0 | T6: 0
M7: 捨吹①金具 | N7: 0 | O7: 0 | P7: 0 | Q7: 0 | R7: 0 | S7: 0 | T7: 0
M8: 捨吹②金具 | N8: 0 | O8: 0 | P8: 0 | Q8: 0 | R8: 0 | S8: 0 | T8: 0
M9: 廃却品 | N9: 0 | O9: 0 | P9: 0 | Q9: 0 | R9: 0 | S9: 0 | T9: 0
M10: 良品 | N10: 0 | O10: 0 | P10: 0 | Q10: 0 | R10: 0 | S10: 0 | T10: 0 | V10: =SUM(V6-V7-V8-V9) -> 0 | W10: =SUM(W6-W7-W8-W9) -> 0 | X10: 0 | Y10: 0 | Z10: 0 | AA10: 0 | AB10: 0 | AC10: 0 | AD10: 0 | AE10: 0 | AF10: 0 | AG10: 0 | AH10: 0 | AI10: 0 | AJ10: 0 | AK10: 0 | AL10: 0 | AM10: 0 | AN10: 0 | AO10: 0 | AP10: 0 | AQ10: 0 | AR10: 0 | AS10: 0 | AT10: 0 | AU10: 0 | AV10: 0 | AW10: 0 | AX10: 0 | AY10: 0 | AZ10: 0 | BA10: 0 | BB10: 0 | BC10: 0 | BD10: 0 | BE10: 0 | BF10: 0 | BG10: 0 | BH10: 0 | BI10: 0 | BJ10: 0 | BK10: 0 | BL10: 0 | BM10: 0 | BN10: 0 | BO10: 0 | BP10: 0 | BQ10: 0 | BR10: 0 | BS10: 0 | BT10: 0 | BU10: 0 | BV10: 0 | BW10: 0 | BX10: 0 | BY10: 0 | BZ10: 0 | CA10: 0 | CB10: 0 | CC10: 0 | CD10: 0 | CE10: 0 | CF10: 0 | CG10: 0 | CH10: 0 | CI10: =SUM(CI6-CI7-CI8-CI9) -> 0 | CJ10: 0 | CK10: 0 | CL10: 0 | CM10: 0 | CN10: 0 | CO10: 0 | CP10: 0 | CQ10: 0 | CR10: 0 | CS10: 0 | CT10: 0 | CU10: 0 | CV10: 0 | CW10: 0 | CX10: 0 | CY10: 0 | CZ10: 0 | DA10: 0 | DB10: 0 | DC10: 0 | DD10: 0 | DE10: 0 | DF10: 0 | DG10: 0 | DH10: 0 | DI10: 0 | DJ10: 0 | DK10: 0 | DL10: 0 | DM10: 0 | DN10: 0 | DO10: 0 | DP10: 0 | DQ10: 0 | DR10: 0 | DS10: 0 | DT10: 0 | DU10: 0 | DV10: 0 | DW10: 0 | DX10: 0 | DY10: 0 | DZ10: 0 | EA10: 0 | EB10: 0 | EC10: 0 | ED10: 0 | EE10: 0 | EF10: 0 | EG10: 0 | EH10: 0 | EI10: 0 | EJ10: 0 | EK10: 0 | EL10: 0 | EM10: 0 | EN10: 0 | EO10: 0 | EP10: 0 | EQ10: 0 | ER10: 0 | ES10: 0 | ET10: 0 | EU10: =SUM(EU6-EU7-EU8-EU9) -> 0 | EV10: 0 | EW10: 0 | EX10: 0 | EY10: 0 | EZ10: 0 | FA10: 0 | FB10: 0 | FC10: 0 | FD10: 0 | FE10: 0 | FF10: 0 | FG10: 0 | FH10: 0 | FI10: 0 | FJ10: 0 | FK10: 0 | FL10: 0 | FM10: 0 | FN10: 0 | FO10: 0 | FP10: 0 | FQ10: 0 | FR10: 0 | FS10: 0 | FT10: 0 | FU10: 0 | FV10: 0 | FW10: 0 | FX10: 0 | FY10: 0 | FZ10: 0 | GA10: 0 | GB10: 0 | GC10: 0 | GD10: 0 | GE10: 0 | GF10: 0 | GG10: 0 | GH10: 0 | GI10: 0 | GJ10: 0 | GK10: 0 | GL10: 0 | GM10: 0 | GN10: 0 | GO10: 0 | GP10: 0 | GQ10: 0 | GR10: 0 | GS10: 0 | GT10: 0 | GU10: 0 | GV10: 0 | GW10: 0 | GX10: 0 | GY10: 0 | GZ10: 0 | HA10: 0 | HB10: 0 | HC10: 0 | HD10: 0 | HE10: 0 | HF10: 0 | HG10: =SUM(HG6-HG7-HG8-HG9) -> 0 | HH10: 0 | HI10: 0 | HJ10: 0 | HK10: 0 | HL10: 0 | HM10: 0 | HN10: 0 | HO10: 0 | HP10: 0 | HQ10: 0 | HR10: 0 | HS10: 0 | HT10: 0 | HU10: 0 | HV10: 0 | HW10: 0 | HX10: 0 | HY10: 0 | HZ10: 0 | IA10: 0
C11: 21 | D11: MLZ CB MT | M11: 計画数 | N11: 0 | O11: 0 | P11: 0 | Q11: 0 | R11: 0 | S11: 0 | T11: 0 | V11: =生産管理!V15 -> 0 | W11: =生産管理!W15 -> 0 | X11: =生産管理!X15 -> 0 | Y11: =生産管理!Y15 -> 0 | Z11: =生産管理!Z15 -> 0 | AA11: =生産管理!AA15 -> 0 | AB11: =生産管理!AB15 -> 0 | AC11: =生産管理!AC15 -> 0 | AD11: =生産管理!AD15 -> 0 | AE11: =生産管理!AE15 -> 0 | AF11: =生産管理!AF15 -> 0 | AG11: =生産管理!AG15 -> 0 | AH11: =生産管理!AH15 -> 0 | AI11: =生産管理!AI15 -> 0 | AJ11: =生産管理!AJ15 -> 0 | AK11: =生産管理!AK15 -> 0 | AL11: =生産管理!AL15 -> 0 | AM11: =生産管理!AM15 -> 0 | AN11: =生産管理!AN15 -> 0 | AO11: =生産管理!AO15 -> 0 | AP11: =生産管理!AP15 -> 0 | AQ11: =生産管理!AQ15 -> 0 | AR11: =生産管理!AR15 -> 0 | AS11: =生産管理!AS15 -> 0 | AT11: =生産管理!AT15 -> 0 | AU11: =生産管理!AU15 -> 0 | AV11: =生産管理!AV15 -> 0 | AW11: =生産管理!AW15 -> 0 | AX11: =生産管理!AX15 -> 0 | AY11: =生産管理!AY15 -> 0 | AZ11: =生産管理!AZ15 -> 0 | BA11: =生産管理!BA15 -> 0 | BB11: =生産管理!BB15 -> 0 | BC11: =生産管理!BC15 -> 0 | BD11: =生産管理!BD15 -> 0 | BE11: =生産管理!BE15 -> 0 | BF11: =生産管理!BF15 -> 0 | BG11: =生産管理!BG15 -> 0 | BH11: =生産管理!BH15 -> 0 | BI11: =生産管理!BI15 -> 0 | BJ11: =生産管理!BJ15 -> 0 | BK11: =生産管理!BL15 -> 0 | BL11: =生産管理!BM15 -> 0 | BM11: =生産管理!BN15 -> 0 | BN11: =生産管理!BO15 -> 0 | BO11: =生産管理!BP15 -> 0 | BP11: =生産管理!BQ15 -> 0 | BQ11: =生産管理!BR15 -> 0 | BR11: =生産管理!BS15 -> 0 | BS11: =生産管理!BT15 -> 0 | BT11: =生産管理!BU15 -> 0 | BU11: =生産管理!BV15 -> 0 | BV11: =生産管理!BW15 -> 0 | BW11: =生産管理!BX15 -> 0 | BX11: =生産管理!BY15 -> 0 | BY11: =生産管理!BZ15 -> 0 | BZ11: =生産管理!CA15 -> 0 | CA11: =生産管理!CB15 -> 0 | CB11: =生産管理!CC15 -> 0 | CC11: =生産管理!CD15 -> 0 | CD11: =生産管理!CE15 -> 0 | CE11: =生産管理!CF15 -> 0 | CF11: =生産管理!CG15 -> 0 | CG11: =生産管理!CH15 -> 0 | CH11: =生産管理!CI15 -> 0 | CI11: =生産管理!CJ15 -> 0 | CJ11: =生産管理!CK15 -> 0 | CK11: =生産管理!CL15 -> 0 | CL11: =生産管理!CM15 -> 0 | CM11: =生産管理!CN15 -> 0 | CN11: =生産管理!CO15 -> 0 | CO11: =生産管理!CP15 -> 0 | CP11: =生産管理!CQ15 -> 0 | CQ11: =生産管理!CS15 -> 0 | CR11: =生産管理!CT15 -> 0 | CS11: =生産管理!CU15 -> 0 | CT11: =生産管理!CV15 -> 0 | CU11: =生産管理!CW15 -> 0 | CV11: =生産管理!CX15 -> 0 | CW11: =生産管理!CY15 -> 0 | CX11: =生産管理!CZ15 -> 0 | CY11: =生産管理!DA15 -> 0 | CZ11: =生産管理!DB15 -> 0 | DA11: =生産管理!DC15 -> 0 | DB11: =生産管理!DD15 -> 0 | DC11: =生産管理!DE15 -> 0 | DD11: =生産管理!DF15 -> 0 | DE11: =生産管理!DG15 -> 0 | DF11: =生産管理!DH15 -> 0 | DG11: =生産管理!DI15 -> 0 | DH11: =生産管理!DJ15 -> 0 | DI11: =生産管理!DK15 -> 0 | DJ11: =生産管理!DL15 -> 0 | DK11: =生産管理!DM15 -> 0 | DL11: =生産管理!DN15 -> 0 | DM11: =生産管理!DO15 -> 0 | DN11: =生産管理!DP15 -> 0 | DO11: =生産管理!DQ15 -> 0 | DP11: =生産管理!DR15 -> 0 | DQ11: =生産管理!DS15 -> 0 | DR11: =生産管理!DT15 -> 0 | DS11: =生産管理!DU15 -> 0 | DT11: =生産管理!DV15 -> 0 | DU11: =生産管理!DW15 -> 0 | DV11: =生産管理!DX15 -> 0 | DW11: =生産管理!DY15 -> 0 | DX11: =生産管理!DZ15 -> 0 | DY11: =生産管理!EA15 -> 0 | DZ11: =生産管理!EB15 -> 0 | EA11: =生産管理!EC15 -> 0 | EB11: =生産管理!ED15 -> 0 | EC11: =生産管理!EE15 -> 0 | ED11: =生産管理!EF15 -> 0 | EE11: =生産管理!EG15 -> 0 | EF11: =生産管理!EH15 -> 0 | EG11: =生産管理!EI15 -> 0 | EH11: =生産管理!EJ15 -> 0 | EI11: =生産管理!EK15 -> 0 | EJ11: =生産管理!EL15 -> 0 | EK11: =生産管理!EM15 -> 0 | EL11: =生産管理!EN15 -> 0 | EM11: =生産管理!EO15 -> 0 | EN11: =生産管理!EP15 -> 0 | EO11: =生産管理!EQ15 -> 0 | EP11: =生産管理!ER15 -> 0 | EQ11: =生産管理!ES15 -> 0 | ER11: =生産管理!ET15 -> 0 | ES11: =生産管理!EU15 -> 0 | ET11: =生産管理!EV15 -> 0 | EU11: =生産管理!EW15 -> 0 | EV11: =生産管理!EX15 -> 0 | EW11: =生産管理!EY15 -> 0 | EX11: =生産管理!EZ15 -> 0 | EY11: =生産管理!FA15 -> 0 | EZ11: =生産管理!FB15 -> 0 | FA11: =生産管理!FC15 -> 0 | FB11: =生産管理!FD15 -> 0 | FC11: =生産管理!FE15 -> 0 | FD11: =生産管理!FF15 -> 0 | FE11: =生産管理!FG15 -> 0 | FF11: =生産管理!FH15 -> 0 | FG11: =生産管理!FI15 -> 0 | FH11: =生産管理!FJ15 -> 0 | FI11: =生産管理!FK15 -> 0 | FJ11: =生産管理!FL15 -> 0 | FK11: =生産管理!FM15 -> 0 | FL11: =生産管理!FN15 -> 0 | FM11: =生産管理!FO15 -> 0 | FN11: =生産管理!FP15 -> 0 | FO11: =生産管理!FQ15 -> 0 | FP11: =生産管理!FR15 -> 0 | FQ11: =生産管理!FS15 -> 0 | FR11: =生産管理!FT15 -> 0 | FS11: =生産管理!FU15 -> 0 | FT11: =生産管理!FV15 -> 0 | FU11: =生産管理!FW15 -> 0 | FV11: =生産管理!FX15 -> 0 | FW11: =生産管理!FY15 -> 0 | FX11: =生産管理!FZ15 -> 0 | FY11: =生産管理!GA15 -> 0 | FZ11: =生産管理!GB15 -> 0 | GA11: =生産管理!GC15 -> 0 | GB11: =生産管理!GD15 -> 0 | GC11: =生産管理!GE15 -> 0 | GD11: =生産管理!GF15 -> 0 | GE11: =生産管理!GG15 -> 0 | GF11: =生産管理!GH15 -> 0 | GG11: =生産管理!GI15 -> 0 | GH11: =生産管理!GJ15 -> 0 | GI11: =生産管理!GK15 -> 0 | GJ11: =生産管理!GL15 -> 0 | GK11: =生産管理!GM15 -> 0 | GL11: =生産管理!GN15 -> 0 | GM11: =生産管理!GO15 -> 0 | GN11: =生産管理!GP15 -> 0 | GO11: =生産管理!GQ15 -> 0 | GP11: =生産管理!GR15 -> 0 | GQ11: =生産管理!GS15 -> 0 | GR11: =生産管理!GT15 -> 0 | GS11: =生産管理!GU15 -> 0 | GT11: =生産管理!GV15 -> 0 | GU11: =生産管理!GW15 -> 0 | GV11: =生産管理!GX15 -> 0 | GW11: =生産管理!GY15 -> 0 | GX11: =生産管理!GZ15 -> 0 | GY11: =生産管理!HA15 -> 0 | GZ11: =生産管理!HB15 -> 0 | HA11: =生産管理!HC15 -> 0 | HB11: =生産管理!HD15 -> 0 | HC11: =生産管理!HE15 -> 0 | HD11: =生産管理!HF15 -> 0 | HE11: =生産管理!HG15 -> 0 | HF11: =生産管理!HH15 -> 0 | HG11: =生産管理!HI15 -> 0 | HH11: =生産管理!HJ15 -> 0 | HI11: =生産管理!HK15 -> 0 | HJ11: =生産管理!HL15 -> 0 | HK11: =生産管理!HM15 -> 0 | HL11: =生産管理!HN15 -> 0 | HM11: =生産管理!HO15 -> 0 | HN11: =生産管理!HP15 -> 0 | HO11: =生産管理!HQ15 -> 0 | HP11: =生産管理!HR15 -> 0 | HQ11: =生産管理!HS15 -> 0 | HR11: =生産管理!HT15 -> 0 | HS11: =生産管理!HU15 -> 0 | HT11: =生産管理!HV15 -> 0 | HU11: =生産管理!HW15 -> 0 | HV11: =生産管理!HX15 -> 0 | HW11: =生産管理!HY15 -> 0 | HX11: =生産管理!HZ15 -> 0 | HY11: =生産管理!IA15 -> 0 | HZ11: =生産管理!IB15 -> 0 | IA11: =生産管理!IC15 -> 0
M12: 鋳造数 | N12: 0 | O12: 0 | P12: 0 | Q12: 0 | R12: 0 | S12: 0 | T12: 0
M13: 捨吹①金具 | N13: 0 | O13: 0 | P13: 0 | Q13: 0 | R13: 0 | S13: 0 | T13: 0
M14: 捨吹②金具 | N14: 0 | O14: 0 | P14: 0 | Q14: 0 | R14: 0 | S14: 0 | T14: 0
M15: 廃却品 | N15: 0 | O15: 0 | P15: 0 | Q15: 0 | R15: 0 | S15: 0 | T15: 0
M16: 良品 | N16: 0 | O16: 0 | P16: 0 | Q16: 0 | R16: 0 | S16: 0 | T16: 0 | V16: =SUM(V12-V13-V14-V15) -> 0 | W16: 0 | X16: 0 | Y16: 0 | Z16: 0 | AA16: 0 | AB16: 0 | AC16: 0 | AD16: 0 | AE16: 0 | AF16: 0 | AG16: 0 | AH16: 0 | AI16: 0 | AJ16: 0 | AK16: 0 | AL16: 0 | AM16: 0 | AN16: 0 | AO16: 0 | AP16: 0 | AQ16: 0 | AR16: 0 | AS16: 0 | AT16: 0 | AU16: 0 | AV16: 0 | AW16: 0 | AX16: 0 | AY16: 0 | AZ16: 0 | BA16: 0 | BB16: 0 | BC16: 0 | BD16: 0 | BE16: 0 | BF16: 0 | BG16: 0 | BH16: 0 | BI16: 0 | BJ16: 0 | BK16: 0 | BL16: 0 | BM16: 0 | BN16: 0 | BO16: 0 | BP16: 0 | BQ16: 0 | BR16: 0 | BS16: 0 | BT16: 0 | BU16: 0 | BV16: 0 | BW16: 0 | BX16: 0 | BY16: 0 | BZ16: 0 | CA16: 0 | CB16: 0 | CC16: 0 | CD16: 0 | CE16: 0 | CF16: 0 | CG16: 0 | CH16: =SUM(CH12-CH13-CH14-CH15) -> 0 | CI16: 0 | CJ16: 0 | CK16: 0 | CL16: 0 | CM16: 0 | CN16: 0 | CO16: 0 | CP16: 0 | CQ16: 0 | CR16: 0 | CS16: 0 | CT16: 0 | CU16: 0 | CV16: 0 | CW16: 0 | CX16: 0 | CY16: 0 | CZ16: 0 | DA16: 0 | DB16: 0 | DC16: 0 | DD16: 0 | DE16: 0 | DF16: 0 | DG16: 0 | DH16: 0 | DI16: 0 | DJ16: 0 | DK16: 0 | DL16: 0 | DM16: 0 | DN16: 0 | DO16: 0 | DP16: 0 | DQ16: 0 | DR16: 0 | DS16: 0 | DT16: 0 | DU16: 0 | DV16: 0 | DW16: 0 | DX16: 0 | DY16: 0 | DZ16: 0 | EA16: 0 | EB16: 0 | EC16: 0 | ED16: 0 | EE16: 0 | EF16: 0 | EG16: 0 | EH16: 0 | EI16: 0 | EJ16: 0 | EK16: 0 | EL16: 0 | EM16: 0 | EN16: 0 | EO16: 0 | EP16: 0 | EQ16: 0 | ER16: 0 | ES16: 0 | ET16: =SUM(ET12-ET13-ET14-ET15) -> 0 | EU16: 0 | EV16: 0 | EW16: 0 | EX16: 0 | EY16: 0 | EZ16: 0 | FA16: 0 | FB16: 0 | FC16: 0 | FD16: 0 | FE16: 0 | FF16: 0 | FG16: 0 | FH16: 0 | FI16: 0 | FJ16: 0 | FK16: 0 | FL16: 0 | FM16: 0 | FN16: 0 | FO16: 0 | FP16: 0 | FQ16: 0 | FR16: 0 | FS16: 0 | FT16: 0 | FU16: 0 | FV16: 0 | FW16: 0 | FX16: 0 | FY16: 0 | FZ16: 0 | GA16: 0 | GB16: 0 | GC16: 0 | GD16: 0 | GE16: 0 | GF16: 0 | GG16: 0 | GH16: 0 | GI16: 0 | GJ16: 0 | GK16: 0 | GL16: 0 | GM16: 0 | GN16: 0 | GO16: 0 | GP16: 0 | GQ16: 0 | GR16: 0 | GS16: 0 | GT16: 0 | GU16: 0 | GV16: 0 | GW16: 0 | GX16: 0 | GY16: 0 | GZ16: 0 | HA16: 0 | HB16: 0 | HC16: 0 | HD16: 0 | HE16: 0 | HF16: =SUM(HF12-HF13-HF14-HF15) -> 0 | HG16: 0 | HH16: 0 | HI16: 0 | HJ16: 0 | HK16: 0 | HL16: 0 | HM16: 0 | HN16: 0 | HO16: 0 | HP16: 0 | HQ16: 0 | HR16: 0 | HS16: 0 | HT16: 0 | HU16: 0 | HV16: 0 | HW16: 0 | HX16: 0 | HY16: 0 | HZ16: 0 | IA16: 0
C17: 21 | D17: MKS_CB_DCT | M17: 計画数 | N17: 0 | O17: 2000 | P17: 0 | Q17: 0 | R17: 0 | S17: 0 | T17: 0 | V17: =生産管理!V24 -> 0 | W17: =生産管理!W24 -> 0 | X17: =生産管理!X24 -> 0 | Y17: =生産管理!Y24 -> 0 | Z17: =生産管理!Z24 -> 0 | AA17: =生産管理!AA24 -> 0 | AB17: =生産管理!AB24 -> 0 | AC17: =生産管理!AC24 -> 0 | AD17: =生産管理!AD24 -> 0 | AE17: =生産管理!AE24 -> 0 | AF17: =生産管理!AF24 -> 0 | AG17: =生産管理!AG24 -> 0 | AH17: =生産管理!AH24 -> 0 | AI17: =生産管理!AI24 -> 0 | AJ17: =生産管理!AJ24 -> 0 | AK17: =生産管理!AK24 -> 0 | AL17: =生産管理!AL24 -> 0 | AM17: =生産管理!AM24 -> 0 | AN17: =生産管理!AN24 -> 0 | AO17: =生産管理!AO24 -> 0 | AP17: =生産管理!AP24 -> 0 | AQ17: =生産管理!AQ24 -> 0 | AR17: =生産管理!AR24 -> 0 | AS17: =生産管理!AS24 -> 0 | AT17: =生産管理!AT24 -> 0 | AU17: =生産管理!AU24 -> 0 | AV17: =生産管理!AV24 -> 0 | AW17: =生産管理!AW24 -> 0 | AX17: =生産管理!AX24 -> 0 | AY17: =生産管理!AY24 -> 0 | AZ17: =生産管理!AZ24 -> 0 | BA17: =生産管理!BA24 -> 0 | BB17: =生産管理!BB24 -> 0 | BC17: =生産管理!BC24 -> 0 | BD17: =生産管理!BD24 -> 0 | BE17: =生産管理!BE24 -> 0 | BF17: =生産管理!BF24 -> 0 | BG17: =生産管理!BG24 -> 0 | BH17: =生産管理!BH24 -> 0 | BI17: =生産管理!BI24 -> 0 | BJ17: =生産管理!BJ24 -> 0 | BK17: =生産管理!BL24 -> 0 | BL17: =生産管理!BM24 -> 400 | BM17: =生産管理!BN24 -> 400 | BN17: =生産管理!BO24 -> 400 | BO17: =生産管理!BP24 -> 0 | BP17: =生産管理!BQ24 -> 0 | BQ17: =生産管理!BR24 -> 400 | BR17: =生産管理!BS24 -> 400 | BS17: =生産管理!BT24 -> 0 | BT17: =生産管理!BU24 -> 0 | BU17: =生産管理!BV24 -> 0 | BV17: =生産管理!BW24 -> 0 | BW17: =生産管理!BX24 -> 0 | BX17: =生産管理!BY24 -> 0 | BY17: =生産管理!BZ24 -> 0 | BZ17: =生産管理!CA24 -> 0 | CA17: =生産管理!CB24 -> 0 | CB17: =生産管理!CC24 -> 0 | CC17: =生産管理!CD24 -> 0 | CD17: =生産管理!CE24 -> 0 | CE17: =生産管理!CF24 -> 0 | CF17: =生産管理!CG24 -> 0 | CG17: =生産管理!CH24 -> 0 | CH17: =生産管理!CI24 -> 0 | CI17: =生産管理!CJ24 -> 0 | CJ17: =生産管理!CK24 -> 0 | CK17: =生産管理!CL24 -> 0 | CL17: =生産管理!CM24 -> 0 | CM17: =生産管理!CN24 -> 0 | CN17: =生産管理!CO24 -> 0 | CO17: =生産管理!CP24 -> 0 | CP17: =生産管理!CQ24 -> 0 | CQ17: =生産管理!CS24 -> 0 | CR17: =生産管理!CT24 -> 0 | CS17: =生産管理!CU24 -> 0 | CT17: =生産管理!CV24 -> 0 | CU17: =生産管理!CW24 -> 0 | CV17: =生産管理!CX24 -> 0 | CW17: =生産管理!CY24 -> 0 | CX17: =生産管理!CZ24 -> 0 | CY17: =生産管理!DA24 -> 0 | CZ17: =生産管理!DB24 -> 0 | DA17: =生産管理!DC24 -> 0 | DB17: =生産管理!DD24 -> 0 | DC17: =生産管理!DE24 -> 0 | DD17: =生産管理!DF24 -> 0 | DE17: =生産管理!DG24 -> 0 | DF17: =生産管理!DH24 -> 0 | DG17: =生産管理!DI24 -> 0 | DH17: =生産管理!DJ24 -> 0 | DI17: =生産管理!DK24 -> 0 | DJ17: =生産管理!DL24 -> 0 | DK17: =生産管理!DM24 -> 0 | DL17: =生産管理!DN24 -> 0 | DM17: =生産管理!DO24 -> 0 | DN17: =生産管理!DP24 -> 0 | DO17: =生産管理!DQ24 -> 0 | DP17: =生産管理!DR24 -> 0 | DQ17: =生産管理!DS24 -> 0 | DR17: =生産管理!DT24 -> 0 | DS17: =生産管理!DU24 -> 0 | DT17: =生産管理!DV24 -> 0 | DU17: =生産管理!DW24 -> 0 | DV17: =生産管理!DX24 -> 0 | DW17: =生産管理!DY24 -> 0 | DX17: =生産管理!DZ24 -> 0 | DY17: =生産管理!EA24 -> 0 | DZ17: =生産管理!EB24 -> 0 | EA17: =生産管理!EC24 -> 0 | EB17: =生産管理!ED24 -> 0 | EC17: =生産管理!EE24 -> 0 | ED17: =生産管理!EF24 -> 0 | EE17: =生産管理!EG24 -> 0 | EF17: =生産管理!EH24 -> 0 | EG17: =生産管理!EI24 -> 0 | EH17: =生産管理!EJ24 -> 0 | EI17: =生産管理!EK24 -> 0 | EJ17: =生産管理!EL24 -> 0 | EK17: =生産管理!EM24 -> 0 | EL17: =生産管理!EN24 -> 0 | EM17: =生産管理!EO24 -> 0 | EN17: =生産管理!EP24 -> 0 | EO17: =生産管理!EQ24 -> 0 | EP17: =生産管理!ER24 -> 0 | EQ17: =生産管理!ES24 -> 0 | ER17: =生産管理!ET24 -> 0 | ES17: =生産管理!EU24 -> 0 | ET17: =生産管理!EV24 -> 0 | EU17: =生産管理!EW24 -> 0 | EV17: =生産管理!EX24 -> 0 | EW17: =生産管理!EY24 -> 0 | EX17: =生産管理!EZ24 -> 0 | EY17: =生産管理!FA24 -> 0 | EZ17: =生産管理!FB24 -> 0 | FA17: =生産管理!FC24 -> 0 | FB17: =生産管理!FD24 -> 0 | FC17: =生産管理!FE24 -> 0 | FD17: =生産管理!FF24 -> 0 | FE17: =生産管理!FG24 -> 0 | FF17: =生産管理!FH24 -> 0 | FG17: =生産管理!FI24 -> 0 | FH17: =生産管理!FJ24 -> 0 | FI17: =生産管理!FK24 -> 0 | FJ17: =生産管理!FL24 -> 0 | FK17: =生産管理!FM24 -> 0 | FL17: =生産管理!FN24 -> 0 | FM17: =生産管理!FO24 -> 0 | FN17: =生産管理!FP24 -> 0 | FO17: =生産管理!FQ24 -> 0 | FP17: =生産管理!FR24 -> 0 | FQ17: =生産管理!FS24 -> 0 | FR17: =生産管理!FT24 -> 0 | FS17: =生産管理!FU24 -> 0 | FT17: =生産管理!FV24 -> 0 | FU17: =生産管理!FW24 -> 0 | FV17: =生産管理!FX24 -> 0 | FW17: =生産管理!FY24 -> 0 | FX17: =生産管理!FZ24 -> 0 | FY17: =生産管理!GA24 -> 0 | FZ17: =生産管理!GB24 -> 0 | GA17: =生産管理!GC24 -> 0 | GB17: =生産管理!GD24 -> 0 | GC17: =生産管理!GE24 -> 0 | GD17: =生産管理!GF24 -> 0 | GE17: =生産管理!GG24 -> 0 | GF17: =生産管理!GH24 -> 0 | GG17: =生産管理!GI24 -> 0 | GH17: =生産管理!GJ24 -> 0 | GI17: =生産管理!GK24 -> 0 | GJ17: =生産管理!GL24 -> 0 | GK17: =生産管理!GM24 -> 0 | GL17: =生産管理!GN24 -> 0 | GM17: =生産管理!GO24 -> 0 | GN17: =生産管理!GP24 -> 0 | GO17: =生産管理!GQ24 -> 0 | GP17: =生産管理!GR24 -> 0 | GQ17: =生産管理!GS24 -> 0 | GR17: =生産管理!GT24 -> 0 | GS17: =生産管理!GU24 -> 0 | GT17: =生産管理!GV24 -> 0 | GU17: =生産管理!GW24 -> 0 | GV17: =生産管理!GX24 -> 0 | GW17: =生産管理!GY24 -> 0 | GX17: =生産管理!GZ24 -> 0 | GY17: =生産管理!HA24 -> 0 | GZ17: =生産管理!HB24 -> 0 | HA17: =生産管理!HC24 -> 0 | HB17: =生産管理!HD24 -> 0 | HC17: =生産管理!HE24 -> 0 | HD17: =生産管理!HF24 -> 0 | HE17: =生産管理!HG24 -> 0 | HF17: =生産管理!HH24 -> 0 | HG17: =生産管理!HI24 -> 0 | HH17: =生産管理!HJ24 -> 0 | HI17: =生産管理!HK24 -> 0 | HJ17: =生産管理!HL24 -> 0 | HK17: =生産管理!HM24 -> 0 | HL17: =生産管理!HN24 -> 0 | HM17: =生産管理!HO24 -> 0 | HN17: =生産管理!HP24 -> 0 | HO17: =生産管理!HQ24 -> 0 | HP17: =生産管理!HR24 -> 0 | HQ17: =生産管理!HS24 -> 0 | HR17: =生産管理!HT24 -> 0 | HS17: =生産管理!HU24 -> 0 | HT17: =生産管理!HV24 -> 0 | HU17: =生産管理!HW24 -> 0 | HV17: =生産管理!HX24 -> 0 | HW17: =生産管理!HY24 -> 0 | HX17: =生産管理!HZ24 -> 0 | HY17: =生産管理!IA24 -> 0 | HZ17: =生産管理!IB24 -> 0 | IA17: =生産管理!IC24 -> 0
D18: MCS_CB | M18: 鋳造数 | N18: 0 | O18: 0 | P18: 0 | Q18: 0 | R18: 0 | S18: 0 | T18: 0
D19: MCS_CB | M19: 捨吹①金具 | N19: 0 | O19: 0 | P19: 0 | Q19: 0 | R19: 0 | S19: 0 | T19: 0
D20: MCS_CB | M20: 捨吹②金具 | N20: 0 | O20: 0 | P20: 0 | Q20: 0 | R20: 0 | S20: 0 | T20: 0
D21: MCS_CB | M21: 廃却品 | N21: 0 | O21: 0 | P21: 0 | Q21: 0 | R21: 0 | S21: 0 | T21: 0
D22: MCS_CB | M22: 良品 | N22: 0 | O22: 0 | P22: 0 | Q22: 0 | R22: 0 | S22: 0 | T22: 0 | V22: =SUM(V18-V19-V20-V21) -> 0 | W22: 0 | X22: 0 | Y22: 0 | Z22: 0 | AA22: 0 | AB22: 0 | AC22: 0 | AD22: 0 | AE22: 0 | AF22: 0 | AG22: 0 | AH22: 0 | AI22: 0 | AJ22: 0 | AK22: 0 | AL22: 0 | AM22: 0 | AN22: 0 | AO22: 0 | AP22: 0 | AQ22: 0 | AR22: 0 | AS22: 0 | AT22: 0 | AU22: 0 | AV22: 0 | AW22: 0 | AX22: 0 | AY22: 0 | AZ22: 0 | BA22: 0 | BB22: 0 | BC22: 0 | BD22: 0 | BE22: 0 | BF22: 0 | BG22: 0 | BH22: 0 | BI22: 0 | BJ22: 0 | BK22: 0 | BL22: 0 | BM22: 0 | BN22: 0 | BO22: 0 | BP22: 0 | BQ22: 0 | BR22: 0 | BS22: 0 | BT22: 0 | BU22: 0 | BV22: 0 | BW22: 0 | BX22: 0 | BY22: 0 | BZ22: 0 | CA22: 0 | CB22: 0 | CC22: 0 | CD22: 0 | CE22: 0 | CF22: 0 | CG22: 0 | CH22: =SUM(CH18-CH19-CH20-CH21) -> 0 | CI22: 0 | CJ22: 0 | CK22: 0 | CL22: 0 | CM22: 0 | CN22: 0 | CO22: 0 | CP22: 0 | CQ22: 0 | CR22: 0 | CS22: 0 | CT22: 0 | CU22: 0 | CV22: 0 | CW22: 0 | CX22: 0 | CY22: 0 | CZ22: 0 | DA22: 0 | DB22: 0 | DC22: 0 | DD22: 0 | DE22: 0 | DF22: 0 | DG22: 0 | DH22: 0 | DI22: 0 | DJ22: 0 | DK22: 0 | DL22: 0 | DM22: 0 | DN22: 0 | DO22: 0 | DP22: 0 | DQ22: 0 | DR22: 0 | DS22: 0 | DT22: 0 | DU22: 0 | DV22: 0 | DW22: 0 | DX22: 0 | DY22: 0 | DZ22: 0 | EA22: 0 | EB22: 0 | EC22: 0 | ED22: 0 | EE22: 0 | EF22: 0 | EG22: 0 | EH22: 0 | EI22: 0 | EJ22: 0 | EK22: 0 | EL22: 0 | EM22: 0 | EN22: 0 | EO22: 0 | EP22: 0 | EQ22: 0 | ER22: 0 | ES22: 0 | ET22: =SUM(ET18-ET19-ET20-ET21) -> 0 | EU22: 0 | EV22: 0 | EW22: 0 | EX22: 0 | EY22: 0 | EZ22: 0 | FA22: 0 | FB22: 0 | FC22: 0 | FD22: 0 | FE22: 0 | FF22: 0 | FG22: 0 | FH22: 0 | FI22: 0 | FJ22: 0 | FK22: 0 | FL22: 0 | FM22: 0 | FN22: 0 | FO22: 0 | FP22: 0 | FQ22: 0 | FR22: 0 | FS22: 0 | FT22: 0 | FU22: 0 | FV22: 0 | FW22: 0 | FX22: 0 | FY22: 0 | FZ22: 0 | GA22: 0 | GB22: 0 | GC22: 0 | GD22: 0 | GE22: 0 | GF22: 0 | GG22: 0 | GH22: 0 | GI22: 0 | GJ22: 0 | GK22: 0 | GL22: 0 | GM22: 0 | GN22: 0 | GO22: 0 | GP22: 0 | GQ22: 0 | GR22: 0 | GS22: 0 | GT22: 0 | GU22: 0 | GV22: 0 | GW22: 0 | GX22: 0 | GY22: 0 | GZ22: 0 | HA22: 0 | HB22: 0 | HC22: 0 | HD22: 0 | HE22: 0 | HF22: =SUM(HF18-HF19-HF20-HF21) -> 0 | HG22: 0 | HH22: 0 | HI22: 0 | HJ22: 0 | HK22: 0 | HL22: 0 | HM22: 0 | HN22: 0 | HO22: 0 | HP22: 0 | HQ22: 0 | HR22: 0 | HS22: 0 | HT22: 0 | HU22: 0 | HV22: 0 | HW22: 0 | HX22: 0 | HY22: 0 | HZ22: 0 | IA22: 0
C23: 21 | D23: MKS_CB_MT | M23: 計画数 | N23: 662 | O23: 800 | P23: 0 | Q23: 0 | R23: 0 | S23: 0 | T23: 0 | V23: =生産管理!V33 -> 0 | W23: =生産管理!W33 -> 0 | X23: =生産管理!X33 -> 0 | Y23: =生産管理!Y33 -> 0 | Z23: =生産管理!Z33 -> 0 | AA23: =生産管理!AA33 -> 0 | AB23: =生産管理!AB33 -> 0 | AC23: =生産管理!AC33 -> 0 | AD23: =生産管理!AD33 -> 0 | AE23: =生産管理!AE33 -> 0 | AF23: =生産管理!AF33 -> 0 | AG23: =生産管理!AG33 -> 0 | AH23: =生産管理!AH33 -> 0 | AI23: =生産管理!AI33 -> 0 | AJ23: =生産管理!AJ33 -> 127 | AK23: =生産管理!AK33 -> 230 | AL23: =生産管理!AL33 -> 305 | AM23: =生産管理!AM33 -> 0 | AN23: =生産管理!AN33 -> 0 | AO23: =生産管理!AO33 -> 0 | AP23: =生産管理!AP33 -> 0 | AQ23: =生産管理!AQ33 -> 0 | AR23: =生産管理!AR33 -> 0 | AS23: =生産管理!AS33 -> 0 | AT23: =生産管理!AT33 -> 0 | AU23: =生産管理!AU33 -> 0 | AV23: =生産管理!AV33 -> 0 | AW23: =生産管理!AW33 -> 0 | AX23: =生産管理!AX33 -> 0 | AY23: =生産管理!AY33 -> 0 | AZ23: =生産管理!AZ33 -> 0 | BA23: =生産管理!BA33 -> 0 | BB23: =生産管理!BB33 -> 0 | BC23: =生産管理!BC33 -> 0 | BD23: =生産管理!BD33 -> 0 | BE23: =生産管理!BE33 -> 0 | BF23: =生産管理!BF33 -> 0 | BG23: =生産管理!BG33 -> 0 | BH23: =生産管理!BH33 -> 0 | BI23: =生産管理!BI33 -> 0 | BJ23: =生産管理!BJ33 -> 0 | BK23: =生産管理!BL33 -> 0 | BL23: =生産管理!BM33 -> 0 | BM23: =生産管理!BN33 -> 0 | BN23: =生産管理!BO33 -> 0 | BO23: =生産管理!BP33 -> 0 | BP23: =生産管理!BQ33 -> 0 | BQ23: =生産管理!BR33 -> 0 | BR23: =生産管理!BS33 -> 0 | BS23: =生産管理!BT33 -> 400 | BT23: =生産管理!BU33 -> 400 | BU23: =生産管理!BV33 -> 0 | BV23: =生産管理!BW33 -> 0 | BW23: =生産管理!BX33 -> 0 | BX23: =生産管理!BY33 -> 0 | BY23: =生産管理!BZ33 -> 0 | BZ23: =生産管理!CA33 -> 0 | CA23: =生産管理!CB33 -> 0 | CB23: =生産管理!CC33 -> 0 | CC23: =生産管理!CD33 -> 0 | CD23: =生産管理!CE33 -> 0 | CE23: =生産管理!CF33 -> 0 | CF23: =生産管理!CG33 -> 0 | CG23: =生産管理!CH33 -> 0 | CH23: =生産管理!CI33 -> 0 | CI23: =生産管理!CJ33 -> 0 | CJ23: =生産管理!CK33 -> 0 | CK23: =生産管理!CL33 -> 0 | CL23: =生産管理!CM33 -> 0 | CM23: =生産管理!CN33 -> 0 | CN23: =生産管理!CO33 -> 0 | CO23: =生産管理!CP33 -> 0 | CP23: =生産管理!CQ33 -> 0 | CQ23: =生産管理!CS33 -> 0 | CR23: =生産管理!CT33 -> 0 | CS23: =生産管理!CU33 -> 0 | CT23: =生産管理!CV33 -> 0 | CU23: =生産管理!CW33 -> 0 | CV23: =生産管理!CX33 -> 0 | CW23: =生産管理!CY33 -> 0 | CX23: =生産管理!CZ33 -> 0 | CY23: =生産管理!DA33 -> 0 | CZ23: =生産管理!DB33 -> 0 | DA23: =生産管理!DC33 -> 0 | DB23: =生産管理!DD33 -> 0 | DC23: =生産管理!DE33 -> 0 | DD23: =生産管理!DF33 -> 0 | DE23: =生産管理!DG33 -> 0 | DF23: =生産管理!DH33 -> 0 | DG23: =生産管理!DI33 -> 0 | DH23: =生産管理!DJ33 -> 0 | DI23: =生産管理!DK33 -> 0 | DJ23: =生産管理!DL33 -> 0 | DK23: =生産管理!DM33 -> 0 | DL23: =生産管理!DN33 -> 0 | DM23: =生産管理!DO33 -> 0 | DN23: =生産管理!DP33 -> 0 | DO23: =生産管理!DQ33 -> 0 | DP23: =生産管理!DR33 -> 0 | DQ23: =生産管理!DS33 -> 0 | DR23: =生産管理!DT33 -> 0 | DS23: =生産管理!DU33 -> 0 | DT23: =生産管理!DV33 -> 0 | DU23: =生産管理!DW33 -> 0 | DV23: =生産管理!DX33 -> 0 | DW23: =生産管理!DY33 -> 0 | DX23: =生産管理!DZ33 -> 0 | DY23: =生産管理!EA33 -> 0 | DZ23: =生産管理!EB33 -> 0 | EA23: =生産管理!EC33 -> 0 | EB23: =生産管理!ED33 -> 0 | EC23: =生産管理!EE33 -> 0 | ED23: =生産管理!EF33 -> 0 | EE23: =生産管理!EG33 -> 0 | EF23: =生産管理!EH33 -> 0 | EG23: =生産管理!EI33 -> 0 | EH23: =生産管理!EJ33 -> 0 | EI23: =生産管理!EK33 -> 0 | EJ23: =生産管理!EL33 -> 0 | EK23: =生産管理!EM33 -> 0 | EL23: =生産管理!EN33 -> 0 | EM23: =生産管理!EO33 -> 0 | EN23: =生産管理!EP33 -> 0 | EO23: =生産管理!EQ33 -> 0 | EP23: =生産管理!ER33 -> 0 | EQ23: =生産管理!ES33 -> 0 | ER23: =生産管理!ET33 -> 0 | ES23: =生産管理!EU33 -> 0 | ET23: =生産管理!EV33 -> 0 | EU23: =生産管理!EW33 -> 0 | EV23: =生産管理!EX33 -> 0 | EW23: =生産管理!EY33 -> 0 | EX23: =生産管理!EZ33 -> 0 | EY23: =生産管理!FA33 -> 0 | EZ23: =生産管理!FB33 -> 0 | FA23: =生産管理!FC33 -> 0 | FB23: =生産管理!FD33 -> 0 | FC23: =生産管理!FE33 -> 0 | FD23: =生産管理!FF33 -> 0 | FE23: =生産管理!FG33 -> 0 | FF23: =生産管理!FH33 -> 0 | FG23: =生産管理!FI33 -> 0 | FH23: =生産管理!FJ33 -> 0 | FI23: =生産管理!FK33 -> 0 | FJ23: =生産管理!FL33 -> 0 | FK23: =生産管理!FM33 -> 0 | FL23: =生産管理!FN33 -> 0 | FM23: =生産管理!FO33 -> 0 | FN23: =生産管理!FP33 -> 0 | FO23: =生産管理!FQ33 -> 0 | FP23: =生産管理!FR33 -> 0 | FQ23: =生産管理!FS33 -> 0 | FR23: =生産管理!FT33 -> 0 | FS23: =生産管理!FU33 -> 0 | FT23: =生産管理!FV33 -> 0 | FU23: =生産管理!FW33 -> 0 | FV23: =生産管理!FX33 -> 0 | FW23: =生産管理!FY33 -> 0 | FX23: =生産管理!FZ33 -> 0 | FY23: =生産管理!GA33 -> 0 | FZ23: =生産管理!GB33 -> 0 | GA23: =生産管理!GC33 -> 0 | GB23: =生産管理!GD33 -> 0 | GC23: =生産管理!GE33 -> 0 | GD23: =生産管理!GF33 -> 0 | GE23: =生産管理!GG33 -> 0 | GF23: =生産管理!GH33 -> 0 | GG23: =生産管理!GI33 -> 0 | GH23: =生産管理!GJ33 -> 0 | GI23: =生産管理!GK33 -> 0 | GJ23: =生産管理!GL33 -> 0 | GK23: =生産管理!GM33 -> 0 | GL23: =生産管理!GN33 -> 0 | GM23: =生産管理!GO33 -> 0 | GN23: =生産管理!GP33 -> 0 | GO23: =生産管理!GQ33 -> 0 | GP23: =生産管理!GR33 -> 0 | GQ23: =生産管理!GS33 -> 0 | GR23: =生産管理!GT33 -> 0 | GS23: =生産管理!GU33 -> 0 | GT23: =生産管理!GV33 -> 0 | GU23: =生産管理!GW33 -> 0 | GV23: =生産管理!GX33 -> 0 | GW23: =生産管理!GY33 -> 0 | GX23: =生産管理!GZ33 -> 0 | GY23: =生産管理!HA33 -> 0 | GZ23: =生産管理!HB33 -> 0 | HA23: =生産管理!HC33 -> 0 | HB23: =生産管理!HD33 -> 0 | HC23: =生産管理!HE33 -> 0 | HD23: =生産管理!HF33 -> 0 | HE23: =生産管理!HG33 -> 0 | HF23: =生産管理!HH33 -> 0 | HG23: =生産管理!HI33 -> 0 | HH23: =生産管理!HJ33 -> 0 | HI23: =生産管理!HK33 -> 0 | HJ23: =生産管理!HL33 -> 0 | HK23: =生産管理!HM33 -> 0 | HL23: =生産管理!HN33 -> 0 | HM23: =生産管理!HO33 -> 0 | HN23: =生産管理!HP33 -> 0 | HO23: =生産管理!HQ33 -> 0 | HP23: =生産管理!HR33 -> 0 | HQ23: =生産管理!HS33 -> 0 | HR23: =生産管理!HT33 -> 0 | HS23: =生産管理!HU33 -> 0 | HT23: =生産管理!HV33 -> 0 | HU23: =生産管理!HW33 -> 0 | HV23: =生産管理!HX33 -> 0 | HW23: =生産管理!HY33 -> 0 | HX23: =生産管理!HZ33 -> 0 | HY23: =生産管理!IA33 -> 0 | HZ23: =生産管理!IB33 -> 0 | IA23: =生産管理!IC33 -> 0
D24: MCS_CB | M24: 鋳造数 | N24: 797 | O24: 0 | P24: 0 | Q24: 0 | R24: 0 | S24: 0 | T24: 0 | AI24: 0 | AJ24: 178 | AK24: 276 | AL24: 343
D25: MCS_CB | M25: 捨吹①金具 | N25: 29 | O25: 0 | P25: 0 | Q25: 0 | R25: 0 | S25: 0 | T25: 0 | AI25: 0 | AJ25: 9 | AK25: 13 | AL25: 7
D26: MCS_CB | M26: 捨吹②金具 | N26: 15 | O26: 0 | P26: 0 | Q26: 0 | R26: 0 | S26: 0 | T26: 0 | AI26: 0 | AJ26: 3 | AK26: 7 | AL26: 5
D27: MCS_CB | M27: 廃却品 | N27: 91 | O27: 0 | P27: 0 | Q27: 0 | R27: 0 | S27: 0 | T27: 0 | AI27: 0 | AJ27: 39 | AK27: 26 | AL27: 26
D28: MCS_CB | M28: 良品 | N28: 662 | O28: 0 | P28: 0 | Q28: 0 | R28: 0 | S28: 0 | T28: 0 | V28: =SUM(V24-V25-V26-V27) -> 0 | W28: 0 | X28: 0 | Y28: 0 | Z28: 0 | AA28: 0 | AB28: 0 | AC28: 0 | AD28: 0 | AE28: 0 | AF28: 0 | AG28: 0 | AH28: 0 | AI28: 0 | AJ28: 127 | AK28: 230 | AL28: 305 | AM28: 0 | AN28: 0 | AO28: 0 | AP28: 0 | AQ28: 0 | AR28: 0 | AS28: 0 | AT28: 0 | AU28: 0 | AV28: 0 | AW28: 0 | AX28: 0 | AY28: 0 | AZ28: 0 | BA28: 0 | BB28: 0 | BC28: 0 | BD28: 0 | BE28: 0 | BF28: 0 | BG28: 0 | BH28: 0 | BI28: 0 | BJ28: 0 | BK28: 0 | BL28: 0 | BM28: 0 | BN28: 0 | BO28: 0 | BP28: 0 | BQ28: 0 | BR28: 0 | BS28: 0 | BT28: 0 | BU28: 0 | BV28: 0 | BW28: 0 | BX28: 0 | BY28: 0 | BZ28: 0 | CA28: 0 | CB28: 0 | CC28: 0 | CD28: 0 | CE28: 0 | CF28: 0 | CG28: 0 | CH28: =SUM(CH24-CH25-CH26-CH27) -> 0 | CI28: 0 | CJ28: 0 | CK28: 0 | CL28: 0 | CM28: 0 | CN28: 0 | CO28: 0 | CP28: 0 | CQ28: 0 | CR28: 0 | CS28: 0 | CT28: 0 | CU28: 0 | CV28: 0 | CW28: 0 | CX28: 0 | CY28: 0 | CZ28: 0 | DA28: 0 | DB28: 0 | DC28: 0 | DD28: 0 | DE28: 0 | DF28: 0 | DG28: 0 | DH28: 0 | DI28: 0 | DJ28: 0 | DK28: 0 | DL28: 0 | DM28: 0 | DN28: 0 | DO28: 0 | DP28: 0 | DQ28: 0 | DR28: 0 | DS28: 0 | DT28: 0 | DU28: 0 | DV28: 0 | DW28: 0 | DX28: 0 | DY28: 0 | DZ28: 0 | EA28: 0 | EB28: 0 | EC28: 0 | ED28: 0 | EE28: 0 | EF28: 0 | EG28: 0 | EH28: 0 | EI28: 0 | EJ28: 0 | EK28: 0 | EL28: 0 | EM28: 0 | EN28: 0 | EO28: 0 | EP28: 0 | EQ28: 0 | ER28: 0 | ES28: 0 | ET28: =SUM(ET24-ET25-ET26-ET27) -> 0 | EU28: 0 | EV28: 0 | EW28: 0 | EX28: 0 | EY28: 0 | EZ28: 0 | FA28: 0 | FB28: 0 | FC28: 0 | FD28: 0 | FE28: 0 | FF28: 0 | FG28: 0 | FH28: 0 | FI28: 0 | FJ28: 0 | FK28: 0 | FL28: 0 | FM28: 0 | FN28: 0 | FO28: 0 | FP28: 0 | FQ28: 0 | FR28: 0 | FS28: 0 | FT28: 0 | FU28: 0 | FV28: 0 | FW28: 0 | FX28: 0 | FY28: 0 | FZ28: 0 | GA28: 0 | GB28: 0 | GC28: 0 | GD28: 0 | GE28: 0 | GF28: 0 | GG28: 0 | GH28: 0 | GI28: 0 | GJ28: 0 | GK28: 0 | GL28: 0 | GM28: 0 | GN28: 0 | GO28: 0 | GP28: 0 | GQ28: 0 | GR28: 0 | GS28: 0 | GT28: 0 | GU28: 0 | GV28: 0 | GW28: 0 | GX28: 0 | GY28: 0 | GZ28: 0 | HA28: 0 | HB28: 0 | HC28: 0 | HD28: 0 | HE28: 0 | HF28: =SUM(HF24-HF25-HF26-HF27) -> 0 | HG28: 0 | HH28: 0 | HI28: 0 | HJ28: 0 | HK28: 0 | HL28: 0 | HM28: 0 | HN28: 0 | HO28: 0 | HP28: 0 | HQ28: 0 | HR28: 0 | HS28: 0 | HT28: 0 | HU28: 0 | HV28: 0 | HW28: 0 | HX28: 0 | HY28: 0 | HZ28: 0 | IA28: 0
C29: 21 | D29: HL4M LC | M29: 計画数 | N29: 3113 | O29: 1600 | P29: 0 | Q29: =SUM(DJ29:EM29) -> 0 | R29: 0 | S29: 0 | T29: 0 | V29: =生産管理!V42 -> 0 | W29: =生産管理!W42 -> 110 | X29: =生産管理!X42 -> 288 | Y29: =生産管理!Y42 -> 0 | Z29: =生産管理!Z42 -> 580 | AA29: =生産管理!AA42 -> 408 | AB29: =生産管理!AB42 -> 458 | AC29: =生産管理!AC42 -> 410 | AD29: =生産管理!AD42 -> 460 | AE29: =生産管理!AE42 -> 64 | AF29: =生産管理!AF42 -> 0 | AG29: =生産管理!AG42 -> 0 | AH29: =生産管理!AH42 -> 335 | AI29: =生産管理!AI42 -> 0 | AJ29: =生産管理!AJ42 -> 0 | AK29: =生産管理!AK42 -> 0 | AL29: =生産管理!AL42 -> 0 | AM29: =生産管理!AM42 -> 0 | AN29: =生産管理!AN42 -> 0 | AO29: =生産管理!AO42 -> 0 | AP29: =生産管理!AP42 -> 0 | AQ29: =生産管理!AQ42 -> 0 | AR29: =生産管理!AR42 -> 0 | AS29: =生産管理!AS42 -> 0 | AT29: =生産管理!AT42 -> 0 | AU29: =生産管理!AU42 -> 0 | AV29: =生産管理!AV42 -> 0 | AW29: =生産管理!AW42 -> 0 | AX29: =生産管理!AX42 -> 0 | AY29: =生産管理!AY42 -> 0 | AZ29: =生産管理!AZ42 -> 0 | BA29: =生産管理!BA42 -> 0 | BB29: =生産管理!BB42 -> 0 | BC29: =生産管理!BC42 -> 0 | BD29: =生産管理!BD42 -> 0 | BE29: =生産管理!BE42 -> 0 | BF29: =生産管理!BF42 -> 0 | BG29: =生産管理!BG42 -> 0 | BH29: =生産管理!BH42 -> 0 | BI29: =生産管理!BI42 -> 0 | BJ29: =生産管理!BJ42 -> 0 | BK29: =生産管理!BL42 -> 0 | BL29: =生産管理!BM42 -> 0 | BM29: =生産管理!BN42 -> 0 | BN29: =生産管理!BO42 -> 0 | BO29: =生産管理!BP42 -> 0 | BP29: =生産管理!BQ42 -> 0 | BQ29: =生産管理!BR42 -> 0 | BR29: =生産管理!BS42 -> 0 | BS29: =生産管理!BT42 -> 0 | BT29: =生産管理!BU42 -> 0 | BU29: =生産管理!BV42 -> 400 | BV29: =生産管理!BW42 -> 0 | BW29: =生産管理!BX42 -> 0 | BX29: =生産管理!BY42 -> 400 | BY29: =生産管理!BZ42 -> 400 | BZ29: =生産管理!CA42 -> 400 | CA29: =生産管理!CB42 -> 0 | CB29: =生産管理!CC42 -> 0 | CC29: =生産管理!CD42 -> 0 | CD29: =生産管理!CE42 -> 0 | CE29: =生産管理!CF42 -> 0 | CF29: =生産管理!CG42 -> 0 | CG29: =生産管理!CH42 -> 0 | CH29: =生産管理!CI42 -> 0 | CI29: =生産管理!CJ42 -> 0 | CJ29: =生産管理!CK42 -> 0 | CK29: =生産管理!CL42 -> 0 | CL29: =生産管理!CM42 -> 0 | CM29: =生産管理!CN42 -> 0 | CN29: =生産管理!CO42 -> 0 | CO29: =生産管理!CP42 -> 0 | CP29: =生産管理!CQ42 -> 0 | CQ29: =生産管理!CS42 -> 0 | CR29: =生産管理!CT42 -> 0 | CS29: =生産管理!CU42 -> 0 | CT29: =生産管理!CV42 -> 0 | CU29: =生産管理!CW42 -> 0 | CV29: =生産管理!CX42 -> 0 | CW29: =生産管理!CY42 -> 0 | CX29: =生産管理!CZ42 -> 0 | CY29: =生産管理!DA42 -> 0 | CZ29: =生産管理!DB42 -> 0 | DA29: =生産管理!DC42 -> 0 | DB29: =生産管理!DD42 -> 0 | DC29: =生産管理!DE42 -> 0 | DD29: =生産管理!DF42 -> 0 | DE29: =生産管理!DG42 -> 0 | DF29: =生産管理!DH42 -> 0 | DG29: =生産管理!DI42 -> 0 | DH29: =生産管理!DJ42 -> 0 | DI29: =生産管理!DK42 -> 0 | DJ29: =生産管理!DL42 -> 0 | DK29: =生産管理!DM42 -> 0 | DL29: =生産管理!DN42 -> 0 | DM29: =生産管理!DO42 -> 0 | DN29: =生産管理!DP42 -> 0 | DO29: =生産管理!DQ42 -> 0 | DP29: =生産管理!DR42 -> 0 | DQ29: =生産管理!DS42 -> 0 | DR29: =生産管理!DT42 -> 0 | DS29: =生産管理!DU42 -> 0 | DT29: =生産管理!DV42 -> 0 | DU29: =生産管理!DW42 -> 0 | DV29: =生産管理!DX42 -> 0 | DW29: =生産管理!DY42 -> 0 | DX29: =生産管理!DZ42 -> 0 | DY29: =生産管理!EA42 -> 0 | DZ29: =生産管理!EB42 -> 0 | EA29: =生産管理!EC42 -> 0 | EB29: =生産管理!ED42 -> 0 | EC29: =生産管理!EE42 -> 0 | ED29: =生産管理!EF42 -> 0 | EE29: =生産管理!EG42 -> 0 | EF29: =生産管理!EH42 -> 0 | EG29: =生産管理!EI42 -> 0 | EH29: =生産管理!EJ42 -> 0 | EI29: =生産管理!EK42 -> 0 | EJ29: =生産管理!EL42 -> 0 | EK29: =生産管理!EM42 -> 0 | EL29: =生産管理!EN42 -> 0 | EM29: =生産管理!EO42 -> 0 | EN29: =生産管理!EP42 -> 0 | EO29: =生産管理!EQ42 -> 0 | EP29: =生産管理!ER42 -> 0 | EQ29: =生産管理!ES42 -> 0 | ER29: =生産管理!ET42 -> 0 | ES29: =生産管理!EU42 -> 0 | ET29: =生産管理!EV42 -> 0 | EU29: =生産管理!EW42 -> 0 | EV29: =生産管理!EX42 -> 0 | EW29: =生産管理!EY42 -> 0 | EX29: =生産管理!EZ42 -> 0 | EY29: =生産管理!FA42 -> 0 | EZ29: =生産管理!FB42 -> 0 | FA29: =生産管理!FC42 -> 0 | FB29: =生産管理!FD42 -> 0 | FC29: =生産管理!FE42 -> 0 | FD29: =生産管理!FF42 -> 0 | FE29: =生産管理!FG42 -> 0 | FF29: =生産管理!FH42 -> 0 | FG29: =生産管理!FI42 -> 0 | FH29: =生産管理!FJ42 -> 0 | FI29: =生産管理!FK42 -> 0 | FJ29: =生産管理!FL42 -> 0 | FK29: =生産管理!FM42 -> 0 | FL29: =生産管理!FN42 -> 0 | FM29: =生産管理!FO42 -> 0 | FN29: =生産管理!FP42 -> 0 | FO29: =生産管理!FQ42 -> 0 | FP29: =生産管理!FR42 -> 0 | FQ29: =生産管理!FS42 -> 0 | FR29: =生産管理!FT42 -> 0 | FS29: =生産管理!FU42 -> 0 | FT29: =生産管理!FV42 -> 0 | FU29: =生産管理!FW42 -> 0 | FV29: =生産管理!FX42 -> 0 | FW29: =生産管理!FY42 -> 0 | FX29: =生産管理!FZ42 -> 0 | FY29: =生産管理!GA42 -> 0 | FZ29: =生産管理!GB42 -> 0 | GA29: =生産管理!GC42 -> 0 | GB29: =生産管理!GD42 -> 0 | GC29: =生産管理!GE42 -> 0 | GD29: =生産管理!GF42 -> 0 | GE29: =生産管理!GG42 -> 0 | GF29: =生産管理!GH42 -> 0 | GG29: =生産管理!GI42 -> 0 | GH29: =生産管理!GJ42 -> 0 | GI29: =生産管理!GK42 -> 0 | GJ29: =生産管理!GL42 -> 0 | GK29: =生産管理!GM42 -> 0 | GL29: =生産管理!GN42 -> 0 | GM29: =生産管理!GO42 -> 0 | GN29: =生産管理!GP42 -> 0 | GO29: =生産管理!GQ42 -> 0 | GP29: =生産管理!GR42 -> 0 | GQ29: =生産管理!GS42 -> 0 | GR29: =生産管理!GT42 -> 0 | GS29: =生産管理!GU42 -> 0 | GT29: =生産管理!GV42 -> 0 | GU29: =生産管理!GW42 -> 0 | GV29: =生産管理!GX42 -> 0 | GW29: =生産管理!GY42 -> 0 | GX29: =生産管理!GZ42 -> 0 | GY29: =生産管理!HA42 -> 0 | GZ29: =生産管理!HB42 -> 0 | HA29: =生産管理!HC42 -> 0 | HB29: =生産管理!HD42 -> 0 | HC29: =生産管理!HE42 -> 0 | HD29: =生産管理!HF42 -> 0 | HE29: =生産管理!HG42 -> 0 | HF29: =生産管理!HH42 -> 0 | HG29: =生産管理!HI42 -> 0 | HH29: =生産管理!HJ42 -> 0 | HI29: =生産管理!HK42 -> 0 | HJ29: =生産管理!HL42 -> 0 | HK29: =生産管理!HM42 -> 0 | HL29: =生産管理!HN42 -> 0 | HM29: =生産管理!HO42 -> 0 | HN29: =生産管理!HP42 -> 0 | HO29: =生産管理!HQ42 -> 0 | HP29: =生産管理!HR42 -> 0 | HQ29: =生産管理!HS42 -> 0 | HR29: =生産管理!HT42 -> 0 | HS29: =生産管理!HU42 -> 0 | HT29: =生産管理!HV42 -> 0 | HU29: =生産管理!HW42 -> 0 | HV29: =生産管理!HX42 -> 0 | HW29: =生産管理!HY42 -> 0 | HX29: =生産管理!HZ42 -> 0 | HY29: =生産管理!IA42 -> 0 | HZ29: =生産管理!IB42 -> 0 | IA29: =生産管理!IC42 -> 0
M30: 鋳造数 | N30: 3487 | O30: 0 | P30: 0 | Q30: 0 | R30: 0 | S30: 0 | T30: 0 | W30: 146 | X30: 333 | Z30: 610 | AA30: 445 | AB30: 488 | AC30: 471 | AD30: 484 | AE30: 167 | AH30: 343
M31: 捨吹① | N31: 68 | O31: 0 | P31: 0 | Q31: 0 | R31: 0 | S31: 0 | T31: 0 | W31: 8 | X31: 5 | Z31: 11 | AA31: 6 | AB31: 10 | AC31: 10 | AD31: 6 | AE31: 9 | AH31: 3
M32: 捨吹② | N32: 59 | O32: 0 | P32: 0 | Q32: 0 | R32: 0 | S32: 0 | T32: 0 | W32: 5 | X32: 15 | Z32: 5 | AA32: 14 | AB32: 3 | AC32: 4 | AD32: 7 | AE32: 6 | AH32: 0
M33: 廃却品 | N33: 247 | O33: 0 | P33: 0 | Q33: 0 | R33: 0 | S33: 0 | T33: 0 | W33: 23 | X33: 25 | Z33: 14 | AA33: 17 | AB33: 17 | AC33: 47 | AD33: 11 | AE33: 88 | AH33: 5
M34: 良品 | N34: 3113 | O34: 0 | P34: 0 | Q34: 0 | R34: 0 | S34: 0 | T34: 0 | V34: =SUM(V30-V31-V32-V33) -> 0 | W34: 110 | X34: 288 | Y34: 0 | Z34: 580 | AA34: 408 | AB34: 458 | AC34: 410 | AD34: 460 | AE34: 64 | AF34: 0 | AG34: 0 | AH34: 335 | AI34: 0 | AJ34: 0 | AK34: 0 | AL34: 0 | AM34: 0 | AN34: 0 | AO34: 0 | AP34: 0 | AQ34: 0 | AR34: 0 | AS34: 0 | AT34: 0 | AU34: 0 | AV34: 0 | AW34: 0 | AX34: 0 | AY34: 0 | AZ34: 0 | BA34: 0 | BB34: 0 | BC34: 0 | BD34: 0 | BE34: 0 | BF34: 0 | BG34: 0 | BH34: 0 | BI34: 0 | BJ34: 0 | BK34: 0 | BL34: 0 | BM34: 0 | BN34: 0 | BO34: 0 | BP34: 0 | BQ34: 0 | BR34: 0 | BS34: 0 | BT34: 0 | BU34: 0 | BV34: 0 | BW34: 0 | BX34: 0 | BY34: 0 | BZ34: 0 | CA34: 0 | CB34: 0 | CC34: 0 | CD34: 0 | CE34: 0 | CF34: 0 | CG34: 0 | CH34: =SUM(CH30-CH31-CH32-CH33) -> 0 | CI34: 0 | CJ34: 0 | CK34: 0 | CL34: 0 | CM34: 0 | CN34: 0 | CO34: 0 | CP34: 0 | CQ34: 0 | CR34: 0 | CS34: 0 | CT34: 0 | CU34: 0 | CV34: 0 | CW34: 0 | CX34: 0 | CY34: 0 | CZ34: 0 | DA34: 0 | DB34: 0 | DC34: 0 | DD34: 0 | DE34: 0 | DF34: 0 | DG34: 0 | DH34: 0 | DI34: 0 | DJ34: 0 | DK34: 0 | DL34: 0 | DM34: 0 | DN34: 0 | DO34: 0 | DP34: 0 | DQ34: 0 | DR34: 0 | DS34: 0 | DT34: 0 | DU34: 0 | DV34: 0 | DW34: 0 | DX34: 0 | DY34: 0 | DZ34: 0 | EA34: 0 | EB34: 0 | EC34: 0 | ED34: 0 | EE34: 0 | EF34: 0 | EG34: 0 | EH34: 0 | EI34: 0 | EJ34: 0 | EK34: 0 | EL34: 0 | EM34: 0 | EN34: 0 | EO34: 0 | EP34: 0 | EQ34: 0 | ER34: 0 | ES34: 0 | ET34: =SUM(ET30-ET31-ET32-ET33) -> 0 | EU34: 0 | EV34: 0 | EW34: 0 | EX34: 0 | EY34: 0 | EZ34: 0 | FA34: 0 | FB34: 0 | FC34: 0 | FD34: 0 | FE34: 0 | FF34: 0 | FG34: 0 | FH34: 0 | FI34: 0 | FJ34: 0 | FK34: 0 | FL34: 0 | FM34: 0 | FN34: 0 | FO34: 0 | FP34: 0 | FQ34: 0 | FR34: 0 | FS34: 0 | FT34: 0 | FU34: 0 | FV34: 0 | FW34: 0 | FX34: 0 | FY34: 0 | FZ34: 0 | GA34: 0 | GB34: 0 | GC34: 0 | GD34: 0 | GE34: 0 | GF34: 0 | GG34: 0 | GH34: 0 | GI34: 0 | GJ34: 0 | GK34: 0 | GL34: 0 | GM34: 0 | GN34: 0 | GO34: 0 | GP34: 0 | GQ34: 0 | GR34: 0 | GS34: 0 | GT34: 0 | GU34: 0 | GV34: 0 | GW34: 0 | GX34: 0 | GY34: 0 | GZ34: 0 | HA34: 0 | HB34: 0 | HC34: 0 | HD34: 0 | HE34: 0 | HF34: =SUM(HF30-HF31-HF32-HF33) -> 0 | HG34: 0 | HH34: 0 | HI34: 0 | HJ34: 0 | HK34: 0 | HL34: 0 | HM34: 0 | HN34: 0 | HO34: 0 | HP34: 0 | HQ34: 0 | HR34: 0 | HS34: 0 | HT34: 0 | HU34: 0 | HV34: 0 | HW34: 0 | HX34: 0 | HY34: 0 | HZ34: 0 | IA34: 0
C35: 21 | D35: MLB LC | M35: 計画数 | N35: 2086 | O35: 2800 | P35: 0 | Q35: 0 | R35: 0 | S35: 0 | T35: 0 | V35: =生産管理!V51 -> 0 | W35: =生産管理!W51 -> 0 | X35: =生産管理!X51 -> 0 | Y35: =生産管理!Y51 -> 0 | Z35: =生産管理!Z51 -> 0 | AA35: =生産管理!AA51 -> 0 | AB35: =生産管理!AB51 -> 0 | AC35: =生産管理!AC51 -> 0 | AD35: =生産管理!AD51 -> 0 | AE35: =生産管理!AE51 -> 0 | AF35: =生産管理!AF51 -> 0 | AG35: =生産管理!AG51 -> 0 | AH35: =生産管理!AH51 -> 0 | AI35: =生産管理!AI51 -> 0 | AJ35: =生産管理!AJ51 -> 0 | AK35: =生産管理!AK51 -> 0 | AL35: =生産管理!AL51 -> 0 | AM35: =生産管理!AM51 -> 0 | AN35: =生産管理!AN51 -> 0 | AO35: =生産管理!AO51 -> 155 | AP35: =生産管理!AP51 -> 350 | AQ35: =生産管理!AQ51 -> 473 | AR35: =生産管理!AR51 -> 440 | AS35: =生産管理!AS51 -> 298 | AT35: =生産管理!AT51 -> 67 | AU35: =生産管理!AU51 -> 111 | AV35: =生産管理!AV51 -> 192 | AW35: =生産管理!AW51 -> 0 | AX35: =生産管理!AX51 -> 0 | AY35: =生産管理!AY51 -> 0 | AZ35: =生産管理!AZ51 -> 0 | BA35: =生産管理!BA51 -> 0 | BB35: =生産管理!BB51 -> 0 | BC35: =生産管理!BC51 -> 0 | BD35: =生産管理!BD51 -> 0 | BE35: =生産管理!BE51 -> 400 | BF35: =生産管理!BF51 -> 400 | BG35: =生産管理!BG51 -> 400 | BH35: =生産管理!BH51 -> 0 | BI35: =生産管理!BI51 -> 0 | BJ35: =生産管理!BJ51 -> 400 | BK35: =生産管理!BL51 -> 400 | BL35: =生産管理!BM51 -> 0 | BM35: =生産管理!BN51 -> 0 | BN35: =生産管理!BO51 -> 0 | BO35: =生産管理!BP51 -> 0 | BP35: =生産管理!BQ51 -> 0 | BQ35: =生産管理!BR51 -> 0 | BR35: =生産管理!BS51 -> 0 | BS35: =生産管理!BT51 -> 0 | BT35: =生産管理!BU51 -> 0 | BU35: =生産管理!BV51 -> 0 | BV35: =生産管理!BW51 -> 0 | BW35: =生産管理!BX51 -> 0 | BX35: =生産管理!BY51 -> 0 | BY35: =生産管理!BZ51 -> 0 | BZ35: =生産管理!CA51 -> 0 | CA35: =生産管理!CB51 -> 400 | CB35: =生産管理!CC51 -> 400 | CC35: =生産管理!CD51 -> 0 | CD35: =生産管理!CE51 -> 0 | CE35: =生産管理!CF51 -> 0 | CF35: =生産管理!CG51 -> 0 | CG35: =生産管理!CH51 -> 0 | CH35: =生産管理!CI51 -> 0 | CI35: =生産管理!CJ51 -> 0 | CJ35: =生産管理!CK51 -> 0 | CK35: =生産管理!CL51 -> 0 | CL35: =生産管理!CM51 -> 0 | CM35: =生産管理!CN51 -> 0 | CN35: =生産管理!CO51 -> 0 | CO35: =生産管理!CP51 -> 0 | CP35: =生産管理!CQ51 -> 0 | CQ35: =生産管理!CS51 -> 0 | CR35: =生産管理!CT51 -> 0 | CS35: =生産管理!CU51 -> 0 | CT35: =生産管理!CV51 -> 0 | CU35: =生産管理!CW51 -> 0 | CV35: =生産管理!CX51 -> 0 | CW35: =生産管理!CY51 -> 0 | CX35: =生産管理!CZ51 -> 0 | CY35: =生産管理!DA51 -> 0 | CZ35: =生産管理!DB51 -> 0 | DA35: =生産管理!DC51 -> 0 | DB35: =生産管理!DD51 -> 0 | DC35: =生産管理!DE51 -> 0 | DD35: =生産管理!DF51 -> 0 | DE35: =生産管理!DG51 -> 0 | DF35: =生産管理!DH51 -> 0 | DG35: =生産管理!DI51 -> 0 | DH35: =生産管理!DJ51 -> 0 | DI35: =生産管理!DK51 -> 0 | DJ35: =生産管理!DL51 -> 0 | DK35: =生産管理!DM51 -> 0 | DL35: =生産管理!DN51 -> 0 | DM35: =生産管理!DO51 -> 0 | DN35: =生産管理!DP51 -> 0 | DO35: =生産管理!DQ51 -> 0 | DP35: =生産管理!DR51 -> 0 | DQ35: =生産管理!DS51 -> 0 | DR35: =生産管理!DT51 -> 0 | DS35: =生産管理!DU51 -> 0 | DT35: =生産管理!DV51 -> 0 | DU35: =生産管理!DW51 -> 0 | DV35: =生産管理!DX51 -> 0 | DW35: =生産管理!DY51 -> 0 | DX35: =生産管理!DZ51 -> 0 | DY35: =生産管理!EA51 -> 0 | DZ35: =生産管理!EB51 -> 0 | EA35: =生産管理!EC51 -> 0 | EB35: =生産管理!ED51 -> 0 | EC35: =生産管理!EE51 -> 0 | ED35: =生産管理!EF51 -> 0 | EE35: =生産管理!EG51 -> 0 | EF35: =生産管理!EH51 -> 0 | EG35: =生産管理!EI51 -> 0 | EH35: =生産管理!EJ51 -> 0 | EI35: =生産管理!EK51 -> 0 | EJ35: =生産管理!EL51 -> 0 | EK35: =生産管理!EM51 -> 0 | EL35: =生産管理!EN51 -> 0 | EM35: =生産管理!EO51 -> 0 | EN35: =生産管理!EP51 -> 0 | EO35: =生産管理!EQ51 -> 0 | EP35: =生産管理!ER51 -> 0 | EQ35: =生産管理!ES51 -> 0 | ER35: =生産管理!ET51 -> 0 | ES35: =生産管理!EU51 -> 0 | ET35: =生産管理!EV51 -> 0 | EU35: =生産管理!EW51 -> 0 | EV35: =生産管理!EX51 -> 0 | EW35: =生産管理!EY51 -> 0 | EX35: =生産管理!EZ51 -> 0 | EY35: =生産管理!FA51 -> 0 | EZ35: =生産管理!FB51 -> 0 | FA35: =生産管理!FC51 -> 0 | FB35: =生産管理!FD51 -> 0 | FC35: =生産管理!FE51 -> 0 | FD35: =生産管理!FF51 -> 0 | FE35: =生産管理!FG51 -> 0 | FF35: =生産管理!FH51 -> 0 | FG35: =生産管理!FI51 -> 0 | FH35: =生産管理!FJ51 -> 0 | FI35: =生産管理!FK51 -> 0 | FJ35: =生産管理!FL51 -> 0 | FK35: =生産管理!FM51 -> 0 | FL35: =生産管理!FN51 -> 0 | FM35: =生産管理!FO51 -> 0 | FN35: =生産管理!FP51 -> 0 | FO35: =生産管理!FQ51 -> 0 | FP35: =生産管理!FR51 -> 0 | FQ35: =生産管理!FS51 -> 0 | FR35: =生産管理!FT51 -> 0 | FS35: =生産管理!FU51 -> 0 | FT35: =生産管理!FV51 -> 0 | FU35: =生産管理!FW51 -> 0 | FV35: =生産管理!FX51 -> 0 | FW35: =生産管理!FY51 -> 0 | FX35: =生産管理!FZ51 -> 0 | FY35: =生産管理!GA51 -> 0 | FZ35: =生産管理!GB51 -> 0 | GA35: =生産管理!GC51 -> 0 | GB35: =生産管理!GD51 -> 0 | GC35: =生産管理!GE51 -> 0 | GD35: =生産管理!GF51 -> 0 | GE35: =生産管理!GG51 -> 0 | GF35: =生産管理!GH51 -> 0 | GG35: =生産管理!GI51 -> 0 | GH35: =生産管理!GJ51 -> 0 | GI35: =生産管理!GK51 -> 0 | GJ35: =生産管理!GL51 -> 0 | GK35: =生産管理!GM51 -> 0 | GL35: =生産管理!GN51 -> 0 | GM35: =生産管理!GO51 -> 0 | GN35: =生産管理!GP51 -> 0 | GO35: =生産管理!GQ51 -> 0 | GP35: =生産管理!GR51 -> 0 | GQ35: =生産管理!GS51 -> 0 | GR35: =生産管理!GT51 -> 0 | GS35: =生産管理!GU51 -> 0 | GT35: =生産管理!GV51 -> 0 | GU35: =生産管理!GW51 -> 0 | GV35: =生産管理!GX51 -> 0 | GW35: =生産管理!GY51 -> 0 | GX35: =生産管理!GZ51 -> 0 | GY35: =生産管理!HA51 -> 0 | GZ35: =生産管理!HB51 -> 0 | HA35: =生産管理!HC51 -> 0 | HB35: =生産管理!HD51 -> 0 | HC35: =生産管理!HE51 -> 0 | HD35: =生産管理!HF51 -> 0 | HE35: =生産管理!HG51 -> 0 | HF35: =生産管理!HH51 -> 0 | HG35: =生産管理!HI51 -> 0 | HH35: =生産管理!HJ51 -> 0 | HI35: =生産管理!HK51 -> 0 | HJ35: =生産管理!HL51 -> 0 | HK35: =生産管理!HM51 -> 0 | HL35: =生産管理!HN51 -> 0 | HM35: =生産管理!HO51 -> 0 | HN35: =生産管理!HP51 -> 0 | HO35: =生産管理!HQ51 -> 0 | HP35: =生産管理!HR51 -> 0 | HQ35: =生産管理!HS51 -> 0 | HR35: =生産管理!HT51 -> 0 | HS35: =生産管理!HU51 -> 0 | HT35: =生産管理!HV51 -> 0 | HU35: =生産管理!HW51 -> 0 | HV35: =生産管理!HX51 -> 0 | HW35: =生産管理!HY51 -> 0 | HX35: =生産管理!HZ51 -> 0 | HY35: =生産管理!IA51 -> 0 | HZ35: =生産管理!IB51 -> 0 | IA35: =生産管理!IC51 -> 0
M36: 鋳造数 | N36: 2269 | O36: 129 | P36: 0 | Q36: 0 | R36: 0 | S36: 0 | T36: 0 | AO36: 223 | AP36: 360 | AQ36: 493 | AR36: 462 | AS36: 314 | AT36: 76 | AU36: 126 | AV36: 215 | BF36: 129
M37: 捨吹① | N37: 45 | O37: 3 | P37: 0 | Q37: 0 | R37: 0 | S37: 0 | T37: 0 | AO37: 10 | AP37: 4 | AQ37: 5 | AR37: 7 | AS37: 4 | AT37: 4 | AU37: 4 | AV37: 7 | BF37: 3
M38: 捨吹② | N38: 21 | O38: 7 | P38: 0 | Q38: 0 | R38: 0 | S38: 0 | T38: 0 | AO38: 4 | AP38: 4 | AQ38: 0 | AR38: 0 | AS38: 0 | AT38: 0 | AU38: 4 | AV38: 9 | BF38: 7
M39: 廃却品 | N39: 117 | O39: 13 | P39: 0 | Q39: 0 | R39: 0 | S39: 0 | T39: 0 | AO39: 54 | AP39: 2 | AQ39: 15 | AR39: 15 | AS39: 12 | AT39: 5 | AU39: 7 | AV39: 7 | BF39: 13
M40: 良品 | N40: 2086 | O40: 106 | P40: 0 | Q40: 0 | R40: 0 | S40: 0 | T40: 0 | V40: =SUM(V36-V37-V38-V39) -> 0 | W40: 0 | X40: 0 | Y40: 0 | Z40: 0 | AA40: 0 | AB40: 0 | AC40: 0 | AD40: 0 | AE40: 0 | AF40: 0 | AG40: 0 | AH40: 0 | AI40: 0 | AJ40: 0 | AK40: 0 | AL40: 0 | AM40: 0 | AN40: 0 | AO40: 155 | AP40: 350 | AQ40: 473 | AR40: 440 | AS40: 298 | AT40: 67 | AU40: 111 | AV40: 192 | AW40: =SUM(AW36-AW37-AW38-AW39) -> 0 | AX40: 0 | AY40: 0 | AZ40: 0 | BA40: 0 | BB40: 0 | BC40: 0 | BD40: 0 | BE40: 0 | BF40: 106 | BG40: 0 | BH40: 0 | BI40: 0 | BJ40: 0 | BK40: 0 | BL40: 0 | BM40: 0 | BN40: 0 | BO40: 0 | BP40: 0 | BQ40: 0 | BR40: 0 | BS40: 0 | BT40: 0 | BU40: 0 | BV40: 0 | BW40: 0 | BX40: 0 | BY40: 0 | BZ40: 0 | CA40: 0 | CB40: 0 | CC40: 0 | CD40: 0 | CE40: 0 | CF40: 0 | CG40: 0 | CH40: =SUM(CH36-CH37-CH38-CH39) -> 0 | CI40: 0 | CJ40: 0 | CK40: 0 | CL40: 0 | CM40: 0 | CN40: 0 | CO40: 0 | CP40: 0 | CQ40: 0 | CR40: 0 | CS40: 0 | CT40: 0 | CU40: 0 | CV40: 0 | CW40: 0 | CX40: 0 | CY40: 0 | CZ40: 0 | DA40: 0 | DB40: 0 | DC40: 0 | DD40: 0 | DE40: 0 | DF40: 0 | DG40: 0 | DH40: 0 | DI40: 0 | DJ40: 0 | DK40: 0 | DL40: 0 | DM40: 0 | DN40: 0 | DO40: 0 | DP40: 0 | DQ40: 0 | DR40: 0 | DS40: 0 | DT40: 0 | DU40: 0 | DV40: 0 | DW40: 0 | DX40: 0 | DY40: 0 | DZ40: 0 | EA40: 0 | EB40: 0 | EC40: 0 | ED40: 0 | EE40: 0 | EF40: 0 | EG40: 0 | EH40: 0 | EI40: 0 | EJ40: 0 | EK40: 0 | EL40: 0 | EM40: 0 | EN40: 0 | EO40: 0 | EP40: 0 | EQ40: 0 | ER40: 0 | ES40: 0 | ET40: =SUM(ET36-ET37-ET38-ET39) -> 0 | EU40: 0 | EV40: 0 | EW40: 0 | EX40: 0 | EY40: 0 | EZ40: 0 | FA40: 0 | FB40: 0 | FC40: 0 | FD40: 0 | FE40: 0 | FF40: 0 | FG40: 0 | FH40: 0 | FI40: 0 | FJ40: 0 | FK40: 0 | FL40: 0 | FM40: 0 | FN40: 0 | FO40: 0 | FP40: 0 | FQ40: 0 | FR40: 0 | FS40: 0 | FT40: 0 | FU40: 0 | FV40: 0 | FW40: 0 | FX40: 0 | FY40: 0 | FZ40: 0 | GA40: 0 | GB40: 0 | GC40: 0 | GD40: 0 | GE40: 0 | GF40: 0 | GG40: 0 | GH40: 0 | GI40: 0 | GJ40: 0 | GK40: 0 | GL40: 0 | GM40: 0 | GN40: 0 | GO40: 0 | GP40: 0 | GQ40: 0 | GR40: 0 | GS40: 0 | GT40: 0 | GU40: 0 | GV40: 0 | GW40: 0 | GX40: 0 | GY40: 0 | GZ40: 0 | HA40: 0 | HB40: 0 | HC40: 0 | HD40: 0 | HE40: 0 | HF40: =SUM(HF36-HF37-HF38-HF39) -> 0 | HG40: 0 | HH40: 0 | HI40: 0 | HJ40: 0 | HK40: 0 | HL40: 0 | HM40: 0 | HN40: 0 | HO40: 0 | HP40: 0 | HQ40: 0 | HR40: 0 | HS40: 0 | HT40: 0 | HU40: 0 | HV40: 0 | HW40: 0 | HX40: 0 | HY40: 0 | HZ40: 0 | IA40: 0
A41: 20 | B41: MJPB_CB | C41: 20 | D41: HL4M_CB | F41: =N41 -> 4301 | G41: 2700 | H41: 0 | I41: 0 | J41: 0 | K41: 0 | L41: 0 | M41: 計画数 | N41: =SUM(V41:AY41) -> 4301 | O41: =SUM(BA41:CD41) -> 2700 | P41: 0 | Q41: =SUM(DJ41:EM41) -> 0 | R41: =SUM(EN41:FP41) -> 0 | S41: =SUM(FQ41:GU41) -> 0 | T41: =SUM(GV41:HY41) -> 0 | V41: =+生産管理!V58 -> 0 | W41: =+生産管理!W58 -> 235 | X41: =+生産管理!X58 -> 257 | Y41: =+生産管理!Y58 -> 478 | Z41: =+生産管理!Z58 -> 0 | AA41: =+生産管理!AA58 -> 51 | AB41: =+生産管理!AB58 -> 0 | AC41: =+生産管理!AC58 -> 0 | AD41: =+生産管理!AD58 -> 0 | AE41: =+生産管理!AE58 -> 0 | AF41: =+生産管理!AF58 -> 0 | AG41: =+生産管理!AG58 -> 0 | AH41: =+生産管理!AH58 -> 48 | AI41: =+生産管理!AI58 -> 319 | AJ41: =+生産管理!AJ58 -> 449 | AK41: =+生産管理!AK58 -> 364 | AL41: =+生産管理!AL58 -> 0 | AM41: =+生産管理!AM58 -> 0 | AN41: =+生産管理!AN58 -> 0 | AO41: =+生産管理!AO58 -> 420 | AP41: =+生産管理!AP58 -> 420 | AQ41: =+生産管理!AQ58 -> 420 | AR41: =+生産管理!AR58 -> 420 | AS41: =+生産管理!AS58 -> 420 | AT41: =+生産管理!AT58 -> 0 | AU41: =+生産管理!AU58 -> 0 | AV41: =+生産管理!AV58 -> 0 | AW41: =+生産管理!AW58 -> 0 | AX41: =+生産管理!AX58 -> 0 | AY41: =+生産管理!AY58 -> 0 | AZ41: =+生産管理!AZ58 -> 0 | BA41: =+生産管理!BA58 -> 0 | BB41: =+生産管理!BB58 -> 0 | BC41: =+生産管理!BC58 -> 0 | BD41: =+生産管理!BD58 -> 0 | BE41: =+生産管理!BE58 -> 0 | BF41: =+生産管理!BF58 -> 0 | BG41: =+生産管理!BG58 -> 0 | BH41: =+生産管理!BH58 -> 0 | BI41: =+生産管理!BI58 -> 0 | BJ41: =+生産管理!BJ58 -> 0 | BK41: =+生産管理!BL58 -> 0 | BL41: =+生産管理!BM58 -> 0 | BM41: =+生産管理!BN58 -> 0 | BN41: =+生産管理!BO58 -> 0 | BO41: =+生産管理!BP58 -> 0 | BP41: =+生産管理!BQ58 -> 0 | BQ41: =+生産管理!BR58 -> 450 | BR41: =+生産管理!BS58 -> 450 | BS41: =+生産管理!BT58 -> 450 | BT41: =+生産管理!BU58 -> 450 | BU41: =+生産管理!BV58 -> 450 | BV41: =+生産管理!BW58 -> 450 | BW41: =+生産管理!BX58 -> 0 | BX41: =+生産管理!BY58 -> 0 | BY41: =+生産管理!BZ58 -> 0 | BZ41: =+生産管理!CA58 -> 0 | CA41: =+生産管理!CB58 -> 0 | CB41: =+生産管理!CC58 -> 0 | CC41: =+生産管理!CD58 -> 0 | CD41: =+生産管理!CE58 -> 0 | CE41: =+生産管理!CF58 -> 0 | CF41: =+生産管理!CG58 -> 0 | CG41: =+生産管理!CH58 -> 0 | CH41: =+生産管理!CI58 -> 0 | CI41: =+生産管理!CJ58 -> 0 | CJ41: =+生産管理!CK58 -> 0 | CK41: =+生産管理!CL58 -> 0 | CL41: =+生産管理!CM58 -> 0 | CM41: =+生産管理!CN58 -> 0 | CN41: =+生産管理!CO58 -> 0 | CO41: =+生産管理!CP58 -> 0 | CP41: =+生産管理!CQ58 -> 0 | CQ41: =+生産管理!CS58 -> 0 | CR41: =+生産管理!CT58 -> 0 | CS41: =+生産管理!CU58 -> 0 | CT41: =+生産管理!CV58 -> 0 | CU41: =+生産管理!CW58 -> 0 | CV41: =+生産管理!CX58 -> 0 | CW41: =+生産管理!CY58 -> 0 | CX41: =+生産管理!CZ58 -> 0 | CY41: =+生産管理!DA58 -> 0 | CZ41: =+生産管理!DB58 -> 0 | DA41: =+生産管理!DC58 -> 0 | DB41: =+生産管理!DD58 -> 0 | DC41: =+生産管理!DE58 -> 0 | DD41: =+生産管理!DF58 -> 0 | DE41: =+生産管理!DG58 -> 0 | DF41: =+生産管理!DH58 -> 0 | DG41: =+生産管理!DI58 -> 0 | DH41: =+生産管理!DJ58 -> 0 | DI41: =+生産管理!DK58 -> 0 | DJ41: =+生産管理!DL58 -> 0 | DK41: =+生産管理!DM58 -> 0 | DL41: =+生産管理!DN58 -> 0 | DM41: =+生産管理!DO58 -> 0 | DN41: =+生産管理!DP58 -> 0 | DO41: =+生産管理!DQ58 -> 0 | DP41: =+生産管理!DR58 -> 0 | DQ41: =+生産管理!DS58 -> 0 | DR41: =+生産管理!DT58 -> 0 | DS41: =+生産管理!DU58 -> 0 | DT41: =+生産管理!DV58 -> 0 | DU41: =+生産管理!DW58 -> 0 | DV41: =+生産管理!DX58 -> 0 | DW41: =+生産管理!DY58 -> 0 | DX41: =+生産管理!DZ58 -> 0 | DY41: =+生産管理!EA58 -> 0 | DZ41: =+生産管理!EB58 -> 0 | EA41: =+生産管理!EC58 -> 0 | EB41: =+生産管理!ED58 -> 0 | EC41: =+生産管理!EE58 -> 0 | ED41: =+生産管理!EF58 -> 0 | EE41: =+生産管理!EG58 -> 0 | EF41: =+生産管理!EH58 -> 0 | EG41: =+生産管理!EI58 -> 0 | EH41: =+生産管理!EJ58 -> 0 | EI41: =+生産管理!EK58 -> 0 | EJ41: =+生産管理!EL58 -> 0 | EK41: =+生産管理!EM58 -> 0 | EL41: =+生産管理!EN58 -> 0 | EM41: =+生産管理!EO58 -> 0 | EN41: =+生産管理!EP58 -> 0 | EO41: =+生産管理!EQ58 -> 0 | EP41: =+生産管理!ER58 -> 0 | EQ41: =+生産管理!ES58 -> 0 | ER41: =+生産管理!ET58 -> 0 | ES41: =+生産管理!EU58 -> 0 | ET41: =+生産管理!EV58 -> 0 | EU41: =+生産管理!EW58 -> 0 | EV41: =+生産管理!EX58 -> 0 | EW41: =+生産管理!EY58 -> 0 | EX41: =+生産管理!EZ58 -> 0 | EY41: =+生産管理!FA58 -> 0 | EZ41: =+生産管理!FB58 -> 0 | FA41: =+生産管理!FC58 -> 0 | FB41: =+生産管理!FD58 -> 0 | FC41: =+生産管理!FE58 -> 0 | FD41: =+生産管理!FF58 -> 0 | FE41: =+生産管理!FG58 -> 0 | FF41: =+生産管理!FH58 -> 0 | FG41: =+生産管理!FI58 -> 0 | FH41: =+生産管理!FJ58 -> 0 | FI41: =+生産管理!FK58 -> 0 | FJ41: =+生産管理!FL58 -> 0 | FK41: =+生産管理!FM58 -> 0 | FL41: =+生産管理!FN58 -> 0 | FM41: =+生産管理!FO58 -> 0 | FN41: =+生産管理!FP58 -> 0 | FO41: =+生産管理!FQ58 -> 0 | FP41: =+生産管理!FR58 -> 0 | FQ41: =+生産管理!FS58 -> 0 | FR41: =+生産管理!FT58 -> 0 | FS41: =+生産管理!FU58 -> 0 | FT41: =+生産管理!FV58 -> 0 | FU41: =+生産管理!FW58 -> 0 | FV41: =+生産管理!FX58 -> 0 | FW41: =+生産管理!FY58 -> 0 | FX41: =+生産管理!FZ58 -> 0 | FY41: =+生産管理!GA58 -> 0 | FZ41: =+生産管理!GB58 -> 0 | GA41: =+生産管理!GC58 -> 0 | GB41: =+生産管理!GD58 -> 0 | GC41: =+生産管理!GE58 -> 0 | GD41: =+生産管理!GF58 -> 0 | GE41: =+生産管理!GG58 -> 0 | GF41: =+生産管理!GH58 -> 0 | GG41: =+生産管理!GI58 -> 0 | GH41: =+生産管理!GJ58 -> 0 | GI41: =+生産管理!GK58 -> 0 | GJ41: =+生産管理!GL58 -> 0 | GK41: =+生産管理!GM58 -> 0 | GL41: =+生産管理!GN58 -> 0 | GM41: =+生産管理!GO58 -> 0 | GN41: =+生産管理!GP58 -> 0 | GO41: =+生産管理!GQ58 -> 0 | GP41: =+生産管理!GR58 -> 0 | GQ41: =+生産管理!GS58 -> 0 | GR41: =+生産管理!GT58 -> 0 | GS41: =+生産管理!GU58 -> 0 | GT41: =+生産管理!GV58 -> 0 | GU41: =+生産管理!GW58 -> 0 | GV41: =+生産管理!GX58 -> 0 | GW41: =+生産管理!GY58 -> 0 | GX41: =+生産管理!GZ58 -> 0 | GY41: =+生産管理!HA58 -> 0 | GZ41: =+生産管理!HB58 -> 0 | HA41: =+生産管理!HC58 -> 0 | HB41: =+生産管理!HD58 -> 0 | HC41: =+生産管理!HE58 -> 0 | HD41: =+生産管理!HF58 -> 0 | HE41: =+生産管理!HG58 -> 0 | HF41: =+生産管理!HH58 -> 0 | HG41: =+生産管理!HI58 -> 0 | HH41: =+生産管理!HJ58 -> 0 | HI41: =+生産管理!HK58 -> 0 | HJ41: =+生産管理!HL58 -> 0 | HK41: =+生産管理!HM58 -> 0 | HL41: =+生産管理!HN58 -> 0 | HM41: =+生産管理!HO58 -> 0 | HN41: =+生産管理!HP58 -> 0 | HO41: =+生産管理!HQ58 -> 0 | HP41: =+生産管理!HR58 -> 0 | HQ41: =+生産管理!HS58 -> 0 | HR41: =+生産管理!HT58 -> 0 | HS41: =+生産管理!HU58 -> 0 | HT41: =+生産管理!HV58 -> 0 | HU41: =+生産管理!HW58 -> 0 | HV41: =+生産管理!HX58 -> 0 | HW41: =+生産管理!HY58 -> 0 | HX41: =+生産管理!HZ58 -> 0 | HY41: =+生産管理!IA58 -> 0 | HZ41: =+生産管理!IB58 -> 0 | IA41: =+生産管理!IC58 -> 0
A42: 20 | B42: MJPB_CB | C42: 20 | D42: MJPB_CB | F42: =N41 -> 4301 | G42: 2700 | H42: 0 | I42: 0 | J42: 0 | K42: 0 | L42: 0 | M42: 鋳造数 | N42: 5024 | O42: 0 | P42: 0 | Q42: 0 | R42: 0 | S42: 0 | T42: 0 | W42: 322 | X42: 384 | Y42: 532 | AA42: 71 | AH42: 65 | AI42: 431 | AJ42: 602 | AK42: 523 | AL42: 450 | AP42: 191 | AQ42: 378 | AR42: 527 | AS42: 548
A43: 20 | B43: MJPB_CB | C43: 20 | D43: MJPB_CB | F43: =N41 -> 4301 | G43: 2700 | H43: 0 | I43: 0 | J43: 0 | K43: 0 | L43: 0 | M43: 捨吹①金具 | N43: 99 | O43: 0 | P43: 0 | Q43: 0 | R43: 0 | S43: 0 | T43: 0 | W43: 4 | X43: 12 | Y43: 8 | AA43: 4 | AH43: 6 | AI43: 3 | AJ43: 7 | AK43: 7 | AL43: 8 | AP43: 13 | AQ43: 13 | AR43: 6 | AS43: 8
A44: 20 | B44: MJPB_CB | C44: 20 | D44: MJPB_CB | F44: =N41 -> 4301 | G44: 2700 | H44: 0 | I44: 0 | J44: 0 | K44: 0 | L44: 0 | M44: 捨吹②金具 | N44: 176 | O44: 0 | P44: 0 | Q44: 0 | R44: 0 | S44: 0 | T44: 0 | W44: 5 | X44: 24 | Y44: 14 | AA44: 5 | AH44: 1 | AI44: 22 | AJ44: 9 | AK44: 19 | AL44: 9 | AP44: 14 | AQ44: 24 | AR44: 19 | AS44: 11
A45: 20 | B45: MJPB_CB | C45: 20 | D45: MJPB_CB | F45: =N41 -> 4301 | G45: 2700 | H45: 0 | I45: 0 | J45: 0 | K45: 0 | L45: 0 | M45: 廃却品 | N45: 831 | O45: 0 | P45: 0 | Q45: 0 | R45: 0 | S45: 0 | T45: 0 | W45: 78 | X45: 91 | Y45: 32 | AA45: 11 | AH45: 10 | AI45: 87 | AJ45: 137 | AK45: 133 | AL45: 82 | AP45: 21 | AQ45: 61 | AR45: 47 | AS45: 41
A46: 20 | B46: MJPB_CB | C46: 20 | D46: MJPB_CB | F46: =N41 -> 4301 | G46: 2700 | H46: 0 | I46: 0 | J46: 0 | K46: 0 | L46: 0 | M46: 良品 | N46: 3918 | O46: 0 | P46: 0 | Q46: 0 | R46: 0 | S46: 0 | T46: 0 | V46: =SUM(V42-V43-V44-V45) -> 0 | W46: 235 | X46: 257 | Y46: 478 | Z46: 0 | AA46: 51 | AC46: =SUM(AC42-AC43-AC44-AC45) -> 0 | AD46: 0 | AE46: 0 | AF46: 0 | AG46: 0 | AH46: 48 | AI46: 319 | AJ46: 449 | AK46: 364 | AL46: 351 | AM46: 0 | AN46: 0 | AO46: 0 | AP46: 143 | AQ46: 280 | AR46: 455 | AS46: 488 | AT46: 0 | AU46: 0 | AV46: 0 | AW46: 0 | AX46: 0 | AY46: 0 | AZ46: 0 | BA46: 0 | BB46: 0 | BC46: 0 | BD46: 0 | BE46: 0 | BF46: 0 | BG46: 0 | BH46: 0 | BI46: 0 | BJ46: 0 | BK46: 0 | BL46: 0 | BM46: 0 | BN46: 0 | BO46: 0 | BP46: 0 | BQ46: 0 | BR46: 0 | BS46: 0 | BT46: 0 | BU46: 0 | BV46: 0 | BW46: 0 | BX46: 0 | BY46: 0 | BZ46: 0 | CA46: 0 | CB46: 0 | CC46: 0 | CD46: 0 | CE46: 0 | CF46: 0 | CG46: 0 | CH46: 0 | CI46: 0 | CJ46: 0 | CK46: 0 | CL46: 0 | CM46: 0 | CN46: 0 | CO46: =SUM(CO42-CO43-CO44-CO45) -> 0 | CP46: 0 | CQ46: 0 | CR46: 0 | CS46: 0 | CT46: 0 | CU46: 0 | CV46: 0 | CW46: 0 | CX46: 0 | CY46: 0 | CZ46: 0 | DA46: 0 | DB46: 0 | DC46: 0 | DD46: 0 | DE46: 0 | DF46: 0 | DG46: 0 | DH46: 0 | DI46: 0 | DJ46: 0 | DK46: 0 | DL46: 0 | DM46: 0 | DN46: 0 | DO46: 0 | DP46: 0 | DQ46: 0 | DR46: 0 | DS46: 0 | DT46: 0 | DU46: 0 | DV46: 0 | DW46: 0 | DX46: 0 | DY46: 0 | DZ46: 0 | EA46: 0 | EB46: 0 | EC46: 0 | ED46: 0 | EE46: 0 | EF46: 0 | EG46: 0 | EH46: 0 | EI46: 0 | EJ46: 0 | EK46: 0 | EL46: 0 | EM46: 0 | EN46: 0 | EO46: 0 | EP46: 0 | EQ46: 0 | ER46: 0 | ES46: 0 | ET46: 0 | EU46: 0 | EV46: 0 | EW46: 0 | EX46: 0 | EY46: 0 | EZ46: 0 | FA46: =SUM(FA42-FA43-FA44-FA45) -> 0 | FB46: 0 | FC46: 0 | FD46: 0 | FE46: 0 | FF46: 0 | FG46: 0 | FH46: 0 | FI46: 0 | FJ46: 0 | FK46: 0 | FL46: 0 | FM46: 0 | FN46: 0 | FO46: 0 | FP46: 0 | FQ46: 0 | FR46: 0 | FS46: 0 | FT46: 0 | FU46: 0 | FV46: 0 | FW46: 0 | FX46: 0 | FY46: 0 | FZ46: 0 | GA46: 0 | GB46: 0 | GC46: 0 | GD46: 0 | GE46: 0 | GF46: 0 | GG46: 0 | GH46: 0 | GI46: 0 | GJ46: 0 | GK46: 0 | GL46: 0 | GM46: 0 | GN46: 0 | GO46: 0 | GP46: 0 | GQ46: 0 | GR46: 0 | GS46: 0 | GT46: 0 | GU46: 0 | GV46: 0 | GW46: 0 | GX46: 0 | GY46: 0 | GZ46: 0 | HA46: 0 | HB46: 0 | HC46: 0 | HD46: 0 | HE46: 0 | HF46: 0 | HG46: 0 | HH46: 0 | HI46: 0 | HJ46: 0 | HK46: 0 | HL46: 0 | HM46: =SUM(HM42-HM43-HM44-HM45) -> 0 | HN46: 0 | HO46: 0 | HP46: 0 | HQ46: 0 | HR46: 0 | HS46: 0 | HT46: 0 | HU46: 0 | HV46: 0 | HW46: 0 | HX46: 0 | HY46: 0 | HZ46: 0 | IA46: 0
A47: 20 | B47: MCA_L_CB | C47: 20 | D47: MKC LCB | F47: =N47 -> 638 | G47: 920 | H47: 0 | I47: 0 | J47: 0 | K47: 0 | L47: 0 | M47: 計画数 | N47: 638 | O47: 920 | P47: =SUM(CE47:DH47) -> 0 | Q47: 0 | R47: 0 | S47: 0 | T47: 0 | V47: =+生産管理!V68 -> 0 | W47: =+生産管理!W68 -> 0 | X47: =+生産管理!X68 -> 0 | Y47: =+生産管理!Y68 -> 0 | Z47: =+生産管理!Z68 -> 0 | AA47: =+生産管理!AA68 -> 0 | AB47: =+生産管理!AB68 -> 0 | AC47: =+生産管理!AC68 -> 0 | AD47: =+生産管理!AD68 -> 0 | AE47: =+生産管理!AE68 -> 0 | AF47: =+生産管理!AF68 -> 0 | AG47: =+生産管理!AG68 -> 0 | AH47: =+生産管理!AH68 -> 0 | AI47: =+生産管理!AI68 -> 0 | AJ47: =+生産管理!AJ68 -> 0 | AK47: =+生産管理!AK68 -> 0 | AL47: =+生産管理!AL68 -> 0 | AM47: =+生産管理!AM68 -> 16 | AN47: =+生産管理!AN68 -> 185 | AO47: =+生産管理!AO68 -> 437 | AP47: =+生産管理!AP68 -> 0 | AQ47: =+生産管理!AQ68 -> 0 | AR47: =+生産管理!AR68 -> 0 | AS47: =+生産管理!AS68 -> 0 | AT47: =+生産管理!AT68 -> 0 | AU47: =+生産管理!AU68 -> 0 | AV47: =+生産管理!AV68 -> 0 | AW47: =+生産管理!AW68 -> 0 | AX47: =+生産管理!AX68 -> 0 | AY47: =+生産管理!AY68 -> 0 | AZ47: =+生産管理!AZ68 -> 0 | BA47: =+生産管理!BA68 -> 0 | BB47: =+生産管理!BB68 -> 0 | BC47: =+生産管理!BC68 -> 0 | BD47: =+生産管理!BD68 -> 0 | BE47: =+生産管理!BE68 -> 0 | BF47: =+生産管理!BF68 -> 0 | BG47: =+生産管理!BG68 -> 0 | BH47: =+生産管理!BH68 -> 0 | BI47: =+生産管理!BI68 -> 0 | BJ47: =+生産管理!BJ68 -> 0 | BK47: =+生産管理!BL68 -> 0 | BL47: =+生産管理!BM68 -> 0 | BM47: =+生産管理!BN68 -> 0 | BN47: =+生産管理!BO68 -> 0 | BO47: =+生産管理!BP68 -> 0 | BP47: =+生産管理!BQ68 -> 0 | BQ47: =+生産管理!BR68 -> 0 | BR47: =+生産管理!BS68 -> 0 | BS47: =+生産管理!BT68 -> 460 | BT47: =+生産管理!BU68 -> 460 | BU47: =+生産管理!BV68 -> 0 | BV47: =+生産管理!BW68 -> 0 | BW47: =+生産管理!BX68 -> 0 | BX47: =+生産管理!BY68 -> 0 | BY47: =+生産管理!BZ68 -> 0 | BZ47: =+生産管理!CA68 -> 0 | CA47: =+生産管理!CB68 -> 0 | CB47: =+生産管理!CC68 -> 0 | CC47: =+生産管理!CD68 -> 0 | CD47: =+生産管理!CE68 -> 0 | CE47: =+生産管理!CF68 -> 0 | CF47: =+生産管理!CG68 -> 0 | CG47: =+生産管理!CH68 -> 0 | CH47: =+生産管理!CI68 -> 0 | CI47: =+生産管理!CJ68 -> 0 | CJ47: =+生産管理!CK68 -> 0 | CK47: =+生産管理!CL68 -> 0 | CL47: =+生産管理!CM68 -> 0 | CM47: =+生産管理!CN68 -> 0 | CN47: =+生産管理!CO68 -> 0 | CO47: =+生産管理!CP68 -> 0 | CP47: =+生産管理!CQ68 -> 0 | CQ47: =+生産管理!CS68 -> 0 | CR47: =+生産管理!CT68 -> 0 | CS47: =+生産管理!CU68 -> 0 | CT47: =+生産管理!CV68 -> 0 | CU47: =+生産管理!CW68 -> 0 | CV47: =+生産管理!CX68 -> 0 | CW47: =+生産管理!CY68 -> 0 | CX47: =+生産管理!CZ68 -> 0 | CY47: =+生産管理!DA68 -> 0 | CZ47: =+生産管理!DB68 -> 0 | DA47: =+生産管理!DC68 -> 0 | DB47: =+生産管理!DD68 -> 0 | DC47: =+生産管理!DE68 -> 0 | DD47: =+生産管理!DF68 -> 0 | DE47: =+生産管理!DG68 -> 0 | DF47: =+生産管理!DH68 -> 0 | DG47: =+生産管理!DI68 -> 0 | DH47: =+生産管理!DJ68 -> 0 | DI47: =+生産管理!DK68 -> 0 | DJ47: =+生産管理!DL68 -> 0 | DK47: =+生産管理!DM68 -> 0 | DL47: =+生産管理!DN68 -> 0 | DM47: =+生産管理!DO68 -> 0 | DN47: =+生産管理!DP68 -> 0 | DO47: =+生産管理!DQ68 -> 0 | DP47: =+生産管理!DR68 -> 0 | DQ47: =+生産管理!DS68 -> 0 | DR47: =+生産管理!DT68 -> 0 | DS47: =+生産管理!DU68 -> 0 | DT47: =+生産管理!DV68 -> 0 | DU47: =+生産管理!DW68 -> 0 | DV47: =+生産管理!DX68 -> 0 | DW47: =+生産管理!DY68 -> 0 | DX47: =+生産管理!DZ68 -> 0 | DY47: =+生産管理!EA68 -> 0 | DZ47: =+生産管理!EB68 -> 0 | EA47: =+生産管理!EC68 -> 0 | EB47: =+生産管理!ED68 -> 0 | EC47: =+生産管理!EE68 -> 0 | ED47: =+生産管理!EF68 -> 0 | EE47: =+生産管理!EG68 -> 0 | EF47: =+生産管理!EH68 -> 0 | EG47: =+生産管理!EI68 -> 0 | EH47: =+生産管理!EJ68 -> 0 | EI47: =+生産管理!EK68 -> 0 | EJ47: =+生産管理!EL68 -> 0 | EK47: =+生産管理!EM68 -> 0 | EL47: =+生産管理!EN68 -> 0 | EM47: =+生産管理!EO68 -> 0 | EN47: =+生産管理!EP68 -> 0 | EO47: =+生産管理!EQ68 -> 0 | EP47: =+生産管理!ER68 -> 0 | EQ47: =+生産管理!ES68 -> 0 | ER47: =+生産管理!ET68 -> 0 | ES47: =+生産管理!EU68 -> 0 | ET47: =+生産管理!EV68 -> 0 | EU47: =+生産管理!EW68 -> 0 | EV47: =+生産管理!EX68 -> 0 | EW47: =+生産管理!EY68 -> 0 | EX47: =+生産管理!EZ68 -> 0 | EY47: =+生産管理!FA68 -> 0 | EZ47: =+生産管理!FB68 -> 0 | FA47: =+生産管理!FC68 -> 0 | FB47: =+生産管理!FD68 -> 0 | FC47: =+生産管理!FE68 -> 0 | FD47: =+生産管理!FF68 -> 0 | FE47: =+生産管理!FG68 -> 0 | FF47: =+生産管理!FH68 -> 0 | FG47: =+生産管理!FI68 -> 0 | FH47: =+生産管理!FJ68 -> 0 | FI47: =+生産管理!FK68 -> 0 | FJ47: =+生産管理!FL68 -> 0 | FK47: =+生産管理!FM68 -> 0 | FL47: =+生産管理!FN68 -> 0 | FM47: =+生産管理!FO68 -> 0 | FN47: =+生産管理!FP68 -> 0 | FO47: =+生産管理!FQ68 -> 0 | FP47: =+生産管理!FR68 -> 0 | FQ47: =+生産管理!FS68 -> 0 | FR47: =+生産管理!FT68 -> 0 | FS47: =+生産管理!FU68 -> 0 | FT47: =+生産管理!FV68 -> 0 | FU47: =+生産管理!FW68 -> 0 | FV47: =+生産管理!FX68 -> 0 | FW47: =+生産管理!FY68 -> 0 | FX47: =+生産管理!FZ68 -> 0 | FY47: =+生産管理!GA68 -> 0 | FZ47: =+生産管理!GB68 -> 0 | GA47: =+生産管理!GC68 -> 0 | GB47: =+生産管理!GD68 -> 0 | GC47: =+生産管理!GE68 -> 0 | GD47: =+生産管理!GF68 -> 0 | GE47: =+生産管理!GG68 -> 0 | GF47: =+生産管理!GH68 -> 0 | GG47: =+生産管理!GI68 -> 0 | GH47: =+生産管理!GJ68 -> 0 | GI47: =+生産管理!GK68 -> 0 | GJ47: =+生産管理!GL68 -> 0 | GK47: =+生産管理!GM68 -> 0 | GL47: =+生産管理!GN68 -> 0 | GM47: =+生産管理!GO68 -> 0 | GN47: =+生産管理!GP68 -> 0 | GO47: =+生産管理!GQ68 -> 0 | GP47: =+生産管理!GR68 -> 0 | GQ47: =+生産管理!GS68 -> 0 | GR47: =+生産管理!GT68 -> 0 | GS47: =+生産管理!GU68 -> 0 | GT47: =+生産管理!GV68 -> 0 | GU47: =+生産管理!GW68 -> 0 | GV47: =+生産管理!GX68 -> 0 | GW47: =+生産管理!GY68 -> 0 | GX47: =+生産管理!GZ68 -> 0 | GY47: =+生産管理!HA68 -> 0 | GZ47: =+生産管理!HB68 -> 0 | HA47: =+生産管理!HC68 -> 0 | HB47: =+生産管理!HD68 -> 0 | HC47: =+生産管理!HE68 -> 0 | HD47: =+生産管理!HF68 -> 0 | HE47: =+生産管理!HG68 -> 0 | HF47: =+生産管理!HH68 -> 0 | HG47: =+生産管理!HI68 -> 0 | HH47: =+生産管理!HJ68 -> 0 | HI47: =+生産管理!HK68 -> 0 | HJ47: =+生産管理!HL68 -> 0 | HK47: =+生産管理!HM68 -> 0 | HL47: =+生産管理!HN68 -> 0 | HM47: =+生産管理!HO68 -> 0 | HN47: =+生産管理!HP68 -> 0 | HO47: =+生産管理!HQ68 -> 0 | HP47: =+生産管理!HR68 -> 0 | HQ47: =+生産管理!HS68 -> 0 | HR47: =+生産管理!HT68 -> 0 | HS47: =+生産管理!HU68 -> 0 | HT47: =+生産管理!HV68 -> 0 | HU47: =+生産管理!HW68 -> 0 | HV47: =+生産管理!HX68 -> 0 | HW47: =+生産管理!HY68 -> 0 | HX47: =+生産管理!HZ68 -> 0 | HY47: =+生産管理!IA68 -> 0 | HZ47: =+生産管理!IB68 -> 0 | IA47: =+生産管理!IC68 -> 0
A48: 20 | B48: MCA_L_CB | C48: 20 | D48: MCA_L_CB | F48: =N47 -> 638 | G48: 920 | H48: 0 | I48: 0 | J48: 0 | K48: 0 | L48: 0 | M48: 鋳造数 | N48: 758 | O48: 0 | P48: 0 | Q48: 0 | R48: 0 | S48: 0 | T48: 0 | AM48: 35 | AN48: 257 | AO48: 466
A49: 20 | B49: MCA_L_CB | C49: 20 | D49: MCA_L_CB | F49: =N47 -> 638 | G49: 920 | H49: 0 | I49: 0 | J49: 0 | K49: 0 | L49: 0 | M49: 捨吹①金具 | N49: 19 | O49: 0 | P49: 0 | Q49: 0 | R49: 0 | S49: 0 | T49: 0 | AM49: 4 | AN49: 9 | AO49: 6
A50: 20 | B50: MCA_L_CB | C50: 20 | D50: MCA_L_CB | F50: =N47 -> 638 | G50: 920 | H50: 0 | I50: 0 | J50: 0 | K50: 0 | L50: 0 | M50: 捨吹②金具 | N50: 32 | O50: 0 | P50: 0 | Q50: 0 | R50: 0 | S50: 0 | T50: 0 | AM50: 8 | AN50: 13 | AO50: 11
A51: 20 | B51: MCA_L_CB | C51: 20 | D51: MCA_L_CB | F51: =N47 -> 638 | G51: 920 | H51: 0 | I51: 0 | J51: 0 | K51: 0 | L51: 0 | M51: 廃却品 | N51: 69 | O51: 0 | P51: 0 | Q51: 0 | R51: 0 | S51: 0 | T51: 0 | AM51: 7 | AN51: 50 | AO51: 12
A52: 20 | B52: MCA_L_CB | C52: 20 | D52: MCA_L_CB | F52: =N47 -> 638 | G52: 920 | H52: 0 | I52: 0 | J52: 0 | K52: 0 | L52: 0 | M52: 良品 | N52: 638 | O52: 0 | P52: 0 | Q52: 0 | R52: 0 | S52: 0 | T52: 0 | V52: =SUM(V48-V49-V50-V51) -> 0 | W52: 0 | X52: 0 | Y52: 0 | Z52: 0 | AA52: 0 | AB52: 0 | AC52: 0 | AD52: 0 | AE52: 0 | AF52: 0 | AG52: 0 | AH52: 0 | AI52: 0 | AJ52: 0 | AK52: 0 | AL52: 0 | AM52: 16 | AN52: 185 | AO52: 437 | AP52: 0 | AQ52: 0 | AR52: 0 | AS52: 0 | AT52: 0 | AU52: 0 | AV52: 0 | AW52: 0 | AX52: 0 | AY52: 0 | AZ52: 0 | BA52: 0 | BB52: 0 | BC52: 0 | BD52: 0 | BE52: 0 | BF52: 0 | BG52: 0 | BH52: 0 | BI52: 0 | BJ52: 0 | BK52: 0 | BL52: 0 | BM52: 0 | BN52: 0 | BO52: 0 | BP52: 0 | BQ52: 0 | BR52: 0 | BS52: 0 | BT52: 0 | BU52: 0 | BV52: 0 | BW52: 0 | BX52: 0 | BY52: 0 | BZ52: 0 | CA52: 0 | CB52: 0 | CC52: 0 | CD52: 0 | CE52: 0 | CF52: 0 | CG52: 0 | CH52: =SUM(CH48-CH49-CH50-CH51) -> 0 | CI52: 0 | CJ52: 0 | CK52: 0 | CL52: 0 | CM52: 0 | CN52: 0 | CO52: 0 | CP52: 0 | CQ52: 0 | CR52: 0 | CS52: 0 | CT52: 0 | CU52: 0 | CV52: 0 | CW52: 0 | CX52: 0 | CY52: 0 | CZ52: 0 | DA52: 0 | DB52: 0 | DC52: 0 | DD52: 0 | DE52: 0 | DF52: 0 | DG52: 0 | DH52: 0 | DI52: 0 | DJ52: 0 | DK52: 0 | DL52: 0 | DM52: 0 | DN52: 0 | DO52: 0 | DP52: 0 | DQ52: 0 | DR52: 0 | DS52: 0 | DT52: 0 | DU52: 0 | DV52: 0 | DW52: 0 | DX52: 0 | DY52: 0 | DZ52: 0 | EA52: 0 | EB52: 0 | EC52: 0 | ED52: 0 | EE52: 0 | EF52: 0 | EG52: 0 | EH52: 0 | EI52: 0 | EJ52: 0 | EK52: 0 | EL52: 0 | EM52: 0 | EN52: 0 | EO52: 0 | EP52: 0 | EQ52: 0 | ER52: 0 | ES52: 0 | ET52: =SUM(ET48-ET49-ET50-ET51) -> 0 | EU52: 0 | EV52: 0 | EW52: 0 | EX52: 0 | EY52: 0 | EZ52: 0 | FA52: 0 | FB52: 0 | FC52: 0 | FD52: 0 | FE52: 0 | FF52: 0 | FG52: 0 | FH52: 0 | FI52: 0 | FJ52: 0 | FK52: 0 | FL52: 0 | FM52: 0 | FN52: 0 | FO52: 0 | FP52: 0 | FQ52: 0 | FR52: 0 | FS52: 0 | FT52: 0 | FU52: 0 | FV52: 0 | FW52: 0 | FX52: 0 | FY52: 0 | FZ52: 0 | GA52: 0 | GB52: 0 | GC52: 0 | GD52: 0 | GE52: 0 | GF52: 0 | GG52: 0 | GH52: 0 | GI52: 0 | GJ52: 0 | GK52: 0 | GL52: 0 | GM52: 0 | GN52: 0 | GO52: 0 | GP52: 0 | GQ52: 0 | GR52: 0 | GS52: 0 | GT52: 0 | GU52: 0 | GV52: 0 | GW52: 0 | GX52: 0 | GY52: 0 | GZ52: 0 | HA52: 0 | HB52: 0 | HC52: 0 | HD52: 0 | HE52: 0 | HF52: =SUM(HF48-HF49-HF50-HF51) -> 0 | HG52: 0 | HH52: 0 | HI52: 0 | HJ52: 0 | HK52: 0 | HL52: 0 | HM52: 0 | HN52: 0 | HO52: 0 | HP52: 0 | HQ52: 0 | HR52: 0 | HS52: 0 | HT52: 0 | HU52: 0 | HV52: 0 | HW52: 0 | HX52: 0 | HY52: 0 | HZ52: 0 | IA52: 0
C53: 20 | D53: MKT_CB MT | M53: 計画数 | N53: =SUM(V53:AY53) -> 0 | O53: =SUM(BA53:CD53) -> 0 | P53: 0 | Q53: =SUM(DJ53:EM53) -> 0 | R53: =SUM(EN53:FP53) -> 0 | S53: =SUM(FQ53:GU53) -> 0 | T53: =SUM(GV53:HY53) -> 0 | V53: =生産管理!V77 -> 0 | W53: =生産管理!W77 -> 0 | X53: =生産管理!X77 -> 0 | Y53: =生産管理!Y77 -> 0 | Z53: =生産管理!Z77 -> 0 | AA53: =生産管理!AA77 -> 0 | AB53: =生産管理!AB77 -> 0 | AC53: =生産管理!AC77 -> 0 | AD53: =生産管理!AD77 -> 0 | AE53: =生産管理!AE77 -> 0 | AF53: =生産管理!AF77 -> 0 | AG53: =生産管理!AG77 -> 0 | AH53: =生産管理!AH77 -> 0 | AI53: =生産管理!AI77 -> 0 | AJ53: =生産管理!AJ77 -> 0 | AK53: =生産管理!AK77 -> 0 | AL53: =生産管理!AL77 -> 0 | AM53: =生産管理!AM77 -> 0 | AN53: =生産管理!AN77 -> 0 | AO53: =生産管理!AO77 -> 0 | AP53: =生産管理!AP77 -> 0 | AQ53: =生産管理!AQ77 -> 0 | AR53: =生産管理!AR77 -> 0 | AS53: =生産管理!AS77 -> 0 | AT53: =生産管理!AT77 -> 0 | AU53: =生産管理!AU77 -> 0 | AV53: =生産管理!AV77 -> 0 | AW53: =生産管理!AW77 -> 0 | AX53: =生産管理!AX77 -> 0 | AY53: =生産管理!AY77 -> 0 | AZ53: =生産管理!AZ77 -> 0 | BA53: =生産管理!BA77 -> 0 | BB53: =生産管理!BB77 -> 0 | BC53: =生産管理!BC77 -> 0 | BD53: =生産管理!BD77 -> 0 | BE53: =生産管理!BE77 -> 0 | BF53: =生産管理!BF77 -> 0 | BG53: =生産管理!BG77 -> 0 | BH53: =生産管理!BH77 -> 0 | BI53: =生産管理!BI77 -> 0 | BJ53: =生産管理!BJ77 -> 0 | BK53: =生産管理!BL77 -> 0 | BL53: =生産管理!BM77 -> 0 | BM53: =生産管理!BN77 -> 0 | BN53: =生産管理!BO77 -> 0 | BO53: =生産管理!BP77 -> 0 | BP53: =生産管理!BQ77 -> 0 | BQ53: =生産管理!BR77 -> 0 | BR53: =生産管理!BS77 -> 0 | BS53: =生産管理!BT77 -> 0 | BT53: =生産管理!BU77 -> 0 | BU53: =生産管理!BV77 -> 0 | BV53: =生産管理!BW77 -> 0 | BW53: =生産管理!BX77 -> 0 | BX53: =生産管理!BY77 -> 0 | BY53: =生産管理!BZ77 -> 0 | BZ53: =生産管理!CA77 -> 0 | CA53: =生産管理!CB77 -> 0 | CB53: =生産管理!CC77 -> 0 | CC53: =生産管理!CD77 -> 0 | CD53: =生産管理!CE77 -> 0 | CE53: =生産管理!CF77 -> 0 | CF53: =生産管理!CG77 -> 0 | CG53: =生産管理!CH77 -> 0 | CH53: =生産管理!CI77 -> 0 | CI53: =生産管理!CJ77 -> 0 | CJ53: =生産管理!CK77 -> 0 | CK53: =生産管理!CL77 -> 0 | CL53: =生産管理!CM77 -> 0 | CM53: =生産管理!CN77 -> 0 | CN53: =生産管理!CO77 -> 0 | CO53: =生産管理!CP77 -> 0 | CP53: =生産管理!CQ77 -> 0 | CQ53: =生産管理!CS77 -> 0 | CR53: =生産管理!CT77 -> 0 | CS53: =生産管理!CU77 -> 0 | CT53: =生産管理!CV77 -> 0 | CU53: =生産管理!CW77 -> 0 | CV53: =生産管理!CX77 -> 0 | CW53: =生産管理!CY77 -> 0 | CX53: =生産管理!CZ77 -> 0 | CY53: =生産管理!DA77 -> 0 | CZ53: =生産管理!DB77 -> 0 | DA53: =生産管理!DC77 -> 0 | DB53: =生産管理!DD77 -> 0 | DC53: =生産管理!DE77 -> 0 | DD53: =生産管理!DF77 -> 0 | DE53: =生産管理!DG77 -> 0 | DF53: =生産管理!DH77 -> 0 | DG53: =生産管理!DI77 -> 0 | DH53: =生産管理!DJ77 -> 0 | DI53: =生産管理!DK77 -> 0 | DJ53: =生産管理!DL77 -> 0 | DK53: =生産管理!DM77 -> 0 | DL53: =生産管理!DN77 -> 0 | DM53: =生産管理!DO77 -> 0 | DN53: =生産管理!DP77 -> 0 | DO53: =生産管理!DQ77 -> 0 | DP53: =生産管理!DR77 -> 0 | DQ53: =生産管理!DS77 -> 0 | DR53: =生産管理!DT77 -> 0 | DS53: =生産管理!DU77 -> 0 | DT53: =生産管理!DV77 -> 0 | DU53: =生産管理!DW77 -> 0 | DV53: =生産管理!DX77 -> 0 | DW53: =生産管理!DY77 -> 0 | DX53: =生産管理!DZ77 -> 0 | DY53: =生産管理!EA77 -> 0 | DZ53: =生産管理!EB77 -> 0 | EA53: =生産管理!EC77 -> 0 | EB53: =生産管理!ED77 -> 0 | EC53: =生産管理!EE77 -> 0 | ED53: =生産管理!EF77 -> 0 | EE53: =生産管理!EG77 -> 0 | EF53: =生産管理!EH77 -> 0 | EG53: =生産管理!EI77 -> 0 | EH53: =生産管理!EJ77 -> 0 | EI53: =生産管理!EK77 -> 0 | EJ53: =生産管理!EL77 -> 0 | EK53: =生産管理!EM77 -> 0 | EL53: =生産管理!EN77 -> 0 | EM53: =生産管理!EO77 -> 0 | EN53: =生産管理!EP77 -> 0 | EO53: =生産管理!EQ77 -> 0 | EP53: =生産管理!ER77 -> 0 | EQ53: =生産管理!ES77 -> 0 | ER53: =生産管理!ET77 -> 0 | ES53: =生産管理!EU77 -> 0 | ET53: =生産管理!EV77 -> 0 | EU53: =生産管理!EW77 -> 0 | EV53: =生産管理!EX77 -> 0 | EW53: =生産管理!EY77 -> 0 | EX53: =生産管理!EZ77 -> 0 | EY53: =生産管理!FA77 -> 0 | EZ53: =生産管理!FB77 -> 0 | FA53: =生産管理!FC77 -> 0 | FB53: =生産管理!FD77 -> 0 | FC53: =生産管理!FE77 -> 0 | FD53: =生産管理!FF77 -> 0 | FE53: =生産管理!FG77 -> 0 | FF53: =生産管理!FH77 -> 0 | FG53: =生産管理!FI77 -> 0 | FH53: =生産管理!FJ77 -> 0 | FI53: =生産管理!FK77 -> 0 | FJ53: =生産管理!FL77 -> 0 | FK53: =生産管理!FM77 -> 0 | FL53: =生産管理!FN77 -> 0 | FM53: =生産管理!FO77 -> 0 | FN53: =生産管理!FP77 -> 0 | FO53: =生産管理!FQ77 -> 0 | FP53: =生産管理!FR77 -> 0 | FQ53: =生産管理!FS77 -> 0 | FR53: =生産管理!FT77 -> 0 | FS53: =生産管理!FU77 -> 0 | FT53: =生産管理!FV77 -> 0 | FU53: =生産管理!FW77 -> 0 | FV53: =生産管理!FX77 -> 0 | FW53: =生産管理!FY77 -> 0 | FX53: =生産管理!FZ77 -> 0 | FY53: =生産管理!GA77 -> 0 | FZ53: =生産管理!GB77 -> 0 | GA53: =生産管理!GC77 -> 0 | GB53: =生産管理!GD77 -> 0 | GC53: =生産管理!GE77 -> 0 | GD53: =生産管理!GF77 -> 0 | GE53: =生産管理!GG77 -> 0 | GF53: =生産管理!GH77 -> 0 | GG53: =生産管理!GI77 -> 0 | GH53: =生産管理!GJ77 -> 0 | GI53: =生産管理!GK77 -> 0 | GJ53: =生産管理!GL77 -> 0 | GK53: =生産管理!GM77 -> 0 | GL53: =生産管理!GN77 -> 0 | GM53: =生産管理!GO77 -> 0 | GN53: =生産管理!GP77 -> 0 | GO53: =生産管理!GQ77 -> 0 | GP53: =生産管理!GR77 -> 0 | GQ53: =生産管理!GS77 -> 0 | GR53: =生産管理!GT77 -> 0 | GS53: =生産管理!GU77 -> 0 | GT53: =生産管理!GV77 -> 0 | GU53: =生産管理!GW77 -> 0 | GV53: =生産管理!GX77 -> 0 | GW53: =生産管理!GY77 -> 0 | GX53: =生産管理!GZ77 -> 0 | GY53: =生産管理!HA77 -> 0 | GZ53: =生産管理!HB77 -> 0 | HA53: =生産管理!HC77 -> 0 | HB53: =生産管理!HD77 -> 0 | HC53: =生産管理!HE77 -> 0 | HD53: =生産管理!HF77 -> 0 | HE53: =生産管理!HG77 -> 0 | HF53: =生産管理!HH77 -> 0 | HG53: =生産管理!HI77 -> 0 | HH53: =生産管理!HJ77 -> 0 | HI53: =生産管理!HK77 -> 0 | HJ53: =生産管理!HL77 -> 0 | HK53: =生産管理!HM77 -> 0 | HL53: =生産管理!HN77 -> 0 | HM53: =生産管理!HO77 -> 0 | HN53: =生産管理!HP77 -> 0 | HO53: =生産管理!HQ77 -> 0 | HP53: =生産管理!HR77 -> 0 | HQ53: =生産管理!HS77 -> 0 | HR53: =生産管理!HT77 -> 0 | HS53: =生産管理!HU77 -> 0 | HT53: =生産管理!HV77 -> 0 | HU53: =生産管理!HW77 -> 0 | HV53: =生産管理!HX77 -> 0 | HW53: =生産管理!HY77 -> 0 | HX53: =生産管理!HZ77 -> 0 | HY53: =生産管理!IA77 -> 0 | HZ53: =生産管理!IB77 -> 0 | IA53: =生産管理!IC77 -> 0
C54: 20 | D54: MGS_CB | M54: 鋳造数 | N54: 0 | O54: 0 | P54: 0 | Q54: 0 | R54: 0 | S54: 0 | T54: 0
C55: 20 | D55: MGS_CB | M55: 捨吹①金具 | N55: 0 | O55: 0 | P55: 0 | Q55: 0 | R55: 0 | S55: 0 | T55: 0
C56: 20 | D56: MGS_CB | M56: 捨吹②金具 | N56: 0 | O56: 0 | P56: 0 | Q56: 0 | R56: 0 | S56: 0 | T56: 0
C57: 20 | D57: MGS_CB | M57: 廃却品 | N57: 0 | O57: 0 | P57: 0 | Q57: 0 | R57: 0 | S57: 0 | T57: 0
C58: 20 | D58: MGS_CB | M58: 良品 | N58: 0 | O58: 0 | P58: 0 | Q58: 0 | R58: 0 | S58: 0 | T58: 0 | V58: =SUM(V54-V55-V56-V57) -> 0 | W58: 0 | X58: 0 | Y58: 0 | Z58: 0 | AA58: 0 | AB58: 0 | AC58: 0 | AD58: 0 | AE58: 0 | AF58: 0 | AG58: 0 | AH58: 0 | AI58: 0 | AJ58: 0 | AK58: 0 | AL58: 0 | AM58: 0 | AN58: 0 | AO58: 0 | AP58: 0 | AQ58: 0 | AR58: 0 | AS58: 0 | AT58: 0 | AU58: 0 | AV58: 0 | AW58: 0 | AX58: 0 | AY58: 0 | AZ58: 0 | BA58: 0 | BB58: 0 | BC58: 0 | BD58: 0 | BE58: 0 | BF58: 0 | BG58: 0 | BH58: 0 | BI58: 0 | BJ58: 0 | BK58: 0 | BL58: 0 | BM58: 0 | BN58: 0 | BO58: 0 | BP58: 0 | BQ58: 0 | BR58: 0 | BS58: 0 | BT58: 0 | BU58: 0 | BV58: 0 | BW58: 0 | BX58: 0 | BY58: 0 | BZ58: 0 | CA58: 0 | CB58: 0 | CC58: 0 | CD58: 0 | CE58: 0 | CF58: 0 | CG58: 0 | CH58: =SUM(CH54-CH55-CH56-CH57) -> 0 | CI58: 0 | CJ58: 0 | CK58: 0 | CL58: 0 | CM58: 0 | CN58: 0 | CO58: 0 | CP58: 0 | CQ58: 0 | CR58: 0 | CS58: 0 | CT58: 0 | CU58: 0 | CV58: 0 | CW58: 0 | CX58: 0 | CY58: 0 | CZ58: 0 | DA58: 0 | DB58: 0 | DC58: 0 | DD58: 0 | DE58: 0 | DF58: 0 | DG58: 0 | DH58: 0 | DI58: 0 | DJ58: 0 | DK58: 0 | DL58: 0 | DM58: 0 | DN58: 0 | DO58: 0 | DP58: 0 | DQ58: 0 | DR58: 0 | DS58: 0 | DT58: 0 | DU58: 0 | DV58: 0 | DW58: 0 | DX58: 0 | DY58: 0 | DZ58: 0 | EA58: 0 | EB58: 0 | EC58: 0 | ED58: 0 | EE58: 0 | EF58: 0 | EG58: 0 | EH58: 0 | EI58: 0 | EJ58: 0 | EK58: 0 | EL58: 0 | EM58: 0 | EN58: 0 | EO58: 0 | EP58: 0 | EQ58: 0 | ER58: 0 | ES58: 0 | ET58: =SUM(ET54-ET55-ET56-ET57) -> 0 | EU58: 0 | EV58: 0 | EW58: 0 | EX58: 0 | EY58: 0 | EZ58: 0 | FA58: 0 | FB58: 0 | FC58: 0 | FD58: 0 | FE58: 0 | FF58: 0 | FG58: 0 | FH58: 0 | FI58: 0 | FJ58: 0 | FK58: 0 | FL58: 0 | FM58: 0 | FN58: 0 | FO58: 0 | FP58: 0 | FQ58: 0 | FR58: 0 | FS58: 0 | FT58: 0 | FU58: 0 | FV58: 0 | FW58: 0 | FX58: 0 | FY58: 0 | FZ58: 0 | GA58: 0 | GB58: 0 | GC58: 0 | GD58: 0 | GE58: 0 | GF58: 0 | GG58: 0 | GH58: 0 | GI58: 0 | GJ58: 0 | GK58: 0 | GL58: 0 | GM58: 0 | GN58: 0 | GO58: 0 | GP58: 0 | GQ58: 0 | GR58: 0 | GS58: 0 | GT58: 0 | GU58: 0 | GV58: 0 | GW58: 0 | GX58: 0 | GY58: 0 | GZ58: 0 | HA58: 0 | HB58: 0 | HC58: 0 | HD58: 0 | HE58: 0 | HF58: =SUM(HF54-HF55-HF56-HF57) -> 0 | HG58: 0 | HH58: 0 | HI58: 0 | HJ58: 0 | HK58: 0 | HL58: 0 | HM58: 0 | HN58: 0 | HO58: 0 | HP58: 0 | HQ58: 0 | HR58: 0 | HS58: 0 | HT58: 0 | HU58: 0 | HV58: 0 | HW58: 0 | HX58: 0 | HY58: 0 | HZ58: 0 | IA58: 0
A59: 20 | B59: MGS_CB | C59: 20 | D59: MKT_CB DCT | F59: =N59 -> 0 | G59: 4600 | H59: 0 | I59: 0 | J59: 0 | K59: 0 | L59: 0 | M59: 計画数 | N59: 0 | O59: 4600 | P59: 0 | Q59: 0 | R59: 0 | S59: 0 | T59: 0 | V59: =+生産管理!V80 -> 0 | W59: =+生産管理!W80 -> 0 | X59: =+生産管理!X80 -> 0 | Y59: =+生産管理!Y80 -> 0 | Z59: =+生産管理!Z80 -> 0 | AA59: =+生産管理!AA80 -> 0 | AB59: =+生産管理!AB80 -> 0 | AC59: =+生産管理!AC80 -> 0 | AD59: =+生産管理!AD80 -> 0 | AE59: =+生産管理!AE80 -> 0 | AF59: =+生産管理!AF80 -> 0 | AG59: =+生産管理!AG80 -> 0 | AH59: =+生産管理!AH80 -> 0 | AI59: =+生産管理!AI80 -> 0 | AJ59: =+生産管理!AJ80 -> 0 | AK59: =+生産管理!AK80 -> 0 | AL59: =+生産管理!AL80 -> 0 | AM59: =+生産管理!AM80 -> 0 | AN59: =+生産管理!AN80 -> 0 | AO59: =+生産管理!AO80 -> 0 | AP59: =+生産管理!AP80 -> 0 | AQ59: =+生産管理!AQ80 -> 0 | AR59: =+生産管理!AR80 -> 0 | AS59: =+生産管理!AS80 -> 0 | AT59: =+生産管理!AT80 -> 0 | AU59: =+生産管理!AU80 -> 0 | AV59: =+生産管理!AV80 -> 0 | AW59: =+生産管理!AW80 -> 0 | AX59: =+生産管理!AX80 -> 0 | AY59: =+生産管理!AY80 -> 0 | AZ59: =+生産管理!AZ80 -> 0 | BA59: =+生産管理!BA80 -> 0 | BB59: =+生産管理!BB80 -> 0 | BC59: =+生産管理!BC80 -> 0 | BD59: =+生産管理!BD80 -> 0 | BE59: =+生産管理!BE80 -> 0 | BF59: =+生産管理!BF80 -> 460 | BG59: =+生産管理!BG80 -> 460 | BH59: =+生産管理!BH80 -> 460 | BI59: =+生産管理!BI80 -> 460 | BJ59: =+生産管理!BJ80 -> 460 | BK59: =+生産管理!BL80 -> 0 | BL59: =+生産管理!BM80 -> 0 | BM59: =+生産管理!BN80 -> 0 | BN59: =+生産管理!BO80 -> 0 | BO59: =+生産管理!BP80 -> 0 | BP59: =+生産管理!BQ80 -> 0 | BQ59: =+生産管理!BR80 -> 0 | BR59: =+生産管理!BS80 -> 0 | BS59: =+生産管理!BT80 -> 0 | BT59: =+生産管理!BU80 -> 0 | BU59: =+生産管理!BV80 -> 0 | BV59: =+生産管理!BW80 -> 0 | BW59: =+生産管理!BX80 -> 0 | BX59: =+生産管理!BY80 -> 460 | BY59: =+生産管理!BZ80 -> 460 | BZ59: =+生産管理!CA80 -> 460 | CA59: =+生産管理!CB80 -> 460 | CB59: =+生産管理!CC80 -> 460 | CC59: =+生産管理!CD80 -> 0 | CD59: =+生産管理!CE80 -> 0 | CE59: =+生産管理!CF80 -> 0 | CF59: =+生産管理!CG80 -> 0 | CG59: =+生産管理!CH80 -> 0 | CH59: =+生産管理!CI80 -> 0 | CI59: =+生産管理!CJ80 -> 0 | CJ59: =+生産管理!CK80 -> 0 | CK59: =+生産管理!CL80 -> 0 | CL59: =+生産管理!CM80 -> 0 | CM59: =+生産管理!CN80 -> 0 | CN59: =+生産管理!CO80 -> 0 | CO59: =+生産管理!CP80 -> 0 | CP59: =+生産管理!CQ80 -> 0 | CQ59: =+生産管理!CS80 -> 0 | CR59: =+生産管理!CT80 -> 0 | CS59: =+生産管理!CU80 -> 0 | CT59: =+生産管理!CV80 -> 0 | CU59: =+生産管理!CW80 -> 0 | CV59: =+生産管理!CX80 -> 0 | CW59: =+生産管理!CY80 -> 0 | CX59: =+生産管理!CZ80 -> 0 | CY59: =+生産管理!DA80 -> 0 | CZ59: =+生産管理!DB80 -> 0 | DA59: =+生産管理!DC80 -> 0 | DB59: =+生産管理!DD80 -> 0 | DC59: =+生産管理!DE80 -> 0 | DD59: =+生産管理!DF80 -> 0 | DE59: =+生産管理!DG80 -> 0 | DF59: =+生産管理!DH80 -> 0 | DG59: =+生産管理!DI80 -> 0 | DH59: =+生産管理!DJ80 -> 0 | DI59: =+生産管理!DK80 -> 0 | DJ59: =+生産管理!DL80 -> 0 | DK59: =+生産管理!DM80 -> 0 | DL59: =+生産管理!DN80 -> 0 | DM59: =+生産管理!DO80 -> 0 | DN59: =+生産管理!DP80 -> 0 | DO59: =+生産管理!DQ80 -> 0 | DP59: =+生産管理!DR80 -> 0 | DQ59: =+生産管理!DS80 -> 0 | DR59: =+生産管理!DT80 -> 0 | DS59: =+生産管理!DU80 -> 0 | DT59: =+生産管理!DV80 -> 0 | DU59: =+生産管理!DW80 -> 0 | DV59: =+生産管理!DX80 -> 0 | DW59: =+生産管理!DY80 -> 0 | DX59: =+生産管理!DZ80 -> 0 | DY59: =+生産管理!EA80 -> 0 | DZ59: =+生産管理!EB80 -> 0 | EA59: =+生産管理!EC80 -> 0 | EB59: =+生産管理!ED80 -> 0 | EC59: =+生産管理!EE80 -> 0 | ED59: =+生産管理!EF80 -> 0 | EE59: =+生産管理!EG80 -> 0 | EF59: =+生産管理!EH80 -> 0 | EG59: =+生産管理!EI80 -> 0 | EH59: =+生産管理!EJ80 -> 0 | EI59: =+生産管理!EK80 -> 0 | EJ59: =+生産管理!EL80 -> 0 | EK59: =+生産管理!EM80 -> 0 | EL59: =+生産管理!EN80 -> 0 | EM59: =+生産管理!EO80 -> 0 | EN59: =+生産管理!EP80 -> 0 | EO59: =+生産管理!EQ80 -> 0 | EP59: =+生産管理!ER80 -> 0 | EQ59: =+生産管理!ES80 -> 0 | ER59: =+生産管理!ET80 -> 0 | ES59: =+生産管理!EU80 -> 0 | ET59: =+生産管理!EV80 -> 0 | EU59: =+生産管理!EW80 -> 0 | EV59: =+生産管理!EX80 -> 0 | EW59: =+生産管理!EY80 -> 0 | EX59: =+生産管理!EZ80 -> 0 | EY59: =+生産管理!FA80 -> 0 | EZ59: =+生産管理!FB80 -> 0 | FA59: =+生産管理!FC80 -> 0 | FB59: =+生産管理!FD80 -> 0 | FC59: =+生産管理!FE80 -> 0 | FD59: =+生産管理!FF80 -> 0 | FE59: =+生産管理!FG80 -> 0 | FF59: =+生産管理!FH80 -> 0 | FG59: =+生産管理!FI80 -> 0 | FH59: =+生産管理!FJ80 -> 0 | FI59: =+生産管理!FK80 -> 0 | FJ59: =+生産管理!FL80 -> 0 | FK59: =+生産管理!FM80 -> 0 | FL59: =+生産管理!FN80 -> 0 | FM59: =+生産管理!FO80 -> 0 | FN59: =+生産管理!FP80 -> 0 | FO59: =+生産管理!FQ80 -> 0 | FP59: =+生産管理!FR80 -> 0 | FQ59: =+生産管理!FS80 -> 0 | FR59: =+生産管理!FT80 -> 0 | FS59: =+生産管理!FU80 -> 0 | FT59: =+生産管理!FV80 -> 0 | FU59: =+生産管理!FW80 -> 0 | FV59: =+生産管理!FX80 -> 0 | FW59: =+生産管理!FY80 -> 0 | FX59: =+生産管理!FZ80 -> 0 | FY59: =+生産管理!GA80 -> 0 | FZ59: =+生産管理!GB80 -> 0 | GA59: =+生産管理!GC80 -> 0 | GB59: =+生産管理!GD80 -> 0 | GC59: =+生産管理!GE80 -> 0 | GD59: =+生産管理!GF80 -> 0 | GE59: =+生産管理!GG80 -> 0 | GF59: =+生産管理!GH80 -> 0 | GG59: =+生産管理!GI80 -> 0 | GH59: =+生産管理!GJ80 -> 0 | GI59: =+生産管理!GK80 -> 0 | GJ59: =+生産管理!GL80 -> 0 | GK59: =+生産管理!GM80 -> 0 | GL59: =+生産管理!GN80 -> 0 | GM59: =+生産管理!GO80 -> 0 | GN59: =+生産管理!GP80 -> 0 | GO59: =+生産管理!GQ80 -> 0 | GP59: =+生産管理!GR80 -> 0 | GQ59: =+生産管理!GS80 -> 0 | GR59: =+生産管理!GT80 -> 0 | GS59: =+生産管理!GU80 -> 0 | GT59: =+生産管理!GV80 -> 0 | GU59: =+生産管理!GW80 -> 0 | GV59: =+生産管理!GX80 -> 0 | GW59: =+生産管理!GY80 -> 0 | GX59: =+生産管理!GZ80 -> 0 | GY59: =+生産管理!HA80 -> 0 | GZ59: =+生産管理!HB80 -> 0 | HA59: =+生産管理!HC80 -> 0 | HB59: =+生産管理!HD80 -> 0 | HC59: =+生産管理!HE80 -> 0 | HD59: =+生産管理!HF80 -> 0 | HE59: =+生産管理!HG80 -> 0 | HF59: =+生産管理!HH80 -> 0 | HG59: =+生産管理!HI80 -> 0 | HH59: =+生産管理!HJ80 -> 0 | HI59: =+生産管理!HK80 -> 0 | HJ59: =+生産管理!HL80 -> 0 | HK59: =+生産管理!HM80 -> 0 | HL59: =+生産管理!HN80 -> 0 | HM59: =+生産管理!HO80 -> 0 | HN59: =+生産管理!HP80 -> 0 | HO59: =+生産管理!HQ80 -> 0 | HP59: =+生産管理!HR80 -> 0 | HQ59: =+生産管理!HS80 -> 0 | HR59: =+生産管理!HT80 -> 0 | HS59: =+生産管理!HU80 -> 0 | HT59: =+生産管理!HV80 -> 0 | HU59: =+生産管理!HW80 -> 0 | HV59: =+生産管理!HX80 -> 0 | HW59: =+生産管理!HY80 -> 0 | HX59: =+生産管理!HZ80 -> 0 | HY59: =+生産管理!IA80 -> 0 | HZ59: =+生産管理!IB80 -> 0 | IA59: =+生産管理!IC80 -> 0
A60: 20 | B60: MGS_CB | C60: 20 | D60: MGS_CB | F60: =N59 -> 0 | G60: 4600 | H60: 0 | I60: 0 | J60: 0 | K60: 0 | L60: 0 | M60: 鋳造数 | N60: 0 | O60: 378 | P60: 0 | Q60: 0 | R60: 0 | S60: 0 | T60: 0 | BF60: 378
A61: 20 | B61: MGS_CB | C61: 20 | D61: MGS_CB | F61: =N59 -> 0 | G61: 4600 | H61: 0 | I61: 0 | J61: 0 | K61: 0 | L61: 0 | M61: 捨吹①金具 | N61: 0 | O61: 6 | P61: 0 | Q61: 0 | R61: 0 | S61: 0 | T61: 0 | BF61: 6
A62: 20 | B62: MGS_CB | C62: 20 | D62: MGS_CB | F62: =N59 -> 0 | G62: 4600 | H62: 0 | I62: 0 | J62: 0 | K62: 0 | L62: 0 | M62: 捨吹②金具 | N62: 0 | O62: 4 | P62: 0 | Q62: 0 | R62: 0 | S62: 0 | T62: 0 | BF62: 4
A63: 20 | B63: MGS_CB | C63: 20 | D63: MGS_CB | F63: =N59 -> 0 | G63: 4600 | H63: 0 | I63: 0 | J63: 0 | K63: 0 | L63: 0 | M63: 廃却品 | N63: 0 | O63: 13 | P63: 0 | Q63: 0 | R63: 0 | S63: 0 | T63: 0 | BF63: 13
A64: 20 | B64: MGS_CB | C64: 20 | D64: MGS_CB | F64: =N59 -> 0 | G64: 4600 | H64: 0 | I64: 0 | J64: 0 | K64: 0 | L64: 0 | M64: 良品 | N64: 0 | O64: 355 | P64: 0 | Q64: 0 | R64: 0 | S64: 0 | T64: 0 | V64: =SUM(V60-V61-V62-V63) -> 0 | W64: 0 | X64: 0 | Y64: 0 | Z64: 0 | AA64: 0 | AB64: 0 | AC64: 0 | AD64: 0 | AE64: 0 | AF64: 0 | AG64: 0 | AH64: 0 | AI64: 0 | AJ64: 0 | AK64: 0 | AL64: 0 | AM64: 0 | AN64: 0 | AO64: 0 | AP64: 0 | AQ64: 0 | AR64: 0 | AS64: 0 | AT64: 0 | AU64: 0 | AV64: 0 | AW64: 0 | AX64: 0 | AY64: 0 | AZ64: 0 | BA64: 0 | BB64: 0 | BC64: 0 | BD64: 0 | BE64: 0 | BF64: 355 | BG64: 0 | BH64: 0 | BI64: 0 | BJ64: 0 | BK64: 0 | BL64: 0 | BM64: 0 | BN64: 0 | BO64: 0 | BP64: 0 | BQ64: 0 | BR64: 0 | BS64: 0 | BT64: 0 | BU64: 0 | BV64: 0 | BW64: 0 | BX64: 0 | BY64: 0 | BZ64: 0 | CA64: 0 | CB64: 0 | CC64: 0 | CD64: 0 | CE64: 0 | CF64: 0 | CG64: 0 | CH64: =SUM(CH60-CH61-CH62-CH63) -> 0 | CI64: 0 | CJ64: 0 | CK64: 0 | CL64: 0 | CM64: 0 | CN64: 0 | CO64: 0 | CP64: 0 | CQ64: 0 | CR64: 0 | CS64: 0 | CT64: 0 | CU64: 0 | CV64: 0 | CW64: 0 | CX64: 0 | CY64: 0 | CZ64: 0 | DA64: 0 | DB64: 0 | DC64: 0 | DD64: 0 | DE64: 0 | DF64: 0 | DG64: 0 | DH64: 0 | DI64: 0 | DJ64: 0 | DK64: 0 | DL64: 0 | DM64: 0 | DN64: 0 | DO64: 0 | DP64: 0 | DQ64: 0 | DR64: 0 | DS64: 0 | DT64: 0 | DU64: 0 | DV64: 0 | DW64: 0 | DX64: 0 | DY64: 0 | DZ64: 0 | EA64: 0 | EB64: 0 | EC64: 0 | ED64: 0 | EE64: 0 | EF64: 0 | EG64: 0 | EH64: 0 | EI64: 0 | EJ64: 0 | EK64: 0 | EL64: 0 | EM64: 0 | EN64: 0 | EO64: 0 | EP64: 0 | EQ64: 0 | ER64: 0 | ES64: 0 | ET64: =SUM(ET60-ET61-ET62-ET63) -> 0 | EU64: 0 | EV64: 0 | EW64: 0 | EX64: 0 | EY64: 0 | EZ64: 0 | FA64: 0 | FB64: 0 | FC64: 0 | FD64: 0 | FE64: 0 | FF64: 0 | FG64: 0 | FH64: 0 | FI64: 0 | FJ64: 0 | FK64: 0 | FL64: 0 | FM64: 0 | FN64: 0 | FO64: 0 | FP64: 0 | FQ64: 0 | FR64: 0 | FS64: 0 | FT64: 0 | FU64: 0 | FV64: 0 | FW64: 0 | FX64: 0 | FY64: 0 | FZ64: 0 | GA64: 0 | GB64: 0 | GC64: 0 | GD64: 0 | GE64: 0 | GF64: 0 | GG64: 0 | GH64: 0 | GI64: 0 | GJ64: 0 | GK64: 0 | GL64: 0 | GM64: 0 | GN64: 0 | GO64: 0 | GP64: 0 | GQ64: 0 | GR64: 0 | GS64: 0 | GT64: 0 | GU64: 0 | GV64: 0 | GW64: 0 | GX64: 0 | GY64: 0 | GZ64: 0 | HA64: 0 | HB64: 0 | HC64: 0 | HD64: 0 | HE64: 0 | HF64: =SUM(HF60-HF61-HF62-HF63) -> 0 | HG64: 0 | HH64: 0 | HI64: 0 | HJ64: 0 | HK64: 0 | HL64: 0 | HM64: 0 | HN64: 0 | HO64: 0 | HP64: 0 | HQ64: 0 | HR64: 0 | HS64: 0 | HT64: 0 | HU64: 0 | HV64: 0 | HW64: 0 | HX64: 0 | HY64: 0 | HZ64: 0 | IA64: 0
A65: 20 | B65: MGE_CB | C65: 20 | D65: ZVL_MC | F65: =N65 -> 1163 | G65: 0 | H65: 0 | I65: 0 | J65: 0 | K65: 0 | L65: 0 | M65: 計画数 | N65: 1163 | O65: 0 | P65: 0 | Q65: 0 | R65: 0 | S65: 0 | T65: 0 | V65: =+生産管理!V83 -> 0 | W65: =+生産管理!W83 -> 0 | X65: =+生産管理!X83 -> 0 | Y65: =+生産管理!Y83 -> 0 | Z65: =+生産管理!Z83 -> 0 | AA65: =+生産管理!AA83 -> 166 | AB65: =+生産管理!AB83 -> 250 | AC65: =+生産管理!AC83 -> 377 | AD65: =+生産管理!AD83 -> 0 | AE65: =+生産管理!AE83 -> 0 | AF65: =+生産管理!AF83 -> 0 | AG65: =+生産管理!AG83 -> 0 | AH65: =+生産管理!AH83 -> 0 | AI65: =+生産管理!AI83 -> 0 | AJ65: =+生産管理!AJ83 -> 0 | AK65: =+生産管理!AK83 -> 0 | AL65: =+生産管理!AL83 -> 0 | AM65: =+生産管理!AM83 -> 0 | AN65: =+生産管理!AN83 -> 0 | AO65: =+生産管理!AO83 -> 0 | AP65: =+生産管理!AP83 -> 0 | AQ65: =+生産管理!AQ83 -> 0 | AR65: =+生産管理!AR83 -> 0 | AS65: =+生産管理!AS83 -> 0 | AT65: =+生産管理!AT83 -> 0 | AU65: =+生産管理!AU83 -> 0 | AV65: =+生産管理!AV83 -> 70 | AW65: =+生産管理!AW83 -> 300 | AX65: =+生産管理!AX83 -> 0 | AY65: =+生産管理!AY83 -> 0 | AZ65: =+生産管理!AZ83 -> 0 | BA65: =+生産管理!BA83 -> 0 | BB65: =+生産管理!BB83 -> 0 | BC65: =+生産管理!BC83 -> 0 | BD65: =+生産管理!BD83 -> 0 | BE65: =+生産管理!BE83 -> 0 | BF65: =+生産管理!BF83 -> 0 | BG65: =+生産管理!BG83 -> 0 | BH65: =+生産管理!BH83 -> 0 | BI65: =+生産管理!BI83 -> 0 | BJ65: =+生産管理!BJ83 -> 0 | BK65: =+生産管理!BL83 -> 0 | BL65: =+生産管理!BM83 -> 0 | BM65: =+生産管理!BN83 -> 0 | BN65: =+生産管理!BO83 -> 0 | BO65: =+生産管理!BP83 -> 0 | BP65: =+生産管理!BQ83 -> 0 | BQ65: =+生産管理!BR83 -> 0 | BR65: =+生産管理!BS83 -> 0 | BS65: =+生産管理!BT83 -> 0 | BT65: =+生産管理!BU83 -> 0 | BU65: =+生産管理!BV83 -> 0 | BV65: =+生産管理!BW83 -> 0 | BW65: =+生産管理!BX83 -> 0 | BX65: =+生産管理!BY83 -> 0 | BY65: =+生産管理!BZ83 -> 0 | BZ65: =+生産管理!CA83 -> 0 | CA65: =+生産管理!CB83 -> 0 | CB65: =+生産管理!CC83 -> 0 | CC65: =+生産管理!CD83 -> 0 | CD65: =+生産管理!CE83 -> 0 | CE65: =+生産管理!CF83 -> 0 | CF65: =+生産管理!CG83 -> 0 | CG65: =+生産管理!CH83 -> 0 | CH65: =+生産管理!CI83 -> 0 | CI65: =+生産管理!CJ83 -> 0 | CJ65: =+生産管理!CK83 -> 0 | CK65: =+生産管理!CL83 -> 0 | CL65: =+生産管理!CM83 -> 0 | CM65: =+生産管理!CN83 -> 0 | CN65: =+生産管理!CO83 -> 0 | CO65: =+生産管理!CP83 -> 0 | CP65: =+生産管理!CQ83 -> 0 | CQ65: =+生産管理!CS83 -> 0 | CR65: =+生産管理!CT83 -> 0 | CS65: =+生産管理!CU83 -> 0 | CT65: =+生産管理!CV83 -> 0 | CU65: =+生産管理!CW83 -> 0 | CV65: =+生産管理!CX83 -> 0 | CW65: =+生産管理!CY83 -> 0 | CX65: =+生産管理!CZ83 -> 0 | CY65: =+生産管理!DA83 -> 0 | CZ65: =+生産管理!DB83 -> 0 | DA65: =+生産管理!DC83 -> 0 | DB65: =+生産管理!DD83 -> 0 | DC65: =+生産管理!DE83 -> 0 | DD65: =+生産管理!DF83 -> 0 | DE65: =+生産管理!DG83 -> 0 | DF65: =+生産管理!DH83 -> 0 | DG65: =+生産管理!DI83 -> 0 | DH65: =+生産管理!DJ83 -> 0 | DI65: =+生産管理!DK83 -> 0 | DJ65: =+生産管理!DL83 -> 0 | DK65: =+生産管理!DM83 -> 0 | DL65: =+生産管理!DN83 -> 0 | DM65: =+生産管理!DO83 -> 0 | DN65: =+生産管理!DP83 -> 0 | DO65: =+生産管理!DQ83 -> 0 | DP65: =+生産管理!DR83 -> 0 | DQ65: =+生産管理!DS83 -> 0 | DR65: =+生産管理!DT83 -> 0 | DS65: =+生産管理!DU83 -> 0 | DT65: =+生産管理!DV83 -> 0 | DU65: =+生産管理!DW83 -> 0 | DV65: =+生産管理!DX83 -> 0 | DW65: =+生産管理!DY83 -> 0 | DX65: =+生産管理!DZ83 -> 0 | DY65: =+生産管理!EA83 -> 0 | DZ65: =+生産管理!EB83 -> 0 | EA65: =+生産管理!EC83 -> 0 | EB65: =+生産管理!ED83 -> 0 | EC65: =+生産管理!EE83 -> 0 | ED65: =+生産管理!EF83 -> 0 | EE65: =+生産管理!EG83 -> 0 | EF65: =+生産管理!EH83 -> 0 | EG65: =+生産管理!EI83 -> 0 | EH65: =+生産管理!EJ83 -> 0 | EI65: =+生産管理!EK83 -> 0 | EJ65: =+生産管理!EL83 -> 0 | EK65: =+生産管理!EM83 -> 0 | EL65: =+生産管理!EN83 -> 0 | EM65: =+生産管理!EO83 -> 0 | EN65: =+生産管理!EP83 -> 0 | EO65: =+生産管理!EQ83 -> 0 | EP65: =+生産管理!ER83 -> 0 | EQ65: =+生産管理!ES83 -> 0 | ER65: =+生産管理!ET83 -> 0 | ES65: =+生産管理!EU83 -> 0 | ET65: =+生産管理!EV83 -> 0 | EU65: =+生産管理!EW83 -> 0 | EV65: =+生産管理!EX83 -> 0 | EW65: =+生産管理!EY83 -> 0 | EX65: =+生産管理!EZ83 -> 0 | EY65: =+生産管理!FA83 -> 0 | EZ65: =+生産管理!FB83 -> 0 | FA65: =+生産管理!FC83 -> 0 | FB65: =+生産管理!FD83 -> 0 | FC65: =+生産管理!FE83 -> 0 | FD65: =+生産管理!FF83 -> 0 | FE65: =+生産管理!FG83 -> 0 | FF65: =+生産管理!FH83 -> 0 | FG65: =+生産管理!FI83 -> 0 | FH65: =+生産管理!FJ83 -> 0 | FI65: =+生産管理!FK83 -> 0 | FJ65: =+生産管理!FL83 -> 0 | FK65: =+生産管理!FM83 -> 0 | FL65: =+生産管理!FN83 -> 0 | FM65: =+生産管理!FO83 -> 0 | FN65: =+生産管理!FP83 -> 0 | FO65: =+生産管理!FQ83 -> 0 | FP65: =+生産管理!FR83 -> 0 | FQ65: =+生産管理!FS83 -> 0 | FR65: =+生産管理!FT83 -> 0 | FS65: =+生産管理!FU83 -> 0 | FT65: =+生産管理!FV83 -> 0 | FU65: =+生産管理!FW83 -> 0 | FV65: =+生産管理!FX83 -> 0 | FW65: =+生産管理!FY83 -> 0 | FX65: =+生産管理!FZ83 -> 0 | FY65: =+生産管理!GA83 -> 0 | FZ65: =+生産管理!GB83 -> 0 | GA65: =+生産管理!GC83 -> 0 | GB65: =+生産管理!GD83 -> 0 | GC65: =+生産管理!GE83 -> 0 | GD65: =+生産管理!GF83 -> 0 | GE65: =+生産管理!GG83 -> 0 | GF65: =+生産管理!GH83 -> 0 | GG65: =+生産管理!GI83 -> 0 | GH65: =+生産管理!GJ83 -> 0 | GI65: =+生産管理!GK83 -> 0 | GJ65: =+生産管理!GL83 -> 0 | GK65: =+生産管理!GM83 -> 0 | GL65: =+生産管理!GN83 -> 0 | GM65: =+生産管理!GO83 -> 0 | GN65: =+生産管理!GP83 -> 0 | GO65: =+生産管理!GQ83 -> 0 | GP65: =+生産管理!GR83 -> 0 | GQ65: =+生産管理!GS83 -> 0 | GR65: =+生産管理!GT83 -> 0 | GS65: =+生産管理!GU83 -> 0 | GT65: =+生産管理!GV83 -> 0 | GU65: =+生産管理!GW83 -> 0 | GV65: =+生産管理!GX83 -> 0 | GW65: =+生産管理!GY83 -> 0 | GX65: =+生産管理!GZ83 -> 0 | GY65: =+生産管理!HA83 -> 0 | GZ65: =+生産管理!HB83 -> 0 | HA65: =+生産管理!HC83 -> 0 | HB65: =+生産管理!HD83 -> 0 | HC65: =+生産管理!HE83 -> 0 | HD65: =+生産管理!HF83 -> 0 | HE65: =+生産管理!HG83 -> 0 | HF65: =+生産管理!HH83 -> 0 | HG65: =+生産管理!HI83 -> 0 | HH65: =+生産管理!HJ83 -> 0 | HI65: =+生産管理!HK83 -> 0 | HJ65: =+生産管理!HL83 -> 0 | HK65: =+生産管理!HM83 -> 0 | HL65: =+生産管理!HN83 -> 0 | HM65: =+生産管理!HO83 -> 0 | HN65: =+生産管理!HP83 -> 0 | HO65: =+生産管理!HQ83 -> 0 | HP65: =+生産管理!HR83 -> 0 | HQ65: =+生産管理!HS83 -> 0 | HR65: =+生産管理!HT83 -> 0 | HS65: =+生産管理!HU83 -> 0 | HT65: =+生産管理!HV83 -> 0 | HU65: =+生産管理!HW83 -> 0 | HV65: =+生産管理!HX83 -> 0 | HW65: =+生産管理!HY83 -> 0 | HX65: =+生産管理!HZ83 -> 0 | HY65: =+生産管理!IA83 -> 0 | HZ65: =+生産管理!IB83 -> 0 | IA65: =+生産管理!IC83 -> 0
A66: 20 | B66: MGE_CB | C66: 20 | D66: MGE_CB | F66: =N65 -> 1163 | G66: 0 | H66: 0 | I66: 0 | J66: 0 | K66: 0 | L66: 0 | M66: 鋳造数 | N66: 1506 | O66: 0 | P66: 0 | Q66: 0 | R66: 0 | S66: 0 | T66: 0 | AA66: 216 | AB66: 336 | AC66: 445 | AV66: 122 | AW66: 387
A67: 20 | B67: MGE_CB | C67: 20 | D67: MGE_CB | F67: =N65 -> 1163 | G67: 0 | H67: 0 | I67: 0 | J67: 0 | K67: 0 | L67: 0 | M67: 捨吹① | N67: 33 | O67: 0 | P67: 0 | Q67: 0 | R67: 0 | S67: 0 | T67: 0 | AA67: 7 | AB67: 9 | AC67: 7 | AV67: 3 | AW67: 7
A68: 20 | B68: MGE_CB | C68: 20 | D68: MGE_CB | F68: =N65 -> 1163 | G68: 0 | H68: 0 | I68: 0 | J68: 0 | K68: 0 | L68: 0 | M68: 捨吹② | N68: 99 | O68: 0 | P68: 0 | Q68: 0 | R68: 0 | S68: 0 | T68: 0 | AA68: 17 | AB68: 27 | AC68: 21 | AV68: 8 | AW68: 26
A69: 20 | B69: MGE_CB | C69: 20 | D69: MGE_CB | F69: =N65 -> 1163 | G69: 0 | H69: 0 | I69: 0 | J69: 0 | K69: 0 | L69: 0 | M69: 廃却品 | N69: 230 | O69: 0 | P69: 0 | Q69: 0 | R69: 0 | S69: 0 | T69: 0 | AA69: 26 | AB69: 50 | AC69: 40 | AV69: 41 | AW69: 73
A70: 20 | B70: MGE_CB | C70: 20 | D70: MGE_CB | F70: =N65 -> 1163 | G70: 0 | H70: 0 | I70: 0 | J70: 0 | K70: 0 | L70: 0 | M70: 良品 | N70: 1144 | O70: 0 | P70: 0 | Q70: 0 | R70: 0 | S70: 0 | T70: 0 | AA70: =SUM(AA66-AA67-AA68-AA69) -> 166 | AB70: 250 | AC70: 377 | AD70: 0 | AE70: 0 | AF70: 0 | AG70: 0 | AH70: 0 | AI70: 0 | AJ70: 0 | AK70: 0 | AL70: 0 | AM70: 0 | AN70: 0 | AO70: 0 | AP70: 0 | AQ70: 0 | AR70: 0 | AS70: 0 | AT70: 0 | AU70: 0 | AV70: 70 | AW70: 281 | AX70: 0 | AY70: 0 | AZ70: 0 | BA70: 0 | BB70: 0 | BC70: 0 | BD70: 0 | BE70: 0 | BF70: 0 | BG70: 0 | BH70: 0 | BI70: 0 | BJ70: 0 | BK70: 0 | BL70: 0 | BM70: 0 | BN70: 0 | BO70: 0 | BP70: 0 | BQ70: 0 | BR70: 0 | BS70: 0 | BT70: 0 | BU70: 0 | BV70: 0 | BW70: 0 | BX70: 0 | BY70: 0 | BZ70: 0 | CA70: 0 | CB70: 0 | CC70: 0 | CD70: 0 | CE70: 0 | CF70: 0 | CG70: 0 | CH70: 0 | CI70: 0 | CJ70: 0 | CK70: 0 | CL70: 0 | CM70: =SUM(CM66-CM67-CM68-CM69) -> 0 | CN70: 0 | CO70: 0 | CP70: 0 | CQ70: 0 | CR70: 0 | CS70: 0 | CT70: 0 | CU70: 0 | CV70: 0 | CW70: 0 | CX70: 0 | CY70: 0 | CZ70: 0 | DA70: 0 | DB70: 0 | DC70: 0 | DD70: 0 | DE70: 0 | DF70: 0 | DG70: 0 | DH70: 0 | DI70: 0 | DJ70: 0 | DK70: 0 | DL70: 0 | DM70: 0 | DN70: 0 | DO70: 0 | DP70: 0 | DQ70: 0 | DR70: 0 | DS70: 0 | DT70: 0 | DU70: 0 | DV70: 0 | DW70: 0 | DX70: 0 | DY70: 0 | DZ70: 0 | EA70: 0 | EB70: 0 | EC70: 0 | ED70: 0 | EE70: 0 | EF70: 0 | EG70: 0 | EH70: 0 | EI70: 0 | EJ70: 0 | EK70: 0 | EL70: 0 | EM70: 0 | EN70: 0 | EO70: 0 | EP70: 0 | EQ70: 0 | ER70: 0 | ES70: 0 | ET70: 0 | EU70: 0 | EV70: 0 | EW70: 0 | EX70: 0 | EY70: =SUM(EY66-EY67-EY68-EY69) -> 0 | EZ70: 0 | FA70: 0 | FB70: 0 | FC70: 0 | FD70: 0 | FE70: 0 | FF70: 0 | FG70: 0 | FH70: 0 | FI70: 0 | FJ70: 0 | FK70: 0 | FL70: 0 | FM70: 0 | FN70: 0 | FO70: 0 | FP70: 0 | FQ70: 0 | FR70: 0 | FS70: 0 | FT70: 0 | FU70: 0 | FV70: 0 | FW70: 0 | FX70: 0 | FY70: 0 | FZ70: 0 | GA70: 0 | GB70: 0 | GC70: 0 | GD70: 0 | GE70: 0 | GF70: 0 | GG70: 0 | GH70: 0 | GI70: 0 | GJ70: 0 | GK70: 0 | GL70: 0 | GM70: 0 | GN70: 0 | GO70: 0 | GP70: 0 | GQ70: 0 | GR70: 0 | GS70: 0 | GT70: 0 | GU70: 0 | GV70: 0 | GW70: 0 | GX70: 0 | GY70: 0 | GZ70: 0 | HA70: 0 | HB70: 0 | HC70: 0 | HD70: 0 | HE70: 0 | HF70: 0 | HG70: 0 | HH70: 0 | HI70: 0 | HJ70: 0 | HK70: =SUM(HK66-HK67-HK68-HK69) -> 0 | HL70: 0 | HM70: 0 | HN70: 0 | HO70: 0 | HP70: 0 | HQ70: 0 | HR70: 0 | HS70: 0 | HT70: 0 | HU70: 0 | HV70: 0 | HW70: 0 | HX70: 0 | HY70: 0 | HZ70: 0 | IA70: 0
C71: 20 | D71: MLZ CB DCT | M71: 計画数 | N71: =SUM(V71:AY71) -> 0 | O71: =SUM(BA71:CD71) -> 0 | P71: 0 | Q71: =SUM(DJ71:EM71) -> 0 | R71: =SUM(EN71:FP71) -> 0 | S71: =SUM(FQ71:GU71) -> 0 | T71: =SUM(GV71:HY71) -> 0 | V71: =生産管理!V91 -> 0 | W71: =生産管理!W91 -> 0 | X71: =生産管理!X91 -> 0 | Y71: =生産管理!Y91 -> 0 | Z71: =生産管理!Z91 -> 0 | AA71: =生産管理!AA91 -> 0 | AB71: =生産管理!AB91 -> 0 | AC71: =生産管理!AC91 -> 0 | AD71: =生産管理!AD91 -> 0 | AE71: =生産管理!AE91 -> 0 | AF71: =生産管理!AF91 -> 0 | AG71: =生産管理!AG91 -> 0 | AH71: =生産管理!AH91 -> 0 | AI71: =生産管理!AI91 -> 0 | AJ71: =生産管理!AJ91 -> 0 | AK71: =生産管理!AK91 -> 0 | AL71: =生産管理!AL91 -> 0 | AM71: =生産管理!AM91 -> 0 | AN71: =生産管理!AN91 -> 0 | AO71: =生産管理!AO91 -> 0 | AP71: =生産管理!AP91 -> 0 | AQ71: =生産管理!AQ91 -> 0 | AR71: =生産管理!AR91 -> 0 | AS71: =生産管理!AS91 -> 0 | AT71: =生産管理!AT91 -> 0 | AU71: =生産管理!AU91 -> 0 | AV71: =生産管理!AV91 -> 0 | AW71: =生産管理!AW91 -> 0 | AX71: =生産管理!AX91 -> 0 | AY71: =生産管理!AY91 -> 0 | AZ71: =生産管理!AZ91 -> 0 | BA71: =生産管理!BA91 -> 0 | BB71: =生産管理!BB91 -> 0 | BC71: =生産管理!BC91 -> 0 | BD71: =生産管理!BD91 -> 0 | BE71: =生産管理!BE91 -> 0 | BF71: =生産管理!BF91 -> 0 | BG71: =生産管理!BG91 -> 0 | BH71: =生産管理!BH91 -> 0 | BI71: =生産管理!BI91 -> 0 | BJ71: =生産管理!BJ91 -> 0 | BK71: =生産管理!BL91 -> 0 | BL71: =生産管理!BM91 -> 0 | BM71: =生産管理!BN91 -> 0 | BN71: =生産管理!BO91 -> 0 | BO71: =生産管理!BP91 -> 0 | BP71: =生産管理!BQ91 -> 0 | BQ71: =生産管理!BR91 -> 0 | BR71: =生産管理!BS91 -> 0 | BS71: =生産管理!BT91 -> 0 | BT71: =生産管理!BU91 -> 0 | BU71: =生産管理!BV91 -> 0 | BV71: =生産管理!BW91 -> 0 | BW71: =生産管理!BX91 -> 0 | BX71: =生産管理!BY91 -> 0 | BY71: =生産管理!BZ91 -> 0 | BZ71: =生産管理!CA91 -> 0 | CA71: =生産管理!CB91 -> 0 | CB71: =生産管理!CC91 -> 0 | CC71: =生産管理!CD91 -> 0 | CD71: =生産管理!CE91 -> 0 | CE71: =生産管理!CF91 -> 0 | CF71: =生産管理!CG91 -> 0 | CG71: =生産管理!CH91 -> 0 | CH71: =生産管理!CI91 -> 0 | CI71: =生産管理!CJ91 -> 0 | CJ71: =生産管理!CK91 -> 0 | CK71: =生産管理!CL91 -> 0 | CL71: =生産管理!CM91 -> 0 | CM71: =生産管理!CN91 -> 0 | CN71: =生産管理!CO91 -> 0 | CO71: =生産管理!CP91 -> 0 | CP71: =生産管理!CQ91 -> 0 | CQ71: =生産管理!CS91 -> 0 | CR71: =生産管理!CT91 -> 0 | CS71: =生産管理!CU91 -> 0 | CT71: =生産管理!CV91 -> 0 | CU71: =生産管理!CW91 -> 0 | CV71: =生産管理!CX91 -> 0 | CW71: =生産管理!CY91 -> 0 | CX71: =生産管理!CZ91 -> 0 | CY71: =生産管理!DA91 -> 0 | CZ71: =生産管理!DB91 -> 0 | DA71: =生産管理!DC91 -> 0 | DB71: =生産管理!DD91 -> 0 | DC71: =生産管理!DE91 -> 0 | DD71: =生産管理!DF91 -> 0 | DE71: =生産管理!DG91 -> 0 | DF71: =生産管理!DH91 -> 0 | DG71: =生産管理!DI91 -> 0 | DH71: =生産管理!DJ91 -> 0 | DI71: =生産管理!DK91 -> 0 | DJ71: =生産管理!DL91 -> 0 | DK71: =生産管理!DM91 -> 0 | DL71: =生産管理!DN91 -> 0 | DM71: =生産管理!DO91 -> 0 | DN71: =生産管理!DP91 -> 0 | DO71: =生産管理!DQ91 -> 0 | DP71: =生産管理!DR91 -> 0 | DQ71: =生産管理!DS91 -> 0 | DR71: =生産管理!DT91 -> 0 | DS71: =生産管理!DU91 -> 0 | DT71: =生産管理!DV91 -> 0 | DU71: =生産管理!DW91 -> 0 | DV71: =生産管理!DX91 -> 0 | DW71: =生産管理!DY91 -> 0 | DX71: =生産管理!DZ91 -> 0 | DY71: =生産管理!EA91 -> 0 | DZ71: =生産管理!EB91 -> 0 | EA71: =生産管理!EC91 -> 0 | EB71: =生産管理!ED91 -> 0 | EC71: =生産管理!EE91 -> 0 | ED71: =生産管理!EF91 -> 0 | EE71: =生産管理!EG91 -> 0 | EF71: =生産管理!EH91 -> 0 | EG71: =生産管理!EI91 -> 0 | EH71: =生産管理!EJ91 -> 0 | EI71: =生産管理!EK91 -> 0 | EJ71: =生産管理!EL91 -> 0 | EK71: =生産管理!EM91 -> 0 | EL71: =生産管理!EN91 -> 0 | EM71: =生産管理!EO91 -> 0 | EN71: =生産管理!EP91 -> 0 | EO71: =生産管理!EQ91 -> 0 | EP71: =生産管理!ER91 -> 0 | EQ71: =生産管理!ES91 -> 0 | ER71: =生産管理!ET91 -> 0 | ES71: =生産管理!EU91 -> 0 | ET71: =生産管理!EV91 -> 0 | EU71: =生産管理!EW91 -> 0 | EV71: =生産管理!EX91 -> 0 | EW71: =生産管理!EY91 -> 0 | EX71: =生産管理!EZ91 -> 0 | EY71: =生産管理!FA91 -> 0 | EZ71: =生産管理!FB91 -> 0 | FA71: =生産管理!FC91 -> 0 | FB71: =生産管理!FD91 -> 0 | FC71: =生産管理!FE91 -> 0 | FD71: =生産管理!FF91 -> 0 | FE71: =生産管理!FG91 -> 0 | FF71: =生産管理!FH91 -> 0 | FG71: =生産管理!FI91 -> 0 | FH71: =生産管理!FJ91 -> 0 | FI71: =生産管理!FK91 -> 0 | FJ71: =生産管理!FL91 -> 0 | FK71: =生産管理!FM91 -> 0 | FL71: =生産管理!FN91 -> 0 | FM71: =生産管理!FO91 -> 0 | FN71: =生産管理!FP91 -> 0 | FO71: =生産管理!FQ91 -> 0 | FP71: =生産管理!FR91 -> 0 | FQ71: =生産管理!FS91 -> 0 | FR71: =生産管理!FT91 -> 0 | FS71: =生産管理!FU91 -> 0 | FT71: =生産管理!FV91 -> 0 | FU71: =生産管理!FW91 -> 0 | FV71: =生産管理!FX91 -> 0 | FW71: =生産管理!FY91 -> 0 | FX71: =生産管理!FZ91 -> 0 | FY71: =生産管理!GA91 -> 0 | FZ71: =生産管理!GB91 -> 0 | GA71: =生産管理!GC91 -> 0 | GB71: =生産管理!GD91 -> 0 | GC71: =生産管理!GE91 -> 0 | GD71: =生産管理!GF91 -> 0 | GE71: =生産管理!GG91 -> 0 | GF71: =生産管理!GH91 -> 0 | GG71: =生産管理!GI91 -> 0 | GH71: =生産管理!GJ91 -> 0 | GI71: =生産管理!GK91 -> 0 | GJ71: =生産管理!GL91 -> 0 | GK71: =生産管理!GM91 -> 0 | GL71: =生産管理!GN91 -> 0 | GM71: =生産管理!GO91 -> 0 | GN71: =生産管理!GP91 -> 0 | GO71: =生産管理!GQ91 -> 0 | GP71: =生産管理!GR91 -> 0 | GQ71: =生産管理!GS91 -> 0 | GR71: =生産管理!GT91 -> 0 | GS71: =生産管理!GU91 -> 0 | GT71: =生産管理!GV91 -> 0 | GU71: =生産管理!GW91 -> 0 | GV71: =生産管理!GX91 -> 0 | GW71: =生産管理!GY91 -> 0 | GX71: =生産管理!GZ91 -> 0 | GY71: =生産管理!HA91 -> 0 | GZ71: =生産管理!HB91 -> 0 | HA71: =生産管理!HC91 -> 0 | HB71: =生産管理!HD91 -> 0 | HC71: =生産管理!HE91 -> 0 | HD71: =生産管理!HF91 -> 0 | HE71: =生産管理!HG91 -> 0 | HF71: =生産管理!HH91 -> 0 | HG71: =生産管理!HI91 -> 0 | HH71: =生産管理!HJ91 -> 0 | HI71: =生産管理!HK91 -> 0 | HJ71: =生産管理!HL91 -> 0 | HK71: =生産管理!HM91 -> 0 | HL71: =生産管理!HN91 -> 0 | HM71: =生産管理!HO91 -> 0 | HN71: =生産管理!HP91 -> 0 | HO71: =生産管理!HQ91 -> 0 | HP71: =生産管理!HR91 -> 0 | HQ71: =生産管理!HS91 -> 0 | HR71: =生産管理!HT91 -> 0 | HS71: =生産管理!HU91 -> 0 | HT71: =生産管理!HV91 -> 0 | HU71: =生産管理!HW91 -> 0 | HV71: =生産管理!HX91 -> 0 | HW71: =生産管理!HY91 -> 0 | HX71: =生産管理!HZ91 -> 0 | HY71: =生産管理!IA91 -> 0 | HZ71: =生産管理!IB91 -> 0 | IA71: =生産管理!IC91 -> 0
M72: 鋳造数 | N72: 0 | O72: 0 | P72: 0 | Q72: 0 | R72: 0 | S72: 0 | T72: 0
M73: 捨吹①金具 | N73: 0 | O73: 0 | P73: 0 | Q73: 0 | R73: 0 | S73: 0 | T73: 0
M74: 捨吹②金具 | N74: 0 | O74: 0 | P74: 0 | Q74: 0 | R74: 0 | S74: 0 | T74: 0
M75: 廃却品 | N75: 0 | O75: 0 | P75: 0 | Q75: 0 | R75: 0 | S75: 0 | T75: 0
M76: 良品 | N76: 0 | O76: 0 | P76: 0 | Q76: 0 | R76: 0 | S76: 0 | T76: 0 | V76: =SUM(V72-V73-V74-V75) -> 0 | W76: 0 | X76: 0 | Y76: 0 | Z76: 0 | AA76: 0 | AB76: 0 | AC76: 0 | AD76: 0 | AE76: 0 | AF76: 0 | AG76: 0 | AH76: 0 | AI76: 0 | AJ76: 0 | AK76: 0 | AL76: 0 | AM76: 0 | AN76: 0 | AO76: 0 | AP76: 0 | AQ76: 0 | AR76: 0 | AS76: 0 | AT76: 0 | AU76: 0 | AV76: 0 | AW76: 0 | AX76: 0 | AY76: 0 | AZ76: 0 | BA76: 0 | BB76: 0 | BC76: 0 | BD76: 0 | BE76: 0 | BF76: 0 | BG76: 0 | BH76: 0 | BI76: 0 | BJ76: 0 | BK76: 0 | BL76: 0 | BM76: 0 | BN76: 0 | BO76: 0 | BP76: 0 | BQ76: 0 | BR76: 0 | BS76: 0 | BT76: 0 | BU76: 0 | BV76: 0 | BW76: 0 | BX76: 0 | BY76: 0 | BZ76: 0 | CA76: 0 | CB76: 0 | CC76: 0 | CD76: 0 | CE76: 0 | CF76: 0 | CG76: 0 | CH76: =SUM(CH72-CH73-CH74-CH75) -> 0 | CI76: 0 | CJ76: 0 | CK76: 0 | CL76: 0 | CM76: 0 | CN76: 0 | CO76: 0 | CP76: 0 | CQ76: 0 | CR76: 0 | CS76: 0 | CT76: 0 | CU76: 0 | CV76: 0 | CW76: 0 | CX76: 0 | CY76: 0 | CZ76: 0 | DA76: 0 | DB76: 0 | DC76: 0 | DD76: 0 | DE76: 0 | DF76: 0 | DG76: 0 | DH76: 0 | DI76: 0 | DJ76: 0 | DK76: 0 | DL76: 0 | DM76: 0 | DN76: 0 | DO76: 0 | DP76: 0 | DQ76: 0 | DR76: 0 | DS76: 0 | DT76: 0 | DU76: 0 | DV76: 0 | DW76: 0 | DX76: 0 | DY76: 0 | DZ76: 0 | EA76: 0 | EB76: 0 | EC76: 0 | ED76: 0 | EE76: 0 | EF76: 0 | EG76: 0 | EH76: 0 | EI76: 0 | EJ76: 0 | EK76: 0 | EL76: 0 | EM76: 0 | EN76: 0 | EO76: 0 | EP76: 0 | EQ76: 0 | ER76: 0 | ES76: 0 | ET76: =SUM(ET72-ET73-ET74-ET75) -> 0 | EU76: 0 | EV76: 0 | EW76: 0 | EX76: 0 | EY76: 0 | EZ76: 0 | FA76: 0 | FB76: 0 | FC76: 0 | FD76: 0 | FE76: 0 | FF76: 0 | FG76: 0 | FH76: 0 | FI76: 0 | FJ76: 0 | FK76: 0 | FL76: 0 | FM76: 0 | FN76: 0 | FO76: 0 | FP76: 0 | FQ76: 0 | FR76: 0 | FS76: 0 | FT76: 0 | FU76: 0 | FV76: 0 | FW76: 0 | FX76: 0 | FY76: 0 | FZ76: 0 | GA76: 0 | GB76: 0 | GC76: 0 | GD76: 0 | GE76: 0 | GF76: 0 | GG76: 0 | GH76: 0 | GI76: 0 | GJ76: 0 | GK76: 0 | GL76: 0 | GM76: 0 | GN76: 0 | GO76: 0 | GP76: 0 | GQ76: 0 | GR76: 0 | GS76: 0 | GT76: 0 | GU76: 0 | GV76: 0 | GW76: 0 | GX76: 0 | GY76: 0 | GZ76: 0 | HA76: 0 | HB76: 0 | HC76: 0 | HD76: 0 | HE76: 0 | HF76: =SUM(HF72-HF73-HF74-HF75) -> 0 | HG76: 0 | HH76: 0 | HI76: 0 | HJ76: 0 | HK76: 0 | HL76: 0 | HM76: 0 | HN76: 0 | HO76: 0 | HP76: 0 | HQ76: 0 | HR76: 0 | HS76: 0 | HT76: 0 | HU76: 0 | HV76: 0 | HW76: 0 | HX76: 0 | HY76: 0 | HZ76: 0 | IA76: 0
C77: 20 | D77: MLZ CB MT | M77: 計画数 | N77: 0 | O77: 0 | P77: 0 | Q77: 0 | R77: 0 | S77: 0 | T77: 0 | V77: =生産管理!V100 -> 0 | W77: =生産管理!W100 -> 0 | X77: =生産管理!X100 -> 0 | Y77: =生産管理!Y100 -> 0 | Z77: =生産管理!Z100 -> 0 | AA77: =生産管理!AA100 -> 0 | AB77: =生産管理!AB100 -> 0 | AC77: =生産管理!AC100 -> 0 | AD77: =生産管理!AD100 -> 0 | AE77: =生産管理!AE100 -> 0 | AF77: =生産管理!AF100 -> 0 | AG77: =生産管理!AG100 -> 0 | AH77: =生産管理!AH100 -> 0 | AI77: =生産管理!AI100 -> 0 | AJ77: =生産管理!AJ100 -> 0 | AK77: =生産管理!AK100 -> 0 | AL77: =生産管理!AL100 -> 0 | AM77: =生産管理!AM100 -> 0 | AN77: =生産管理!AN100 -> 0 | AO77: =生産管理!AO100 -> 0 | AP77: =生産管理!AP100 -> 0 | AQ77: =生産管理!AQ100 -> 0 | AR77: =生産管理!AR100 -> 0 | AS77: =生産管理!AS100 -> 0 | AT77: =生産管理!AT100 -> 0 | AU77: =生産管理!AU100 -> 0 | AV77: =生産管理!AV100 -> 0 | AW77: =生産管理!AW100 -> 0 | AX77: =生産管理!AX100 -> 0 | AY77: =生産管理!AY100 -> 0 | AZ77: =生産管理!AZ100 -> 0 | BA77: =生産管理!BA100 -> 0 | BB77: =生産管理!BB100 -> 0 | BC77: =生産管理!BC100 -> 0 | BD77: =生産管理!BD100 -> 0 | BE77: =生産管理!BE100 -> 0 | BF77: =生産管理!BF100 -> 0 | BG77: =生産管理!BG100 -> 0 | BH77: =生産管理!BH100 -> 0 | BI77: =生産管理!BI100 -> 0 | BJ77: =生産管理!BJ100 -> 0 | BK77: =生産管理!BL100 -> 0 | BL77: =生産管理!BM100 -> 0 | BM77: =生産管理!BN100 -> 0 | BN77: =生産管理!BO100 -> 0 | BO77: =生産管理!BP100 -> 0 | BP77: =生産管理!BQ100 -> 0 | BQ77: =生産管理!BR100 -> 0 | BR77: =生産管理!BS100 -> 0 | BS77: =生産管理!BT100 -> 0 | BT77: =生産管理!BU100 -> 0 | BU77: =生産管理!BV100 -> 0 | BV77: =生産管理!BW100 -> 0 | BW77: =生産管理!BX100 -> 0 | BX77: =生産管理!BY100 -> 0 | BY77: =生産管理!BZ100 -> 0 | BZ77: =生産管理!CA100 -> 0 | CA77: =生産管理!CB100 -> 0 | CB77: =生産管理!CC100 -> 0 | CC77: =生産管理!CD100 -> 0 | CD77: =生産管理!CE100 -> 0 | CE77: =生産管理!CF100 -> 0 | CF77: =生産管理!CG100 -> 0 | CG77: =生産管理!CH100 -> 0 | CH77: =生産管理!CI100 -> 0 | CI77: =生産管理!CJ100 -> 0 | CJ77: =生産管理!CK100 -> 0 | CK77: =生産管理!CL100 -> 0 | CL77: =生産管理!CM100 -> 0 | CM77: =生産管理!CN100 -> 0 | CN77: =生産管理!CO100 -> 0 | CO77: =生産管理!CP100 -> 0 | CP77: =生産管理!CQ100 -> 0 | CQ77: =生産管理!CS100 -> 0 | CR77: =生産管理!CT100 -> 0 | CS77: =生産管理!CU100 -> 0 | CT77: =生産管理!CV100 -> 0 | CU77: =生産管理!CW100 -> 0 | CV77: =生産管理!CX100 -> 0 | CW77: =生産管理!CY100 -> 0 | CX77: =生産管理!CZ100 -> 0 | CY77: =生産管理!DA100 -> 0 | CZ77: =生産管理!DB100 -> 0 | DA77: =生産管理!DC100 -> 0 | DB77: =生産管理!DD100 -> 0 | DC77: =生産管理!DE100 -> 0 | DD77: =生産管理!DF100 -> 0 | DE77: =生産管理!DG100 -> 0 | DF77: =生産管理!DH100 -> 0 | DG77: =生産管理!DI100 -> 0 | DH77: =生産管理!DJ100 -> 0 | DI77: =生産管理!DK100 -> 0 | DJ77: =生産管理!DL100 -> 0 | DK77: =生産管理!DM100 -> 0 | DL77: =生産管理!DN100 -> 0 | DM77: =生産管理!DO100 -> 0 | DN77: =生産管理!DP100 -> 0 | DO77: =生産管理!DQ100 -> 0 | DP77: =生産管理!DR100 -> 0 | DQ77: =生産管理!DS100 -> 0 | DR77: =生産管理!DT100 -> 0 | DS77: =生産管理!DU100 -> 0 | DT77: =生産管理!DV100 -> 0 | DU77: =生産管理!DW100 -> 0 | DV77: =生産管理!DX100 -> 0 | DW77: =生産管理!DY100 -> 0 | DX77: =生産管理!DZ100 -> 0 | DY77: =生産管理!EA100 -> 0 | DZ77: =生産管理!EB100 -> 0 | EA77: =生産管理!EC100 -> 0 | EB77: =生産管理!ED100 -> 0 | EC77: =生産管理!EE100 -> 0 | ED77: =生産管理!EF100 -> 0 | EE77: =生産管理!EG100 -> 0 | EF77: =生産管理!EH100 -> 0 | EG77: =生産管理!EI100 -> 0 | EH77: =生産管理!EJ100 -> 0 | EI77: =生産管理!EK100 -> 0 | EJ77: =生産管理!EL100 -> 0 | EK77: =生産管理!EM100 -> 0 | EL77: =生産管理!EN100 -> 0 | EM77: =生産管理!EO100 -> 0 | EN77: =生産管理!EP100 -> 0 | EO77: =生産管理!EQ100 -> 0 | EP77: =生産管理!ER100 -> 0 | EQ77: =生産管理!ES100 -> 0 | ER77: =生産管理!ET100 -> 0 | ES77: =生産管理!EU100 -> 0 | ET77: =生産管理!EV100 -> 0 | EU77: =生産管理!EW100 -> 0 | EV77: =生産管理!EX100 -> 0 | EW77: =生産管理!EY100 -> 0 | EX77: =生産管理!EZ100 -> 0 | EY77: =生産管理!FA100 -> 0 | EZ77: =生産管理!FB100 -> 0 | FA77: =生産管理!FC100 -> 0 | FB77: =生産管理!FD100 -> 0 | FC77: =生産管理!FE100 -> 0 | FD77: =生産管理!FF100 -> 0 | FE77: =生産管理!FG100 -> 0 | FF77: =生産管理!FH100 -> 0 | FG77: =生産管理!FI100 -> 0 | FH77: =生産管理!FJ100 -> 0 | FI77: =生産管理!FK100 -> 0 | FJ77: =生産管理!FL100 -> 0 | FK77: =生産管理!FM100 -> 0 | FL77: =生産管理!FN100 -> 0 | FM77: =生産管理!FO100 -> 0 | FN77: =生産管理!FP100 -> 0 | FO77: =生産管理!FQ100 -> 0 | FP77: =生産管理!FR100 -> 0 | FQ77: =生産管理!FS100 -> 0 | FR77: =生産管理!FT100 -> 0 | FS77: =生産管理!FU100 -> 0 | FT77: =生産管理!FV100 -> 0 | FU77: =生産管理!FW100 -> 0 | FV77: =生産管理!FX100 -> 0 | FW77: =生産管理!FY100 -> 0 | FX77: =生産管理!FZ100 -> 0 | FY77: =生産管理!GA100 -> 0 | FZ77: =生産管理!GB100 -> 0 | GA77: =生産管理!GC100 -> 0 | GB77: =生産管理!GD100 -> 0 | GC77: =生産管理!GE100 -> 0 | GD77: =生産管理!GF100 -> 0 | GE77: =生産管理!GG100 -> 0 | GF77: =生産管理!GH100 -> 0 | GG77: =生産管理!GI100 -> 0 | GH77: =生産管理!GJ100 -> 0 | GI77: =生産管理!GK100 -> 0 | GJ77: =生産管理!GL100 -> 0 | GK77: =生産管理!GM100 -> 0 | GL77: =生産管理!GN100 -> 0 | GM77: =生産管理!GO100 -> 0 | GN77: =生産管理!GP100 -> 0 | GO77: =生産管理!GQ100 -> 0 | GP77: =生産管理!GR100 -> 0 | GQ77: =生産管理!GS100 -> 0 | GR77: =生産管理!GT100 -> 0 | GS77: =生産管理!GU100 -> 0 | GT77: =生産管理!GV100 -> 0 | GU77: =生産管理!GW100 -> 0 | GV77: =生産管理!GX100 -> 0 | GW77: =生産管理!GY100 -> 0 | GX77: =生産管理!GZ100 -> 0 | GY77: =生産管理!HA100 -> 0 | GZ77: =生産管理!HB100 -> 0 | HA77: =生産管理!HC100 -> 0 | HB77: =生産管理!HD100 -> 0 | HC77: =生産管理!HE100 -> 0 | HD77: =生産管理!HF100 -> 0 | HE77: =生産管理!HG100 -> 0 | HF77: =生産管理!HH100 -> 0 | HG77: =生産管理!HI100 -> 0 | HH77: =生産管理!HJ100 -> 0 | HI77: =生産管理!HK100 -> 0 | HJ77: =生産管理!HL100 -> 0 | HK77: =生産管理!HM100 -> 0 | HL77: =生産管理!HN100 -> 0 | HM77: =生産管理!HO100 -> 0 | HN77: =生産管理!HP100 -> 0 | HO77: =生産管理!HQ100 -> 0 | HP77: =生産管理!HR100 -> 0 | HQ77: =生産管理!HS100 -> 0 | HR77: =生産管理!HT100 -> 0 | HS77: =生産管理!HU100 -> 0 | HT77: =生産管理!HV100 -> 0 | HU77: =生産管理!HW100 -> 0 | HV77: =生産管理!HX100 -> 0 | HW77: =生産管理!HY100 -> 0 | HX77: =生産管理!HZ100 -> 0 | HY77: =生産管理!IA100 -> 0 | HZ77: =生産管理!IB100 -> 0 | IA77: =生産管理!IC100 -> 0
M78: 鋳造数 | N78: 0 | O78: 0 | P78: 0 | Q78: 0 | R78: 0 | S78: 0 | T78: 0
M79: 捨吹①金具 | N79: 0 | O79: 0 | P79: 0 | Q79: 0 | R79: 0 | S79: 0 | T79: 0
M80: 捨吹②金具 | N80: 0 | O80: 0 | P80: 0 | Q80: 0 | R80: 0 | S80: 0 | T80: 0
M81: 廃却品 | N81: 0 | O81: 0 | P81: 0 | Q81: 0 | R81: 0 | S81: 0 | T81: 0
M82: 良品 | N82: 0 | O82: 0 | P82: 0 | Q82: 0 | R82: 0 | S82: 0 | T82: 0 | V82: =SUM(V78-V79-V80-V81) -> 0 | W82: 0 | X82: 0 | Y82: 0 | Z82: 0 | AA82: 0 | AB82: 0 | AC82: 0 | AD82: 0 | AE82: 0 | AF82: 0 | AG82: 0 | AH82: 0 | AI82: 0 | AJ82: 0 | AK82: 0 | AL82: 0 | AM82: 0 | AN82: 0 | AO82: 0 | AP82: 0 | AQ82: 0 | AR82: 0 | AS82: 0 | AT82: 0 | AU82: 0 | AV82: 0 | AW82: 0 | AX82: 0 | AY82: 0 | AZ82: 0 | BA82: 0 | BB82: 0 | BC82: 0 | BD82: 0 | BE82: 0 | BF82: 0 | BG82: 0 | BH82: 0 | BI82: 0 | BJ82: 0 | BK82: 0 | BL82: 0 | BM82: 0 | BN82: 0 | BO82: 0 | BP82: 0 | BQ82: 0 | BR82: 0 | BS82: 0 | BT82: 0 | BU82: 0 | BV82: 0 | BW82: 0 | BX82: 0 | BY82: 0 | BZ82: 0 | CA82: 0 | CB82: 0 | CC82: 0 | CD82: 0 | CE82: 0 | CF82: 0 | CG82: 0 | CH82: =SUM(CH78-CH79-CH80-CH81) -> 0 | CI82: 0 | CJ82: 0 | CK82: 0 | CL82: 0 | CM82: 0 | CN82: 0 | CO82: 0 | CP82: 0 | CQ82: 0 | CR82: 0 | CS82: 0 | CT82: 0 | CU82: 0 | CV82: 0 | CW82: 0 | CX82: 0 | CY82: 0 | CZ82: 0 | DA82: 0 | DB82: 0 | DC82: 0 | DD82: 0 | DE82: 0 | DF82: 0 | DG82: 0 | DH82: 0 | DI82: 0 | DJ82: 0 | DK82: 0 | DL82: 0 | DM82: 0 | DN82: 0 | DO82: 0 | DP82: 0 | DQ82: 0 | DR82: 0 | DS82: 0 | DT82: 0 | DU82: 0 | DV82: 0 | DW82: 0 | DX82: 0 | DY82: 0 | DZ82: 0 | EA82: 0 | EB82: 0 | EC82: 0 | ED82: 0 | EE82: 0 | EF82: 0 | EG82: 0 | EH82: 0 | EI82: 0 | EJ82: 0 | EK82: 0 | EL82: 0 | EM82: 0 | EN82: 0 | EO82: 0 | EP82: 0 | EQ82: 0 | ER82: 0 | ES82: 0 | ET82: =SUM(ET78-ET79-ET80-ET81) -> 0 | EU82: 0 | EV82: 0 | EW82: 0 | EX82: 0 | EY82: 0 | EZ82: 0 | FA82: 0 | FB82: 0 | FC82: 0 | FD82: 0 | FE82: 0 | FF82: 0 | FG82: 0 | FH82: 0 | FI82: 0 | FJ82: 0 | FK82: 0 | FL82: 0 | FM82: 0 | FN82: 0 | FO82: 0 | FP82: 0 | FQ82: 0 | FR82: 0 | FS82: 0 | FT82: 0 | FU82: 0 | FV82: 0 | FW82: 0 | FX82: 0 | FY82: 0 | FZ82: 0 | GA82: 0 | GB82: 0 | GC82: 0 | GD82: 0 | GE82: 0 | GF82: 0 | GG82: 0 | GH82: 0 | GI82: 0 | GJ82: 0 | GK82: 0 | GL82: 0 | GM82: 0 | GN82: 0 | GO82: 0 | GP82: 0 | GQ82: 0 | GR82: 0 | GS82: 0 | GT82: 0 | GU82: 0 | GV82: 0 | GW82: 0 | GX82: 0 | GY82: 0 | GZ82: 0 | HA82: 0 | HB82: 0 | HC82: 0 | HD82: 0 | HE82: 0 | HF82: =SUM(HF78-HF79-HF80-HF81) -> 0 | HG82: 0 | HH82: 0 | HI82: 0 | HJ82: 0 | HK82: 0 | HL82: 0 | HM82: 0 | HN82: 0 | HO82: 0 | HP82: 0 | HQ82: 0 | HR82: 0 | HS82: 0 | HT82: 0 | HU82: 0 | HV82: 0 | HW82: 0 | HX82: 0 | HY82: 0 | HZ82: 0 | IA82: 0
A83: 20 | B83: MCS_CB | C83: 20 | D83: MKS_CB_DCT | F83: =N83 -> 471 | G83: 0 | H83: 0 | I83: 0 | J83: 0 | K83: 0 | L83: 0 | M83: 計画数 | N83: =SUM(V83:AY83) -> 471 | O83: 0 | P83: 0 | Q83: 0 | R83: 0 | S83: 0 | T83: 0 | V83: =+生産管理!V109 -> 344 | W83: =+生産管理!W109 -> 127 | X83: =+生産管理!X109 -> 0 | Y83: =+生産管理!Y109 -> 0 | Z83: =+生産管理!Z109 -> 0 | AA83: =+生産管理!AA109 -> 0 | AB83: =+生産管理!AB109 -> 0 | AC83: =+生産管理!AC109 -> 0 | AD83: =+生産管理!AD109 -> 0 | AE83: =+生産管理!AE109 -> 0 | AF83: =+生産管理!AF109 -> 0 | AG83: =+生産管理!AG109 -> 0 | AH83: =+生産管理!AH109 -> 0 | AI83: =+生産管理!AI109 -> 0 | AJ83: =+生産管理!AJ109 -> 0 | AK83: =+生産管理!AK109 -> 0 | AL83: =+生産管理!AL109 -> 0 | AM83: =+生産管理!AM109 -> 0 | AN83: =+生産管理!AN109 -> 0 | AO83: =+生産管理!AO109 -> 0 | AP83: =+生産管理!AP109 -> 0 | AQ83: =+生産管理!AQ109 -> 0 | AR83: =+生産管理!AR109 -> 0 | AS83: =+生産管理!AS109 -> 0 | AT83: =+生産管理!AT109 -> 0 | AU83: =+生産管理!AU109 -> 0 | AV83: =+生産管理!AV109 -> 0 | AW83: =+生産管理!AW109 -> 0 | AX83: =+生産管理!AX109 -> 0 | AY83: =+生産管理!AY109 -> 0 | AZ83: =+生産管理!AZ109 -> 0 | BA83: =+生産管理!BA109 -> 0 | BB83: =+生産管理!BB109 -> 0 | BC83: =+生産管理!BC109 -> 0 | BD83: =+生産管理!BD109 -> 0 | BE83: =+生産管理!BE109 -> 0 | BF83: =+生産管理!BF109 -> 0 | BG83: =+生産管理!BG109 -> 0 | BH83: =+生産管理!BH109 -> 0 | BI83: =+生産管理!BI109 -> 0 | BJ83: =+生産管理!BJ109 -> 0 | BK83: =+生産管理!BL109 -> 0 | BL83: =+生産管理!BM109 -> 0 | BM83: =+生産管理!BN109 -> 0 | BN83: =+生産管理!BO109 -> 0 | BO83: =+生産管理!BP109 -> 0 | BP83: =+生産管理!BQ109 -> 0 | BQ83: =+生産管理!BR109 -> 0 | BR83: =+生産管理!BS109 -> 0 | BS83: =+生産管理!BT109 -> 0 | BT83: =+生産管理!BU109 -> 0 | BU83: =+生産管理!BV109 -> 0 | BV83: =+生産管理!BW109 -> 0 | BW83: =+生産管理!BX109 -> 0 | BX83: =+生産管理!BY109 -> 0 | BY83: =+生産管理!BZ109 -> 0 | BZ83: =+生産管理!CA109 -> 0 | CA83: =+生産管理!CB109 -> 0 | CB83: =+生産管理!CC109 -> 0 | CC83: =+生産管理!CD109 -> 0 | CD83: =+生産管理!CE109 -> 0 | CE83: =+生産管理!CF109 -> 0 | CF83: =+生産管理!CG109 -> 0 | CG83: =+生産管理!CH109 -> 0 | CH83: =+生産管理!CI109 -> 0 | CI83: =+生産管理!CJ109 -> 0 | CJ83: =+生産管理!CK109 -> 0 | CK83: =+生産管理!CL109 -> 0 | CL83: =+生産管理!CM109 -> 0 | CM83: =+生産管理!CN109 -> 0 | CN83: =+生産管理!CO109 -> 0 | CO83: =+生産管理!CP109 -> 0 | CP83: =+生産管理!CQ109 -> 0 | CQ83: =+生産管理!CS109 -> 0 | CR83: =+生産管理!CT109 -> 0 | CS83: =+生産管理!CU109 -> 0 | CT83: =+生産管理!CV109 -> 0 | CU83: =+生産管理!CW109 -> 0 | CV83: =+生産管理!CX109 -> 0 | CW83: =+生産管理!CY109 -> 0 | CX83: =+生産管理!CZ109 -> 0 | CY83: =+生産管理!DA109 -> 0 | CZ83: =+生産管理!DB109 -> 0 | DA83: =+生産管理!DC109 -> 0 | DB83: =+生産管理!DD109 -> 0 | DC83: =+生産管理!DE109 -> 0 | DD83: =+生産管理!DF109 -> 0 | DE83: =+生産管理!DG109 -> 0 | DF83: =+生産管理!DH109 -> 0 | DG83: =+生産管理!DI109 -> 0 | DH83: =+生産管理!DJ109 -> 0 | DI83: =+生産管理!DK109 -> 0 | DJ83: =+生産管理!DL109 -> 0 | DK83: =+生産管理!DM109 -> 0 | DL83: =+生産管理!DN109 -> 0 | DM83: =+生産管理!DO109 -> 0 | DN83: =+生産管理!DP109 -> 0 | DO83: =+生産管理!DQ109 -> 0 | DP83: =+生産管理!DR109 -> 0 | DQ83: =+生産管理!DS109 -> 0 | DR83: =+生産管理!DT109 -> 0 | DS83: =+生産管理!DU109 -> 0 | DT83: =+生産管理!DV109 -> 0 | DU83: =+生産管理!DW109 -> 0 | DV83: =+生産管理!DX109 -> 0 | DW83: =+生産管理!DY109 -> 0 | DX83: =+生産管理!DZ109 -> 0 | DY83: =+生産管理!EA109 -> 0 | DZ83: =+生産管理!EB109 -> 0 | EA83: =+生産管理!EC109 -> 0 | EB83: =+生産管理!ED109 -> 0 | EC83: =+生産管理!EE109 -> 0 | ED83: =+生産管理!EF109 -> 0 | EE83: =+生産管理!EG109 -> 0 | EF83: =+生産管理!EH109 -> 0 | EG83: =+生産管理!EI109 -> 0 | EH83: =+生産管理!EJ109 -> 0 | EI83: =+生産管理!EK109 -> 0 | EJ83: =+生産管理!EL109 -> 0 | EK83: =+生産管理!EM109 -> 0 | EL83: =+生産管理!EN109 -> 0 | EM83: =+生産管理!EO109 -> 0 | EN83: =+生産管理!EP109 -> 0 | EO83: =+生産管理!EQ109 -> 0 | EP83: =+生産管理!ER109 -> 0 | EQ83: =+生産管理!ES109 -> 0 | ER83: =+生産管理!ET109 -> 0 | ES83: =+生産管理!EU109 -> 0 | ET83: =+生産管理!EV109 -> 0 | EU83: =+生産管理!EW109 -> 0 | EV83: =+生産管理!EX109 -> 0 | EW83: =+生産管理!EY109 -> 0 | EX83: =+生産管理!EZ109 -> 0 | EY83: =+生産管理!FA109 -> 0 | EZ83: =+生産管理!FB109 -> 0 | FA83: =+生産管理!FC109 -> 0 | FB83: =+生産管理!FD109 -> 0 | FC83: =+生産管理!FE109 -> 0 | FD83: =+生産管理!FF109 -> 0 | FE83: =+生産管理!FG109 -> 0 | FF83: =+生産管理!FH109 -> 0 | FG83: =+生産管理!FI109 -> 0 | FH83: =+生産管理!FJ109 -> 0 | FI83: =+生産管理!FK109 -> 0 | FJ83: =+生産管理!FL109 -> 0 | FK83: =+生産管理!FM109 -> 0 | FL83: =+生産管理!FN109 -> 0 | FM83: =+生産管理!FO109 -> 0 | FN83: =+生産管理!FP109 -> 0 | FO83: =+生産管理!FQ109 -> 0 | FP83: =+生産管理!FR109 -> 0 | FQ83: =+生産管理!FS109 -> 0 | FR83: =+生産管理!FT109 -> 0 | FS83: =+生産管理!FU109 -> 0 | FT83: =+生産管理!FV109 -> 0 | FU83: =+生産管理!FW109 -> 0 | FV83: =+生産管理!FX109 -> 0 | FW83: =+生産管理!FY109 -> 0 | FX83: =+生産管理!FZ109 -> 0 | FY83: =+生産管理!GA109 -> 0 | FZ83: =+生産管理!GB109 -> 0 | GA83: =+生産管理!GC109 -> 0 | GB83: =+生産管理!GD109 -> 0 | GC83: =+生産管理!GE109 -> 0 | GD83: =+生産管理!GF109 -> 0 | GE83: =+生産管理!GG109 -> 0 | GF83: =+生産管理!GH109 -> 0 | GG83: =+生産管理!GI109 -> 0 | GH83: =+生産管理!GJ109 -> 0 | GI83: =+生産管理!GK109 -> 0 | GJ83: =+生産管理!GL109 -> 0 | GK83: =+生産管理!GM109 -> 0 | GL83: =+生産管理!GN109 -> 0 | GM83: =+生産管理!GO109 -> 0 | GN83: =+生産管理!GP109 -> 0 | GO83: =+生産管理!GQ109 -> 0 | GP83: =+生産管理!GR109 -> 0 | GQ83: =+生産管理!GS109 -> 0 | GR83: =+生産管理!GT109 -> 0 | GS83: =+生産管理!GU109 -> 0 | GT83: =+生産管理!GV109 -> 0 | GU83: =+生産管理!GW109 -> 0 | GV83: =+生産管理!GX109 -> 0 | GW83: =+生産管理!GY109 -> 0 | GX83: =+生産管理!GZ109 -> 0 | GY83: =+生産管理!HA109 -> 0 | GZ83: =+生産管理!HB109 -> 0 | HA83: =+生産管理!HC109 -> 0 | HB83: =+生産管理!HD109 -> 0 | HC83: =+生産管理!HE109 -> 0 | HD83: =+生産管理!HF109 -> 0 | HE83: =+生産管理!HG109 -> 0 | HF83: =+生産管理!HH109 -> 0 | HG83: =+生産管理!HI109 -> 0 | HH83: =+生産管理!HJ109 -> 0 | HI83: =+生産管理!HK109 -> 0 | HJ83: =+生産管理!HL109 -> 0 | HK83: =+生産管理!HM109 -> 0 | HL83: =+生産管理!HN109 -> 0 | HM83: =+生産管理!HO109 -> 0 | HN83: =+生産管理!HP109 -> 0 | HO83: =+生産管理!HQ109 -> 0 | HP83: =+生産管理!HR109 -> 0 | HQ83: =+生産管理!HS109 -> 0 | HR83: =+生産管理!HT109 -> 0 | HS83: =+生産管理!HU109 -> 0 | HT83: =+生産管理!HV109 -> 0 | HU83: =+生産管理!HW109 -> 0 | HV83: =+生産管理!HX109 -> 0 | HW83: =+生産管理!HY109 -> 0 | HX83: =+生産管理!HZ109 -> 0 | HY83: =+生産管理!IA109 -> 0 | HZ83: =+生産管理!IB109 -> 0 | IA83: =+生産管理!IC109 -> 0
A84: 20 | B84: MCS_CB | C84: 20 | D84: MCS_CB | F84: =N83 -> 471 | G84: 0 | H84: 0 | I84: 0 | J84: 0 | K84: 0 | L84: 0 | M84: 鋳造数 | N84: =SUM(V84:AY84) -> 598 | O84: 0 | P84: 0 | Q84: 0 | R84: 0 | S84: 0 | T84: 0 | V84: 452 | W84: 146
A85: 20 | B85: MCS_CB | C85: 20 | D85: MCS_CB | F85: =N83 -> 471 | G85: 0 | H85: 0 | I85: 0 | J85: 0 | K85: 0 | L85: 0 | M85: 捨吹①金具 | N85: 15 | O85: 0 | P85: 0 | Q85: 0 | R85: 0 | S85: =SUM(FQ85:GU85) -> 0 | T85: =SUM(GV85:HY85) -> 0 | V85: 12 | W85: 3
A86: 20 | B86: MCS_CB | C86: 20 | D86: MCS_CB | F86: =N83 -> 471 | G86: 0 | H86: 0 | I86: 0 | J86: 0 | K86: 0 | L86: 0 | M86: 捨吹②金具 | N86: 3 | O86: 0 | P86: 0 | Q86: 0 | R86: 0 | S86: 0 | T86: 0 | V86: 1 | W86: 2
A87: 20 | B87: MCS_CB | C87: 20 | D87: MCS_CB | F87: =N83 -> 471 | G87: 0 | H87: 0 | I87: 0 | J87: 0 | K87: 0 | L87: 0 | M87: 廃却品 | N87: 109 | O87: 0 | P87: 0 | Q87: 0 | R87: 0 | S87: 0 | T87: 0 | V87: 95 | W87: 14
A88: 20 | B88: MCS_CB | C88: 20 | D88: MCS_CB | F88: =N83 -> 471 | G88: 0 | H88: 0 | I88: 0 | J88: 0 | K88: 0 | L88: 0 | M88: 良品 | N88: 471 | O88: 0 | P88: 0 | Q88: 0 | R88: 0 | S88: 0 | T88: 0 | V88: =SUM(V84-V85-V86-V87) -> 344 | W88: 127 | X88: 0 | Y88: 0 | Z88: 0 | AA88: 0 | AB88: 0 | AC88: 0 | AD88: 0 | AE88: 0 | AF88: 0 | AG88: 0 | AH88: 0 | AI88: 0 | AJ88: 0 | AK88: 0 | AL88: 0 | AM88: 0 | AN88: 0 | AO88: 0 | AP88: 0 | AQ88: 0 | AR88: 0 | AS88: 0 | AT88: 0 | AU88: 0 | AV88: 0 | AW88: 0 | AX88: 0 | AY88: 0 | AZ88: 0 | BA88: 0 | BB88: 0 | BC88: 0 | BD88: 0 | BE88: 0 | BF88: 0 | BG88: 0 | BH88: 0 | BI88: 0 | BJ88: 0 | BK88: 0 | BL88: 0 | BM88: 0 | BN88: 0 | BO88: 0 | BP88: 0 | BQ88: 0 | BR88: 0 | BS88: 0 | BT88: 0 | BU88: 0 | BV88: 0 | BW88: 0 | BX88: 0 | BY88: 0 | BZ88: 0 | CA88: 0 | CB88: 0 | CC88: 0 | CD88: 0 | CE88: 0 | CF88: 0 | CG88: 0 | CH88: =SUM(CH84-CH85-CH86-CH87) -> 0 | CI88: 0 | CJ88: 0 | CK88: 0 | CL88: 0 | CM88: 0 | CN88: 0 | CO88: 0 | CP88: 0 | CQ88: 0 | CR88: 0 | CS88: 0 | CT88: 0 | CU88: 0 | CV88: 0 | CW88: 0 | CX88: 0 | CY88: 0 | CZ88: 0 | DA88: 0 | DB88: 0 | DC88: 0 | DD88: 0 | DE88: 0 | DF88: 0 | DG88: 0 | DH88: 0 | DI88: 0 | DJ88: 0 | DK88: 0 | DL88: 0 | DM88: 0 | DN88: 0 | DO88: 0 | DP88: 0 | DQ88: 0 | DR88: 0 | DS88: 0 | DT88: 0 | DU88: 0 | DV88: 0 | DW88: 0 | DX88: 0 | DY88: 0 | DZ88: 0 | EA88: 0 | EB88: 0 | EC88: 0 | ED88: 0 | EE88: 0 | EF88: 0 | EG88: 0 | EH88: 0 | EI88: 0 | EJ88: 0 | EK88: 0 | EL88: 0 | EM88: 0 | EN88: 0 | EO88: 0 | EP88: 0 | EQ88: 0 | ER88: 0 | ES88: 0 | ET88: =SUM(ET84-ET85-ET86-ET87) -> 0 | EU88: 0 | EV88: 0 | EW88: 0 | EX88: 0 | EY88: 0 | EZ88: 0 | FA88: 0 | FB88: 0 | FC88: 0 | FD88: 0 | FE88: 0 | FF88: 0 | FG88: 0 | FH88: 0 | FI88: 0 | FJ88: 0 | FK88: 0 | FL88: 0 | FM88: 0 | FN88: 0 | FO88: 0 | FP88: 0 | FQ88: 0 | FR88: 0 | FS88: 0 | FT88: 0 | FU88: 0 | FV88: 0 | FW88: 0 | FX88: 0 | FY88: 0 | FZ88: 0 | GA88: 0 | GB88: 0 | GC88: 0 | GD88: 0 | GE88: 0 | GF88: 0 | GG88: 0 | GH88: 0 | GI88: 0 | GJ88: 0 | GK88: 0 | GL88: 0 | GM88: 0 | GN88: 0 | GO88: 0 | GP88: 0 | GQ88: 0 | GR88: 0 | GS88: 0 | GT88: 0 | GU88: 0 | GV88: 0 | GW88: 0 | GX88: 0 | GY88: 0 | GZ88: 0 | HA88: 0 | HB88: 0 | HC88: 0 | HD88: 0 | HE88: 0 | HF88: =SUM(HF84-HF85-HF86-HF87) -> 0 | HG88: 0 | HH88: 0 | HI88: 0 | HJ88: 0 | HK88: 0 | HL88: 0 | HM88: 0 | HN88: 0 | HO88: 0 | HP88: 0 | HQ88: 0 | HR88: 0 | HS88: 0 | HT88: 0 | HU88: 0 | HV88: 0 | HW88: 0 | HX88: 0 | HY88: 0 | HZ88: 0 | IA88: 0
A89: 20 | B89: MCS_CB | C89: 20 | D89: MKS_CB_MT | F89: =N89 -> 1046 | G89: 0 | H89: 0 | I89: 0 | J89: 0 | K89: 0 | L89: 0 | M89: 計画数 | N89: 1046 | O89: 0 | P89: =SUM(CE89:DH89) -> 0 | Q89: 0 | R89: 0 | S89: =SUM(FQ89:GU89) -> 0 | T89: =SUM(GV89:HY89) -> 0 | V89: =+生産管理!V112 -> 0 | W89: =+生産管理!W112 -> 0 | X89: =+生産管理!X112 -> 0 | Y89: =+生産管理!Y112 -> 0 | Z89: =+生産管理!Z112 -> 0 | AA89: =+生産管理!AA112 -> 0 | AB89: =+生産管理!AB112 -> 0 | AC89: =+生産管理!AC112 -> 0 | AD89: =+生産管理!AD112 -> 75 | AE89: =+生産管理!AE112 -> 387 | AF89: =+生産管理!AF112 -> 261 | AG89: =+生産管理!AG112 -> 0 | AH89: =+生産管理!AH112 -> 323 | AI89: =+生産管理!AI112 -> 0 | AJ89: =+生産管理!AJ112 -> 0 | AK89: =+生産管理!AK112 -> 0 | AL89: =+生産管理!AL112 -> 0 | AM89: =+生産管理!AM112 -> 0 | AN89: =+生産管理!AN112 -> 0 | AO89: =+生産管理!AO112 -> 0 | AP89: =+生産管理!AP112 -> 0 | AQ89: =+生産管理!AQ112 -> 0 | AR89: =+生産管理!AR112 -> 0 | AS89: =+生産管理!AS112 -> 0 | AT89: =+生産管理!AT112 -> 0 | AU89: =+生産管理!AU112 -> 0 | AV89: =+生産管理!AV112 -> 0 | AW89: =+生産管理!AW112 -> 0 | AX89: =+生産管理!AX112 -> 0 | AY89: =+生産管理!AY112 -> 0 | AZ89: =+生産管理!AZ112 -> 0 | BA89: =+生産管理!BA112 -> 0 | BB89: =+生産管理!BB112 -> 0 | BC89: =+生産管理!BC112 -> 0 | BD89: =+生産管理!BD112 -> 0 | BE89: =+生産管理!BE112 -> 0 | BF89: =+生産管理!BF112 -> 0 | BG89: =+生産管理!BG112 -> 0 | BH89: =+生産管理!BH112 -> 0 | BI89: =+生産管理!BI112 -> 0 | BJ89: =+生産管理!BJ112 -> 0 | BK89: =+生産管理!BL112 -> 0 | BL89: =+生産管理!BM112 -> 0 | BM89: =+生産管理!BN112 -> 0 | BN89: =+生産管理!BO112 -> 0 | BO89: =+生産管理!BP112 -> 0 | BP89: =+生産管理!BQ112 -> 0 | BQ89: =+生産管理!BR112 -> 0 | BR89: =+生産管理!BS112 -> 0 | BS89: =+生産管理!BT112 -> 0 | BT89: =+生産管理!BU112 -> 0 | BU89: =+生産管理!BV112 -> 0 | BV89: =+生産管理!BW112 -> 0 | BW89: =+生産管理!BX112 -> 0 | BX89: =+生産管理!BY112 -> 0 | BY89: =+生産管理!BZ112 -> 0 | BZ89: =+生産管理!CA112 -> 0 | CA89: =+生産管理!CB112 -> 0 | CB89: =+生産管理!CC112 -> 0 | CC89: =+生産管理!CD112 -> 0 | CD89: =+生産管理!CE112 -> 0 | CE89: =+生産管理!CF112 -> 0 | CF89: =+生産管理!CG112 -> 0 | CG89: =+生産管理!CH112 -> 0 | CH89: =+生産管理!CI112 -> 0 | CI89: =+生産管理!CJ112 -> 0 | CJ89: =+生産管理!CK112 -> 0 | CK89: =+生産管理!CL112 -> 0 | CL89: =+生産管理!CM112 -> 0 | CM89: =+生産管理!CN112 -> 0 | CN89: =+生産管理!CO112 -> 0 | CO89: =+生産管理!CP112 -> 0 | CP89: =+生産管理!CQ112 -> 0 | CQ89: =+生産管理!CS112 -> 0 | CR89: =+生産管理!CT112 -> 0 | CS89: =+生産管理!CU112 -> 0 | CT89: =+生産管理!CV112 -> 0 | CU89: =+生産管理!CW112 -> 0 | CV89: =+生産管理!CX112 -> 0 | CW89: =+生産管理!CY112 -> 0 | CX89: =+生産管理!CZ112 -> 0 | CY89: =+生産管理!DA112 -> 0 | CZ89: =+生産管理!DB112 -> 0 | DA89: =+生産管理!DC112 -> 0 | DB89: =+生産管理!DD112 -> 0 | DC89: =+生産管理!DE112 -> 0 | DD89: =+生産管理!DF112 -> 0 | DE89: =+生産管理!DG112 -> 0 | DF89: =+生産管理!DH112 -> 0 | DG89: =+生産管理!DI112 -> 0 | DH89: =+生産管理!DJ112 -> 0 | DI89: =+生産管理!DK112 -> 0 | DJ89: =+生産管理!DL112 -> 0 | DK89: =+生産管理!DM112 -> 0 | DL89: =+生産管理!DN112 -> 0 | DM89: =+生産管理!DO112 -> 0 | DN89: =+生産管理!DP112 -> 0 | DO89: =+生産管理!DQ112 -> 0 | DP89: =+生産管理!DR112 -> 0 | DQ89: =+生産管理!DS112 -> 0 | DR89: =+生産管理!DT112 -> 0 | DS89: =+生産管理!DU112 -> 0 | DT89: =+生産管理!DV112 -> 0 | DU89: =+生産管理!DW112 -> 0 | DV89: =+生産管理!DX112 -> 0 | DW89: =+生産管理!DY112 -> 0 | DX89: =+生産管理!DZ112 -> 0 | DY89: =+生産管理!EA112 -> 0 | DZ89: =+生産管理!EB112 -> 0 | EA89: =+生産管理!EC112 -> 0 | EB89: =+生産管理!ED112 -> 0 | EC89: =+生産管理!EE112 -> 0 | ED89: =+生産管理!EF112 -> 0 | EE89: =+生産管理!EG112 -> 0 | EF89: =+生産管理!EH112 -> 0 | EG89: =+生産管理!EI112 -> 0 | EH89: =+生産管理!EJ112 -> 0 | EI89: =+生産管理!EK112 -> 0 | EJ89: =+生産管理!EL112 -> 0 | EK89: =+生産管理!EM112 -> 0 | EL89: =+生産管理!EN112 -> 0 | EM89: =+生産管理!EO112 -> 0 | EN89: =+生産管理!EP112 -> 0 | EO89: =+生産管理!EQ112 -> 0 | EP89: =+生産管理!ER112 -> 0 | EQ89: =+生産管理!ES112 -> 0 | ER89: =+生産管理!ET112 -> 0 | ES89: =+生産管理!EU112 -> 0 | ET89: =+生産管理!EV112 -> 0 | EU89: =+生産管理!EW112 -> 0 | EV89: =+生産管理!EX112 -> 0 | EW89: =+生産管理!EY112 -> 0 | EX89: =+生産管理!EZ112 -> 0 | EY89: =+生産管理!FA112 -> 0 | EZ89: =+生産管理!FB112 -> 0 | FA89: =+生産管理!FC112 -> 0 | FB89: =+生産管理!FD112 -> 0 | FC89: =+生産管理!FE112 -> 0 | FD89: =+生産管理!FF112 -> 0 | FE89: =+生産管理!FG112 -> 0 | FF89: =+生産管理!FH112 -> 0 | FG89: =+生産管理!FI112 -> 0 | FH89: =+生産管理!FJ112 -> 0 | FI89: =+生産管理!FK112 -> 0 | FJ89: =+生産管理!FL112 -> 0 | FK89: =+生産管理!FM112 -> 0 | FL89: =+生産管理!FN112 -> 0 | FM89: =+生産管理!FO112 -> 0 | FN89: =+生産管理!FP112 -> 0 | FO89: =+生産管理!FQ112 -> 0 | FP89: =+生産管理!FR112 -> 0 | FQ89: =+生産管理!FS112 -> 0 | FR89: =+生産管理!FT112 -> 0 | FS89: =+生産管理!FU112 -> 0 | FT89: =+生産管理!FV112 -> 0 | FU89: =+生産管理!FW112 -> 0 | FV89: =+生産管理!FX112 -> 0 | FW89: =+生産管理!FY112 -> 0 | FX89: =+生産管理!FZ112 -> 0 | FY89: =+生産管理!GA112 -> 0 | FZ89: =+生産管理!GB112 -> 0 | GA89: =+生産管理!GC112 -> 0 | GB89: =+生産管理!GD112 -> 0 | GC89: =+生産管理!GE112 -> 0 | GD89: =+生産管理!GF112 -> 0 | GE89: =+生産管理!GG112 -> 0 | GF89: =+生産管理!GH112 -> 0 | GG89: =+生産管理!GI112 -> 0 | GH89: =+生産管理!GJ112 -> 0 | GI89: =+生産管理!GK112 -> 0 | GJ89: =+生産管理!GL112 -> 0 | GK89: =+生産管理!GM112 -> 0 | GL89: =+生産管理!GN112 -> 0 | GM89: =+生産管理!GO112 -> 0 | GN89: =+生産管理!GP112 -> 0 | GO89: =+生産管理!GQ112 -> 0 | GP89: =+生産管理!GR112 -> 0 | GQ89: =+生産管理!GS112 -> 0 | GR89: =+生産管理!GT112 -> 0 | GS89: =+生産管理!GU112 -> 0 | GT89: =+生産管理!GV112 -> 0 | GU89: =+生産管理!GW112 -> 0 | GV89: =+生産管理!GX112 -> 0 | GW89: =+生産管理!GY112 -> 0 | GX89: =+生産管理!GZ112 -> 0 | GY89: =+生産管理!HA112 -> 0 | GZ89: =+生産管理!HB112 -> 0 | HA89: =+生産管理!HC112 -> 0 | HB89: =+生産管理!HD112 -> 0 | HC89: =+生産管理!HE112 -> 0 | HD89: =+生産管理!HF112 -> 0 | HE89: =+生産管理!HG112 -> 0 | HF89: =+生産管理!HH112 -> 0 | HG89: =+生産管理!HI112 -> 0 | HH89: =+生産管理!HJ112 -> 0 | HI89: =+生産管理!HK112 -> 0 | HJ89: =+生産管理!HL112 -> 0 | HK89: =+生産管理!HM112 -> 0 | HL89: =+生産管理!HN112 -> 0 | HM89: =+生産管理!HO112 -> 0 | HN89: =+生産管理!HP112 -> 0 | HO89: =+生産管理!HQ112 -> 0 | HP89: =+生産管理!HR112 -> 0 | HQ89: =+生産管理!HS112 -> 0 | HR89: =+生産管理!HT112 -> 0 | HS89: =+生産管理!HU112 -> 0 | HT89: =+生産管理!HV112 -> 0 | HU89: =+生産管理!HW112 -> 0 | HV89: =+生産管理!HX112 -> 0 | HW89: =+生産管理!HY112 -> 0 | HX89: =+生産管理!HZ112 -> 0 | HY89: =+生産管理!IA112 -> 0 | HZ89: =+生産管理!IB112 -> 0 | IA89: =+生産管理!IC112 -> 0
A90: 20 | B90: MCS_CB | C90: 20 | D90: MCS_CB | F90: =N89 -> 1046 | G90: 0 | H90: 0 | I90: 0 | J90: 0 | K90: 0 | L90: 0 | M90: 鋳造数 | N90: 1186 | O90: 0 | P90: 0 | Q90: 0 | R90: 0 | S90: =SUM(FQ90:GU90) -> 0 | T90: =SUM(GV90:HY90) -> 0 | AD90: 106 | AE90: 444 | AF90: 291 | AH90: 345
A91: 20 | B91: MCS_CB | C91: 20 | D91: MCS_CB | F91: =N89 -> 1046 | G91: 0 | H91: 0 | I91: 0 | J91: 0 | K91: 0 | L91: 0 | M91: 捨吹①金具 | N91: =SUM(V91:AY91) -> 27 | O91: =SUM(BA91:CD91) -> 0 | P91: 0 | Q91: =SUM(DJ91:EM91) -> 0 | R91: =SUM(EN91:FP91) -> 0 | S91: =SUM(FQ91:GU91) -> 0 | T91: =SUM(GV91:HY91) -> 0 | AD91: 9 | AE91: 8 | AF91: 7 | AH91: 3
A92: 20 | B92: MCS_CB | C92: 20 | D92: MCS_CB | F92: =N89 -> 1046 | G92: 0 | H92: 0 | I92: 0 | J92: 0 | K92: 0 | L92: 0 | M92: 捨吹②金具 | N92: 28 | O92: 0 | P92: 0 | Q92: 0 | R92: 0 | S92: 0 | T92: 0 | AD92: 5 | AE92: 10 | AF92: 7 | AH92: 6
A93: 20 | B93: MCS_CB | C93: 20 | D93: MCS_CB | F93: =N89 -> 1046 | G93: 0 | H93: 0 | I93: 0 | J93: 0 | K93: 0 | L93: 0 | M93: 廃却品 | N93: 85 | O93: 0 | P93: 0 | Q93: 0 | R93: 0 | S93: 0 | T93: 0 | AD93: 17 | AE93: 39 | AF93: 16 | AH93: 13
A94: 20 | B94: MCS_CB | C94: 20 | D94: MCS_CB | F94: =N89 -> 1046 | G94: 0 | H94: 0 | I94: 0 | J94: 0 | K94: 0 | L94: 0 | M94: 良品 | N94: 1046 | O94: 0 | P94: 0 | Q94: 0 | R94: 0 | S94: 0 | T94: 0 | V94: =SUM(V90-V91-V92-V93) -> 0 | W94: 0 | X94: 0 | Y94: 0 | Z94: 0 | AA94: 0 | AB94: 0 | AC94: 0 | AD94: 75 | AE94: 387 | AF94: 261 | AG94: 0 | AH94: 323 | AI94: 0 | AJ94: 0 | AK94: 0 | AL94: 0 | AM94: 0 | AN94: 0 | AO94: 0 | AP94: 0 | AQ94: 0 | AR94: 0 | AS94: 0 | AT94: 0 | AU94: 0 | AV94: 0 | AW94: 0 | AX94: 0 | AY94: 0 | AZ94: 0 | BA94: 0 | BB94: 0 | BC94: 0 | BD94: 0 | BE94: 0 | BF94: 0 | BG94: 0 | BH94: 0 | BI94: 0 | BJ94: 0 | BK94: 0 | BL94: 0 | BM94: 0 | BN94: 0 | BO94: 0 | BP94: 0 | BQ94: 0 | BR94: 0 | BS94: 0 | BT94: 0 | BU94: 0 | BV94: 0 | BW94: 0 | BX94: 0 | BY94: 0 | BZ94: 0 | CA94: 0 | CB94: 0 | CC94: 0 | CD94: 0 | CE94: 0 | CF94: 0 | CG94: 0 | CH94: =SUM(CH90-CH91-CH92-CH93) -> 0 | CI94: 0 | CJ94: 0 | CK94: 0 | CL94: 0 | CM94: 0 | CN94: 0 | CO94: 0 | CP94: 0 | CQ94: 0 | CR94: 0 | CS94: 0 | CT94: 0 | CU94: 0 | CV94: 0 | CW94: 0 | CX94: 0 | CY94: 0 | CZ94: 0 | DA94: 0 | DB94: 0 | DC94: 0 | DD94: 0 | DE94: 0 | DF94: 0 | DG94: 0 | DH94: 0 | DI94: 0 | DJ94: 0 | DK94: 0 | DL94: 0 | DM94: 0 | DN94: 0 | DO94: 0 | DP94: 0 | DQ94: 0 | DR94: 0 | DS94: 0 | DT94: 0 | DU94: 0 | DV94: 0 | DW94: 0 | DX94: 0 | DY94: 0 | DZ94: 0 | EA94: 0 | EB94: 0 | EC94: 0 | ED94: 0 | EE94: 0 | EF94: 0 | EG94: 0 | EH94: 0 | EI94: 0 | EJ94: 0 | EK94: 0 | EL94: 0 | EM94: 0 | EN94: 0 | EO94: 0 | EP94: 0 | EQ94: 0 | ER94: 0 | ES94: 0 | ET94: =SUM(ET90-ET91-ET92-ET93) -> 0 | EU94: 0 | EV94: 0 | EW94: 0 | EX94: 0 | EY94: 0 | EZ94: 0 | FA94: 0 | FB94: 0 | FC94: 0 | FD94: 0 | FE94: 0 | FF94: 0 | FG94: 0 | FH94: 0 | FI94: 0 | FJ94: 0 | FK94: 0 | FL94: 0 | FM94: 0 | FN94: 0 | FO94: 0 | FP94: 0 | FQ94: 0 | FR94: 0 | FS94: 0 | FT94: 0 | FU94: 0 | FV94: 0 | FW94: 0 | FX94: 0 | FY94: 0 | FZ94: 0 | GA94: 0 | GB94: 0 | GC94: 0 | GD94: 0 | GE94: 0 | GF94: 0 | GG94: 0 | GH94: 0 | GI94: 0 | GJ94: 0 | GK94: 0 | GL94: 0 | GM94: 0 | GN94: 0 | GO94: 0 | GP94: 0 | GQ94: 0 | GR94: 0 | GS94: 0 | GT94: 0 | GU94: 0 | GV94: 0 | GW94: 0 | GX94: 0 | GY94: 0 | GZ94: 0 | HA94: 0 | HB94: 0 | HC94: 0 | HD94: 0 | HE94: 0 | HF94: =SUM(HF90-HF91-HF92-HF93) -> 0 | HG94: 0 | HH94: 0 | HI94: 0 | HJ94: 0 | HK94: 0 | HL94: 0 | HM94: 0 | HN94: 0 | HO94: 0 | HP94: 0 | HQ94: 0 | HR94: 0 | HS94: 0 | HT94: 0 | HU94: 0 | HV94: 0 | HW94: 0 | HX94: 0 | HY94: 0 | HZ94: 0 | IA94: 0
A95: 20 | B95: MCS_CB | C95: 20 | D95: ZVP_Mo/C | F95: =N95 -> 0 | G95: 300 | H95: 0 | I95: 0 | J95: 0 | K95: 0 | L95: 0 | M95: 計画数 | N95: =SUM(V95:AY95) -> 0 | O95: =SUM(BA95:CD95) -> 300 | P95: 0 | Q95: =SUM(DJ95:EM95) -> 0 | R95: =SUM(EN95:FP95) -> 0 | S95: =SUM(FQ95:GU95) -> 0 | T95: =SUM(GV95:HY95) -> 0 | V95: =+生産管理!V115 -> 0 | W95: =+生産管理!W115 -> 0 | X95: =+生産管理!X115 -> 0 | Y95: =+生産管理!Y115 -> 0 | Z95: =+生産管理!Z115 -> 0 | AA95: =+生産管理!AA115 -> 0 | AB95: =+生産管理!AB115 -> 0 | AC95: =+生産管理!AC115 -> 0 | AD95: =+生産管理!AD115 -> 0 | AE95: =+生産管理!AE115 -> 0 | AF95: =+生産管理!AF115 -> 0 | AG95: =+生産管理!AG115 -> 0 | AH95: =+生産管理!AH115 -> 0 | AI95: =+生産管理!AI115 -> 0 | AJ95: =+生産管理!AJ115 -> 0 | AK95: =+生産管理!AK115 -> 0 | AL95: =+生産管理!AL115 -> 0 | AM95: =+生産管理!AM115 -> 0 | AN95: =+生産管理!AN115 -> 0 | AO95: =+生産管理!AO115 -> 0 | AP95: =+生産管理!AP115 -> 0 | AQ95: =+生産管理!AQ115 -> 0 | AR95: =+生産管理!AR115 -> 0 | AS95: =+生産管理!AS115 -> 0 | AT95: =+生産管理!AT115 -> 0 | AU95: =+生産管理!AU115 -> 0 | AV95: =+生産管理!AV115 -> 0 | AW95: =+生産管理!AW115 -> 0 | AX95: =+生産管理!AX115 -> 0 | AY95: =+生産管理!AY115 -> 0 | AZ95: =+生産管理!AZ115 -> 0 | BA95: =+生産管理!BA115 -> 0 | BB95: =+生産管理!BB115 -> 0 | BC95: =+生産管理!BC115 -> 0 | BD95: =+生産管理!BD115 -> 0 | BE95: =+生産管理!BE115 -> 300 | BF95: =+生産管理!BF115 -> 0 | BG95: =+生産管理!BG115 -> 0 | BH95: =+生産管理!BH115 -> 0 | BI95: =+生産管理!BI115 -> 0 | BJ95: =+生産管理!BJ115 -> 0 | BK95: =+生産管理!BL115 -> 0 | BL95: =+生産管理!BM115 -> 0 | BM95: =+生産管理!BN115 -> 0 | BN95: =+生産管理!BO115 -> 0 | BO95: =+生産管理!BP115 -> 0 | BP95: =+生産管理!BQ115 -> 0 | BQ95: =+生産管理!BR115 -> 0 | BR95: =+生産管理!BS115 -> 0 | BS95: =+生産管理!BT115 -> 0 | BT95: =+生産管理!BU115 -> 0 | BU95: =+生産管理!BV115 -> 0 | BV95: =+生産管理!BW115 -> 0 | BW95: =+生産管理!BX115 -> 0 | BX95: =+生産管理!BY115 -> 0 | BY95: =+生産管理!BZ115 -> 0 | BZ95: =+生産管理!CA115 -> 0 | CA95: =+生産管理!CB115 -> 0 | CB95: =+生産管理!CC115 -> 0 | CC95: =+生産管理!CD115 -> 0 | CD95: =+生産管理!CE115 -> 0 | CE95: =+生産管理!CF115 -> 0 | CF95: =+生産管理!CG115 -> 0 | CG95: =+生産管理!CH115 -> 0 | CH95: =+生産管理!CI115 -> 0 | CI95: =+生産管理!CJ115 -> 0 | CJ95: =+生産管理!CK115 -> 0 | CK95: =+生産管理!CL115 -> 0 | CL95: =+生産管理!CM115 -> 0 | CM95: =+生産管理!CN115 -> 0 | CN95: =+生産管理!CO115 -> 0 | CO95: =+生産管理!CP115 -> 0 | CP95: =+生産管理!CQ115 -> 0 | CQ95: =+生産管理!CS115 -> 0 | CR95: =+生産管理!CT115 -> 0 | CS95: =+生産管理!CU115 -> 0 | CT95: =+生産管理!CV115 -> 0 | CU95: =+生産管理!CW115 -> 0 | CV95: =+生産管理!CX115 -> 0 | CW95: =+生産管理!CY115 -> 0 | CX95: =+生産管理!CZ115 -> 0 | CY95: =+生産管理!DA115 -> 0 | CZ95: =+生産管理!DB115 -> 0 | DA95: =+生産管理!DC115 -> 0 | DB95: =+生産管理!DD115 -> 0 | DC95: =+生産管理!DE115 -> 0 | DD95: =+生産管理!DF115 -> 0 | DE95: =+生産管理!DG115 -> 0 | DF95: =+生産管理!DH115 -> 0 | DG95: =+生産管理!DI115 -> 0 | DH95: =+生産管理!DJ115 -> 0 | DI95: =+生産管理!DK115 -> 0 | DJ95: =+生産管理!DL115 -> 0 | DK95: =+生産管理!DM115 -> 0 | DL95: =+生産管理!DN115 -> 0 | DM95: =+生産管理!DO115 -> 0 | DN95: =+生産管理!DP115 -> 0 | DO95: =+生産管理!DQ115 -> 0 | DP95: =+生産管理!DR115 -> 0 | DQ95: =+生産管理!DS115 -> 0 | DR95: =+生産管理!DT115 -> 0 | DS95: =+生産管理!DU115 -> 0 | DT95: =+生産管理!DV115 -> 0 | DU95: =+生産管理!DW115 -> 0 | DV95: =+生産管理!DX115 -> 0 | DW95: =+生産管理!DY115 -> 0 | DX95: =+生産管理!DZ115 -> 0 | DY95: =+生産管理!EA115 -> 0 | DZ95: =+生産管理!EB115 -> 0 | EA95: =+生産管理!EC115 -> 0 | EB95: =+生産管理!ED115 -> 0 | EC95: =+生産管理!EE115 -> 0 | ED95: =+生産管理!EF115 -> 0 | EE95: =+生産管理!EG115 -> 0 | EF95: =+生産管理!EH115 -> 0 | EG95: =+生産管理!EI115 -> 0 | EH95: =+生産管理!EJ115 -> 0 | EI95: =+生産管理!EK115 -> 0 | EJ95: =+生産管理!EL115 -> 0 | EK95: =+生産管理!EM115 -> 0 | EL95: =+生産管理!EN115 -> 0 | EM95: =+生産管理!EO115 -> 0 | EN95: =+生産管理!EP115 -> 0 | EO95: =+生産管理!EQ115 -> 0 | EP95: =+生産管理!ER115 -> 0 | EQ95: =+生産管理!ES115 -> 0 | ER95: =+生産管理!ET115 -> 0 | ES95: =+生産管理!EU115 -> 0 | ET95: =+生産管理!EV115 -> 0 | EU95: =+生産管理!EW115 -> 0 | EV95: =+生産管理!EX115 -> 0 | EW95: =+生産管理!EY115 -> 0 | EX95: =+生産管理!EZ115 -> 0 | EY95: =+生産管理!FA115 -> 0 | EZ95: =+生産管理!FB115 -> 0 | FA95: =+生産管理!FC115 -> 0 | FB95: =+生産管理!FD115 -> 0 | FC95: =+生産管理!FE115 -> 0 | FD95: =+生産管理!FF115 -> 0 | FE95: =+生産管理!FG115 -> 0 | FF95: =+生産管理!FH115 -> 0 | FG95: =+生産管理!FI115 -> 0 | FH95: =+生産管理!FJ115 -> 0 | FI95: =+生産管理!FK115 -> 0 | FJ95: =+生産管理!FL115 -> 0 | FK95: =+生産管理!FM115 -> 0 | FL95: =+生産管理!FN115 -> 0 | FM95: =+生産管理!FO115 -> 0 | FN95: =+生産管理!FP115 -> 0 | FO95: =+生産管理!FQ115 -> 0 | FP95: =+生産管理!FR115 -> 0 | FQ95: =+生産管理!FS115 -> 0 | FR95: =+生産管理!FT115 -> 0 | FS95: =+生産管理!FU115 -> 0 | FT95: =+生産管理!FV115 -> 0 | FU95: =+生産管理!FW115 -> 0 | FV95: =+生産管理!FX115 -> 0 | FW95: =+生産管理!FY115 -> 0 | FX95: =+生産管理!FZ115 -> 0 | FY95: =+生産管理!GA115 -> 0 | FZ95: =+生産管理!GB115 -> 0 | GA95: =+生産管理!GC115 -> 0 | GB95: =+生産管理!GD115 -> 0 | GC95: =+生産管理!GE115 -> 0 | GD95: =+生産管理!GF115 -> 0 | GE95: =+生産管理!GG115 -> 0 | GF95: =+生産管理!GH115 -> 0 | GG95: =+生産管理!GI115 -> 0 | GH95: =+生産管理!GJ115 -> 0 | GI95: =+生産管理!GK115 -> 0 | GJ95: =+生産管理!GL115 -> 0 | GK95: =+生産管理!GM115 -> 0 | GL95: =+生産管理!GN115 -> 0 | GM95: =+生産管理!GO115 -> 0 | GN95: =+生産管理!GP115 -> 0 | GO95: =+生産管理!GQ115 -> 0 | GP95: =+生産管理!GR115 -> 0 | GQ95: =+生産管理!GS115 -> 0 | GR95: =+生産管理!GT115 -> 0 | GS95: =+生産管理!GU115 -> 0 | GT95: =+生産管理!GV115 -> 0 | GU95: =+生産管理!GW115 -> 0 | GV95: =+生産管理!GX115 -> 0 | GW95: =+生産管理!GY115 -> 0 | GX95: =+生産管理!GZ115 -> 0 | GY95: =+生産管理!HA115 -> 0 | GZ95: =+生産管理!HB115 -> 0 | HA95: =+生産管理!HC115 -> 0 | HB95: =+生産管理!HD115 -> 0 | HC95: =+生産管理!HE115 -> 0 | HD95: =+生産管理!HF115 -> 0 | HE95: =+生産管理!HG115 -> 0 | HF95: =+生産管理!HH115 -> 0 | HG95: =+生産管理!HI115 -> 0 | HH95: =+生産管理!HJ115 -> 0 | HI95: =+生産管理!HK115 -> 0 | HJ95: =+生産管理!HL115 -> 0 | HK95: =+生産管理!HM115 -> 0 | HL95: =+生産管理!HN115 -> 0 | HM95: =+生産管理!HO115 -> 0 | HN95: =+生産管理!HP115 -> 0 | HO95: =+生産管理!HQ115 -> 0 | HP95: =+生産管理!HR115 -> 0 | HQ95: =+生産管理!HS115 -> 0 | HR95: =+生産管理!HT115 -> 0 | HS95: =+生産管理!HU115 -> 0 | HT95: =+生産管理!HV115 -> 0 | HU95: =+生産管理!HW115 -> 0 | HV95: =+生産管理!HX115 -> 0 | HW95: =+生産管理!HY115 -> 0 | HX95: =+生産管理!HZ115 -> 0 | HY95: =+生産管理!IA115 -> 0 | HZ95: =+生産管理!IB115 -> 0 | IA95: =+生産管理!IC115 -> 0
A96: 20 | B96: MCS_CB | C96: 20 | D96: MCS_CB | F96: =N95 -> 0 | G96: 300 | H96: 0 | I96: 0 | J96: 0 | K96: 0 | L96: 0 | M96: 鋳造数 | N96: 0 | O96: 389 | P96: 0 | Q96: 0 | R96: 0 | S96: 0 | T96: 0 | BE96: 281 | BF96: 108
A97: 20 | B97: MCS_CB | C97: 20 | D97: MCS_CB | F97: =N95 -> 0 | G97: 300 | H97: 0 | I97: 0 | J97: 0 | K97: 0 | L97: 0 | M97: 捨吹① | N97: 0 | O97: 10 | P97: 0 | Q97: 0 | R97: 0 | S97: 0 | T97: 0 | BE97: 7 | BF97: 3
A98: 20 | B98: MCS_CB | C98: 20 | D98: MCS_CB | F98: =N95 -> 0 | G98: 300 | H98: 0 | I98: 0 | J98: 0 | K98: 0 | L98: 0 | M98: 捨吹② | N98: 0 | O98: 23 | P98: 0 | Q98: 0 | R98: 0 | S98: 0 | T98: 0 | BE98: 20 | BF98: 3
A99: 20 | B99: MCS_CB | C99: 20 | D99: MCS_CB | F99: =N95 -> 0 | G99: 300 | H99: 0 | I99: 0 | J99: 0 | K99: 0 | L99: 0 | M99: 廃却品 | N99: 0 | O99: 103 | P99: 0 | Q99: 0 | R99: 0 | S99: 0 | T99: 0 | BE99: 79 | BF99: 24
A100: 20 | B100: MCS_CB | C100: 20 | D100: MCS_CB | F100: =N95 -> 0 | G100: 300 | H100: 0 | I100: 0 | J100: 0 | K100: 0 | L100: 0 | M100: 良品 | N100: 0 | O100: 253 | P100: 0 | Q100: 0 | R100: 0 | S100: 0 | T100: 0 | V100: =SUM(V96-V97-V98-V99) -> 0 | W100: =SUM(W96-W97-W98-W99) -> 0 | X100: 0 | Y100: 0 | Z100: 0 | AA100: 0 | AB100: 0 | AC100: 0 | AD100: 0 | AE100: 0 | AF100: 0 | AG100: 0 | AH100: 0 | AI100: 0 | AJ100: 0 | AK100: 0 | AL100: 0 | AM100: 0 | AN100: 0 | AO100: 0 | AP100: 0 | AQ100: 0 | AR100: 0 | AS100: 0 | AT100: 0 | AU100: 0 | AV100: 0 | AW100: 0 | AX100: 0 | AY100: 0 | AZ100: 0 | BA100: 0 | BB100: 0 | BC100: 0 | BD100: 0 | BE100: 175 | BF100: 78 | BG100: 0 | BH100: 0 | BI100: 0 | BJ100: 0 | BK100: 0 | BL100: 0 | BM100: 0 | BN100: 0 | BO100: 0 | BP100: 0 | BQ100: 0 | BR100: 0 | BS100: 0 | BT100: 0 | BU100: 0 | BV100: 0 | BW100: 0 | BX100: 0 | BY100: 0 | BZ100: 0 | CA100: 0 | CB100: 0 | CC100: 0 | CD100: 0 | CE100: 0 | CF100: 0 | CG100: 0 | CH100: 0 | CI100: =SUM(CI96-CI97-CI98-CI99) -> 0 | CJ100: 0 | CK100: 0 | CL100: 0 | CM100: 0 | CN100: 0 | CO100: 0 | CP100: 0 | CQ100: 0 | CR100: 0 | CS100: 0 | CT100: 0 | CU100: 0 | CV100: 0 | CW100: 0 | CX100: 0 | CY100: 0 | CZ100: 0 | DA100: 0 | DB100: 0 | DC100: 0 | DD100: 0 | DE100: 0 | DF100: 0 | DG100: 0 | DH100: 0 | DI100: 0 | DJ100: 0 | DK100: 0 | DL100: 0 | DM100: 0 | DN100: 0 | DO100: 0 | DP100: 0 | DQ100: 0 | DR100: 0 | DS100: 0 | DT100: 0 | DU100: 0 | DV100: 0 | DW100: 0 | DX100: 0 | DY100: 0 | DZ100: 0 | EA100: 0 | EB100: 0 | EC100: 0 | ED100: 0 | EE100: 0 | EF100: 0 | EG100: 0 | EH100: 0 | EI100: 0 | EJ100: 0 | EK100: 0 | EL100: 0 | EM100: 0 | EN100: 0 | EO100: 0 | EP100: 0 | EQ100: 0 | ER100: 0 | ES100: 0 | ET100: 0 | EU100: =SUM(EU96-EU97-EU98-EU99) -> 0 | EV100: 0 | EW100: 0 | EX100: 0 | EY100: 0 | EZ100: 0 | FA100: 0 | FB100: 0 | FC100: 0 | FD100: 0 | FE100: 0 | FF100: 0 | FG100: 0 | FH100: 0 | FI100: 0 | FJ100: 0 | FK100: 0 | FL100: 0 | FM100: 0 | FN100: 0 | FO100: 0 | FP100: 0 | FQ100: 0 | FR100: 0 | FS100: 0 | FT100: 0 | FU100: 0 | FV100: 0 | FW100: 0 | FX100: 0 | FY100: 0 | FZ100: 0 | GA100: 0 | GB100: 0 | GC100: 0 | GD100: 0 | GE100: 0 | GF100: 0 | GG100: 0 | GH100: 0 | GI100: 0 | GJ100: 0 | GK100: 0 | GL100: 0 | GM100: 0 | GN100: 0 | GO100: 0 | GP100: 0 | GQ100: 0 | GR100: 0 | GS100: 0 | GT100: 0 | GU100: 0 | GV100: 0 | GW100: 0 | GX100: 0 | GY100: 0 | GZ100: 0 | HA100: 0 | HB100: 0 | HC100: 0 | HD100: 0 | HE100: 0 | HF100: 0 | HG100: =SUM(HG96-HG97-HG98-HG99) -> 0 | HH100: 0 | HI100: 0 | HJ100: 0 | HK100: 0 | HL100: 0 | HM100: 0 | HN100: 0 | HO100: 0 | HP100: 0 | HQ100: 0 | HR100: 0 | HS100: 0 | HT100: 0 | HU100: 0 | HV100: 0 | HW100: 0 | HX100: 0 | HY100: 0 | HZ100: 0 | IA100: 0
A101: 20 | B101: MCA_R_CB | C101: 16 | D101: MKC_R_CB | F101: =N101 -> 539 | G101: 800 | H101: 0 | I101: 0 | J101: 0 | K101: 0 | L101: 0 | M101: 計画数 | N101: 539 | O101: 800 | P101: 0 | Q101: 0 | R101: 0 | S101: =SUM(FQ101:GU101) -> 0 | T101: =SUM(GV101:HY101) -> 0 | V101: =+生産管理!V123 -> 0 | W101: =+生産管理!W123 -> 0 | X101: =+生産管理!X123 -> 69 | Y101: =+生産管理!Y123 -> 241 | Z101: =+生産管理!Z123 -> 1 | AA101: =+生産管理!AA123 -> 0 | AB101: =+生産管理!AB123 -> 0 | AC101: =+生産管理!AC123 -> 0 | AD101: =+生産管理!AD123 -> 0 | AE101: =+生産管理!AE123 -> 212 | AF101: =+生産管理!AF123 -> 16 | AG101: =+生産管理!AG123 -> 0 | AH101: =+生産管理!AH123 -> 0 | AI101: =+生産管理!AI123 -> 0 | AJ101: =+生産管理!AJ123 -> 0 | AK101: =+生産管理!AK123 -> 0 | AL101: =+生産管理!AL123 -> 0 | AM101: =+生産管理!AM123 -> 0 | AN101: =+生産管理!AN123 -> 0 | AO101: =+生産管理!AO123 -> 0 | AP101: =+生産管理!AP123 -> 0 | AQ101: =+生産管理!AQ123 -> 0 | AR101: =+生産管理!AR123 -> 0 | AS101: =+生産管理!AS123 -> 0 | AT101: =+生産管理!AT123 -> 0 | AU101: =+生産管理!AU123 -> 0 | AV101: =+生産管理!AV123 -> 0 | AW101: =+生産管理!AW123 -> 0 | AX101: =+生産管理!AX123 -> 0 | AY101: =+生産管理!AY123 -> 0 | AZ101: =+生産管理!AZ123 -> 0 | BA101: =+生産管理!BA123 -> 0 | BB101: =+生産管理!BB123 -> 0 | BC101: =+生産管理!BC123 -> 0 | BD101: =+生産管理!BD123 -> 0 | BE101: =+生産管理!BE123 -> 400 | BF101: =+生産管理!BF123 -> 400 | BG101: =+生産管理!BG123 -> 0 | BH101: =+生産管理!BH123 -> 0 | BI101: =+生産管理!BI123 -> 0 | BJ101: =+生産管理!BJ123 -> 0 | BK101: =+生産管理!BL123 -> 0 | BL101: =+生産管理!BM123 -> 0 | BM101: =+生産管理!BN123 -> 0 | BN101: =+生産管理!BO123 -> 0 | BO101: =+生産管理!BP123 -> 0 | BP101: =+生産管理!BQ123 -> 0 | BQ101: =+生産管理!BR123 -> 0 | BR101: =+生産管理!BS123 -> 0 | BS101: =+生産管理!BT123 -> 0 | BT101: =+生産管理!BU123 -> 0 | BU101: =+生産管理!BV123 -> 0 | BV101: =+生産管理!BW123 -> 0 | BW101: =+生産管理!BX123 -> 0 | BX101: =+生産管理!BY123 -> 0 | BY101: =+生産管理!BZ123 -> 0 | BZ101: =+生産管理!CA123 -> 0 | CA101: =+生産管理!CB123 -> 0 | CB101: =+生産管理!CC123 -> 0 | CC101: =+生産管理!CD123 -> 0 | CD101: =+生産管理!CE123 -> 0 | CE101: =+生産管理!CF123 -> 0 | CF101: =+生産管理!CG123 -> 0 | CG101: =+生産管理!CH123 -> 0 | CH101: =+生産管理!CI123 -> 0 | CI101: =+生産管理!CJ123 -> 0 | CJ101: =+生産管理!CK123 -> 0 | CK101: =+生産管理!CL123 -> 0 | CL101: =+生産管理!CM123 -> 0 | CM101: =+生産管理!CN123 -> 0 | CN101: =+生産管理!CO123 -> 0 | CO101: =+生産管理!CP123 -> 0 | CP101: =+生産管理!CQ123 -> 0 | CQ101: =+生産管理!CS123 -> 0 | CR101: =+生産管理!CT123 -> 0 | CS101: =+生産管理!CU123 -> 0 | CT101: =+生産管理!CV123 -> 0 | CU101: =+生産管理!CW123 -> 0 | CV101: =+生産管理!CX123 -> 0 | CW101: =+生産管理!CY123 -> 0 | CX101: =+生産管理!CZ123 -> 0 | CY101: =+生産管理!DA123 -> 0 | CZ101: =+生産管理!DB123 -> 0 | DA101: =+生産管理!DC123 -> 0 | DB101: =+生産管理!DD123 -> 0 | DC101: =+生産管理!DE123 -> 0 | DD101: =+生産管理!DF123 -> 0 | DE101: =+生産管理!DG123 -> 0 | DF101: =+生産管理!DH123 -> 0 | DG101: =+生産管理!DI123 -> 0 | DH101: =+生産管理!DJ123 -> 0 | DI101: =+生産管理!DK123 -> 0 | DJ101: =+生産管理!DL123 -> 0 | DK101: =+生産管理!DM123 -> 0 | DL101: =+生産管理!DN123 -> 0 | DM101: =+生産管理!DO123 -> 0 | DN101: =+生産管理!DP123 -> 0 | DO101: =+生産管理!DQ123 -> 0 | DP101: =+生産管理!DR123 -> 0 | DQ101: =+生産管理!DS123 -> 0 | DR101: =+生産管理!DT123 -> 0 | DS101: =+生産管理!DU123 -> 0 | DT101: =+生産管理!DV123 -> 0 | DU101: =+生産管理!DW123 -> 0 | DV101: =+生産管理!DX123 -> 0 | DW101: =+生産管理!DY123 -> 0 | DX101: =+生産管理!DZ123 -> 0 | DY101: =+生産管理!EA123 -> 0 | DZ101: =+生産管理!EB123 -> 0 | EA101: =+生産管理!EC123 -> 0 | EB101: =+生産管理!ED123 -> 0 | EC101: =+生産管理!EE123 -> 0 | ED101: =+生産管理!EF123 -> 0 | EE101: =+生産管理!EG123 -> 0 | EF101: =+生産管理!EH123 -> 0 | EG101: =+生産管理!EI123 -> 0 | EH101: =+生産管理!EJ123 -> 0 | EI101: =+生産管理!EK123 -> 0 | EJ101: =+生産管理!EL123 -> 0 | EK101: =+生産管理!EM123 -> 0 | EL101: =+生産管理!EN123 -> 0 | EM101: =+生産管理!EO123 -> 0 | EN101: =+生産管理!EP123 -> 0 | EO101: =+生産管理!EQ123 -> 0 | EP101: =+生産管理!ER123 -> 0 | EQ101: =+生産管理!ES123 -> 0 | ER101: =+生産管理!ET123 -> 0 | ES101: =+生産管理!EU123 -> 0 | ET101: =+生産管理!EV123 -> 0 | EU101: =+生産管理!EW123 -> 0 | EV101: =+生産管理!EX123 -> 0 | EW101: =+生産管理!EY123 -> 0 | EX101: =+生産管理!EZ123 -> 0 | EY101: =+生産管理!FA123 -> 0 | EZ101: =+生産管理!FB123 -> 0 | FA101: =+生産管理!FC123 -> 0 | FB101: =+生産管理!FD123 -> 0 | FC101: =+生産管理!FE123 -> 0 | FD101: =+生産管理!FF123 -> 0 | FE101: =+生産管理!FG123 -> 0 | FF101: =+生産管理!FH123 -> 0 | FG101: =+生産管理!FI123 -> 0 | FH101: =+生産管理!FJ123 -> 0 | FI101: =+生産管理!FK123 -> 0 | FJ101: =+生産管理!FL123 -> 0 | FK101: =+生産管理!FM123 -> 0 | FL101: =+生産管理!FN123 -> 0 | FM101: =+生産管理!FO123 -> 0 | FN101: =+生産管理!FP123 -> 0 | FO101: =+生産管理!FQ123 -> 0 | FP101: =+生産管理!FR123 -> 0 | FQ101: =+生産管理!FS123 -> 0 | FR101: =+生産管理!FT123 -> 0 | FS101: =+生産管理!FU123 -> 0 | FT101: =+生産管理!FV123 -> 0 | FU101: =+生産管理!FW123 -> 0 | FV101: =+生産管理!FX123 -> 0 | FW101: =+生産管理!FY123 -> 0 | FX101: =+生産管理!FZ123 -> 0 | FY101: =+生産管理!GA123 -> 0 | FZ101: =+生産管理!GB123 -> 0 | GA101: =+生産管理!GC123 -> 0 | GB101: =+生産管理!GD123 -> 0 | GC101: =+生産管理!GE123 -> 0 | GD101: =+生産管理!GF123 -> 0 | GE101: =+生産管理!GG123 -> 0 | GF101: =+生産管理!GH123 -> 0 | GG101: =+生産管理!GI123 -> 0 | GH101: =+生産管理!GJ123 -> 0 | GI101: =+生産管理!GK123 -> 0 | GJ101: =+生産管理!GL123 -> 0 | GK101: =+生産管理!GM123 -> 0 | GL101: =+生産管理!GN123 -> 0 | GM101: =+生産管理!GO123 -> 0 | GN101: =+生産管理!GP123 -> 0 | GO101: =+生産管理!GQ123 -> 0 | GP101: =+生産管理!GR123 -> 0 | GQ101: =+生産管理!GS123 -> 0 | GR101: =+生産管理!GT123 -> 0 | GS101: =+生産管理!GU123 -> 0 | GT101: =+生産管理!GV123 -> 0 | GU101: =+生産管理!GW123 -> 0 | GV101: =+生産管理!GX123 -> 0 | GW101: =+生産管理!GY123 -> 0 | GX101: =+生産管理!GZ123 -> 0 | GY101: =+生産管理!HA123 -> 0 | GZ101: =+生産管理!HB123 -> 0 | HA101: =+生産管理!HC123 -> 0 | HB101: =+生産管理!HD123 -> 0 | HC101: =+生産管理!HE123 -> 0 | HD101: =+生産管理!HF123 -> 0 | HE101: =+生産管理!HG123 -> 0 | HF101: =+生産管理!HH123 -> 0 | HG101: =+生産管理!HI123 -> 0 | HH101: =+生産管理!HJ123 -> 0 | HI101: =+生産管理!HK123 -> 0 | HJ101: =+生産管理!HL123 -> 0 | HK101: =+生産管理!HM123 -> 0 | HL101: =+生産管理!HN123 -> 0 | HM101: =+生産管理!HO123 -> 0 | HN101: =+生産管理!HP123 -> 0 | HO101: =+生産管理!HQ123 -> 0 | HP101: =+生産管理!HR123 -> 0 | HQ101: =+生産管理!HS123 -> 0 | HR101: =+生産管理!HT123 -> 0 | HS101: =+生産管理!HU123 -> 0 | HT101: =+生産管理!HV123 -> 0 | HU101: =+生産管理!HW123 -> 0 | HV101: =+生産管理!HX123 -> 0 | HW101: =+生産管理!HY123 -> 0 | HX101: =+生産管理!HZ123 -> 0 | HY101: =+生産管理!IA123 -> 0 | HZ101: =+生産管理!IB123 -> 0 | IA101: =+生産管理!IC123 -> 0
A102: 20 | B102: MCA_R_CB | C102: 20 | D102: MCA_R_CB | F102: =N101 -> 539 | G102: 800 | H102: 0 | I102: 0 | J102: 0 | K102: 0 | L102: 0 | M102: 鋳造数 | N102: 689 | O102: 877 | P102: 0 | Q102: =SUM(DJ102:EM102) -> 0 | R102: 0 | S102: 0 | T102: 0 | W102: 6 | X102: 110 | Y102: 269 | Z102: 14 | AE102: 244 | AF102: 46 | BE102: 430 | BF102: 447
A103: 20 | B103: MCA_R_CB | C103: 20 | D103: MCA_R_CB | F103: =N101 -> 539 | G103: 800 | H103: 0 | I103: 0 | J103: 0 | K103: 0 | L103: 0 | M103: 捨吹①金具 | N103: 33 | O103: 9 | P103: 0 | Q103: 0 | R103: 0 | S103: 0 | T103: 0 | W103: 4 | X103: 10 | Y103: 6 | Z103: 3 | AE103: 4 | AF103: 6 | BE103: 5 | BF103: 4
A104: 20 | B104: MCA_R_CB | C104: 20 | D104: MCA_R_CB | F104: =N101 -> 539 | G104: 800 | H104: 0 | I104: 0 | J104: 0 | K104: 0 | L104: 0 | M104: 捨吹②金具 | N104: 50 | O104: 13 | P104: 0 | Q104: 0 | R104: 0 | S104: 0 | T104: 0 | W104: 0 | X104: 14 | Y104: 13 | Z104: 7 | AE104: 4 | AF104: 12 | BE104: 10 | BF104: 3
A105: 20 | B105: MCA_R_CB | C105: 20 | D105: MCA_R_CB | F105: =N101 -> 539 | G105: 800 | H105: 0 | I105: 0 | J105: 0 | K105: 0 | L105: 0 | M105: 廃却品 | N105: 67 | O105: 46 | P105: 0 | Q105: =SUM(DJ105:EM105) -> 0 | R105: =SUM(EN105:FP105) -> 0 | S105: 0 | T105: 0 | W105: 2 | X105: 17 | Y105: 9 | Z105: 3 | AE105: 24 | AF105: 12 | BE105: 34 | BF105: 12
A106: 20 | B106: MCA_R_CB | C106: 20 | D106: MCA_R_CB | F106: =N101 -> 539 | G106: 800 | H106: 0 | I106: 0 | J106: 0 | K106: 0 | L106: 0 | M106: 良品 | N106: 539 | O106: 809 | P106: 0 | Q106: 0 | R106: 0 | S106: 0 | T106: 0 | V106: =SUM(V102-V103-V104-V105) -> 0 | W106: 0 | X106: 69 | Y106: 241 | Z106: 1 | AA106: 0 | AB106: 0 | AC106: 0 | AD106: 0 | AE106: 212 | AF106: 16 | AG106: 0 | AH106: 0 | AI106: 0 | AJ106: 0 | AK106: 0 | AL106: 0 | AM106: 0 | AN106: 0 | AO106: 0 | AP106: 0 | AQ106: 0 | AR106: 0 | AS106: 0 | AT106: 0 | AU106: 0 | AV106: 0 | AW106: 0 | AX106: 0 | AY106: 0 | AZ106: 0 | BA106: 0 | BB106: 0 | BC106: 0 | BD106: 0 | BE106: 381 | BF106: 428 | BG106: 0 | BH106: 0 | BI106: 0 | BJ106: 0 | BK106: 0 | BL106: 0 | BM106: 0 | BN106: 0 | BO106: 0 | BP106: 0 | BQ106: 0 | BR106: 0 | BS106: 0 | BT106: 0 | BU106: 0 | BV106: 0 | BW106: 0 | BX106: 0 | BY106: 0 | BZ106: 0 | CA106: 0 | CB106: 0 | CC106: 0 | CD106: 0 | CE106: 0 | CF106: 0 | CG106: 0 | CH106: =SUM(CH102-CH103-CH104-CH105) -> 0 | CI106: 0 | CJ106: 0 | CK106: 0 | CL106: 0 | CM106: 0 | CN106: 0 | CO106: 0 | CP106: 0 | CQ106: 0 | CR106: 0 | CS106: 0 | CT106: 0 | CU106: 0 | CV106: 0 | CW106: 0 | CX106: 0 | CY106: 0 | CZ106: 0 | DA106: 0 | DB106: 0 | DC106: 0 | DD106: 0 | DE106: 0 | DF106: 0 | DG106: 0 | DH106: 0 | DI106: 0 | DJ106: 0 | DK106: 0 | DL106: 0 | DM106: 0 | DN106: 0 | DO106: 0 | DP106: 0 | DQ106: 0 | DR106: 0 | DS106: 0 | DT106: 0 | DU106: 0 | DV106: 0 | DW106: 0 | DX106: 0 | DY106: 0 | DZ106: 0 | EA106: 0 | EB106: 0 | EC106: 0 | ED106: 0 | EE106: 0 | EF106: 0 | EG106: 0 | EH106: 0 | EI106: 0 | EJ106: 0 | EK106: 0 | EL106: 0 | EM106: 0 | EN106: 0 | EO106: 0 | EP106: 0 | EQ106: 0 | ER106: 0 | ES106: 0 | ET106: =SUM(ET102-ET103-ET104-ET105) -> 0 | EU106: 0 | EV106: 0 | EW106: 0 | EX106: 0 | EY106: 0 | EZ106: 0 | FA106: 0 | FB106: 0 | FC106: 0 | FD106: 0 | FE106: 0 | FF106: 0 | FG106: 0 | FH106: 0 | FI106: 0 | FJ106: 0 | FK106: 0 | FL106: 0 | FM106: 0 | FN106: 0 | FO106: 0 | FP106: 0 | FQ106: 0 | FR106: 0 | FS106: 0 | FT106: 0 | FU106: 0 | FV106: 0 | FW106: 0 | FX106: 0 | FY106: 0 | FZ106: 0 | GA106: 0 | GB106: 0 | GC106: 0 | GD106: 0 | GE106: 0 | GF106: 0 | GG106: 0 | GH106: 0 | GI106: 0 | GJ106: 0 | GK106: 0 | GL106: 0 | GM106: 0 | GN106: 0 | GO106: 0 | GP106: 0 | GQ106: 0 | GR106: 0 | GS106: 0 | GT106: 0 | GU106: 0 | GV106: 0 | GW106: 0 | GX106: 0 | GY106: 0 | GZ106: 0 | HA106: 0 | HB106: 0 | HC106: 0 | HD106: 0 | HE106: 0 | HF106: =SUM(HF102-HF103-HF104-HF105) -> 0 | HG106: 0 | HH106: 0 | HI106: 0 | HJ106: 0 | HK106: 0 | HL106: 0 | HM106: 0 | HN106: 0 | HO106: 0 | HP106: 0 | HQ106: 0 | HR106: 0 | HS106: 0 | HT106: 0 | HU106: 0 | HV106: 0 | HW106: 0 | HX106: 0 | HY106: 0 | HZ106: 0 | IA106: 0
C107: 16 | D107: MKRJ_UP | M107: 計画数 | N107: =SUM(V107:AY107) -> 0 | O107: =SUM(BA107:CD107) -> 0 | P107: 0 | Q107: =SUM(DJ107:EM107) -> 0 | R107: =SUM(EN107:FP107) -> 0 | S107: =SUM(FQ107:GU107) -> 0 | T107: =SUM(GV107:HY107) -> 0 | V107: =生産管理!V132 -> 0 | W107: =生産管理!W132 -> 0 | X107: =生産管理!X132 -> 0 | Y107: =生産管理!Y132 -> 0 | Z107: =生産管理!Z132 -> 0 | AA107: =生産管理!AA132 -> 0 | AB107: =生産管理!AB132 -> 0 | AC107: =生産管理!AC132 -> 0 | AD107: =生産管理!AD132 -> 0 | AE107: =生産管理!AE132 -> 0 | AF107: =生産管理!AF132 -> 0 | AG107: =生産管理!AG132 -> 0 | AH107: =生産管理!AH132 -> 0 | AI107: =生産管理!AI132 -> 0 | AJ107: =生産管理!AJ132 -> 0 | AK107: =生産管理!AK132 -> 0 | AL107: =生産管理!AL132 -> 0 | AM107: =生産管理!AM132 -> 0 | AN107: =生産管理!AN132 -> 0 | AO107: =生産管理!AO132 -> 0 | AP107: =生産管理!AP132 -> 0 | AQ107: =生産管理!AQ132 -> 0 | AR107: =生産管理!AR132 -> 0 | AS107: =生産管理!AS132 -> 0 | AT107: =生産管理!AT132 -> 0 | AU107: =生産管理!AU132 -> 0 | AV107: =生産管理!AV132 -> 0 | AW107: =生産管理!AW132 -> 0 | AX107: =生産管理!AX132 -> 0 | AY107: =生産管理!AY132 -> 0 | AZ107: =生産管理!AZ132 -> 0 | BA107: =生産管理!BA132 -> 0 | BB107: =生産管理!BB132 -> 0 | BC107: =生産管理!BC132 -> 0 | BD107: =生産管理!BD132 -> 0 | BE107: =生産管理!BE132 -> 0 | BF107: =生産管理!BF132 -> 0 | BG107: =生産管理!BG132 -> 0 | BH107: =生産管理!BH132 -> 0 | BI107: =生産管理!BI132 -> 0 | BJ107: =生産管理!BJ132 -> 0 | BK107: =生産管理!BL132 -> 0 | BL107: =生産管理!BM132 -> 0 | BM107: =生産管理!BN132 -> 0 | BN107: =生産管理!BO132 -> 0 | BO107: =生産管理!BP132 -> 0 | BP107: =生産管理!BQ132 -> 0 | BQ107: =生産管理!BR132 -> 0 | BR107: =生産管理!BS132 -> 0 | BS107: =生産管理!BT132 -> 0 | BT107: =生産管理!BU132 -> 0 | BU107: =生産管理!BV132 -> 0 | BV107: =生産管理!BW132 -> 0 | BW107: =生産管理!BX132 -> 0 | BX107: =生産管理!BY132 -> 0 | BY107: =生産管理!BZ132 -> 0 | BZ107: =生産管理!CA132 -> 0 | CA107: =生産管理!CB132 -> 0 | CB107: =生産管理!CC132 -> 0 | CC107: =生産管理!CD132 -> 0 | CD107: =生産管理!CE132 -> 0 | CE107: =生産管理!CF132 -> 0 | CF107: =生産管理!CG132 -> 0 | CG107: =生産管理!CH132 -> 0 | CH107: =生産管理!CI132 -> 0 | CI107: =生産管理!CJ132 -> 0 | CJ107: =生産管理!CK132 -> 0 | CK107: =生産管理!CL132 -> 0 | CL107: =生産管理!CM132 -> 0 | CM107: =生産管理!CN132 -> 0 | CN107: =生産管理!CO132 -> 0 | CO107: =生産管理!CP132 -> 0 | CP107: =生産管理!CQ132 -> 0 | CQ107: =生産管理!CS132 -> 0 | CR107: =生産管理!CT132 -> 0 | CS107: =生産管理!CU132 -> 0 | CT107: =生産管理!CV132 -> 0 | CU107: =生産管理!CW132 -> 0 | CV107: =生産管理!CX132 -> 0 | CW107: =生産管理!CY132 -> 0 | CX107: =生産管理!CZ132 -> 0 | CY107: =生産管理!DA132 -> 0 | CZ107: =生産管理!DB132 -> 0 | DA107: =生産管理!DC132 -> 0 | DB107: =生産管理!DD132 -> 0 | DC107: =生産管理!DE132 -> 0 | DD107: =生産管理!DF132 -> 0 | DE107: =生産管理!DG132 -> 0 | DF107: =生産管理!DH132 -> 0 | DG107: =生産管理!DI132 -> 0 | DH107: =生産管理!DJ132 -> 0 | DI107: =生産管理!DK132 -> 0 | DJ107: =生産管理!DL132 -> 0 | DK107: =生産管理!DM132 -> 0 | DL107: =生産管理!DN132 -> 0 | DM107: =生産管理!DO132 -> 0 | DN107: =生産管理!DP132 -> 0 | DO107: =生産管理!DQ132 -> 0 | DP107: =生産管理!DR132 -> 0 | DQ107: =生産管理!DS132 -> 0 | DR107: =生産管理!DT132 -> 0 | DS107: =生産管理!DU132 -> 0 | DT107: =生産管理!DV132 -> 0 | DU107: =生産管理!DW132 -> 0 | DV107: =生産管理!DX132 -> 0 | DW107: =生産管理!DY132 -> 0 | DX107: =生産管理!DZ132 -> 0 | DY107: =生産管理!EA132 -> 0 | DZ107: =生産管理!EB132 -> 0 | EA107: =生産管理!EC132 -> 0 | EB107: =生産管理!ED132 -> 0 | EC107: =生産管理!EE132 -> 0 | ED107: =生産管理!EF132 -> 0 | EE107: =生産管理!EG132 -> 0 | EF107: =生産管理!EH132 -> 0 | EG107: =生産管理!EI132 -> 0 | EH107: =生産管理!EJ132 -> 0 | EI107: =生産管理!EK132 -> 0 | EJ107: =生産管理!EL132 -> 0 | EK107: =生産管理!EM132 -> 0 | EL107: =生産管理!EN132 -> 0 | EM107: =生産管理!EO132 -> 0 | EN107: =生産管理!EP132 -> 0 | EO107: =生産管理!EQ132 -> 0 | EP107: =生産管理!ER132 -> 0 | EQ107: =生産管理!ES132 -> 0 | ER107: =生産管理!ET132 -> 0 | ES107: =生産管理!EU132 -> 0 | ET107: =生産管理!EV132 -> 0 | EU107: =生産管理!EW132 -> 0 | EV107: =生産管理!EX132 -> 0 | EW107: =生産管理!EY132 -> 0 | EX107: =生産管理!EZ132 -> 0 | EY107: =生産管理!FA132 -> 0 | EZ107: =生産管理!FB132 -> 0 | FA107: =生産管理!FC132 -> 0 | FB107: =生産管理!FD132 -> 0 | FC107: =生産管理!FE132 -> 0 | FD107: =生産管理!FF132 -> 0 | FE107: =生産管理!FG132 -> 0 | FF107: =生産管理!FH132 -> 0 | FG107: =生産管理!FI132 -> 0 | FH107: =生産管理!FJ132 -> 0 | FI107: =生産管理!FK132 -> 0 | FJ107: =生産管理!FL132 -> 0 | FK107: =生産管理!FM132 -> 0 | FL107: =生産管理!FN132 -> 0 | FM107: =生産管理!FO132 -> 0 | FN107: =生産管理!FP132 -> 0 | FO107: =生産管理!FQ132 -> 0 | FP107: =生産管理!FR132 -> 0 | FQ107: =生産管理!FS132 -> 0 | FR107: =生産管理!FT132 -> 0 | FS107: =生産管理!FU132 -> 0 | FT107: =生産管理!FV132 -> 0 | FU107: =生産管理!FW132 -> 0 | FV107: =生産管理!FX132 -> 0 | FW107: =生産管理!FY132 -> 0 | FX107: =生産管理!FZ132 -> 0 | FY107: =生産管理!GA132 -> 0 | FZ107: =生産管理!GB132 -> 0 | GA107: =生産管理!GC132 -> 0 | GB107: =生産管理!GD132 -> 0 | GC107: =生産管理!GE132 -> 0 | GD107: =生産管理!GF132 -> 0 | GE107: =生産管理!GG132 -> 0 | GF107: =生産管理!GH132 -> 0 | GG107: =生産管理!GI132 -> 0 | GH107: =生産管理!GJ132 -> 0 | GI107: =生産管理!GK132 -> 0 | GJ107: =生産管理!GL132 -> 0 | GK107: =生産管理!GM132 -> 0 | GL107: =生産管理!GN132 -> 0 | GM107: =生産管理!GO132 -> 0 | GN107: =生産管理!GP132 -> 0 | GO107: =生産管理!GQ132 -> 0 | GP107: =生産管理!GR132 -> 0 | GQ107: =生産管理!GS132 -> 0 | GR107: =生産管理!GT132 -> 0 | GS107: =生産管理!GU132 -> 0 | GT107: =生産管理!GV132 -> 0 | GU107: =生産管理!GW132 -> 0 | GV107: =生産管理!GX132 -> 0 | GW107: =生産管理!GY132 -> 0 | GX107: =生産管理!GZ132 -> 0 | GY107: =生産管理!HA132 -> 0 | GZ107: =生産管理!HB132 -> 0 | HA107: =生産管理!HC132 -> 0 | HB107: =生産管理!HD132 -> 0 | HC107: =生産管理!HE132 -> 0 | HD107: =生産管理!HF132 -> 0 | HE107: =生産管理!HG132 -> 0 | HF107: =生産管理!HH132 -> 0 | HG107: =生産管理!HI132 -> 0 | HH107: =生産管理!HJ132 -> 0 | HI107: =生産管理!HK132 -> 0 | HJ107: =生産管理!HL132 -> 0 | HK107: =生産管理!HM132 -> 0 | HL107: =生産管理!HN132 -> 0 | HM107: =生産管理!HO132 -> 0 | HN107: =生産管理!HP132 -> 0 | HO107: =生産管理!HQ132 -> 0 | HP107: =生産管理!HR132 -> 0 | HQ107: =生産管理!HS132 -> 0 | HR107: =生産管理!HT132 -> 0 | HS107: =生産管理!HU132 -> 0 | HT107: =生産管理!HV132 -> 0 | HU107: =生産管理!HW132 -> 0 | HV107: =生産管理!HX132 -> 0 | HW107: =生産管理!HY132 -> 0 | HX107: =生産管理!HZ132 -> 0 | HY107: =生産管理!IA132 -> 0 | HZ107: =生産管理!IB132 -> 0 | IA107: =生産管理!IC132 -> 0
C108: 16 | D108: MJG_RRC | M108: 鋳造数 | N108: 0 | O108: 0 | P108: 0 | Q108: 0 | R108: 0 | S108: 0 | T108: 0
C109: 16 | D109: MJG_RRC | M109: 捨吹① | N109: 0 | O109: 0 | P109: 0 | Q109: 0 | R109: 0 | S109: 0 | T109: 0
C110: 16 | D110: MJG_RRC | M110: 捨吹② | N110: 0 | O110: 0 | P110: 0 | Q110: 0 | R110: 0 | S110: 0 | T110: 0
C111: 16 | D111: MJG_RRC | M111: 廃却品 | N111: 0 | O111: 0 | P111: 0 | Q111: 0 | R111: 0 | S111: 0 | T111: 0
C112: 16 | D112: MJG_RRC | M112: 良品 | N112: 0 | O112: 0 | P112: 0 | Q112: 0 | R112: 0 | S112: 0 | T112: 0 | V112: =SUM(V108-V109-V110-V111) -> 0 | W112: 0 | X112: 0 | Y112: 0 | Z112: 0 | AA112: 0 | AB112: 0 | AC112: 0 | AD112: 0 | AE112: 0 | AF112: 0 | AG112: 0 | AH112: 0 | AI112: 0 | AJ112: 0 | AK112: 0 | AL112: 0 | AM112: 0 | AN112: 0 | AO112: 0 | AP112: 0 | AQ112: 0 | AR112: 0 | AS112: 0 | AT112: 0 | AU112: 0 | AV112: 0 | AW112: 0 | AX112: 0 | AY112: 0 | AZ112: 0 | BA112: 0 | BB112: 0 | BC112: 0 | BD112: 0 | BE112: 0 | BF112: 0 | BG112: 0 | BH112: 0 | BI112: 0 | BJ112: 0 | BK112: 0 | BL112: 0 | BM112: 0 | BN112: 0 | BO112: 0 | BP112: 0 | BQ112: 0 | BR112: 0 | BS112: 0 | BT112: 0 | BU112: 0 | BV112: 0 | BW112: 0 | BX112: 0 | BY112: 0 | BZ112: 0 | CA112: 0 | CB112: 0 | CC112: 0 | CD112: 0 | CE112: 0 | CF112: 0 | CG112: 0 | CH112: =SUM(CH108-CH109-CH110-CH111) -> 0 | CI112: 0 | CJ112: 0 | CK112: 0 | CL112: 0 | CM112: 0 | CN112: 0 | CO112: 0 | CP112: 0 | CQ112: 0 | CR112: 0 | CS112: 0 | CT112: 0 | CU112: 0 | CV112: 0 | CW112: 0 | CX112: 0 | CY112: 0 | CZ112: 0 | DA112: 0 | DB112: 0 | DC112: 0 | DD112: 0 | DE112: 0 | DF112: 0 | DG112: 0 | DH112: 0 | DI112: 0 | DJ112: 0 | DK112: 0 | DL112: 0 | DM112: 0 | DN112: 0 | DO112: 0 | DP112: 0 | DQ112: 0 | DR112: 0 | DS112: 0 | DT112: 0 | DU112: 0 | DV112: 0 | DW112: 0 | DX112: 0 | DY112: 0 | DZ112: 0 | EA112: 0 | EB112: 0 | EC112: 0 | ED112: 0 | EE112: 0 | EF112: 0 | EG112: 0 | EH112: 0 | EI112: 0 | EJ112: 0 | EK112: 0 | EL112: 0 | EM112: 0 | EN112: 0 | EO112: 0 | EP112: 0 | EQ112: 0 | ER112: 0 | ES112: 0 | ET112: =SUM(ET108-ET109-ET110-ET111) -> 0 | EU112: 0 | EV112: 0 | EW112: 0 | EX112: 0 | EY112: 0 | EZ112: 0 | FA112: 0 | FB112: 0 | FC112: 0 | FD112: 0 | FE112: 0 | FF112: 0 | FG112: 0 | FH112: 0 | FI112: 0 | FJ112: 0 | FK112: 0 | FL112: 0 | FM112: 0 | FN112: 0 | FO112: 0 | FP112: 0 | FQ112: 0 | FR112: 0 | FS112: 0 | FT112: 0 | FU112: 0 | FV112: 0 | FW112: 0 | FX112: 0 | FY112: 0 | FZ112: 0 | GA112: 0 | GB112: 0 | GC112: 0 | GD112: 0 | GE112: 0 | GF112: 0 | GG112: 0 | GH112: 0 | GI112: 0 | GJ112: 0 | GK112: 0 | GL112: 0 | GM112: 0 | GN112: 0 | GO112: 0 | GP112: 0 | GQ112: 0 | GR112: 0 | GS112: 0 | GT112: 0 | GU112: 0 | GV112: 0 | GW112: 0 | GX112: 0 | GY112: 0 | GZ112: 0 | HA112: 0 | HB112: 0 | HC112: 0 | HD112: 0 | HE112: 0 | HF112: =SUM(HF108-HF109-HF110-HF111) -> 0 | HG112: 0 | HH112: 0 | HI112: 0 | HJ112: 0 | HK112: 0 | HL112: 0 | HM112: 0 | HN112: 0 | HO112: 0 | HP112: 0 | HQ112: 0 | HR112: 0 | HS112: 0 | HT112: 0 | HU112: 0 | HV112: 0 | HW112: 0 | HX112: 0 | HY112: 0 | HZ112: 0 | IA112: =SUM(IA108-IA109-IA110-IA111) -> 0
A113: 16 | B113: MJG_RRC | C113: 16 | D113: MKRG_UP | F113: =N113 -> 879 | G113: 900 | H113: 0 | I113: 0 | J113: 0 | K113: 0 | L113: 0 | M113: 計画数 | N113: 879 | O113: 900 | P113: 0 | Q113: 0 | R113: 0 | S113: 0 | T113: 0 | V113: =+生産管理!V140 -> 0 | W113: =+生産管理!W140 -> 0 | X113: =+生産管理!X140 -> 0 | Y113: =+生産管理!Y140 -> 0 | Z113: =+生産管理!Z140 -> 0 | AA113: =+生産管理!AA140 -> 0 | AB113: =+生産管理!AB140 -> 0 | AC113: =+生産管理!AC140 -> 0 | AD113: =+生産管理!AD140 -> 0 | AE113: =+生産管理!AE140 -> 0 | AF113: =+生産管理!AF140 -> 0 | AG113: =+生産管理!AG140 -> 0 | AH113: =+生産管理!AH140 -> 0 | AI113: =+生産管理!AI140 -> 0 | AJ113: =+生産管理!AJ140 -> 0 | AK113: =+生産管理!AK140 -> 0 | AL113: =+生産管理!AL140 -> 675 | AM113: =+生産管理!AM140 -> 204 | AN113: =+生産管理!AN140 -> 0 | AO113: =+生産管理!AO140 -> 0 | AP113: =+生産管理!AP140 -> 0 | AQ113: =+生産管理!AQ140 -> 0 | AR113: =+生産管理!AR140 -> 0 | AS113: =+生産管理!AS140 -> 0 | AT113: =+生産管理!AT140 -> 0 | AU113: =+生産管理!AU140 -> 0 | AV113: =+生産管理!AV140 -> 0 | AW113: =+生産管理!AW140 -> 0 | AX113: =+生産管理!AX140 -> 0 | AY113: =+生産管理!AY140 -> 0 | AZ113: =+生産管理!AZ140 -> 0 | BA113: =+生産管理!BA140 -> 0 | BB113: =+生産管理!BB140 -> 0 | BC113: =+生産管理!BC140 -> 0 | BD113: =+生産管理!BD140 -> 0 | BE113: =+生産管理!BE140 -> 0 | BF113: =+生産管理!BF140 -> 0 | BG113: =+生産管理!BG140 -> 0 | BH113: =+生産管理!BH140 -> 0 | BI113: =+生産管理!BI140 -> 0 | BJ113: =+生産管理!BJ140 -> 0 | BK113: =+生産管理!BL140 -> 0 | BL113: =+生産管理!BM140 -> 0 | BM113: =+生産管理!BN140 -> 0 | BN113: =+生産管理!BO140 -> 0 | BO113: =+生産管理!BP140 -> 0 | BP113: =+生産管理!BQ140 -> 0 | BQ113: =+生産管理!BR140 -> 0 | BR113: =+生産管理!BS140 -> 0 | BS113: =+生産管理!BT140 -> 0 | BT113: =+生産管理!BU140 -> 0 | BU113: =+生産管理!BV140 -> 0 | BV113: =+生産管理!BW140 -> 0 | BW113: =+生産管理!BX140 -> 600 | BX113: =+生産管理!BY140 -> 300 | BY113: =+生産管理!BZ140 -> 0 | BZ113: =+生産管理!CA140 -> 0 | CA113: =+生産管理!CB140 -> 0 | CB113: =+生産管理!CC140 -> 0 | CC113: =+生産管理!CD140 -> 0 | CD113: =+生産管理!CE140 -> 0 | CE113: =+生産管理!CF140 -> 0 | CF113: =+生産管理!CG140 -> 0 | CG113: =+生産管理!CH140 -> 0 | CH113: =+生産管理!CI140 -> 0 | CI113: =+生産管理!CJ140 -> 0 | CJ113: =+生産管理!CK140 -> 0 | CK113: =+生産管理!CL140 -> 0 | CL113: =+生産管理!CM140 -> 0 | CM113: =+生産管理!CN140 -> 0 | CN113: =+生産管理!CO140 -> 0 | CO113: =+生産管理!CP140 -> 0 | CP113: =+生産管理!CQ140 -> 0 | CQ113: =+生産管理!CS140 -> 0 | CR113: =+生産管理!CT140 -> 0 | CS113: =+生産管理!CU140 -> 0 | CT113: =+生産管理!CV140 -> 0 | CU113: =+生産管理!CW140 -> 0 | CV113: =+生産管理!CX140 -> 0 | CW113: =+生産管理!CY140 -> 0 | CX113: =+生産管理!CZ140 -> 0 | CY113: =+生産管理!DA140 -> 0 | CZ113: =+生産管理!DB140 -> 0 | DA113: =+生産管理!DC140 -> 0 | DB113: =+生産管理!DD140 -> 0 | DC113: =+生産管理!DE140 -> 0 | DD113: =+生産管理!DF140 -> 0 | DE113: =+生産管理!DG140 -> 0 | DF113: =+生産管理!DH140 -> 0 | DG113: =+生産管理!DI140 -> 0 | DH113: =+生産管理!DJ140 -> 0 | DI113: =+生産管理!DK140 -> 0 | DJ113: =+生産管理!DL140 -> 0 | DK113: =+生産管理!DM140 -> 0 | DL113: =+生産管理!DN140 -> 0 | DM113: =+生産管理!DO140 -> 0 | DN113: =+生産管理!DP140 -> 0 | DO113: =+生産管理!DQ140 -> 0 | DP113: =+生産管理!DR140 -> 0 | DQ113: =+生産管理!DS140 -> 0 | DR113: =+生産管理!DT140 -> 0 | DS113: =+生産管理!DU140 -> 0 | DT113: =+生産管理!DV140 -> 0 | DU113: =+生産管理!DW140 -> 0 | DV113: =+生産管理!DX140 -> 0 | DW113: =+生産管理!DY140 -> 0 | DX113: =+生産管理!DZ140 -> 0 | DY113: =+生産管理!EA140 -> 0 | DZ113: =+生産管理!EB140 -> 0 | EA113: =+生産管理!EC140 -> 0 | EB113: =+生産管理!ED140 -> 0 | EC113: =+生産管理!EE140 -> 0 | ED113: =+生産管理!EF140 -> 0 | EE113: =+生産管理!EG140 -> 0 | EF113: =+生産管理!EH140 -> 0 | EG113: =+生産管理!EI140 -> 0 | EH113: =+生産管理!EJ140 -> 0 | EI113: =+生産管理!EK140 -> 0 | EJ113: =+生産管理!EL140 -> 0 | EK113: =+生産管理!EM140 -> 0 | EL113: =+生産管理!EN140 -> 0 | EM113: =+生産管理!EO140 -> 0 | EN113: =+生産管理!EP140 -> 0 | EO113: =+生産管理!EQ140 -> 0 | EP113: =+生産管理!ER140 -> 0 | EQ113: =+生産管理!ES140 -> 0 | ER113: =+生産管理!ET140 -> 0 | ES113: =+生産管理!EU140 -> 0 | ET113: =+生産管理!EV140 -> 0 | EU113: =+生産管理!EW140 -> 0 | EV113: =+生産管理!EX140 -> 0 | EW113: =+生産管理!EY140 -> 0 | EX113: =+生産管理!EZ140 -> 0 | EY113: =+生産管理!FA140 -> 0 | EZ113: =+生産管理!FB140 -> 0 | FA113: =+生産管理!FC140 -> 0 | FB113: =+生産管理!FD140 -> 0 | FC113: =+生産管理!FE140 -> 0 | FD113: =+生産管理!FF140 -> 0 | FE113: =+生産管理!FG140 -> 0 | FF113: =+生産管理!FH140 -> 0 | FG113: =+生産管理!FI140 -> 0 | FH113: =+生産管理!FJ140 -> 0 | FI113: =+生産管理!FK140 -> 0 | FJ113: =+生産管理!FL140 -> 0 | FK113: =+生産管理!FM140 -> 0 | FL113: =+生産管理!FN140 -> 0 | FM113: =+生産管理!FO140 -> 0 | FN113: =+生産管理!FP140 -> 0 | FO113: =+生産管理!FQ140 -> 0 | FP113: =+生産管理!FR140 -> 0 | FQ113: =+生産管理!FS140 -> 0 | FR113: =+生産管理!FT140 -> 0 | FS113: =+生産管理!FU140 -> 0 | FT113: =+生産管理!FV140 -> 0 | FU113: =+生産管理!FW140 -> 0 | FV113: =+生産管理!FX140 -> 0 | FW113: =+生産管理!FY140 -> 0 | FX113: =+生産管理!FZ140 -> 0 | FY113: =+生産管理!GA140 -> 0 | FZ113: =+生産管理!GB140 -> 0 | GA113: =+生産管理!GC140 -> 0 | GB113: =+生産管理!GD140 -> 0 | GC113: =+生産管理!GE140 -> 0 | GD113: =+生産管理!GF140 -> 0 | GE113: =+生産管理!GG140 -> 0 | GF113: =+生産管理!GH140 -> 0 | GG113: =+生産管理!GI140 -> 0 | GH113: =+生産管理!GJ140 -> 0 | GI113: =+生産管理!GK140 -> 0 | GJ113: =+生産管理!GL140 -> 0 | GK113: =+生産管理!GM140 -> 0 | GL113: =+生産管理!GN140 -> 0 | GM113: =+生産管理!GO140 -> 0 | GN113: =+生産管理!GP140 -> 0 | GO113: =+生産管理!GQ140 -> 0 | GP113: =+生産管理!GR140 -> 0 | GQ113: =+生産管理!GS140 -> 0 | GR113: =+生産管理!GT140 -> 0 | GS113: =+生産管理!GU140 -> 0 | GT113: =+生産管理!GV140 -> 0 | GU113: =+生産管理!GW140 -> 0 | GV113: =+生産管理!GX140 -> 0 | GW113: =+生産管理!GY140 -> 0 | GX113: =+生産管理!GZ140 -> 0 | GY113: =+生産管理!HA140 -> 0 | GZ113: =+生産管理!HB140 -> 0 | HA113: =+生産管理!HC140 -> 0 | HB113: =+生産管理!HD140 -> 0 | HC113: =+生産管理!HE140 -> 0 | HD113: =+生産管理!HF140 -> 0 | HE113: =+生産管理!HG140 -> 0 | HF113: =+生産管理!HH140 -> 0 | HG113: =+生産管理!HI140 -> 0 | HH113: =+生産管理!HJ140 -> 0 | HI113: =+生産管理!HK140 -> 0 | HJ113: =+生産管理!HL140 -> 0 | HK113: =+生産管理!HM140 -> 0 | HL113: =+生産管理!HN140 -> 0 | HM113: =+生産管理!HO140 -> 0 | HN113: =+生産管理!HP140 -> 0 | HO113: =+生産管理!HQ140 -> 0 | HP113: =+生産管理!HR140 -> 0 | HQ113: =+生産管理!HS140 -> 0 | HR113: =+生産管理!HT140 -> 0 | HS113: =+生産管理!HU140 -> 0 | HT113: =+生産管理!HV140 -> 0 | HU113: =+生産管理!HW140 -> 0 | HV113: =+生産管理!HX140 -> 0 | HW113: =+生産管理!HY140 -> 0 | HX113: =+生産管理!HZ140 -> 0 | HY113: =+生産管理!IA140 -> 0 | HZ113: =+生産管理!IB140 -> 0 | IA113: =+生産管理!IC140 -> 0
A114: 16 | B114: MJG_RRC | C114: 16 | D114: MJG_RRC | F114: =N113 -> 879 | G114: 900 | H114: 0 | I114: 0 | J114: 0 | K114: 0 | L114: 0 | M114: 鋳造数 | N114: 929 | O114: 0 | P114: 0 | Q114: 0 | R114: 0 | S114: 0 | T114: 0 | AL114: 709 | AM114: 220
A115: 16 | B115: MJG_RRC | C115: 16 | D115: MJG_RRC | F115: =N113 -> 879 | G115: 900 | H115: 0 | I115: 0 | J115: 0 | K115: 0 | L115: 0 | M115: 捨吹① | N115: 9 | O115: 0 | P115: 0 | Q115: 0 | R115: 0 | S115: 0 | T115: 0 | AL115: 6 | AM115: 3
A116: 16 | B116: MJG_RRC | C116: 16 | D116: MJG_RRC | F116: =N113 -> 879 | G116: 900 | H116: 0 | I116: 0 | J116: 0 | K116: 0 | L116: 0 | M116: 捨吹② | N116: 16 | O116: 0 | P116: 0 | Q116: 0 | R116: 0 | S116: 0 | T116: 0 | AL116: 8 | AM116: 8
A117: 16 | B117: MJG_RRC | C117: 16 | D117: MJG_RRC | F117: =N113 -> 879 | G117: 900 | H117: 0 | I117: 0 | J117: 0 | K117: 0 | L117: 0 | M117: 廃却品 | N117: 25 | O117: 0 | P117: 0 | Q117: 0 | R117: 0 | S117: 0 | T117: 0 | AL117: 20 | AM117: 5
A118: 16 | B118: MJG_RRC | C118: 16 | D118: MJG_RRC | F118: =N113 -> 879 | G118: 900 | H118: 0 | I118: 0 | J118: 0 | K118: 0 | L118: 0 | M118: 良品 | N118: 879 | O118: 0 | P118: 0 | Q118: 0 | R118: 0 | S118: 0 | T118: 0 | V118: =SUM(V114-V115-V116-V117) -> 0 | W118: 0 | X118: 0 | Y118: 0 | Z118: 0 | AA118: 0 | AB118: 0 | AC118: 0 | AD118: 0 | AE118: 0 | AF118: 0 | AG118: 0 | AH118: 0 | AI118: 0 | AJ118: 0 | AK118: 0 | AL118: 675 | AM118: 204 | AN118: 0 | AO118: 0 | AP118: 0 | AQ118: 0 | AR118: 0 | AS118: 0 | AT118: 0 | AU118: 0 | AV118: 0 | AW118: 0 | AX118: 0 | AY118: 0 | AZ118: 0 | BA118: 0 | BB118: 0 | BC118: 0 | BD118: 0 | BE118: 0 | BF118: 0 | BG118: 0 | BH118: 0 | BI118: 0 | BJ118: 0 | BK118: 0 | BL118: 0 | BM118: 0 | BN118: 0 | BO118: 0 | BP118: 0 | BQ118: 0 | BR118: 0 | BS118: 0 | BT118: 0 | BU118: 0 | BV118: 0 | BW118: 0 | BX118: 0 | BY118: 0 | BZ118: 0 | CA118: 0 | CB118: 0 | CC118: 0 | CD118: 0 | CE118: 0 | CF118: 0 | CG118: 0 | CH118: =SUM(CH114-CH115-CH116-CH117) -> 0 | CI118: 0 | CJ118: 0 | CK118: 0 | CL118: 0 | CM118: 0 | CN118: 0 | CO118: 0 | CP118: 0 | CQ118: 0 | CR118: 0 | CS118: 0 | CT118: 0 | CU118: 0 | CV118: 0 | CW118: 0 | CX118: 0 | CY118: 0 | CZ118: 0 | DA118: 0 | DB118: 0 | DC118: 0 | DD118: 0 | DE118: 0 | DF118: 0 | DG118: 0 | DH118: 0 | DI118: 0 | DJ118: 0 | DK118: 0 | DL118: 0 | DM118: 0 | DN118: 0 | DO118: 0 | DP118: 0 | DQ118: 0 | DR118: 0 | DS118: 0 | DT118: 0 | DU118: 0 | DV118: 0 | DW118: 0 | DX118: 0 | DY118: 0 | DZ118: 0 | EA118: 0 | EB118: 0 | EC118: 0 | ED118: 0 | EE118: 0 | EF118: 0 | EG118: 0 | EH118: 0 | EI118: 0 | EJ118: 0 | EK118: 0 | EL118: 0 | EM118: 0 | EN118: 0 | EO118: 0 | EP118: 0 | EQ118: 0 | ER118: 0 | ES118: 0 | ET118: =SUM(ET114-ET115-ET116-ET117) -> 0 | EU118: 0 | EV118: 0 | EW118: 0 | EX118: 0 | EY118: 0 | EZ118: 0 | FA118: 0 | FB118: 0 | FC118: 0 | FD118: 0 | FE118: 0 | FF118: 0 | FG118: 0 | FH118: 0 | FI118: 0 | FJ118: 0 | FK118: 0 | FL118: 0 | FM118: 0 | FN118: 0 | FO118: 0 | FP118: 0 | FQ118: 0 | FR118: 0 | FS118: 0 | FT118: 0 | FU118: 0 | FV118: 0 | FW118: 0 | FX118: 0 | FY118: 0 | FZ118: 0 | GA118: 0 | GB118: 0 | GC118: 0 | GD118: 0 | GE118: 0 | GF118: 0 | GG118: 0 | GH118: 0 | GI118: 0 | GJ118: 0 | GK118: 0 | GL118: 0 | GM118: 0 | GN118: 0 | GO118: 0 | GP118: 0 | GQ118: 0 | GR118: 0 | GS118: 0 | GT118: 0 | GU118: 0 | GV118: 0 | GW118: 0 | GX118: 0 | GY118: 0 | GZ118: 0 | HA118: 0 | HB118: 0 | HC118: 0 | HD118: 0 | HE118: 0 | HF118: =SUM(HF114-HF115-HF116-HF117) -> 0 | HG118: 0 | HH118: 0 | HI118: 0 | HJ118: 0 | HK118: 0 | HL118: 0 | HM118: 0 | HN118: 0 | HO118: 0 | HP118: 0 | HQ118: 0 | HR118: 0 | HS118: 0 | HT118: 0 | HU118: 0 | HV118: 0 | HW118: 0 | HX118: 0 | HY118: 0 | HZ118: 0 | IA118: =SUM(IA114-IA115-IA116-IA117) -> 0
C119: 16 | D119: MKT_CB MT | M119: 計画数 | N119: =SUM(V119:AY119) -> 1051 | O119: 0 | P119: 0 | Q119: 0 | R119: 0 | S119: 0 | T119: 0 | V119: =生産管理!V148 -> 0 | W119: =生産管理!W148 -> 0 | X119: =生産管理!X148 -> 0 | Y119: =生産管理!Y148 -> 0 | Z119: =生産管理!Z148 -> 0 | AA119: =生産管理!AA148 -> 0 | AB119: =生産管理!AB148 -> 0 | AC119: =生産管理!AC148 -> 0 | AD119: =生産管理!AD148 -> 0 | AE119: =生産管理!AE148 -> 0 | AF119: =生産管理!AF148 -> 0 | AG119: =生産管理!AG148 -> 0 | AH119: =生産管理!AH148 -> 0 | AI119: =生産管理!AI148 -> 0 | AJ119: =生産管理!AJ148 -> 0 | AK119: =生産管理!AK148 -> 0 | AL119: =生産管理!AL148 -> 0 | AM119: =生産管理!AM148 -> 0 | AN119: =生産管理!AN148 -> 282 | AO119: =生産管理!AO148 -> 579 | AP119: =生産管理!AP148 -> 190 | AQ119: =生産管理!AQ148 -> 0 | AR119: =生産管理!AR148 -> 0 | AS119: =生産管理!AS148 -> 0 | AT119: =生産管理!AT148 -> 0 | AU119: =生産管理!AU148 -> 0 | AV119: =生産管理!AV148 -> 0 | AW119: =生産管理!AW148 -> 0 | AX119: =生産管理!AX148 -> 0 | AY119: =生産管理!AY148 -> 0 | AZ119: =生産管理!AZ148 -> 0 | BA119: =生産管理!BA148 -> 0 | BB119: =生産管理!BB148 -> 0 | BC119: =生産管理!BC148 -> 0 | BD119: =生産管理!BD148 -> 0 | BE119: =生産管理!BE148 -> 0 | BF119: =生産管理!BF148 -> 0 | BG119: =生産管理!BG148 -> 0 | BH119: =生産管理!BH148 -> 0 | BI119: =生産管理!BI148 -> 0 | BJ119: =生産管理!BJ148 -> 0 | BK119: =生産管理!BL148 -> 0 | BL119: =生産管理!BM148 -> 0 | BM119: =生産管理!BN148 -> 0 | BN119: =生産管理!BO148 -> 0 | BO119: =生産管理!BP148 -> 0 | BP119: =生産管理!BQ148 -> 0 | BQ119: =生産管理!BR148 -> 0 | BR119: =生産管理!BS148 -> 0 | BS119: =生産管理!BT148 -> 0 | BT119: =生産管理!BU148 -> 0 | BU119: =生産管理!BV148 -> 0 | BV119: =生産管理!BW148 -> 0 | BW119: =生産管理!BX148 -> 0 | BX119: =生産管理!BY148 -> 0 | BY119: =生産管理!BZ148 -> 0 | BZ119: =生産管理!CA148 -> 0 | CA119: =生産管理!CB148 -> 0 | CB119: =生産管理!CC148 -> 0 | CC119: =生産管理!CD148 -> 0 | CD119: =生産管理!CE148 -> 0 | CE119: =生産管理!CF148 -> 0 | CF119: =生産管理!CG148 -> 0 | CG119: =生産管理!CH148 -> 0 | CH119: =生産管理!CI148 -> 0 | CI119: =生産管理!CJ148 -> 0 | CJ119: =生産管理!CK148 -> 0 | CK119: =生産管理!CL148 -> 0 | CL119: =生産管理!CM148 -> 0 | CM119: =生産管理!CN148 -> 0 | CN119: =生産管理!CO148 -> 0 | CO119: =生産管理!CP148 -> 0 | CP119: =生産管理!CQ148 -> 0 | CQ119: =生産管理!CS148 -> 0 | CR119: =生産管理!CT148 -> 0 | CS119: =生産管理!CU148 -> 0 | CT119: =生産管理!CV148 -> 0 | CU119: =生産管理!CW148 -> 0 | CV119: =生産管理!CX148 -> 0 | CW119: =生産管理!CY148 -> 0 | CX119: =生産管理!CZ148 -> 0 | CY119: =生産管理!DA148 -> 0 | CZ119: =生産管理!DB148 -> 0 | DA119: =生産管理!DC148 -> 0 | DB119: =生産管理!DD148 -> 0 | DC119: =生産管理!DE148 -> 0 | DD119: =生産管理!DF148 -> 0 | DE119: =生産管理!DG148 -> 0 | DF119: =生産管理!DH148 -> 0 | DG119: =生産管理!DI148 -> 0 | DH119: =生産管理!DJ148 -> 0 | DI119: =生産管理!DK148 -> 0 | DJ119: =生産管理!DL148 -> 0 | DK119: =生産管理!DM148 -> 0 | DL119: =生産管理!DN148 -> 0 | DM119: =生産管理!DO148 -> 0 | DN119: =生産管理!DP148 -> 0 | DO119: =生産管理!DQ148 -> 0 | DP119: =生産管理!DR148 -> 0 | DQ119: =生産管理!DS148 -> 0 | DR119: =生産管理!DT148 -> 0 | DS119: =生産管理!DU148 -> 0 | DT119: =生産管理!DV148 -> 0 | DU119: =生産管理!DW148 -> 0 | DV119: =生産管理!DX148 -> 0 | DW119: =生産管理!DY148 -> 0 | DX119: =生産管理!DZ148 -> 0 | DY119: =生産管理!EA148 -> 0 | DZ119: =生産管理!EB148 -> 0 | EA119: =生産管理!EC148 -> 0 | EB119: =生産管理!ED148 -> 0 | EC119: =生産管理!EE148 -> 0 | ED119: =生産管理!EF148 -> 0 | EE119: =生産管理!EG148 -> 0 | EF119: =生産管理!EH148 -> 0 | EG119: =生産管理!EI148 -> 0 | EH119: =生産管理!EJ148 -> 0 | EI119: =生産管理!EK148 -> 0 | EJ119: =生産管理!EL148 -> 0 | EK119: =生産管理!EM148 -> 0 | EL119: =生産管理!EN148 -> 0 | EM119: =生産管理!EO148 -> 0 | EN119: =生産管理!EP148 -> 0 | EO119: =生産管理!EQ148 -> 0 | EP119: =生産管理!ER148 -> 0 | EQ119: =生産管理!ES148 -> 0 | ER119: =生産管理!ET148 -> 0 | ES119: =生産管理!EU148 -> 0 | ET119: =生産管理!EV148 -> 0 | EU119: =生産管理!EW148 -> 0 | EV119: =生産管理!EX148 -> 0 | EW119: =生産管理!EY148 -> 0 | EX119: =生産管理!EZ148 -> 0 | EY119: =生産管理!FA148 -> 0 | EZ119: =生産管理!FB148 -> 0 | FA119: =生産管理!FC148 -> 0 | FB119: =生産管理!FD148 -> 0 | FC119: =生産管理!FE148 -> 0 | FD119: =生産管理!FF148 -> 0 | FE119: =生産管理!FG148 -> 0 | FF119: =生産管理!FH148 -> 0 | FG119: =生産管理!FI148 -> 0 | FH119: =生産管理!FJ148 -> 0 | FI119: =生産管理!FK148 -> 0 | FJ119: =生産管理!FL148 -> 0 | FK119: =生産管理!FM148 -> 0 | FL119: =生産管理!FN148 -> 0 | FM119: =生産管理!FO148 -> 0 | FN119: =生産管理!FP148 -> 0 | FO119: =生産管理!FQ148 -> 0 | FP119: =生産管理!FR148 -> 0 | FQ119: =生産管理!FS148 -> 0 | FR119: =生産管理!FT148 -> 0 | FS119: =生産管理!FU148 -> 0 | FT119: =生産管理!FV148 -> 0 | FU119: =生産管理!FW148 -> 0 | FV119: =生産管理!FX148 -> 0 | FW119: =生産管理!FY148 -> 0 | FX119: =生産管理!FZ148 -> 0 | FY119: =生産管理!GA148 -> 0 | FZ119: =生産管理!GB148 -> 0 | GA119: =生産管理!GC148 -> 0 | GB119: =生産管理!GD148 -> 0 | GC119: =生産管理!GE148 -> 0 | GD119: =生産管理!GF148 -> 0 | GE119: =生産管理!GG148 -> 0 | GF119: =生産管理!GH148 -> 0 | GG119: =生産管理!GI148 -> 0 | GH119: =生産管理!GJ148 -> 0 | GI119: =生産管理!GK148 -> 0 | GJ119: =生産管理!GL148 -> 0 | GK119: =生産管理!GM148 -> 0 | GL119: =生産管理!GN148 -> 0 | GM119: =生産管理!GO148 -> 0 | GN119: =生産管理!GP148 -> 0 | GO119: =生産管理!GQ148 -> 0 | GP119: =生産管理!GR148 -> 0 | GQ119: =生産管理!GS148 -> 0 | GR119: =生産管理!GT148 -> 0 | GS119: =生産管理!GU148 -> 0 | GT119: =生産管理!GV148 -> 0 | GU119: =生産管理!GW148 -> 0 | GV119: =生産管理!GX148 -> 0 | GW119: =生産管理!GY148 -> 0 | GX119: =生産管理!GZ148 -> 0 | GY119: =生産管理!HA148 -> 0 | GZ119: =生産管理!HB148 -> 0 | HA119: =生産管理!HC148 -> 0 | HB119: =生産管理!HD148 -> 0 | HC119: =生産管理!HE148 -> 0 | HD119: =生産管理!HF148 -> 0 | HE119: =生産管理!HG148 -> 0 | HF119: =生産管理!HH148 -> 0 | HG119: =生産管理!HI148 -> 0 | HH119: =生産管理!HJ148 -> 0 | HI119: =生産管理!HK148 -> 0 | HJ119: =生産管理!HL148 -> 0 | HK119: =生産管理!HM148 -> 0 | HL119: =生産管理!HN148 -> 0 | HM119: =生産管理!HO148 -> 0 | HN119: =生産管理!HP148 -> 0 | HO119: =生産管理!HQ148 -> 0 | HP119: =生産管理!HR148 -> 0 | HQ119: =生産管理!HS148 -> 0 | HR119: =生産管理!HT148 -> 0 | HS119: =生産管理!HU148 -> 0 | HT119: =生産管理!HV148 -> 0 | HU119: =生産管理!HW148 -> 0 | HV119: =生産管理!HX148 -> 0 | HW119: =生産管理!HY148 -> 0 | HX119: =生産管理!HZ148 -> 0 | HY119: =生産管理!IA148 -> 0 | HZ119: =生産管理!IB148 -> 0 | IA119: =生産管理!IC148 -> 0
C120: 16 | D120: MJH_CB | M120: 鋳造数 | N120: 1174 | O120: 0 | P120: 0 | Q120: 0 | R120: 0 | S120: 0 | T120: 0 | AN120: 302 | AO120: 629 | AP120: 243
C121: 16 | D121: MJH_CB | M121: 捨吹①金具 | N121: 19 | O121: 0 | P121: 0 | Q121: 0 | R121: 0 | S121: 0 | T121: 0 | AN121: 4 | AO121: 8 | AP121: 7
C122: 16 | D122: MJH_CB | M122: 捨吹②金具 | N122: 21 | O122: 0 | P122: 0 | Q122: 0 | R122: 0 | S122: 0 | T122: 0 | AN122: 6 | AO122: 6 | AP122: 9
C123: 16 | D123: MJH_CB | M123: 廃却品 | N123: 83 | O123: 0 | P123: 0 | Q123: 0 | R123: 0 | S123: 0 | T123: 0 | AN123: 10 | AO123: 36 | AP123: 37
C124: 16 | D124: MJH_CB | M124: 良品 | N124: 1051 | O124: 0 | P124: 0 | Q124: 0 | R124: 0 | S124: 0 | T124: 0 | V124: =SUM(V120-V121-V122-V123) -> 0 | W124: 0 | X124: 0 | Y124: 0 | Z124: 0 | AA124: 0 | AB124: 0 | AC124: 0 | AD124: 0 | AE124: 0 | AF124: 0 | AG124: 0 | AH124: 0 | AI124: 0 | AJ124: 0 | AK124: 0 | AL124: 0 | AM124: 0 | AN124: 282 | AO124: 579 | AP124: 190 | AQ124: 0 | AR124: 0 | AS124: 0 | AT124: 0 | AU124: 0 | AV124: 0 | AW124: 0 | AX124: 0 | AY124: 0 | AZ124: 0 | BA124: 0 | BB124: 0 | BC124: 0 | BD124: 0 | BE124: 0 | BF124: 0 | BG124: 0 | BH124: 0 | BI124: 0 | BJ124: 0 | BK124: 0 | BL124: 0 | BM124: 0 | BN124: 0 | BO124: 0 | BP124: 0 | BQ124: 0 | BR124: 0 | BS124: 0 | BT124: 0 | BU124: 0 | BV124: 0 | BW124: 0 | BX124: 0 | BY124: 0 | BZ124: 0 | CA124: 0 | CB124: 0 | CC124: 0 | CD124: 0 | CE124: 0 | CF124: 0 | CG124: 0 | CH124: =SUM(CH120-CH121-CH122-CH123) -> 0 | CI124: 0 | CJ124: 0 | CK124: 0 | CL124: 0 | CM124: 0 | CN124: 0 | CO124: 0 | CP124: 0 | CQ124: 0 | CR124: 0 | CS124: 0 | CT124: 0 | CU124: 0 | CV124: 0 | CW124: 0 | CX124: 0 | CY124: 0 | CZ124: 0 | DA124: 0 | DB124: 0 | DC124: 0 | DD124: 0 | DE124: 0 | DF124: 0 | DG124: 0 | DH124: 0 | DI124: 0 | DJ124: 0 | DK124: 0 | DL124: 0 | DM124: 0 | DN124: 0 | DO124: 0 | DP124: 0 | DQ124: 0 | DR124: 0 | DS124: 0 | DT124: 0 | DU124: 0 | DV124: 0 | DW124: 0 | DX124: 0 | DY124: 0 | DZ124: 0 | EA124: 0 | EB124: 0 | EC124: 0 | ED124: 0 | EE124: 0 | EF124: 0 | EG124: 0 | EH124: 0 | EI124: 0 | EJ124: 0 | EK124: 0 | EL124: 0 | EM124: 0 | EN124: 0 | EO124: 0 | EP124: 0 | EQ124: 0 | ER124: 0 | ES124: 0 | ET124: =SUM(ET120-ET121-ET122-ET123) -> 0 | EU124: 0 | EV124: 0 | EW124: 0 | EX124: 0 | EY124: 0 | EZ124: 0 | FA124: 0 | FB124: 0 | FC124: 0 | FD124: 0 | FE124: 0 | FF124: 0 | FG124: 0 | FH124: 0 | FI124: 0 | FJ124: 0 | FK124: 0 | FL124: 0 | FM124: 0 | FN124: 0 | FO124: 0 | FP124: 0 | FQ124: 0 | FR124: 0 | FS124: 0 | FT124: 0 | FU124: 0 | FV124: 0 | FW124: 0 | FX124: 0 | FY124: 0 | FZ124: 0 | GA124: 0 | GB124: 0 | GC124: 0 | GD124: 0 | GE124: 0 | GF124: 0 | GG124: 0 | GH124: 0 | GI124: 0 | GJ124: 0 | GK124: 0 | GL124: 0 | GM124: 0 | GN124: 0 | GO124: 0 | GP124: 0 | GQ124: 0 | GR124: 0 | GS124: 0 | GT124: 0 | GU124: 0 | GV124: 0 | GW124: 0 | GX124: 0 | GY124: 0 | GZ124: 0 | HA124: 0 | HB124: 0 | HC124: 0 | HD124: 0 | HE124: 0 | HF124: =SUM(HF120-HF121-HF122-HF123) -> 0 | HG124: 0 | HH124: 0 | HI124: 0 | HJ124: 0 | HK124: 0 | HL124: 0 | HM124: 0 | HN124: 0 | HO124: 0 | HP124: 0 | HQ124: 0 | HR124: 0 | HS124: 0 | HT124: 0 | HU124: 0 | HV124: 0 | HW124: 0 | HX124: 0 | HY124: 0 | HZ124: 0 | IA124: 0
A125: 16 | B125: MJH_CB | C125: 16 | D125: MKT_CB DCT | F125: =N125 -> 2559 | G125: 2140 | H125: 0 | I125: 0 | J125: 0 | K125: 0 | L125: 0 | M125: 計画数 | N125: =SUM(V125:AY125) -> 2559 | O125: =SUM(BA125:CD125) -> 2140 | P125: 0 | Q125: =SUM(DJ125:EM125) -> 0 | R125: =SUM(EN125:FP125) -> 0 | S125: =SUM(FQ125:GU125) -> 0 | T125: =SUM(GV125:HY125) -> 0 | V125: =生産管理!V158 -> 76 | W125: =生産管理!W158 -> 172 | X125: =生産管理!X158 -> 0 | Y125: =生産管理!Y158 -> 0 | Z125: =生産管理!Z158 -> 0 | AA125: =生産管理!AA158 -> -66 | AB125: =生産管理!AB158 -> 0 | AC125: =生産管理!AC158 -> 344 | AD125: =生産管理!AD158 -> 397 | AE125: =生産管理!AE158 -> 226 | AF125: =生産管理!AF158 -> 0 | AG125: =生産管理!AG158 -> 0 | AH125: =生産管理!AH158 -> 0 | AI125: =生産管理!AI158 -> 0 | AJ125: =生産管理!AJ158 -> 0 | AK125: =生産管理!AK158 -> 0 | AL125: =生産管理!AL158 -> 0 | AM125: =生産管理!AM158 -> 0 | AN125: =生産管理!AN158 -> 0 | AO125: =生産管理!AO158 -> 0 | AP125: =生産管理!AP158 -> 53 | AQ125: =生産管理!AQ158 -> 607 | AR125: =生産管理!AR158 -> 646 | AS125: =生産管理!AS158 -> 104 | AT125: =生産管理!AT158 -> 0 | AU125: =生産管理!AU158 -> 0 | AV125: =生産管理!AV158 -> 0 | AW125: =生産管理!AW158 -> 0 | AX125: =生産管理!AX158 -> 0 | AY125: =生産管理!AY158 -> 0 | AZ125: =生産管理!AZ158 -> 0 | BA125: =生産管理!BA158 -> 0 | BB125: =生産管理!BB158 -> 0 | BC125: =生産管理!BC158 -> 0 | BD125: =生産管理!BD158 -> 0 | BE125: =生産管理!BE158 -> 0 | BF125: =生産管理!BF158 -> 0 | BG125: =生産管理!BG158 -> 0 | BH125: =生産管理!BH158 -> 0 | BI125: =生産管理!BI158 -> 0 | BJ125: =生産管理!BJ158 -> 0 | BK125: =生産管理!BL158 -> 0 | BL125: =生産管理!BM158 -> 0 | BM125: =生産管理!BN158 -> 0 | BN125: =生産管理!BO158 -> 0 | BO125: =生産管理!BP158 -> 460 | BP125: =生産管理!BQ158 -> 460 | BQ125: =生産管理!BR158 -> 460 | BR125: =生産管理!BS158 -> 300 | BS125: =生産管理!BT158 -> 460 | BT125: =生産管理!BU158 -> 0 | BU125: =生産管理!BV158 -> 0 | BV125: =生産管理!BW158 -> 0 | BW125: =生産管理!BX158 -> 0 | BX125: =生産管理!BY158 -> 0 | BY125: =生産管理!BZ158 -> 0 | BZ125: =生産管理!CA158 -> 0 | CA125: =生産管理!CB158 -> 0 | CB125: =生産管理!CC158 -> 0 | CC125: =生産管理!CD158 -> 0 | CD125: =生産管理!CE158 -> 0 | CE125: =生産管理!CF158 -> 0 | CF125: =生産管理!CG158 -> 0 | CG125: =生産管理!CH158 -> 0 | CH125: =生産管理!CI158 -> 0 | CI125: =生産管理!CJ158 -> 0 | CJ125: =生産管理!CK158 -> 0 | CK125: =生産管理!CL158 -> 0 | CL125: =生産管理!CM158 -> 0 | CM125: =生産管理!CN158 -> 0 | CN125: =生産管理!CO158 -> 0 | CO125: =生産管理!CP158 -> 0 | CP125: =生産管理!CQ158 -> 0 | CQ125: =生産管理!CS158 -> 0 | CR125: =生産管理!CT158 -> 0 | CS125: =生産管理!CU158 -> 0 | CT125: =生産管理!CV158 -> 0 | CU125: =生産管理!CW158 -> 0 | CV125: =生産管理!CX158 -> 0 | CW125: =生産管理!CY158 -> 0 | CX125: =生産管理!CZ158 -> 0 | CY125: =生産管理!DA158 -> 0 | CZ125: =生産管理!DB158 -> 0 | DA125: =生産管理!DC158 -> 0 | DB125: =生産管理!DD158 -> 0 | DC125: =生産管理!DE158 -> 0 | DD125: =生産管理!DF158 -> 0 | DE125: =生産管理!DG158 -> 0 | DF125: =生産管理!DH158 -> 0 | DG125: =生産管理!DI158 -> 0 | DH125: =生産管理!DJ158 -> 0 | DI125: =生産管理!DK158 -> 0 | DJ125: =生産管理!DL158 -> 0 | DK125: =生産管理!DM158 -> 0 | DL125: =生産管理!DN158 -> 0 | DM125: =生産管理!DO158 -> 0 | DN125: =生産管理!DP158 -> 0 | DO125: =生産管理!DQ158 -> 0 | DP125: =生産管理!DR158 -> 0 | DQ125: =生産管理!DS158 -> 0 | DR125: =生産管理!DT158 -> 0 | DS125: =生産管理!DU158 -> 0 | DT125: =生産管理!DV158 -> 0 | DU125: =生産管理!DW158 -> 0 | DV125: =生産管理!DX158 -> 0 | DW125: =生産管理!DY158 -> 0 | DX125: =生産管理!DZ158 -> 0 | DY125: =生産管理!EA158 -> 0 | DZ125: =生産管理!EB158 -> 0 | EA125: =生産管理!EC158 -> 0 | EB125: =生産管理!ED158 -> 0 | EC125: =生産管理!EE158 -> 0 | ED125: =生産管理!EF158 -> 0 | EE125: =生産管理!EG158 -> 0 | EF125: =生産管理!EH158 -> 0 | EG125: =生産管理!EI158 -> 0 | EH125: =生産管理!EJ158 -> 0 | EI125: =生産管理!EK158 -> 0 | EJ125: =生産管理!EL158 -> 0 | EK125: =生産管理!EM158 -> 0 | EL125: =生産管理!EN158 -> 0 | EM125: =生産管理!EO158 -> 0 | EN125: =生産管理!EP158 -> 0 | EO125: =生産管理!EQ158 -> 0 | EP125: =生産管理!ER158 -> 0 | EQ125: =生産管理!ES158 -> 0 | ER125: =生産管理!ET158 -> 0 | ES125: =生産管理!EU158 -> 0 | ET125: =生産管理!EV158 -> 0 | EU125: =生産管理!EW158 -> 0 | EV125: =生産管理!EX158 -> 0 | EW125: =生産管理!EY158 -> 0 | EX125: =生産管理!EZ158 -> 0 | EY125: =生産管理!FA158 -> 0 | EZ125: =生産管理!FB158 -> 0 | FA125: =生産管理!FC158 -> 0 | FB125: =生産管理!FD158 -> 0 | FC125: =生産管理!FE158 -> 0 | FD125: =生産管理!FF158 -> 0 | FE125: =生産管理!FG158 -> 0 | FF125: =生産管理!FH158 -> 0 | FG125: =生産管理!FI158 -> 0 | FH125: =生産管理!FJ158 -> 0 | FI125: =生産管理!FK158 -> 0 | FJ125: =生産管理!FL158 -> 0 | FK125: =生産管理!FM158 -> 0 | FL125: =生産管理!FN158 -> 0 | FM125: =生産管理!FO158 -> 0 | FN125: =生産管理!FP158 -> 0 | FO125: =生産管理!FQ158 -> 0 | FP125: =生産管理!FR158 -> 0 | FQ125: =生産管理!FS158 -> 0 | FR125: =生産管理!FT158 -> 0 | FS125: =生産管理!FU158 -> 0 | FT125: =生産管理!FV158 -> 0 | FU125: =生産管理!FW158 -> 0 | FV125: =生産管理!FX158 -> 0 | FW125: =生産管理!FY158 -> 0 | FX125: =生産管理!FZ158 -> 0 | FY125: =生産管理!GA158 -> 0 | FZ125: =生産管理!GB158 -> 0 | GA125: =生産管理!GC158 -> 0 | GB125: =生産管理!GD158 -> 0 | GC125: =生産管理!GE158 -> 0 | GD125: =生産管理!GF158 -> 0 | GE125: =生産管理!GG158 -> 0 | GF125: =生産管理!GH158 -> 0 | GG125: =生産管理!GI158 -> 0 | GH125: =生産管理!GJ158 -> 0 | GI125: =生産管理!GK158 -> 0 | GJ125: =生産管理!GL158 -> 0 | GK125: =生産管理!GM158 -> 0 | GL125: =生産管理!GN158 -> 0 | GM125: =生産管理!GO158 -> 0 | GN125: =生産管理!GP158 -> 0 | GO125: =生産管理!GQ158 -> 0 | GP125: =生産管理!GR158 -> 0 | GQ125: =生産管理!GS158 -> 0 | GR125: =生産管理!GT158 -> 0 | GS125: =生産管理!GU158 -> 0 | GT125: =生産管理!GV158 -> 0 | GU125: =生産管理!GW158 -> 0 | GV125: =生産管理!GX158 -> 0 | GW125: =生産管理!GY158 -> 0 | GX125: =生産管理!GZ158 -> 0 | GY125: =生産管理!HA158 -> 0 | GZ125: =生産管理!HB158 -> 0 | HA125: =生産管理!HC158 -> 0 | HB125: =生産管理!HD158 -> 0 | HC125: =生産管理!HE158 -> 0 | HD125: =生産管理!HF158 -> 0 | HE125: =生産管理!HG158 -> 0 | HF125: =生産管理!HH158 -> 0 | HG125: =生産管理!HI158 -> 0 | HH125: =生産管理!HJ158 -> 0 | HI125: =生産管理!HK158 -> 0 | HJ125: =生産管理!HL158 -> 0 | HK125: =生産管理!HM158 -> 0 | HL125: =生産管理!HN158 -> 0 | HM125: =生産管理!HO158 -> 0 | HN125: =生産管理!HP158 -> 0 | HO125: =生産管理!HQ158 -> 0 | HP125: =生産管理!HR158 -> 0 | HQ125: =生産管理!HS158 -> 0 | HR125: =生産管理!HT158 -> 0 | HS125: =生産管理!HU158 -> 0 | HT125: =生産管理!HV158 -> 0 | HU125: =生産管理!HW158 -> 0 | HV125: =生産管理!HX158 -> 0 | HW125: =生産管理!HY158 -> 0 | HX125: =生産管理!HZ158 -> 0 | HY125: =生産管理!IA158 -> 0 | HZ125: =生産管理!IB158 -> 0 | IA125: =生産管理!IC158 -> 0
A126: 16 | B126: MJH_CB | C126: 16 | D126: MJH_CB | F126: =N125 -> 2559 | G126: 2140 | H126: 0 | I126: 0 | J126: 0 | K126: 0 | L126: 0 | M126: 鋳造数 | N126: 3061 | O126: 0 | P126: 0 | Q126: 0 | R126: 0 | S126: 0 | T126: 0 | V126: 176 | W126: 293 | AC126: 393 | AD126: 446 | AE126: 248 | AP126: 67 | AQ126: =204+229+207 -> 640 | AR126: 662 | AS126: 136
A127: 16 | B127: MJH_CB | C127: 16 | D127: MJH_CB | F127: =N125 -> 2559 | G127: 2140 | H127: 0 | I127: 0 | J127: 0 | K127: 0 | L127: 0 | M127: 捨吹①金具 | N127: 49 | O127: 0 | P127: 0 | Q127: 0 | R127: 0 | S127: 0 | T127: 0 | V127: 10 | W127: 10 | AC127: 8 | AD127: 6 | AE127: 4 | AP127: 3 | AQ127: 2 | AR127: 6 | AS127: 0
A128: 16 | B128: MJH_CB | C128: 16 | D128: MJH_CB | F128: =N125 -> 2559 | G128: 2140 | H128: 0 | I128: 0 | J128: 0 | K128: 0 | L128: 0 | M128: 捨吹②金具 | N128: 75 | O128: 0 | P128: 0 | Q128: 0 | R128: 0 | S128: 0 | T128: 0 | V128: 26 | W128: 4 | AC128: 14 | AD128: 4 | AE128: 4 | AP128: 4 | AQ128: 7 | AR128: 2 | AS128: 10
A129: 16 | B129: MJH_CB | C129: 16 | D129: MJH_CB | F129: =N125 -> 2559 | G129: 2140 | H129: 0 | I129: 0 | J129: 0 | K129: 0 | L129: 0 | M129: 廃却品 | N129: 378 | O129: 0 | P129: 0 | Q129: 0 | R129: 0 | S129: 0 | T129: 0 | V129: =41+23 -> 64 | W129: =72+27+8 -> 107 | AA129: 66 | AC129: 27 | AD129: 39 | AE129: 14 | AP129: 7 | AQ129: 24 | AR129: 8 | AS129: 22
A130: 16 | B130: MJH_CB | C130: 16 | D130: MJH_CB | F130: =N125 -> 2559 | G130: 2140 | H130: 0 | I130: 0 | J130: 0 | K130: 0 | L130: 0 | M130: 良品 | N130: 2559 | O130: 0 | P130: 0 | Q130: 0 | R130: 0 | S130: 0 | T130: 0 | V130: =SUM(V126-V127-V128-V129) -> 76 | W130: 172 | X130: 0 | Y130: 0 | Z130: 0 | AA130: -66 | AB130: 0 | AC130: 344 | AD130: 397 | AE130: 226 | AF130: 0 | AG130: 0 | AH130: 0 | AI130: 0 | AJ130: 0 | AK130: 0 | AL130: 0 | AM130: 0 | AN130: 0 | AO130: 0 | AP130: 53 | AQ130: 607 | AR130: 646 | AS130: 104 | AT130: 0 | AU130: 0 | AV130: 0 | AW130: 0 | AX130: 0 | AY130: 0 | AZ130: 0 | BA130: 0 | BB130: 0 | BC130: 0 | BD130: 0 | BE130: 0 | BF130: 0 | BG130: 0 | BH130: 0 | BI130: 0 | BJ130: 0 | BK130: 0 | BL130: 0 | BM130: 0 | BN130: 0 | BO130: 0 | BP130: 0 | BQ130: 0 | BR130: 0 | BS130: 0 | BT130: 0 | BU130: 0 | BV130: 0 | BW130: 0 | BX130: 0 | BY130: 0 | BZ130: 0 | CA130: 0 | CB130: 0 | CC130: 0 | CD130: 0 | CE130: 0 | CF130: 0 | CG130: 0 | CH130: =SUM(CH126-CH127-CH128-CH129) -> 0 | CI130: 0 | CJ130: 0 | CK130: 0 | CL130: 0 | CM130: 0 | CN130: 0 | CO130: 0 | CP130: 0 | CQ130: 0 | CR130: 0 | CS130: 0 | CT130: 0 | CU130: 0 | CV130: 0 | CW130: 0 | CX130: 0 | CY130: 0 | CZ130: 0 | DA130: 0 | DB130: 0 | DC130: 0 | DD130: 0 | DE130: 0 | DF130: 0 | DG130: 0 | DH130: 0 | DI130: 0 | DJ130: 0 | DK130: 0 | DL130: 0 | DM130: 0 | DN130: 0 | DO130: 0 | DP130: 0 | DQ130: 0 | DR130: 0 | DS130: 0 | DT130: 0 | DU130: 0 | DV130: 0 | DW130: 0 | DX130: 0 | DY130: 0 | DZ130: 0 | EA130: 0 | EB130: 0 | EC130: 0 | ED130: 0 | EE130: 0 | EF130: 0 | EG130: 0 | EH130: 0 | EI130: 0 | EJ130: 0 | EK130: 0 | EL130: 0 | EM130: 0 | EN130: 0 | EO130: 0 | EP130: 0 | EQ130: 0 | ER130: 0 | ES130: 0 | ET130: =SUM(ET126-ET127-ET128-ET129) -> 0 | EU130: 0 | EV130: 0 | EW130: 0 | EX130: 0 | EY130: 0 | EZ130: 0 | FA130: 0 | FB130: 0 | FC130: 0 | FD130: 0 | FE130: 0 | FF130: 0 | FG130: 0 | FH130: 0 | FI130: 0 | FJ130: 0 | FK130: 0 | FL130: 0 | FM130: 0 | FN130: 0 | FO130: 0 | FP130: 0 | FQ130: 0 | FR130: 0 | FS130: 0 | FT130: 0 | FU130: 0 | FV130: 0 | FW130: 0 | FX130: 0 | FY130: 0 | FZ130: 0 | GA130: 0 | GB130: 0 | GC130: 0 | GD130: 0 | GE130: 0 | GF130: 0 | GG130: 0 | GH130: 0 | GI130: 0 | GJ130: 0 | GK130: 0 | GL130: 0 | GM130: 0 | GN130: 0 | GO130: 0 | GP130: 0 | GQ130: 0 | GR130: 0 | GS130: 0 | GT130: 0 | GU130: 0 | GV130: 0 | GW130: 0 | GX130: 0 | GY130: 0 | GZ130: 0 | HA130: 0 | HB130: 0 | HC130: 0 | HD130: 0 | HE130: 0 | HF130: =SUM(HF126-HF127-HF128-HF129) -> 0 | HG130: 0 | HH130: 0 | HI130: 0 | HJ130: 0 | HK130: 0 | HL130: 0 | HM130: 0 | HN130: 0 | HO130: 0 | HP130: 0 | HQ130: 0 | HR130: 0 | HS130: 0 | HT130: 0 | HU130: 0 | HV130: 0 | HW130: 0 | HX130: 0 | HY130: 0 | HZ130: 0 | IA130: 0
A131: 16 | B131: MJG_RRC | C131: 16 | D131: MLB_UP | F131: =N131 -> 2448 | G131: 3000 | H131: 0 | I131: 0 | J131: 0 | K131: 0 | L131: 0 | M131: 計画数 | N131: =SUM(V131:AY131) -> 2448 | O131: 3000 | P131: 0 | Q131: 0 | R131: 0 | S131: 0 | T131: 0 | V131: =生産管理!V168 -> 0 | W131: =生産管理!W168 -> 0 | X131: =生産管理!X168 -> 0 | Y131: =生産管理!Y168 -> 0 | Z131: =生産管理!Z168 -> 0 | AA131: =生産管理!AA168 -> 0 | AB131: =生産管理!AB168 -> 0 | AC131: =生産管理!AC168 -> 0 | AD131: =生産管理!AD168 -> 0 | AE131: =生産管理!AE168 -> 0 | AF131: =生産管理!AF168 -> 0 | AG131: =生産管理!AG168 -> 0 | AH131: =生産管理!AH168 -> 394 | AI131: =生産管理!AI168 -> 764 | AJ131: =生産管理!AJ168 -> 669 | AK131: =生産管理!AK168 -> 621 | AL131: =生産管理!AL168 -> 0 | AM131: =生産管理!AM168 -> 0 | AN131: =生産管理!AN168 -> 0 | AO131: =生産管理!AO168 -> 0 | AP131: =生産管理!AP168 -> 0 | AQ131: =生産管理!AQ168 -> 0 | AR131: =生産管理!AR168 -> 0 | AS131: =生産管理!AS168 -> 0 | AT131: =生産管理!AT168 -> 0 | AU131: =生産管理!AU168 -> 0 | AV131: =生産管理!AV168 -> 0 | AW131: =生産管理!AW168 -> 0 | AX131: =生産管理!AX168 -> 0 | AY131: =生産管理!AY168 -> 0 | AZ131: =生産管理!AZ168 -> 0 | BA131: =生産管理!BA168 -> 0 | BB131: =生産管理!BB168 -> 0 | BC131: =生産管理!BC168 -> 0 | BD131: =生産管理!BD168 -> 0 | BE131: =生産管理!BE168 -> 0 | BF131: =生産管理!BF168 -> 0 | BG131: =生産管理!BG168 -> 0 | BH131: =生産管理!BH168 -> 0 | BI131: =生産管理!BI168 -> 0 | BJ131: =生産管理!BJ168 -> 600 | BK131: =生産管理!BL168 -> 600 | BL131: =生産管理!BM168 -> 0 | BM131: =生産管理!BN168 -> 0 | BN131: =生産管理!BO168 -> 0 | BO131: =生産管理!BP168 -> 0 | BP131: =生産管理!BQ168 -> 0 | BQ131: =生産管理!BR168 -> 0 | BR131: =生産管理!BS168 -> 0 | BS131: =生産管理!BT168 -> 0 | BT131: =生産管理!BU168 -> 600 | BU131: =生産管理!BV168 -> 600 | BV131: =生産管理!BW168 -> 600 | BW131: =生産管理!BX168 -> 0 | BX131: =生産管理!BY168 -> 0 | BY131: =生産管理!BZ168 -> 0 | BZ131: =生産管理!CA168 -> 0 | CA131: =生産管理!CB168 -> 0 | CB131: =生産管理!CC168 -> 0 | CC131: =生産管理!CD168 -> 0 | CD131: =生産管理!CE168 -> 0 | CE131: =生産管理!CF168 -> 0 | CF131: =生産管理!CG168 -> 0 | CG131: =生産管理!CH168 -> 0 | CH131: =生産管理!CI168 -> 0 | CI131: =生産管理!CJ168 -> 0 | CJ131: =生産管理!CK168 -> 0 | CK131: =生産管理!CL168 -> 0 | CL131: =生産管理!CM168 -> 0 | CM131: =生産管理!CN168 -> 0 | CN131: =生産管理!CO168 -> 0 | CO131: =生産管理!CP168 -> 0 | CP131: =生産管理!CQ168 -> 0 | CQ131: =生産管理!CS168 -> 0 | CR131: =生産管理!CT168 -> 0 | CS131: =生産管理!CU168 -> 0 | CT131: =生産管理!CV168 -> 0 | CU131: =生産管理!CW168 -> 0 | CV131: =生産管理!CX168 -> 0 | CW131: =生産管理!CY168 -> 0 | CX131: =生産管理!CZ168 -> 0 | CY131: =生産管理!DA168 -> 0 | CZ131: =生産管理!DB168 -> 0 | DA131: =生産管理!DC168 -> 0 | DB131: =生産管理!DD168 -> 0 | DC131: =生産管理!DE168 -> 0 | DD131: =生産管理!DF168 -> 0 | DE131: =生産管理!DG168 -> 0 | DF131: =生産管理!DH168 -> 0 | DG131: =生産管理!DI168 -> 0 | DH131: =生産管理!DJ168 -> 0 | DI131: =生産管理!DK168 -> 0 | DJ131: =生産管理!DL168 -> 0 | DK131: =生産管理!DM168 -> 0 | DL131: =生産管理!DN168 -> 0 | DM131: =生産管理!DO168 -> 0 | DN131: =生産管理!DP168 -> 0 | DO131: =生産管理!DQ168 -> 0 | DP131: =生産管理!DR168 -> 0 | DQ131: =生産管理!DS168 -> 0 | DR131: =生産管理!DT168 -> 0 | DS131: =生産管理!DU168 -> 0 | DT131: =生産管理!DV168 -> 0 | DU131: =生産管理!DW168 -> 0 | DV131: =生産管理!DX168 -> 0 | DW131: =生産管理!DY168 -> 0 | DX131: =生産管理!DZ168 -> 0 | DY131: =生産管理!EA168 -> 0 | DZ131: =生産管理!EB168 -> 0 | EA131: =生産管理!EC168 -> 0 | EB131: =生産管理!ED168 -> 0 | EC131: =生産管理!EE168 -> 0 | ED131: =生産管理!EF168 -> 0 | EE131: =生産管理!EG168 -> 0 | EF131: =生産管理!EH168 -> 0 | EG131: =生産管理!EI168 -> 0 | EH131: =生産管理!EJ168 -> 0 | EI131: =生産管理!EK168 -> 0 | EJ131: =生産管理!EL168 -> 0 | EK131: =生産管理!EM168 -> 0 | EL131: =生産管理!EN168 -> 0 | EM131: =生産管理!EO168 -> 0 | EN131: =生産管理!EP168 -> 0 | EO131: =生産管理!EQ168 -> 0 | EP131: =生産管理!ER168 -> 0 | EQ131: =生産管理!ES168 -> 0 | ER131: =生産管理!ET168 -> 0 | ES131: =生産管理!EU168 -> 0 | ET131: =生産管理!EV168 -> 0 | EU131: =生産管理!EW168 -> 0 | EV131: =生産管理!EX168 -> 0 | EW131: =生産管理!EY168 -> 0 | EX131: =生産管理!EZ168 -> 0 | EY131: =生産管理!FA168 -> 0 | EZ131: =生産管理!FB168 -> 0 | FA131: =生産管理!FC168 -> 0 | FB131: =生産管理!FD168 -> 0 | FC131: =生産管理!FE168 -> 0 | FD131: =生産管理!FF168 -> 0 | FE131: =生産管理!FG168 -> 0 | FF131: =生産管理!FH168 -> 0 | FG131: =生産管理!FI168 -> 0 | FH131: =生産管理!FJ168 -> 0 | FI131: =生産管理!FK168 -> 0 | FJ131: =生産管理!FL168 -> 0 | FK131: =生産管理!FM168 -> 0 | FL131: =生産管理!FN168 -> 0 | FM131: =生産管理!FO168 -> 0 | FN131: =生産管理!FP168 -> 0 | FO131: =生産管理!FQ168 -> 0 | FP131: =生産管理!FR168 -> 0 | FQ131: =生産管理!FS168 -> 0 | FR131: =生産管理!FT168 -> 0 | FS131: =生産管理!FU168 -> 0 | FT131: =生産管理!FV168 -> 0 | FU131: =生産管理!FW168 -> 0 | FV131: =生産管理!FX168 -> 0 | FW131: =生産管理!FY168 -> 0 | FX131: =生産管理!FZ168 -> 0 | FY131: =生産管理!GA168 -> 0 | FZ131: =生産管理!GB168 -> 0 | GA131: =生産管理!GC168 -> 0 | GB131: =生産管理!GD168 -> 0 | GC131: =生産管理!GE168 -> 0 | GD131: =生産管理!GF168 -> 0 | GE131: =生産管理!GG168 -> 0 | GF131: =生産管理!GH168 -> 0 | GG131: =生産管理!GI168 -> 0 | GH131: =生産管理!GJ168 -> 0 | GI131: =生産管理!GK168 -> 0 | GJ131: =生産管理!GL168 -> 0 | GK131: =生産管理!GM168 -> 0 | GL131: =生産管理!GN168 -> 0 | GM131: =生産管理!GO168 -> 0 | GN131: =生産管理!GP168 -> 0 | GO131: =生産管理!GQ168 -> 0 | GP131: =生産管理!GR168 -> 0 | GQ131: =生産管理!GS168 -> 0 | GR131: =生産管理!GT168 -> 0 | GS131: =生産管理!GU168 -> 0 | GT131: =生産管理!GV168 -> 0 | GU131: =生産管理!GW168 -> 0 | GV131: =生産管理!GX168 -> 0 | GW131: =生産管理!GY168 -> 0 | GX131: =生産管理!GZ168 -> 0 | GY131: =生産管理!HA168 -> 0 | GZ131: =生産管理!HB168 -> 0 | HA131: =生産管理!HC168 -> 0 | HB131: =生産管理!HD168 -> 0 | HC131: =生産管理!HE168 -> 0 | HD131: =生産管理!HF168 -> 0 | HE131: =生産管理!HG168 -> 0 | HF131: =生産管理!HH168 -> 0 | HG131: =生産管理!HI168 -> 0 | HH131: =生産管理!HJ168 -> 0 | HI131: =生産管理!HK168 -> 0 | HJ131: =生産管理!HL168 -> 0 | HK131: =生産管理!HM168 -> 0 | HL131: =生産管理!HN168 -> 0 | HM131: =生産管理!HO168 -> 0 | HN131: =生産管理!HP168 -> 0 | HO131: =生産管理!HQ168 -> 0 | HP131: =生産管理!HR168 -> 0 | HQ131: =生産管理!HS168 -> 0 | HR131: =生産管理!HT168 -> 0 | HS131: =生産管理!HU168 -> 0 | HT131: =生産管理!HV168 -> 0 | HU131: =生産管理!HW168 -> 0 | HV131: =生産管理!HX168 -> 0 | HW131: =生産管理!HY168 -> 0 | HX131: =生産管理!HZ168 -> 0 | HY131: =生産管理!IA168 -> 0 | HZ131: =生産管理!IB168 -> 0 | IA131: =生産管理!IC168 -> 0
A132: 16 | B132: MJG_RRC | C132: 16 | D132: MJG_RRC | F132: =N131 -> 2448 | G132: 3000 | H132: 0 | I132: 0 | J132: 0 | K132: 0 | L132: 0 | M132: 鋳造数 | N132: 2663 | O132: 0 | P132: 0 | Q132: 0 | R132: 0 | S132: 0 | T132: 0 | AH132: 465 | AI132: 795 | AJ132: 713 | AK132: 690
A133: 16 | B133: MJG_RRC | C133: 16 | D133: MJG_RRC | F133: =N131 -> 2448 | G133: 3000 | H133: 0 | I133: 0 | J133: 0 | K133: 0 | L133: 0 | M133: 捨吹① | N133: 21 | O133: 0 | P133: 0 | Q133: 0 | R133: 0 | S133: 0 | T133: 0 | AH133: 7 | AI133: 4 | AJ133: 5 | AK133: 5
A134: 16 | B134: MJG_RRC | C134: 16 | D134: MJG_RRC | F134: =N131 -> 2448 | G134: 3000 | H134: 0 | I134: 0 | J134: 0 | K134: 0 | L134: 0 | M134: 捨吹② | N134: 42 | O134: 0 | P134: 0 | Q134: 0 | R134: 0 | S134: 0 | T134: 0 | AH134: 11 | AI134: 6 | AJ134: 12 | AK134: 13
A135: 16 | B135: MJG_RRC | C135: 16 | D135: MJG_RRC | F135: =N131 -> 2448 | G135: 3000 | H135: 0 | I135: 0 | J135: 0 | K135: 0 | L135: 0 | M135: 廃却品 | N135: 152 | O135: 0 | P135: 0 | Q135: 0 | R135: 0 | S135: 0 | T135: 0 | AH135: 53 | AI135: 21 | AJ135: 27 | AK135: 51
A136: 16 | B136: MJG_RRC | C136: 16 | D136: MJG_RRC | F136: =N131 -> 2448 | G136: 3000 | H136: 0 | I136: 0 | J136: 0 | K136: 0 | L136: 0 | M136: 良品 | N136: 2448 | O136: 0 | P136: 0 | Q136: 0 | R136: 0 | S136: 0 | T136: 0 | V136: =SUM(V132-V133-V134-V135) -> 0 | W136: 0 | X136: 0 | Y136: 0 | Z136: 0 | AA136: 0 | AB136: 0 | AC136: 0 | AD136: 0 | AE136: 0 | AF136: 0 | AG136: 0 | AH136: 394 | AI136: 764 | AJ136: 669 | AK136: 621 | AL136: 0 | AM136: 0 | AN136: 0 | AO136: 0 | AP136: 0 | AQ136: 0 | AR136: 0 | AS136: 0 | AT136: 0 | AU136: 0 | AV136: 0 | AW136: 0 | AX136: 0 | AY136: 0 | AZ136: 0 | BA136: 0 | BB136: 0 | BC136: 0 | BD136: 0 | BE136: 0 | BF136: 0 | BG136: 0 | BH136: 0 | BI136: 0 | BJ136: 0 | BK136: 0 | BL136: 0 | BM136: 0 | BN136: 0 | BO136: 0 | BP136: 0 | BQ136: 0 | BR136: 0 | BS136: 0 | BT136: 0 | BU136: 0 | BV136: 0 | BW136: 0 | BX136: 0 | BY136: 0 | BZ136: 0 | CA136: 0 | CB136: 0 | CC136: 0 | CD136: 0 | CE136: 0 | CF136: 0 | CG136: 0 | CH136: =SUM(CH132-CH133-CH134-CH135) -> 0 | CI136: 0 | CJ136: 0 | CK136: 0 | CL136: 0 | CM136: 0 | CN136: 0 | CO136: 0 | CP136: 0 | CQ136: 0 | CR136: 0 | CS136: 0 | CT136: 0 | CU136: 0 | CV136: 0 | CW136: 0 | CX136: 0 | CY136: 0 | CZ136: 0 | DA136: 0 | DB136: 0 | DC136: 0 | DD136: 0 | DE136: 0 | DF136: 0 | DG136: 0 | DH136: 0 | DI136: 0 | DJ136: 0 | DK136: 0 | DL136: 0 | DM136: 0 | DN136: 0 | DO136: 0 | DP136: 0 | DQ136: 0 | DR136: 0 | DS136: 0 | DT136: 0 | DU136: 0 | DV136: 0 | DW136: 0 | DX136: 0 | DY136: 0 | DZ136: 0 | EA136: 0 | EB136: 0 | EC136: 0 | ED136: 0 | EE136: 0 | EF136: 0 | EG136: 0 | EH136: 0 | EI136: 0 | EJ136: 0 | EK136: 0 | EL136: 0 | EM136: 0 | EN136: 0 | EO136: 0 | EP136: 0 | EQ136: 0 | ER136: 0 | ES136: 0 | ET136: =SUM(ET132-ET133-ET134-ET135) -> 0 | EU136: 0 | EV136: 0 | EW136: 0 | EX136: 0 | EY136: 0 | EZ136: 0 | FA136: 0 | FB136: 0 | FC136: 0 | FD136: 0 | FE136: 0 | FF136: 0 | FG136: 0 | FH136: 0 | FI136: 0 | FJ136: 0 | FK136: 0 | FL136: 0 | FM136: 0 | FN136: 0 | FO136: 0 | FP136: 0 | FQ136: 0 | FR136: 0 | FS136: 0 | FT136: 0 | FU136: 0 | FV136: 0 | FW136: 0 | FX136: 0 | FY136: 0 | FZ136: 0 | GA136: 0 | GB136: 0 | GC136: 0 | GD136: 0 | GE136: 0 | GF136: 0 | GG136: 0 | GH136: 0 | GI136: 0 | GJ136: 0 | GK136: 0 | GL136: 0 | GM136: 0 | GN136: 0 | GO136: 0 | GP136: 0 | GQ136: 0 | GR136: 0 | GS136: 0 | GT136: 0 | GU136: 0 | GV136: 0 | GW136: 0 | GX136: 0 | GY136: 0 | GZ136: 0 | HA136: 0 | HB136: 0 | HC136: 0 | HD136: 0 | HE136: 0 | HF136: =SUM(HF132-HF133-HF134-HF135) -> 0 | HG136: 0 | HH136: 0 | HI136: 0 | HJ136: 0 | HK136: 0 | HL136: 0 | HM136: 0 | HN136: 0 | HO136: 0 | HP136: 0 | HQ136: 0 | HR136: 0 | HS136: 0 | HT136: 0 | HU136: 0 | HV136: 0 | HW136: 0 | HX136: 0 | HY136: 0 | HZ136: 0 | IA136: =SUM(IA132-IA133-IA134-IA135) -> 0
A137: 16 | B137: MGC_UC | C137: 16 | D137: MGC_UC | F137: =N137 -> 0 | G137: 0 | H137: 0 | I137: 0 | J137: 0 | K137: 0 | L137: 0 | M137: 計画数 | N137: 0 | O137: 0 | P137: =SUM(CE137:DH137) -> 0 | Q137: 0 | R137: 0 | S137: 0 | T137: 0 | V137: =+生産管理!V176 -> 0 | W137: =+生産管理!W176 -> 0 | X137: =+生産管理!X176 -> 0 | Y137: =+生産管理!Y176 -> 0 | Z137: =+生産管理!Z176 -> 0 | AA137: =+生産管理!AA176 -> 0 | AB137: =+生産管理!AB176 -> 0 | AC137: =+生産管理!AC176 -> 0 | AD137: =+生産管理!AD176 -> 0 | AE137: =+生産管理!AE176 -> 0 | AF137: =+生産管理!AF176 -> 0 | AG137: =+生産管理!AG176 -> 0 | AH137: =+生産管理!AH176 -> 0 | AI137: =+生産管理!AI176 -> 0 | AJ137: =+生産管理!AJ176 -> 0 | AK137: =+生産管理!AK176 -> 0 | AL137: =+生産管理!AL176 -> 0 | AM137: =+生産管理!AM176 -> 0 | AN137: =+生産管理!AN176 -> 0 | AO137: =+生産管理!AO176 -> 0 | AP137: =+生産管理!AP176 -> 0 | AQ137: =+生産管理!AQ176 -> 0 | AR137: =+生産管理!AR176 -> 0 | AS137: =+生産管理!AS176 -> 0 | AT137: =+生産管理!AT176 -> 0 | AU137: =+生産管理!AU176 -> 0 | AV137: =+生産管理!AV176 -> 0 | AW137: =+生産管理!AW176 -> 0 | AX137: =+生産管理!AX176 -> 0 | AY137: =+生産管理!AY176 -> 0 | AZ137: =+生産管理!AZ176 -> 0 | BA137: =+生産管理!BA176 -> 0 | BB137: =+生産管理!BB176 -> 0 | BC137: =+生産管理!BC176 -> 0 | BD137: =+生産管理!BD176 -> 0 | BE137: =+生産管理!BE176 -> 0 | BF137: =+生産管理!BF176 -> 0 | BG137: =+生産管理!BG176 -> 0 | BH137: =+生産管理!BH176 -> 0 | BI137: =+生産管理!BI176 -> 0 | BJ137: =+生産管理!BJ176 -> 0 | BK137: =+生産管理!BL176 -> 0 | BL137: =+生産管理!BM176 -> 0 | BM137: =+生産管理!BN176 -> 0 | BN137: =+生産管理!BO176 -> 0 | BO137: =+生産管理!BP176 -> 0 | BP137: =+生産管理!BQ176 -> 0 | BQ137: =+生産管理!BR176 -> 0 | BR137: =+生産管理!BS176 -> 0 | BS137: =+生産管理!BT176 -> 0 | BT137: =+生産管理!BU176 -> 0 | BU137: =+生産管理!BV176 -> 0 | BV137: =+生産管理!BW176 -> 0 | BW137: =+生産管理!BX176 -> 0 | BX137: =+生産管理!BY176 -> 0 | BY137: =+生産管理!BZ176 -> 0 | BZ137: =+生産管理!CA176 -> 0 | CA137: =+生産管理!CB176 -> 0 | CB137: =+生産管理!CC176 -> 0 | CC137: =+生産管理!CD176 -> 0 | CD137: =+生産管理!CE176 -> 0 | CE137: =+生産管理!CF176 -> 0 | CF137: =+生産管理!CG176 -> 0 | CG137: =+生産管理!CH176 -> 0 | CH137: =+生産管理!CI176 -> 0 | CI137: =+生産管理!CJ176 -> 0 | CJ137: =+生産管理!CK176 -> 0 | CK137: =+生産管理!CL176 -> 0 | CL137: =+生産管理!CM176 -> 0 | CM137: =+生産管理!CN176 -> 0 | CN137: =+生産管理!CO176 -> 0 | CO137: =+生産管理!CP176 -> 0 | CP137: =+生産管理!CQ176 -> 0 | CQ137: =+生産管理!CS176 -> 0 | CR137: =+生産管理!CT176 -> 0 | CS137: =+生産管理!CU176 -> 0 | CT137: =+生産管理!CV176 -> 0 | CU137: =+生産管理!CW176 -> 0 | CV137: =+生産管理!CX176 -> 0 | CW137: =+生産管理!CY176 -> 0 | CX137: =+生産管理!CZ176 -> 0 | CY137: =+生産管理!DA176 -> 0 | CZ137: =+生産管理!DB176 -> 0 | DA137: =+生産管理!DC176 -> 0 | DB137: =+生産管理!DD176 -> 0 | DC137: =+生産管理!DE176 -> 0 | DD137: =+生産管理!DF176 -> 0 | DE137: =+生産管理!DG176 -> 0 | DF137: =+生産管理!DH176 -> 0 | DG137: =+生産管理!DI176 -> 0 | DH137: =+生産管理!DJ176 -> 0 | DI137: =+生産管理!DK176 -> 0 | DJ137: =+生産管理!DL176 -> 0 | DK137: =+生産管理!DM176 -> 0 | DL137: =+生産管理!DN176 -> 0 | DM137: =+生産管理!DO176 -> 0 | DN137: =+生産管理!DP176 -> 0 | DO137: =+生産管理!DQ176 -> 0 | DP137: =+生産管理!DR176 -> 0 | DQ137: =+生産管理!DS176 -> 0 | DR137: =+生産管理!DT176 -> 0 | DS137: =+生産管理!DU176 -> 0 | DT137: =+生産管理!DV176 -> 0 | DU137: =+生産管理!DW176 -> 0 | DV137: =+生産管理!DX176 -> 0 | DW137: =+生産管理!DY176 -> 0 | DX137: =+生産管理!DZ176 -> 0 | DY137: =+生産管理!EA176 -> 0 | DZ137: =+生産管理!EB176 -> 0 | EA137: =+生産管理!EC176 -> 0 | EB137: =+生産管理!ED176 -> 0 | EC137: =+生産管理!EE176 -> 0 | ED137: =+生産管理!EF176 -> 0 | EE137: =+生産管理!EG176 -> 0 | EF137: =+生産管理!EH176 -> 0 | EG137: =+生産管理!EI176 -> 0 | EH137: =+生産管理!EJ176 -> 0 | EI137: =+生産管理!EK176 -> 0 | EJ137: =+生産管理!EL176 -> 0 | EK137: =+生産管理!EM176 -> 0 | EL137: =+生産管理!EN176 -> 0 | EM137: =+生産管理!EO176 -> 0 | EN137: =+生産管理!EP176 -> 0 | EO137: =+生産管理!EQ176 -> 0 | EP137: =+生産管理!ER176 -> 0 | EQ137: =+生産管理!ES176 -> 0 | ER137: =+生産管理!ET176 -> 0 | ES137: =+生産管理!EU176 -> 0 | ET137: =+生産管理!EV176 -> 0 | EU137: =+生産管理!EW176 -> 0 | EV137: =+生産管理!EX176 -> 0 | EW137: =+生産管理!EY176 -> 0 | EX137: =+生産管理!EZ176 -> 0 | EY137: =+生産管理!FA176 -> 0 | EZ137: =+生産管理!FB176 -> 0 | FA137: =+生産管理!FC176 -> 0 | FB137: =+生産管理!FD176 -> 0 | FC137: =+生産管理!FE176 -> 0 | FD137: =+生産管理!FF176 -> 0 | FE137: =+生産管理!FG176 -> 0 | FF137: =+生産管理!FH176 -> 0 | FG137: =+生産管理!FI176 -> 0 | FH137: =+生産管理!FJ176 -> 0 | FI137: =+生産管理!FK176 -> 0 | FJ137: =+生産管理!FL176 -> 0 | FK137: =+生産管理!FM176 -> 0 | FL137: =+生産管理!FN176 -> 0 | FM137: =+生産管理!FO176 -> 0 | FN137: =+生産管理!FP176 -> 0 | FO137: =+生産管理!FQ176 -> 0 | FP137: =+生産管理!FR176 -> 0 | FQ137: =+生産管理!FS176 -> 0 | FR137: =+生産管理!FT176 -> 0 | FS137: =+生産管理!FU176 -> 0 | FT137: =+生産管理!FV176 -> 0 | FU137: =+生産管理!FW176 -> 0 | FV137: =+生産管理!FX176 -> 0 | FW137: =+生産管理!FY176 -> 0 | FX137: =+生産管理!FZ176 -> 0 | FY137: =+生産管理!GA176 -> 0 | FZ137: =+生産管理!GB176 -> 0 | GA137: =+生産管理!GC176 -> 0 | GB137: =+生産管理!GD176 -> 0 | GC137: =+生産管理!GE176 -> 0 | GD137: =+生産管理!GF176 -> 0 | GE137: =+生産管理!GG176 -> 0 | GF137: =+生産管理!GH176 -> 0 | GG137: =+生産管理!GI176 -> 0 | GH137: =+生産管理!GJ176 -> 0 | GI137: =+生産管理!GK176 -> 0 | GJ137: =+生産管理!GL176 -> 0 | GK137: =+生産管理!GM176 -> 0 | GL137: =+生産管理!GN176 -> 0 | GM137: =+生産管理!GO176 -> 0 | GN137: =+生産管理!GP176 -> 0 | GO137: =+生産管理!GQ176 -> 0 | GP137: =+生産管理!GR176 -> 0 | GQ137: =+生産管理!GS176 -> 0 | GR137: =+生産管理!GT176 -> 0 | GS137: =+生産管理!GU176 -> 0 | GT137: =+生産管理!GV176 -> 0 | GU137: =+生産管理!GW176 -> 0 | GV137: =+生産管理!GX176 -> 0 | GW137: =+生産管理!GY176 -> 0 | GX137: =+生産管理!GZ176 -> 0 | GY137: =+生産管理!HA176 -> 0 | GZ137: =+生産管理!HB176 -> 0 | HA137: =+生産管理!HC176 -> 0 | HB137: =+生産管理!HD176 -> 0 | HC137: =+生産管理!HE176 -> 0 | HD137: =+生産管理!HF176 -> 0 | HE137: =+生産管理!HG176 -> 0 | HF137: =+生産管理!HH176 -> 0 | HG137: =+生産管理!HI176 -> 0 | HH137: =+生産管理!HJ176 -> 0 | HI137: =+生産管理!HK176 -> 0 | HJ137: =+生産管理!HL176 -> 0 | HK137: =+生産管理!HM176 -> 0 | HL137: =+生産管理!HN176 -> 0 | HM137: =+生産管理!HO176 -> 0 | HN137: =+生産管理!HP176 -> 0 | HO137: =+生産管理!HQ176 -> 0 | HP137: =+生産管理!HR176 -> 0 | HQ137: =+生産管理!HS176 -> 0 | HR137: =+生産管理!HT176 -> 0 | HS137: =+生産管理!HU176 -> 0 | HT137: =+生産管理!HV176 -> 0 | HU137: =+生産管理!HW176 -> 0 | HV137: =+生産管理!HX176 -> 0 | HW137: =+生産管理!HY176 -> 0 | HX137: =+生産管理!HZ176 -> 0 | HY137: =+生産管理!IA176 -> 0 | HZ137: =+生産管理!IB176 -> 0 | IA137: =+生産管理!IC176 -> 0
A138: 16 | B138: MGC_UC | C138: 16 | D138: MGC_UC | F138: =N137 -> 0 | G138: 0 | H138: 0 | I138: 0 | J138: 0 | K138: 0 | L138: 0 | M138: 鋳造数 | N138: 0 | O138: 0 | P138: 0 | Q138: 0 | R138: 0 | S138: 0 | T138: 0
A139: 16 | B139: MGC_UC | C139: 16 | D139: MGC_UC | F139: =N137 -> 0 | G139: 0 | H139: 0 | I139: 0 | J139: 0 | K139: 0 | L139: 0 | M139: 捨吹① | N139: 0 | O139: 0 | P139: 0 | Q139: 0 | R139: 0 | S139: 0 | T139: 0
A140: 16 | B140: MGC_UC | C140: 16 | D140: MGC_UC | F140: =N137 -> 0 | G140: 0 | H140: 0 | I140: 0 | J140: 0 | K140: 0 | L140: 0 | M140: 捨吹② | N140: 0 | O140: 0 | P140: 0 | Q140: 0 | R140: 0 | S140: 0 | T140: 0
A141: 16 | B141: MGC_UC | C141: 16 | D141: MGC_UC | F141: =N137 -> 0 | G141: 0 | H141: 0 | I141: 0 | J141: 0 | K141: 0 | L141: 0 | M141: 廃却品 | N141: 0 | O141: 0 | P141: 0 | Q141: 0 | R141: 0 | S141: 0 | T141: 0
A142: 16 | B142: MGC_UC | C142: 16 | D142: MGC_UC | F142: =N137 -> 0 | G142: 0 | H142: 0 | I142: 0 | J142: 0 | K142: 0 | L142: 0 | M142: 良品 | N142: 0 | O142: 0 | P142: 0 | Q142: 0 | R142: 0 | S142: 0 | T142: 0 | V142: =SUM(V138-V139-V140-V141) -> 0 | W142: 0 | X142: 0 | Y142: 0 | Z142: 0 | AA142: 0 | AB142: 0 | AC142: 0 | AD142: 0 | AE142: 0 | AF142: 0 | AG142: 0 | AH142: 0 | AI142: 0 | AJ142: 0 | AK142: 0 | AL142: 0 | AM142: 0 | AN142: 0 | AO142: 0 | AP142: 0 | AQ142: 0 | AR142: 0 | AS142: 0 | AT142: 0 | AU142: 0 | AV142: 0 | AW142: 0 | AX142: 0 | AY142: 0 | AZ142: 0 | BA142: 0 | BB142: 0 | BC142: 0 | BD142: 0 | BE142: 0 | BF142: 0 | BG142: 0 | BH142: 0 | BI142: 0 | BJ142: 0 | BK142: 0 | BL142: 0 | BM142: 0 | BN142: 0 | BO142: 0 | BP142: 0 | BQ142: 0 | BR142: 0 | BS142: 0 | BT142: 0 | BU142: 0 | BV142: 0 | BW142: 0 | BX142: 0 | BY142: 0 | BZ142: 0 | CA142: 0 | CB142: 0 | CC142: 0 | CD142: 0 | CE142: 0 | CF142: 0 | CG142: 0 | CH142: =SUM(CH138-CH139-CH140-CH141) -> 0 | CI142: 0 | CJ142: 0 | CK142: 0 | CL142: 0 | CM142: 0 | CN142: 0 | CO142: 0 | CP142: 0 | CQ142: 0 | CR142: 0 | CS142: 0 | CT142: 0 | CU142: 0 | CV142: 0 | CW142: 0 | CX142: 0 | CY142: 0 | CZ142: 0 | DA142: 0 | DB142: 0 | DC142: 0 | DD142: 0 | DE142: 0 | DF142: 0 | DG142: 0 | DH142: 0 | DI142: 0 | DJ142: 0 | DK142: 0 | DL142: 0 | DM142: 0 | DN142: 0 | DO142: 0 | DP142: 0 | DQ142: 0 | DR142: 0 | DS142: 0 | DT142: 0 | DU142: 0 | DV142: 0 | DW142: 0 | DX142: 0 | DY142: 0 | DZ142: 0 | EA142: 0 | EB142: 0 | EC142: 0 | ED142: 0 | EE142: 0 | EF142: 0 | EG142: 0 | EH142: 0 | EI142: 0 | EJ142: 0 | EK142: 0 | EL142: 0 | EM142: 0 | EN142: 0 | EO142: 0 | EP142: 0 | EQ142: 0 | ER142: 0 | ES142: 0 | ET142: =SUM(ET138-ET139-ET140-ET141) -> 0 | EU142: 0 | EV142: 0 | EW142: 0 | EX142: 0 | EY142: 0 | EZ142: 0 | FA142: 0 | FB142: 0 | FC142: 0 | FD142: 0 | FE142: 0 | FF142: 0 | FG142: 0 | FH142: 0 | FI142: 0 | FJ142: 0 | FK142: 0 | FL142: 0 | FM142: 0 | FN142: 0 | FO142: 0 | FP142: 0 | FQ142: 0 | FR142: 0 | FS142: 0 | FT142: 0 | FU142: 0 | FV142: 0 | FW142: 0 | FX142: 0 | FY142: 0 | FZ142: 0 | GA142: 0 | GB142: 0 | GC142: 0 | GD142: 0 | GE142: 0 | GF142: 0 | GG142: 0 | GH142: 0 | GI142: 0 | GJ142: 0 | GK142: 0 | GL142: 0 | GM142: 0 | GN142: 0 | GO142: 0 | GP142: 0 | GQ142: 0 | GR142: 0 | GS142: 0 | GT142: 0 | GU142: 0 | GV142: 0 | GW142: 0 | GX142: 0 | GY142: 0 | GZ142: 0 | HA142: 0 | HB142: 0 | HC142: 0 | HD142: 0 | HE142: 0 | HF142: =SUM(HF138-HF139-HF140-HF141) -> 0 | HG142: 0 | HH142: 0 | HI142: 0 | HJ142: 0 | HK142: 0 | HL142: 0 | HM142: 0 | HN142: 0 | HO142: 0 | HP142: 0 | HQ142: 0 | HR142: 0 | HS142: 0 | HT142: 0 | HU142: 0 | HV142: 0 | HW142: 0 | HX142: 0 | HY142: 0 | HZ142: 0 | IA142: =SUM(IA138-IA139-IA140-IA141) -> 0
A143: 16 | B143: MFJ_CB | C143: 16 | D143: MFJ_CB | F143: =N143 -> 0 | G143: 1400 | H143: 0 | I143: 0 | J143: 0 | K143: 0 | L143: 0 | M143: 計画数 | N143: =SUM(V143:AY143) -> 0 | O143: =SUM(BA143:CD143) -> 1400 | P143: 0 | Q143: =SUM(DJ143:EM143) -> 0 | R143: =SUM(EN143:FP143) -> 0 | S143: =SUM(FQ143:GU143) -> 0 | T143: =SUM(GV143:HY143) -> 0 | V143: =生産管理!V185 -> 0 | W143: =生産管理!W185 -> 0 | X143: =生産管理!X185 -> 0 | Y143: =生産管理!Y185 -> 0 | Z143: =生産管理!Z185 -> 0 | AA143: =生産管理!AA185 -> 0 | AB143: =生産管理!AB185 -> 0 | AC143: =生産管理!AC185 -> 0 | AD143: =生産管理!AD185 -> 0 | AE143: =生産管理!AE185 -> 0 | AF143: =生産管理!AF185 -> 0 | AG143: =生産管理!AG185 -> 0 | AH143: =生産管理!AH185 -> 0 | AI143: =生産管理!AI185 -> 0 | AJ143: =生産管理!AJ185 -> 0 | AK143: =生産管理!AK185 -> 0 | AL143: =生産管理!AL185 -> 0 | AM143: =生産管理!AM185 -> 0 | AN143: =生産管理!AN185 -> 0 | AO143: =生産管理!AO185 -> 0 | AP143: =生産管理!AP185 -> 0 | AQ143: =生産管理!AQ185 -> 0 | AR143: =生産管理!AR185 -> 0 | AS143: =生産管理!AS185 -> 0 | AT143: =生産管理!AT185 -> 0 | AU143: =生産管理!AU185 -> 0 | AV143: =生産管理!AV185 -> 0 | AW143: =生産管理!AW185 -> 0 | AX143: =生産管理!AX185 -> 0 | AY143: =生産管理!AY185 -> 0 | AZ143: =生産管理!AZ185 -> 0 | BA143: =生産管理!BA185 -> 0 | BB143: =生産管理!BB185 -> 0 | BC143: =生産管理!BC185 -> 0 | BD143: =生産管理!BD185 -> 0 | BE143: =生産管理!BE185 -> 0 | BF143: =生産管理!BF185 -> 0 | BG143: =生産管理!BG185 -> 400 | BH143: =生産管理!BH185 -> 400 | BI143: =生産管理!BI185 -> 0 | BJ143: =生産管理!BJ185 -> 0 | BK143: =生産管理!BL185 -> 0 | BL143: =生産管理!BM185 -> 0 | BM143: =生産管理!BN185 -> 0 | BN143: =生産管理!BO185 -> 0 | BO143: =生産管理!BP185 -> 0 | BP143: =生産管理!BQ185 -> 0 | BQ143: =生産管理!BR185 -> 0 | BR143: =生産管理!BS185 -> 0 | BS143: =生産管理!BT185 -> 0 | BT143: =生産管理!BU185 -> 0 | BU143: =生産管理!BV185 -> 0 | BV143: =生産管理!BW185 -> 0 | BW143: =生産管理!BX185 -> 0 | BX143: =生産管理!BY185 -> 0 | BY143: =生産管理!BZ185 -> 0 | BZ143: =生産管理!CA185 -> 0 | CA143: =生産管理!CB185 -> 200 | CB143: =生産管理!CC185 -> 400 | CC143: =生産管理!CD185 -> 0 | CD143: =生産管理!CE185 -> 0 | CE143: =生産管理!CF185 -> 0 | CF143: =生産管理!CG185 -> 0 | CG143: =生産管理!CH185 -> 0 | CH143: =生産管理!CI185 -> 0 | CI143: =生産管理!CJ185 -> 0 | CJ143: =生産管理!CK185 -> 0 | CK143: =生産管理!CL185 -> 0 | CL143: =生産管理!CM185 -> 0 | CM143: =生産管理!CN185 -> 0 | CN143: =生産管理!CO185 -> 0 | CO143: =生産管理!CP185 -> 0 | CP143: =生産管理!CQ185 -> 0 | CQ143: =生産管理!CS185 -> 0 | CR143: =生産管理!CT185 -> 0 | CS143: =生産管理!CU185 -> 0 | CT143: =生産管理!CV185 -> 0 | CU143: =生産管理!CW185 -> 0 | CV143: =生産管理!CX185 -> 0 | CW143: =生産管理!CY185 -> 0 | CX143: =生産管理!CZ185 -> 0 | CY143: =生産管理!DA185 -> 0 | CZ143: =生産管理!DB185 -> 0 | DA143: =生産管理!DC185 -> 0 | DB143: =生産管理!DD185 -> 0 | DC143: =生産管理!DE185 -> 0 | DD143: =生産管理!DF185 -> 0 | DE143: =生産管理!DG185 -> 0 | DF143: =生産管理!DH185 -> 0 | DG143: =生産管理!DI185 -> 0 | DH143: =生産管理!DJ185 -> 0 | DI143: =生産管理!DK185 -> 0 | DJ143: =生産管理!DL185 -> 0 | DK143: =生産管理!DM185 -> 0 | DL143: =生産管理!DN185 -> 0 | DM143: =生産管理!DO185 -> 0 | DN143: =生産管理!DP185 -> 0 | DO143: =生産管理!DQ185 -> 0 | DP143: =生産管理!DR185 -> 0 | DQ143: =生産管理!DS185 -> 0 | DR143: =生産管理!DT185 -> 0 | DS143: =生産管理!DU185 -> 0 | DT143: =生産管理!DV185 -> 0 | DU143: =生産管理!DW185 -> 0 | DV143: =生産管理!DX185 -> 0 | DW143: =生産管理!DY185 -> 0 | DX143: =生産管理!DZ185 -> 0 | DY143: =生産管理!EA185 -> 0 | DZ143: =生産管理!EB185 -> 0 | EA143: =生産管理!EC185 -> 0 | EB143: =生産管理!ED185 -> 0 | EC143: =生産管理!EE185 -> 0 | ED143: =生産管理!EF185 -> 0 | EE143: =生産管理!EG185 -> 0 | EF143: =生産管理!EH185 -> 0 | EG143: =生産管理!EI185 -> 0 | EH143: =生産管理!EJ185 -> 0 | EI143: =生産管理!EK185 -> 0 | EJ143: =生産管理!EL185 -> 0 | EK143: =生産管理!EM185 -> 0 | EL143: =生産管理!EN185 -> 0 | EM143: =生産管理!EO185 -> 0 | EN143: =生産管理!EP185 -> 0 | EO143: =生産管理!EQ185 -> 0 | EP143: =生産管理!ER185 -> 0 | EQ143: =生産管理!ES185 -> 0 | ER143: =生産管理!ET185 -> 0 | ES143: =生産管理!EU185 -> 0 | ET143: =生産管理!EV185 -> 0 | EU143: =生産管理!EW185 -> 0 | EV143: =生産管理!EX185 -> 0 | EW143: =生産管理!EY185 -> 0 | EX143: =生産管理!EZ185 -> 0 | EY143: =生産管理!FA185 -> 0 | EZ143: =生産管理!FB185 -> 0 | FA143: =生産管理!FC185 -> 0 | FB143: =生産管理!FD185 -> 0 | FC143: =生産管理!FE185 -> 0 | FD143: =生産管理!FF185 -> 0 | FE143: =生産管理!FG185 -> 0 | FF143: =生産管理!FH185 -> 0 | FG143: =生産管理!FI185 -> 0 | FH143: =生産管理!FJ185 -> 0 | FI143: =生産管理!FK185 -> 0 | FJ143: =生産管理!FL185 -> 0 | FK143: =生産管理!FM185 -> 0 | FL143: =生産管理!FN185 -> 0 | FM143: =生産管理!FO185 -> 0 | FN143: =生産管理!FP185 -> 0 | FO143: =生産管理!FQ185 -> 0 | FP143: =生産管理!FR185 -> 0 | FQ143: =生産管理!FS185 -> 0 | FR143: =生産管理!FT185 -> 0 | FS143: =生産管理!FU185 -> 0 | FT143: =生産管理!FV185 -> 0 | FU143: =生産管理!FW185 -> 0 | FV143: =生産管理!FX185 -> 0 | FW143: =生産管理!FY185 -> 0 | FX143: =生産管理!FZ185 -> 0 | FY143: =生産管理!GA185 -> 0 | FZ143: =生産管理!GB185 -> 0 | GA143: =生産管理!GC185 -> 0 | GB143: =生産管理!GD185 -> 0 | GC143: =生産管理!GE185 -> 0 | GD143: =生産管理!GF185 -> 0 | GE143: =生産管理!GG185 -> 0 | GF143: =生産管理!GH185 -> 0 | GG143: =生産管理!GI185 -> 0 | GH143: =生産管理!GJ185 -> 0 | GI143: =生産管理!GK185 -> 0 | GJ143: =生産管理!GL185 -> 0 | GK143: =生産管理!GM185 -> 0 | GL143: =生産管理!GN185 -> 0 | GM143: =生産管理!GO185 -> 0 | GN143: =生産管理!GP185 -> 0 | GO143: =生産管理!GQ185 -> 0 | GP143: =生産管理!GR185 -> 0 | GQ143: =生産管理!GS185 -> 0 | GR143: =生産管理!GT185 -> 0 | GS143: =生産管理!GU185 -> 0 | GT143: =生産管理!GV185 -> 0 | GU143: =生産管理!GW185 -> 0 | GV143: =生産管理!GX185 -> 0 | GW143: =生産管理!GY185 -> 0 | GX143: =生産管理!GZ185 -> 0 | GY143: =生産管理!HA185 -> 0 | GZ143: =生産管理!HB185 -> 0 | HA143: =生産管理!HC185 -> 0 | HB143: =生産管理!HD185 -> 0 | HC143: =生産管理!HE185 -> 0 | HD143: =生産管理!HF185 -> 0 | HE143: =生産管理!HG185 -> 0 | HF143: =生産管理!HH185 -> 0 | HG143: =生産管理!HI185 -> 0 | HH143: =生産管理!HJ185 -> 0 | HI143: =生産管理!HK185 -> 0 | HJ143: =生産管理!HL185 -> 0 | HK143: =生産管理!HM185 -> 0 | HL143: =生産管理!HN185 -> 0 | HM143: =生産管理!HO185 -> 0 | HN143: =生産管理!HP185 -> 0 | HO143: =生産管理!HQ185 -> 0 | HP143: =生産管理!HR185 -> 0 | HQ143: =生産管理!HS185 -> 0 | HR143: =生産管理!HT185 -> 0 | HS143: =生産管理!HU185 -> 0 | HT143: =生産管理!HV185 -> 0 | HU143: =生産管理!HW185 -> 0 | HV143: =生産管理!HX185 -> 0 | HW143: =生産管理!HY185 -> 0 | HX143: =生産管理!HZ185 -> 0 | HY143: =生産管理!IA185 -> 0 | HZ143: =生産管理!IB185 -> 0 | IA143: =生産管理!IC185 -> 0
A144: 16 | B144: MFJ_CB | C144: 16 | D144: MFJ_CB | F144: =N143 -> 0 | G144: 1400 | H144: 0 | I144: 0 | J144: 0 | K144: 0 | L144: 0 | M144: 鋳造数 | N144: 0 | O144: 67 | P144: 0 | Q144: 0 | R144: 0 | S144: 0 | T144: 0 | BF144: 67
A145: 16 | B145: MFJ_CB | C145: 16 | D145: MFJ_CB | F145: =N143 -> 0 | G145: 1400 | H145: 0 | I145: 0 | J145: 0 | K145: 0 | L145: 0 | M145: 捨吹①金具 | N145: 0 | O145: 5 | P145: 0 | Q145: 0 | R145: 0 | S145: 0 | T145: 0 | BF145: 5
A146: 16 | B146: MFJ_CB | C146: 16 | D146: MFJ_CB | F146: =N143 -> 0 | G146: 1400 | H146: 0 | I146: 0 | J146: 0 | K146: 0 | L146: 0 | M146: 捨吹②金具 | N146: 0 | O146: 7 | P146: 0 | Q146: 0 | R146: 0 | S146: 0 | T146: 0 | BF146: 7
A147: 16 | B147: MFJ_CB | C147: 16 | D147: MFJ_CB | F147: =N143 -> 0 | G147: 1400 | H147: 0 | I147: 0 | J147: 0 | K147: 0 | L147: 0 | M147: 廃却品 | N147: 0 | O147: 26 | P147: 0 | Q147: 0 | R147: 0 | S147: 0 | T147: 0 | BF147: 26
A148: 16 | B148: MFJ_CB | C148: 16 | D148: MFJ_CB | F148: =N143 -> 0 | G148: 1400 | H148: 0 | I148: 0 | J148: 0 | K148: 0 | L148: 0 | M148: 良品 | N148: 0 | O148: 29 | P148: 0 | Q148: 0 | R148: 0 | S148: 0 | T148: 0 | V148: =SUM(V144-V145-V146-V147) -> 0 | W148: 0 | X148: 0 | Y148: 0 | Z148: 0 | AA148: 0 | AB148: 0 | AC148: 0 | AD148: 0 | AE148: 0 | AF148: 0 | AG148: 0 | AH148: 0 | AI148: 0 | AJ148: 0 | AK148: 0 | AL148: 0 | AM148: 0 | AN148: 0 | AO148: 0 | AP148: 0 | AQ148: 0 | AR148: 0 | AS148: 0 | AT148: 0 | AU148: 0 | AV148: 0 | AW148: 0 | AX148: 0 | AY148: 0 | AZ148: 0 | BA148: 0 | BB148: 0 | BC148: 0 | BD148: 0 | BE148: 0 | BF148: 29 | BG148: 0 | BH148: 0 | BI148: 0 | BJ148: 0 | BK148: 0 | BL148: 0 | BM148: 0 | BN148: 0 | BO148: 0 | BP148: 0 | BQ148: 0 | BR148: 0 | BS148: 0 | BT148: 0 | BU148: 0 | BV148: 0 | BW148: 0 | BX148: 0 | BY148: 0 | BZ148: 0 | CA148: 0 | CB148: 0 | CC148: 0 | CD148: 0 | CE148: 0 | CF148: 0 | CG148: 0 | CH148: =SUM(CH144-CH145-CH146-CH147) -> 0 | CI148: 0 | CJ148: 0 | CK148: 0 | CL148: 0 | CM148: 0 | CN148: 0 | CO148: 0 | CP148: 0 | CQ148: 0 | CR148: 0 | CS148: 0 | CT148: 0 | CU148: 0 | CV148: 0 | CW148: 0 | CX148: 0 | CY148: 0 | CZ148: 0 | DA148: 0 | DB148: 0 | DC148: 0 | DD148: 0 | DE148: 0 | DF148: 0 | DG148: 0 | DH148: 0 | DI148: 0 | DJ148: 0 | DK148: 0 | DL148: 0 | DM148: 0 | DN148: 0 | DO148: 0 | DP148: 0 | DQ148: 0 | DR148: 0 | DS148: 0 | DT148: 0 | DU148: 0 | DV148: 0 | DW148: 0 | DX148: 0 | DY148: 0 | DZ148: 0 | EA148: 0 | EB148: 0 | EC148: 0 | ED148: 0 | EE148: 0 | EF148: 0 | EG148: 0 | EH148: 0 | EI148: 0 | EJ148: 0 | EK148: 0 | EL148: 0 | EM148: 0 | EN148: 0 | EO148: 0 | EP148: 0 | EQ148: 0 | ER148: 0 | ES148: 0 | ET148: =SUM(ET144-ET145-ET146-ET147) -> 0 | EU148: 0 | EV148: 0 | EW148: 0 | EX148: 0 | EY148: 0 | EZ148: 0 | FA148: 0 | FB148: 0 | FC148: 0 | FD148: 0 | FE148: 0 | FF148: 0 | FG148: 0 | FH148: 0 | FI148: 0 | FJ148: 0 | FK148: 0 | FL148: 0 | FM148: 0 | FN148: 0 | FO148: 0 | FP148: 0 | FQ148: 0 | FR148: 0 | FS148: 0 | FT148: 0 | FU148: 0 | FV148: 0 | FW148: 0 | FX148: 0 | FY148: 0 | FZ148: 0 | GA148: 0 | GB148: 0 | GC148: 0 | GD148: 0 | GE148: 0 | GF148: 0 | GG148: 0 | GH148: 0 | GI148: 0 | GJ148: 0 | GK148: 0 | GL148: 0 | GM148: 0 | GN148: 0 | GO148: 0 | GP148: 0 | GQ148: 0 | GR148: 0 | GS148: 0 | GT148: 0 | GU148: 0 | GV148: 0 | GW148: 0 | GX148: 0 | GY148: 0 | GZ148: 0 | HA148: 0 | HB148: 0 | HC148: 0 | HD148: 0 | HE148: 0 | HF148: =SUM(HF144-HF145-HF146-HF147) -> 0 | HG148: 0 | HH148: 0 | HI148: 0 | HJ148: 0 | HK148: 0 | HL148: 0 | HM148: 0 | HN148: 0 | HO148: 0 | HP148: 0 | HQ148: 0 | HR148: 0 | HS148: 0 | HT148: 0 | HU148: 0 | HV148: 0 | HW148: 0 | HX148: 0 | HY148: 0 | HZ148: 0 | IA148: 0
A149: 16 | B149: MFJ_CB | C149: 16 | D149: MKZ_CB | F149: =N149 -> 2155 | G149: =O149 -> 600 | H149: 0 | I149: 0 | J149: 0 | K149: 0 | L149: 0 | M149: 計画数 | N149: 2155 | O149: 600 | P149: 0 | Q149: 0 | R149: 0 | S149: 0 | T149: 0 | V149: =+生産管理!V195 -> 0 | W149: =+生産管理!W195 -> 0 | X149: =+生産管理!X195 -> 0 | Y149: =+生産管理!Y195 -> 0 | Z149: =+生産管理!Z195 -> 0 | AA149: =+生産管理!AA195 -> 359 | AB149: =+生産管理!AB195 -> 360 | AC149: =+生産管理!AC195 -> 0 | AD149: =+生産管理!AD195 -> 0 | AE149: =+生産管理!AE195 -> 0 | AF149: =+生産管理!AF195 -> 0 | AG149: =+生産管理!AG195 -> 0 | AH149: =+生産管理!AH195 -> 0 | AI149: =+生産管理!AI195 -> 0 | AJ149: =+生産管理!AJ195 -> 0 | AK149: =+生産管理!AK195 -> 0 | AL149: =+生産管理!AL195 -> 0 | AM149: =+生産管理!AM195 -> 0 | AN149: =+生産管理!AN195 -> 0 | AO149: =+生産管理!AO195 -> 0 | AP149: =+生産管理!AP195 -> 0 | AQ149: =+生産管理!AQ195 -> 0 | AR149: =+生産管理!AR195 -> 0 | AS149: =+生産管理!AS195 -> 249 | AT149: =+生産管理!AT195 -> 392 | AU149: =+生産管理!AU195 -> 160 | AV149: =+生産管理!AV195 -> 585 | AW149: =+生産管理!AW195 -> 50 | AX149: =+生産管理!AX195 -> 0 | AY149: =+生産管理!AY195 -> 0 | AZ149: =+生産管理!AZ195 -> 0 | BA149: =+生産管理!BA195 -> 0 | BB149: =+生産管理!BB195 -> 0 | BC149: =+生産管理!BC195 -> 0 | BD149: =+生産管理!BD195 -> 0 | BE149: =+生産管理!BE195 -> 0 | BF149: =+生産管理!BF195 -> 0 | BG149: =+生産管理!BG195 -> 0 | BH149: =+生産管理!BH195 -> 0 | BI149: =+生産管理!BI195 -> 0 | BJ149: =+生産管理!BJ195 -> 0 | BK149: =+生産管理!BL195 -> 0 | BL149: =+生産管理!BM195 -> 0 | BM149: =+生産管理!BN195 -> 0 | BN149: =+生産管理!BO195 -> 0 | BO149: =+生産管理!BP195 -> 0 | BP149: =+生産管理!BQ195 -> 0 | BQ149: =+生産管理!BR195 -> 0 | BR149: =+生産管理!BS195 -> 0 | BS149: =+生産管理!BT195 -> 0 | BT149: =+生産管理!BU195 -> 0 | BU149: =+生産管理!BV195 -> 0 | BV149: =+生産管理!BW195 -> 0 | BW149: =+生産管理!BX195 -> 0 | BX149: =+生産管理!BY195 -> 0 | BY149: =+生産管理!BZ195 -> 0 | BZ149: =+生産管理!CA195 -> 400 | CA149: =+生産管理!CB195 -> 200 | CB149: =+生産管理!CC195 -> 0 | CC149: =+生産管理!CD195 -> 0 | CD149: =+生産管理!CE195 -> 0 | CE149: =+生産管理!CF195 -> 0 | CF149: =+生産管理!CG195 -> 0 | CG149: =+生産管理!CH195 -> 0 | CH149: =+生産管理!CI195 -> 0 | CI149: =+生産管理!CJ195 -> 0 | CJ149: =+生産管理!CK195 -> 0 | CK149: =+生産管理!CL195 -> 0 | CL149: =+生産管理!CM195 -> 0 | CM149: =+生産管理!CN195 -> 0 | CN149: =+生産管理!CO195 -> 0 | CO149: =+生産管理!CP195 -> 0 | CP149: =+生産管理!CQ195 -> 0 | CQ149: =+生産管理!CS195 -> 0 | CR149: =+生産管理!CT195 -> 0 | CS149: =+生産管理!CU195 -> 0 | CT149: =+生産管理!CV195 -> 0 | CU149: =+生産管理!CW195 -> 0 | CV149: =+生産管理!CX195 -> 0 | CW149: =+生産管理!CY195 -> 0 | CX149: =+生産管理!CZ195 -> 0 | CY149: =+生産管理!DA195 -> 0 | CZ149: =+生産管理!DB195 -> 0 | DA149: =+生産管理!DC195 -> 0 | DB149: =+生産管理!DD195 -> 0 | DC149: =+生産管理!DE195 -> 0 | DD149: =+生産管理!DF195 -> 0 | DE149: =+生産管理!DG195 -> 0 | DF149: =+生産管理!DH195 -> 0 | DG149: =+生産管理!DI195 -> 0 | DH149: =+生産管理!DJ195 -> 0 | DI149: =+生産管理!DK195 -> 0 | DJ149: =+生産管理!DL195 -> 0 | DK149: =+生産管理!DM195 -> 0 | DL149: =+生産管理!DN195 -> 0 | DM149: =+生産管理!DO195 -> 0 | DN149: =+生産管理!DP195 -> 0 | DO149: =+生産管理!DQ195 -> 0 | DP149: =+生産管理!DR195 -> 0 | DQ149: =+生産管理!DS195 -> 0 | DR149: =+生産管理!DT195 -> 0 | DS149: =+生産管理!DU195 -> 0 | DT149: =+生産管理!DV195 -> 0 | DU149: =+生産管理!DW195 -> 0 | DV149: =+生産管理!DX195 -> 0 | DW149: =+生産管理!DY195 -> 0 | DX149: =+生産管理!DZ195 -> 0 | DY149: =+生産管理!EA195 -> 0 | DZ149: =+生産管理!EB195 -> 0 | EA149: =+生産管理!EC195 -> 0 | EB149: =+生産管理!ED195 -> 0 | EC149: =+生産管理!EE195 -> 0 | ED149: =+生産管理!EF195 -> 0 | EE149: =+生産管理!EG195 -> 0 | EF149: =+生産管理!EH195 -> 0 | EG149: =+生産管理!EI195 -> 0 | EH149: =+生産管理!EJ195 -> 0 | EI149: =+生産管理!EK195 -> 0 | EJ149: =+生産管理!EL195 -> 0 | EK149: =+生産管理!EM195 -> 0 | EL149: =+生産管理!EN195 -> 0 | EM149: =+生産管理!EO195 -> 0 | EN149: =+生産管理!EP195 -> 0 | EO149: =+生産管理!EQ195 -> 0 | EP149: =+生産管理!ER195 -> 0 | EQ149: =+生産管理!ES195 -> 0 | ER149: =+生産管理!ET195 -> 0 | ES149: =+生産管理!EU195 -> 0 | ET149: =+生産管理!EV195 -> 0 | EU149: =+生産管理!EW195 -> 0 | EV149: =+生産管理!EX195 -> 0 | EW149: =+生産管理!EY195 -> 0 | EX149: =+生産管理!EZ195 -> 0 | EY149: =+生産管理!FA195 -> 0 | EZ149: =+生産管理!FB195 -> 0 | FA149: =+生産管理!FC195 -> 0 | FB149: =+生産管理!FD195 -> 0 | FC149: =+生産管理!FE195 -> 0 | FD149: =+生産管理!FF195 -> 0 | FE149: =+生産管理!FG195 -> 0 | FF149: =+生産管理!FH195 -> 0 | FG149: =+生産管理!FI195 -> 0 | FH149: =+生産管理!FJ195 -> 0 | FI149: =+生産管理!FK195 -> 0 | FJ149: =+生産管理!FL195 -> 0 | FK149: =+生産管理!FM195 -> 0 | FL149: =+生産管理!FN195 -> 0 | FM149: =+生産管理!FO195 -> 0 | FN149: =+生産管理!FP195 -> 0 | FO149: =+生産管理!FQ195 -> 0 | FP149: =+生産管理!FR195 -> 0 | FQ149: =+生産管理!FS195 -> 0 | FR149: =+生産管理!FT195 -> 0 | FS149: =+生産管理!FU195 -> 0 | FT149: =+生産管理!FV195 -> 0 | FU149: =+生産管理!FW195 -> 0 | FV149: =+生産管理!FX195 -> 0 | FW149: =+生産管理!FY195 -> 0 | FX149: =+生産管理!FZ195 -> 0 | FY149: =+生産管理!GA195 -> 0 | FZ149: =+生産管理!GB195 -> 0 | GA149: =+生産管理!GC195 -> 0 | GB149: =+生産管理!GD195 -> 0 | GC149: =+生産管理!GE195 -> 0 | GD149: =+生産管理!GF195 -> 0 | GE149: =+生産管理!GG195 -> 0 | GF149: =+生産管理!GH195 -> 0 | GG149: =+生産管理!GI195 -> 0 | GH149: =+生産管理!GJ195 -> 0 | GI149: =+生産管理!GK195 -> 0 | GJ149: =+生産管理!GL195 -> 0 | GK149: =+生産管理!GM195 -> 0 | GL149: =+生産管理!GN195 -> 0 | GM149: =+生産管理!GO195 -> 0 | GN149: =+生産管理!GP195 -> 0 | GO149: =+生産管理!GQ195 -> 0 | GP149: =+生産管理!GR195 -> 0 | GQ149: =+生産管理!GS195 -> 0 | GR149: =+生産管理!GT195 -> 0 | GS149: =+生産管理!GU195 -> 0 | GT149: =+生産管理!GV195 -> 0 | GU149: =+生産管理!GW195 -> 0 | GV149: =+生産管理!GX195 -> 0 | GW149: =+生産管理!GY195 -> 0 | GX149: =+生産管理!GZ195 -> 0 | GY149: =+生産管理!HA195 -> 0 | GZ149: =+生産管理!HB195 -> 0 | HA149: =+生産管理!HC195 -> 0 | HB149: =+生産管理!HD195 -> 0 | HC149: =+生産管理!HE195 -> 0 | HD149: =+生産管理!HF195 -> 0 | HE149: =+生産管理!HG195 -> 0 | HF149: =+生産管理!HH195 -> 0 | HG149: =+生産管理!HI195 -> 0 | HH149: =+生産管理!HJ195 -> 0 | HI149: =+生産管理!HK195 -> 0 | HJ149: =+生産管理!HL195 -> 0 | HK149: =+生産管理!HM195 -> 0 | HL149: =+生産管理!HN195 -> 0 | HM149: =+生産管理!HO195 -> 0 | HN149: =+生産管理!HP195 -> 0 | HO149: =+生産管理!HQ195 -> 0 | HP149: =+生産管理!HR195 -> 0 | HQ149: =+生産管理!HS195 -> 0 | HR149: =+生産管理!HT195 -> 0 | HS149: =+生産管理!HU195 -> 0 | HT149: =+生産管理!HV195 -> 0 | HU149: =+生産管理!HW195 -> 0 | HV149: =+生産管理!HX195 -> 0 | HW149: =+生産管理!HY195 -> 0 | HX149: =+生産管理!HZ195 -> 0 | HY149: =+生産管理!IA195 -> 0 | HZ149: =+生産管理!IB195 -> 0 | IA149: =+生産管理!IC195 -> 0
A150: 16 | B150: MFJ_CB | C150: 16 | D150: MFJ_CB | F150: =N149 -> 2155 | G150: =O149 -> 600 | H150: 0 | I150: 0 | J150: 0 | K150: 0 | L150: 0 | M150: 鋳造数 | N150: 2350 | O150: 0 | P150: 0 | Q150: 0 | R150: 0 | S150: 0 | T150: 0 | AA150: 396 | AB150: 449 | AS150: 287 | AT150: 426 | AU150: 172 | AV150: 620
A151: 16 | B151: MFJ_CB | C151: 16 | D151: MFJ_CB | F151: =N149 -> 2155 | G151: 600 | H151: 0 | I151: 0 | J151: 0 | K151: 0 | L151: 0 | M151: 捨吹①金具 | N151: 45 | O151: 0 | P151: 0 | Q151: 0 | R151: 0 | S151: 0 | T151: 0 | AA151: 5 | AB151: 8 | AS151: 11 | AT151: 11 | AU151: 3 | AV151: 7
A152: 16 | B152: MFJ_CB | C152: 16 | D152: MFJ_CB | F152: =N149 -> 2155 | G152: 600 | H152: 0 | I152: 0 | J152: 0 | K152: 0 | L152: 0 | M152: 捨吹②金具 | N152: 49 | O152: 0 | P152: 0 | Q152: 0 | R152: 0 | S152: 0 | T152: 0 | AA152: 8 | AB152: 20 | AS152: 6 | AT152: 9 | AU152: 0 | AV152: 6
A153: 16 | B153: MFJ_CB | C153: 16 | D153: MFJ_CB | F153: =N149 -> 2155 | G153: 600 | H153: 0 | I153: 0 | J153: 0 | K153: 0 | L153: 0 | M153: 廃却品 | N153: 151 | O153: 0 | P153: 0 | Q153: 0 | R153: 0 | S153: 0 | T153: 0 | AA153: 24 | AB153: 61 | AS153: 21 | AT153: 14 | AU153: 9 | AV153: 22
A154: 16 | B154: MFJ_CB | C154: 16 | D154: MFJ_CB | F154: =N149 -> 2155 | G154: 600 | H154: 0 | I154: 0 | J154: 0 | K154: 0 | L154: 0 | M154: 良品 | N154: 2105 | O154: 0 | P154: 0 | Q154: 0 | R154: 0 | S154: 0 | T154: 0 | V154: =SUM(V150-V151-V152-V153) -> 0 | W154: 0 | X154: 0 | Y154: 0 | Z154: 0 | AA154: 359 | AB154: 360 | AC154: 0 | AD154: 0 | AE154: 0 | AF154: 0 | AG154: 0 | AH154: 0 | AI154: 0 | AJ154: 0 | AK154: 0 | AL154: 0 | AM154: 0 | AN154: 0 | AO154: 0 | AP154: 0 | AQ154: 0 | AR154: 0 | AS154: 249 | AT154: 392 | AU154: 160 | AV154: 585 | AW154: 0 | AX154: 0 | AY154: 0 | AZ154: 0 | BA154: 0 | BB154: 0 | BC154: 0 | BD154: 0 | BE154: 0 | BF154: 0 | BG154: 0 | BH154: 0 | BI154: 0 | BJ154: 0 | BK154: 0 | BL154: 0 | BM154: 0 | BN154: 0 | BO154: 0 | BP154: 0 | BQ154: 0 | BR154: 0 | BS154: 0 | BT154: 0 | BU154: 0 | BV154: 0 | BW154: 0 | BX154: 0 | BY154: 0 | BZ154: 0 | CA154: 0 | CB154: 0 | CC154: 0 | CD154: 0 | CE154: 0 | CF154: 0 | CG154: 0 | CH154: =SUM(CH150-CH151-CH152-CH153) -> 0 | CI154: 0 | CJ154: 0 | CK154: 0 | CL154: 0 | CM154: 0 | CN154: 0 | CO154: 0 | CP154: 0 | CQ154: 0 | CR154: 0 | CS154: 0 | CT154: 0 | CU154: 0 | CV154: 0 | CW154: 0 | CX154: 0 | CY154: 0 | CZ154: 0 | DA154: 0 | DB154: 0 | DC154: 0 | DD154: 0 | DE154: 0 | DF154: 0 | DG154: 0 | DH154: 0 | DI154: 0 | DJ154: 0 | DK154: 0 | DL154: 0 | DM154: 0 | DN154: 0 | DO154: 0 | DP154: 0 | DQ154: 0 | DR154: 0 | DS154: 0 | DT154: 0 | DU154: 0 | DV154: 0 | DW154: 0 | DX154: 0 | DY154: 0 | DZ154: 0 | EA154: 0 | EB154: 0 | EC154: 0 | ED154: 0 | EE154: 0 | EF154: 0 | EG154: 0 | EH154: 0 | EI154: 0 | EJ154: 0 | EK154: 0 | EL154: 0 | EM154: 0 | EN154: 0 | EO154: 0 | EP154: 0 | EQ154: 0 | ER154: 0 | ES154: 0 | ET154: =SUM(ET150-ET151-ET152-ET153) -> 0 | EU154: 0 | EV154: 0 | EW154: 0 | EX154: 0 | EY154: 0 | EZ154: 0 | FA154: 0 | FB154: 0 | FC154: 0 | FD154: 0 | FE154: 0 | FF154: 0 | FG154: 0 | FH154: 0 | FI154: 0 | FJ154: 0 | FK154: 0 | FL154: 0 | FM154: 0 | FN154: 0 | FO154: 0 | FP154: 0 | FQ154: 0 | FR154: 0 | FS154: 0 | FT154: 0 | FU154: 0 | FV154: 0 | FW154: 0 | FX154: 0 | FY154: 0 | FZ154: 0 | GA154: 0 | GB154: 0 | GC154: 0 | GD154: 0 | GE154: 0 | GF154: 0 | GG154: 0 | GH154: 0 | GI154: 0 | GJ154: 0 | GK154: 0 | GL154: 0 | GM154: 0 | GN154: 0 | GO154: 0 | GP154: 0 | GQ154: 0 | GR154: 0 | GS154: 0 | GT154: 0 | GU154: 0 | GV154: 0 | GW154: 0 | GX154: 0 | GY154: 0 | GZ154: 0 | HA154: 0 | HB154: 0 | HC154: 0 | HD154: 0 | HE154: 0 | HF154: =SUM(HF150-HF151-HF152-HF153) -> 0 | HG154: 0 | HH154: 0 | HI154: 0 | HJ154: 0 | HK154: 0 | HL154: 0 | HM154: 0 | HN154: 0 | HO154: 0 | HP154: 0 | HQ154: 0 | HR154: 0 | HS154: 0 | HT154: 0 | HU154: 0 | HV154: 0 | HW154: 0 | HX154: 0 | HY154: 0 | HZ154: 0 | IA154: 0
A155: 16 | B155: MEA_RC | C155: 16 | D155: MEA_RC | F155: =N155 -> 0 | G155: 0 | H155: 0 | I155: 0 | J155: 0 | K155: 0 | L155: 0 | M155: 計画数 | N155: 0 | O155: 0 | P155: 0 | Q155: 0 | R155: 0 | S155: 0 | T155: 0 | V155: =+生産管理!V204 -> 0 | W155: =+生産管理!W204 -> 0 | X155: =+生産管理!X204 -> 0 | Y155: =+生産管理!Y204 -> 0 | Z155: =+生産管理!Z204 -> 0 | AA155: =+生産管理!AA204 -> 0 | AB155: =+生産管理!AB204 -> 0 | AC155: =+生産管理!AC204 -> 0 | AD155: =+生産管理!AD204 -> 0 | AE155: =+生産管理!AE204 -> 0 | AF155: =+生産管理!AF204 -> 0 | AG155: =+生産管理!AG204 -> 0 | AH155: =+生産管理!AH204 -> 0 | AI155: =+生産管理!AI204 -> 0 | AJ155: =+生産管理!AJ204 -> 0 | AK155: =+生産管理!AK204 -> 0 | AL155: =+生産管理!AL204 -> 0 | AM155: =+生産管理!AM204 -> 0 | AN155: =+生産管理!AN204 -> 0 | AO155: =+生産管理!AO204 -> 0 | AP155: =+生産管理!AP204 -> 0 | AQ155: =+生産管理!AQ204 -> 0 | AR155: =+生産管理!AR204 -> 0 | AS155: =+生産管理!AS204 -> 0 | AT155: =+生産管理!AT204 -> 0 | AU155: =+生産管理!AU204 -> 0 | AV155: =+生産管理!AV204 -> 0 | AW155: =+生産管理!AW204 -> 0 | AX155: =+生産管理!AX204 -> 0 | AY155: =+生産管理!AY204 -> 0 | AZ155: =+生産管理!AZ204 -> 0 | BA155: =+生産管理!BA204 -> 0 | BB155: =+生産管理!BB204 -> 0 | BC155: =+生産管理!BC204 -> 0 | BD155: =+生産管理!BD204 -> 0 | BE155: =+生産管理!BE204 -> 0 | BF155: =+生産管理!BF204 -> 0 | BG155: =+生産管理!BG204 -> 0 | BH155: =+生産管理!BH204 -> 0 | BI155: =+生産管理!BI204 -> 0 | BJ155: =+生産管理!BJ204 -> 0 | BK155: =+生産管理!BL204 -> 0 | BL155: =+生産管理!BM204 -> 0 | BM155: =+生産管理!BN204 -> 0 | BN155: =+生産管理!BO204 -> 0 | BO155: =+生産管理!BP204 -> 0 | BP155: =+生産管理!BQ204 -> 0 | BQ155: =+生産管理!BR204 -> 0 | BR155: =+生産管理!BS204 -> 0 | BS155: =+生産管理!BT204 -> 0 | BT155: =+生産管理!BU204 -> 0 | BU155: =+生産管理!BV204 -> 0 | BV155: =+生産管理!BW204 -> 0 | BW155: =+生産管理!BX204 -> 0 | BX155: =+生産管理!BY204 -> 0 | BY155: =+生産管理!BZ204 -> 0 | BZ155: =+生産管理!CA204 -> 0 | CA155: =+生産管理!CB204 -> 0 | CB155: =+生産管理!CC204 -> 0 | CC155: =+生産管理!CD204 -> 0 | CD155: =+生産管理!CE204 -> 0 | CE155: =+生産管理!CF204 -> 0 | CF155: =+生産管理!CG204 -> 0 | CG155: =+生産管理!CH204 -> 0 | CH155: =+生産管理!CI204 -> 0 | CI155: =+生産管理!CJ204 -> 0 | CJ155: =+生産管理!CK204 -> 0 | CK155: =+生産管理!CL204 -> 0 | CL155: =+生産管理!CM204 -> 0 | CM155: =+生産管理!CN204 -> 0 | CN155: =+生産管理!CO204 -> 0 | CO155: =+生産管理!CP204 -> 0 | CP155: =+生産管理!CQ204 -> 0 | CQ155: =+生産管理!CS204 -> 0 | CR155: =+生産管理!CT204 -> 0 | CS155: =+生産管理!CU204 -> 0 | CT155: =+生産管理!CV204 -> 0 | CU155: =+生産管理!CW204 -> 0 | CV155: =+生産管理!CX204 -> 0 | CW155: =+生産管理!CY204 -> 0 | CX155: =+生産管理!CZ204 -> 0 | CY155: =+生産管理!DA204 -> 0 | CZ155: =+生産管理!DB204 -> 0 | DA155: =+生産管理!DC204 -> 0 | DB155: =+生産管理!DD204 -> 0 | DC155: =+生産管理!DE204 -> 0 | DD155: =+生産管理!DF204 -> 0 | DE155: =+生産管理!DG204 -> 0 | DF155: =+生産管理!DH204 -> 0 | DG155: =+生産管理!DI204 -> 0 | DH155: =+生産管理!DJ204 -> 0 | DI155: =+生産管理!DK204 -> 0 | DJ155: =+生産管理!DL204 -> 0 | DK155: =+生産管理!DM204 -> 0 | DL155: =+生産管理!DN204 -> 0 | DM155: =+生産管理!DO204 -> 0 | DN155: =+生産管理!DP204 -> 0 | DO155: =+生産管理!DQ204 -> 0 | DP155: =+生産管理!DR204 -> 0 | DQ155: =+生産管理!DS204 -> 0 | DR155: =+生産管理!DT204 -> 0 | DS155: =+生産管理!DU204 -> 0 | DT155: =+生産管理!DV204 -> 0 | DU155: =+生産管理!DW204 -> 0 | DV155: =+生産管理!DX204 -> 0 | DW155: =+生産管理!DY204 -> 0 | DX155: =+生産管理!DZ204 -> 0 | DY155: =+生産管理!EA204 -> 0 | DZ155: =+生産管理!EB204 -> 0 | EA155: =+生産管理!EC204 -> 0 | EB155: =+生産管理!ED204 -> 0 | EC155: =+生産管理!EE204 -> 0 | ED155: =+生産管理!EF204 -> 0 | EE155: =+生産管理!EG204 -> 0 | EF155: =+生産管理!EH204 -> 0 | EG155: =+生産管理!EI204 -> 0 | EH155: =+生産管理!EJ204 -> 0 | EI155: =+生産管理!EK204 -> 0 | EJ155: =+生産管理!EL204 -> 0 | EK155: =+生産管理!EM204 -> 0 | EL155: =+生産管理!EN204 -> 0 | EM155: =+生産管理!EO204 -> 0 | EN155: =+生産管理!EP204 -> 0 | EO155: =+生産管理!EQ204 -> 0 | EP155: =+生産管理!ER204 -> 0 | EQ155: =+生産管理!ES204 -> 0 | ER155: =+生産管理!ET204 -> 0 | ES155: =+生産管理!EU204 -> 0 | ET155: =+生産管理!EV204 -> 0 | EU155: =+生産管理!EW204 -> 0 | EV155: =+生産管理!EX204 -> 0 | EW155: =+生産管理!EY204 -> 0 | EX155: =+生産管理!EZ204 -> 0 | EY155: =+生産管理!FA204 -> 0 | EZ155: =+生産管理!FB204 -> 0 | FA155: =+生産管理!FC204 -> 0 | FB155: =+生産管理!FD204 -> 0 | FC155: =+生産管理!FE204 -> 0 | FD155: =+生産管理!FF204 -> 0 | FE155: =+生産管理!FG204 -> 0 | FF155: =+生産管理!FH204 -> 0 | FG155: =+生産管理!FI204 -> 0 | FH155: =+生産管理!FJ204 -> 0 | FI155: =+生産管理!FK204 -> 0 | FJ155: =+生産管理!FL204 -> 0 | FK155: =+生産管理!FM204 -> 0 | FL155: =+生産管理!FN204 -> 0 | FM155: =+生産管理!FO204 -> 0 | FN155: =+生産管理!FP204 -> 0 | FO155: =+生産管理!FQ204 -> 0 | FP155: =+生産管理!FR204 -> 0 | FQ155: =+生産管理!FS204 -> 0 | FR155: =+生産管理!FT204 -> 0 | FS155: =+生産管理!FU204 -> 0 | FT155: =+生産管理!FV204 -> 0 | FU155: =+生産管理!FW204 -> 0 | FV155: =+生産管理!FX204 -> 0 | FW155: =+生産管理!FY204 -> 0 | FX155: =+生産管理!FZ204 -> 0 | FY155: =+生産管理!GA204 -> 0 | FZ155: =+生産管理!GB204 -> 0 | GA155: =+生産管理!GC204 -> 0 | GB155: =+生産管理!GD204 -> 0 | GC155: =+生産管理!GE204 -> 0 | GD155: =+生産管理!GF204 -> 0 | GE155: =+生産管理!GG204 -> 0 | GF155: =+生産管理!GH204 -> 0 | GG155: =+生産管理!GI204 -> 0 | GH155: =+生産管理!GJ204 -> 0 | GI155: =+生産管理!GK204 -> 0 | GJ155: =+生産管理!GL204 -> 0 | GK155: =+生産管理!GM204 -> 0 | GL155: =+生産管理!GN204 -> 0 | GM155: =+生産管理!GO204 -> 0 | GN155: =+生産管理!GP204 -> 0 | GO155: =+生産管理!GQ204 -> 0 | GP155: =+生産管理!GR204 -> 0 | GQ155: =+生産管理!GS204 -> 0 | GR155: =+生産管理!GT204 -> 0 | GS155: =+生産管理!GU204 -> 0 | GT155: =+生産管理!GV204 -> 0 | GU155: =+生産管理!GW204 -> 0 | GV155: =+生産管理!GX204 -> 0 | GW155: =+生産管理!GY204 -> 0 | GX155: =+生産管理!GZ204 -> 0 | GY155: =+生産管理!HA204 -> 0 | GZ155: =+生産管理!HB204 -> 0 | HA155: =+生産管理!HC204 -> 0 | HB155: =+生産管理!HD204 -> 0 | HC155: =+生産管理!HE204 -> 0 | HD155: =+生産管理!HF204 -> 0 | HE155: =+生産管理!HG204 -> 0 | HF155: =+生産管理!HH204 -> 0 | HG155: =+生産管理!HI204 -> 0 | HH155: =+生産管理!HJ204 -> 0 | HI155: =+生産管理!HK204 -> 0 | HJ155: =+生産管理!HL204 -> 0 | HK155: =+生産管理!HM204 -> 0 | HL155: =+生産管理!HN204 -> 0 | HM155: =+生産管理!HO204 -> 0 | HN155: =+生産管理!HP204 -> 0 | HO155: =+生産管理!HQ204 -> 0 | HP155: =+生産管理!HR204 -> 0 | HQ155: =+生産管理!HS204 -> 0 | HR155: =+生産管理!HT204 -> 0 | HS155: =+生産管理!HU204 -> 0 | HT155: =+生産管理!HV204 -> 0 | HU155: =+生産管理!HW204 -> 0 | HV155: =+生産管理!HX204 -> 0 | HW155: =+生産管理!HY204 -> 0 | HX155: =+生産管理!HZ204 -> 0 | HY155: =+生産管理!IA204 -> 0 | HZ155: =+生産管理!IB204 -> 0 | IA155: =+生産管理!IC204 -> 0
A156: 16 | B156: MEA_RC | C156: 16 | D156: MEA_RC | F156: =N155 -> 0 | G156: 0 | H156: 0 | I156: 0 | J156: 0 | K156: 0 | L156: 0 | M156: 鋳造数 | N156: 0 | O156: 0 | P156: 0 | Q156: 0 | R156: 0 | S156: 0 | T156: 0
A157: 16 | B157: MEA_RC | C157: 16 | D157: MEA_RC | F157: =N155 -> 0 | G157: 0 | H157: 0 | I157: 0 | J157: 0 | K157: 0 | L157: 0 | M157: 捨吹① | N157: 0 | O157: 0 | P157: 0 | Q157: 0 | R157: 0 | S157: 0 | T157: 0
A158: 16 | B158: MEA_RC | C158: 16 | D158: MEA_RC | F158: =N155 -> 0 | G158: 0 | H158: 0 | I158: 0 | J158: 0 | K158: 0 | L158: 0 | M158: 捨吹② | N158: 0 | O158: 0 | P158: 0 | Q158: 0 | R158: 0 | S158: 0 | T158: 0
A159: 16 | B159: MEA_RC | C159: 16 | D159: MEA_RC | F159: =N155 -> 0 | G159: 0 | H159: 0 | I159: 0 | J159: 0 | K159: 0 | L159: 0 | M159: 廃却品 | N159: =SUM(V159:AY159) -> 0 | O159: =SUM(BA159:CD159) -> 0 | P159: 0 | Q159: =SUM(DJ159:EM159) -> 0 | R159: =SUM(EN159:FP159) -> 0 | S159: 0 | T159: 0
A160: 16 | B160: MEA_RC | C160: 16 | D160: MEA_RC | F160: =N155 -> 0 | G160: 0 | H160: 0 | I160: 0 | J160: 0 | K160: 0 | L160: 0 | M160: 良品 | N160: 0 | O160: 0 | P160: 0 | Q160: 0 | R160: 0 | S160: 0 | T160: 0 | V160: =SUM(V156-V157-V158-V159) -> 0 | W160: 0 | X160: 0 | Y160: 0 | Z160: 0 | AA160: 0 | AB160: 0 | AC160: 0 | AD160: 0 | AE160: 0 | AF160: 0 | AG160: 0 | AH160: 0 | AI160: 0 | AJ160: 0 | AK160: 0 | AL160: 0 | AM160: 0 | AN160: 0 | AO160: 0 | AP160: 0 | AQ160: 0 | AR160: 0 | AS160: 0 | AT160: 0 | AU160: 0 | AV160: 0 | AW160: 0 | AX160: 0 | AY160: 0 | AZ160: 0 | BA160: 0 | BB160: 0 | BC160: 0 | BD160: 0 | BE160: 0 | BF160: 0 | BG160: 0 | BH160: 0 | BI160: 0 | BJ160: 0 | BK160: 0 | BL160: 0 | BM160: 0 | BN160: 0 | BO160: 0 | BP160: 0 | BQ160: 0 | BR160: 0 | BS160: 0 | BT160: 0 | BU160: 0 | BV160: 0 | BW160: 0 | BX160: 0 | BY160: 0 | BZ160: 0 | CA160: 0 | CB160: 0 | CC160: 0 | CD160: 0 | CE160: 0 | CF160: 0 | CG160: 0 | CH160: =SUM(CH156-CH157-CH158-CH159) -> 0 | CI160: 0 | CJ160: 0 | CK160: 0 | CL160: 0 | CM160: 0 | CN160: 0 | CO160: 0 | CP160: 0 | CQ160: 0 | CR160: 0 | CS160: 0 | CT160: 0 | CU160: 0 | CV160: 0 | CW160: 0 | CX160: 0 | CY160: 0 | CZ160: 0 | DA160: 0 | DB160: 0 | DC160: 0 | DD160: 0 | DE160: 0 | DF160: 0 | DG160: 0 | DH160: 0 | DI160: 0 | DJ160: 0 | DK160: 0 | DL160: 0 | DM160: 0 | DN160: 0 | DO160: 0 | DP160: 0 | DQ160: 0 | DR160: 0 | DS160: 0 | DT160: 0 | DU160: 0 | DV160: 0 | DW160: 0 | DX160: 0 | DY160: 0 | DZ160: 0 | EA160: 0 | EB160: 0 | EC160: 0 | ED160: 0 | EE160: 0 | EF160: 0 | EG160: 0 | EH160: 0 | EI160: 0 | EJ160: 0 | EK160: 0 | EL160: 0 | EM160: 0 | EN160: 0 | EO160: 0 | EP160: 0 | EQ160: 0 | ER160: 0 | ES160: 0 | ET160: =SUM(ET156-ET157-ET158-ET159) -> 0 | EU160: 0 | EV160: 0 | EW160: 0 | EX160: 0 | EY160: 0 | EZ160: 0 | FA160: 0 | FB160: 0 | FC160: 0 | FD160: 0 | FE160: 0 | FF160: 0 | FG160: 0 | FH160: 0 | FI160: 0 | FJ160: 0 | FK160: 0 | FL160: 0 | FM160: 0 | FN160: 0 | FO160: 0 | FP160: 0 | FQ160: 0 | FR160: 0 | FS160: 0 | FT160: 0 | FU160: 0 | FV160: 0 | FW160: 0 | FX160: 0 | FY160: 0 | FZ160: 0 | GA160: 0 | GB160: 0 | GC160: 0 | GD160: 0 | GE160: 0 | GF160: 0 | GG160: 0 | GH160: 0 | GI160: 0 | GJ160: 0 | GK160: 0 | GL160: 0 | GM160: 0 | GN160: 0 | GO160: 0 | GP160: 0 | GQ160: 0 | GR160: 0 | GS160: 0 | GT160: 0 | GU160: 0 | GV160: 0 | GW160: 0 | GX160: 0 | GY160: 0 | GZ160: 0 | HA160: 0 | HB160: 0 | HC160: 0 | HD160: 0 | HE160: 0 | HF160: =SUM(HF156-HF157-HF158-HF159) -> 0 | HG160: 0 | HH160: 0 | HI160: 0 | HJ160: 0 | HK160: 0 | HL160: 0 | HM160: 0 | HN160: 0 | HO160: 0 | HP160: 0 | HQ160: 0 | HR160: 0 | HS160: 0 | HT160: 0 | HU160: 0 | HV160: 0 | HW160: 0 | HX160: 0 | HY160: 0 | HZ160: 0 | IA160: =SUM(IA156-IA157-IA158-IA159) -> 0
A161: 16 | B161: MEA_LC | C161: 16 | D161: MEA_LC | F161: =N161 -> 0 | G161: 0 | H161: 0 | I161: 0 | J161: 0 | K161: 0 | L161: 0 | M161: 計画数 | N161: 0 | O161: 0 | P161: 0 | Q161: 0 | R161: 0 | S161: 0 | T161: 0 | V161: =+生産管理!V212 -> 0 | W161: =+生産管理!W212 -> 0 | X161: =+生産管理!X212 -> 0 | Y161: =+生産管理!Y212 -> 0 | Z161: =+生産管理!Z212 -> 0 | AA161: =+生産管理!AA212 -> 0 | AB161: =+生産管理!AB212 -> 0 | AC161: =+生産管理!AC212 -> 0 | AD161: =+生産管理!AD212 -> 0 | AE161: =+生産管理!AE212 -> 0 | AF161: =+生産管理!AF212 -> 0 | AG161: =+生産管理!AG212 -> 0 | AH161: =+生産管理!AH212 -> 0 | AI161: =+生産管理!AI212 -> 0 | AJ161: =+生産管理!AJ212 -> 0 | AK161: =+生産管理!AK212 -> 0 | AL161: =+生産管理!AL212 -> 0 | AM161: =+生産管理!AM212 -> 0 | AN161: =+生産管理!AN212 -> 0 | AO161: =+生産管理!AO212 -> 0 | AP161: =+生産管理!AP212 -> 0 | AQ161: =+生産管理!AQ212 -> 0 | AR161: =+生産管理!AR212 -> 0 | AS161: =+生産管理!AS212 -> 0 | AT161: =+生産管理!AT212 -> 0 | AU161: =+生産管理!AU212 -> 0 | AV161: =+生産管理!AV212 -> 0 | AW161: =+生産管理!AW212 -> 0 | AX161: =+生産管理!AX212 -> 0 | AY161: =+生産管理!AY212 -> 0 | AZ161: =+生産管理!AZ212 -> 0 | BA161: =+生産管理!BA212 -> 0 | BB161: =+生産管理!BB212 -> 0 | BC161: =+生産管理!BC212 -> 0 | BD161: =+生産管理!BD212 -> 0 | BE161: =+生産管理!BE212 -> 0 | BF161: =+生産管理!BF212 -> 0 | BG161: =+生産管理!BG212 -> 0 | BH161: =+生産管理!BH212 -> 0 | BI161: =+生産管理!BI212 -> 0 | BJ161: =+生産管理!BJ212 -> 0 | BK161: =+生産管理!BL212 -> 0 | BL161: =+生産管理!BM212 -> 0 | BM161: =+生産管理!BN212 -> 0 | BN161: =+生産管理!BO212 -> 0 | BO161: =+生産管理!BP212 -> 0 | BP161: =+生産管理!BQ212 -> 0 | BQ161: =+生産管理!BR212 -> 0 | BR161: =+生産管理!BS212 -> 0 | BS161: =+生産管理!BT212 -> 0 | BT161: =+生産管理!BU212 -> 0 | BU161: =+生産管理!BV212 -> 0 | BV161: =+生産管理!BW212 -> 0 | BW161: =+生産管理!BX212 -> 0 | BX161: =+生産管理!BY212 -> 0 | BY161: =+生産管理!BZ212 -> 0 | BZ161: =+生産管理!CA212 -> 0 | CA161: =+生産管理!CB212 -> 0 | CB161: =+生産管理!CC212 -> 0 | CC161: =+生産管理!CD212 -> 0 | CD161: =+生産管理!CE212 -> 0 | CE161: =+生産管理!CF212 -> 0 | CF161: =+生産管理!CG212 -> 0 | CG161: =+生産管理!CH212 -> 0 | CH161: =+生産管理!CI212 -> 0 | CI161: =+生産管理!CJ212 -> 0 | CJ161: =+生産管理!CK212 -> 0 | CK161: =+生産管理!CL212 -> 0 | CL161: =+生産管理!CM212 -> 0 | CM161: =+生産管理!CN212 -> 0 | CN161: =+生産管理!CO212 -> 0 | CO161: =+生産管理!CP212 -> 0 | CP161: =+生産管理!CQ212 -> 0 | CQ161: =+生産管理!CS212 -> 0 | CR161: =+生産管理!CT212 -> 0 | CS161: =+生産管理!CU212 -> 0 | CT161: =+生産管理!CV212 -> 0 | CU161: =+生産管理!CW212 -> 0 | CV161: =+生産管理!CX212 -> 0 | CW161: =+生産管理!CY212 -> 0 | CX161: =+生産管理!CZ212 -> 0 | CY161: =+生産管理!DA212 -> 0 | CZ161: =+生産管理!DB212 -> 0 | DA161: =+生産管理!DC212 -> 0 | DB161: =+生産管理!DD212 -> 0 | DC161: =+生産管理!DE212 -> 0 | DD161: =+生産管理!DF212 -> 0 | DE161: =+生産管理!DG212 -> 0 | DF161: =+生産管理!DH212 -> 0 | DG161: =+生産管理!DI212 -> 0 | DH161: =+生産管理!DJ212 -> 0 | DI161: =+生産管理!DK212 -> 0 | DJ161: =+生産管理!DL212 -> 0 | DK161: =+生産管理!DM212 -> 0 | DL161: =+生産管理!DN212 -> 0 | DM161: =+生産管理!DO212 -> 0 | DN161: =+生産管理!DP212 -> 0 | DO161: =+生産管理!DQ212 -> 0 | DP161: =+生産管理!DR212 -> 0 | DQ161: =+生産管理!DS212 -> 0 | DR161: =+生産管理!DT212 -> 0 | DS161: =+生産管理!DU212 -> 0 | DT161: =+生産管理!DV212 -> 0 | DU161: =+生産管理!DW212 -> 0 | DV161: =+生産管理!DX212 -> 0 | DW161: =+生産管理!DY212 -> 0 | DX161: =+生産管理!DZ212 -> 0 | DY161: =+生産管理!EA212 -> 0 | DZ161: =+生産管理!EB212 -> 0 | EA161: =+生産管理!EC212 -> 0 | EB161: =+生産管理!ED212 -> 0 | EC161: =+生産管理!EE212 -> 0 | ED161: =+生産管理!EF212 -> 0 | EE161: =+生産管理!EG212 -> 0 | EF161: =+生産管理!EH212 -> 0 | EG161: =+生産管理!EI212 -> 0 | EH161: =+生産管理!EJ212 -> 0 | EI161: =+生産管理!EK212 -> 0 | EJ161: =+生産管理!EL212 -> 0 | EK161: =+生産管理!EM212 -> 0 | EL161: =+生産管理!EN212 -> 0 | EM161: =+生産管理!EO212 -> 0 | EN161: =+生産管理!EP212 -> 0 | EO161: =+生産管理!EQ212 -> 0 | EP161: =+生産管理!ER212 -> 0 | EQ161: =+生産管理!ES212 -> 0 | ER161: =+生産管理!ET212 -> 0 | ES161: =+生産管理!EU212 -> 0 | ET161: =+生産管理!EV212 -> 0 | EU161: =+生産管理!EW212 -> 0 | EV161: =+生産管理!EX212 -> 0 | EW161: =+生産管理!EY212 -> 0 | EX161: =+生産管理!EZ212 -> 0 | EY161: =+生産管理!FA212 -> 0 | EZ161: =+生産管理!FB212 -> 0 | FA161: =+生産管理!FC212 -> 0 | FB161: =+生産管理!FD212 -> 0 | FC161: =+生産管理!FE212 -> 0 | FD161: =+生産管理!FF212 -> 0 | FE161: =+生産管理!FG212 -> 0 | FF161: =+生産管理!FH212 -> 0 | FG161: =+生産管理!FI212 -> 0 | FH161: =+生産管理!FJ212 -> 0 | FI161: =+生産管理!FK212 -> 0 | FJ161: =+生産管理!FL212 -> 0 | FK161: =+生産管理!FM212 -> 0 | FL161: =+生産管理!FN212 -> 0 | FM161: =+生産管理!FO212 -> 0 | FN161: =+生産管理!FP212 -> 0 | FO161: =+生産管理!FQ212 -> 0 | FP161: =+生産管理!FR212 -> 0 | FQ161: =+生産管理!FS212 -> 0 | FR161: =+生産管理!FT212 -> 0 | FS161: =+生産管理!FU212 -> 0 | FT161: =+生産管理!FV212 -> 0 | FU161: =+生産管理!FW212 -> 0 | FV161: =+生産管理!FX212 -> 0 | FW161: =+生産管理!FY212 -> 0 | FX161: =+生産管理!FZ212 -> 0 | FY161: =+生産管理!GA212 -> 0 | FZ161: =+生産管理!GB212 -> 0 | GA161: =+生産管理!GC212 -> 0 | GB161: =+生産管理!GD212 -> 0 | GC161: =+生産管理!GE212 -> 0 | GD161: =+生産管理!GF212 -> 0 | GE161: =+生産管理!GG212 -> 0 | GF161: =+生産管理!GH212 -> 0 | GG161: =+生産管理!GI212 -> 0 | GH161: =+生産管理!GJ212 -> 0 | GI161: =+生産管理!GK212 -> 0 | GJ161: =+生産管理!GL212 -> 0 | GK161: =+生産管理!GM212 -> 0 | GL161: =+生産管理!GN212 -> 0 | GM161: =+生産管理!GO212 -> 0 | GN161: =+生産管理!GP212 -> 0 | GO161: =+生産管理!GQ212 -> 0 | GP161: =+生産管理!GR212 -> 0 | GQ161: =+生産管理!GS212 -> 0 | GR161: =+生産管理!GT212 -> 0 | GS161: =+生産管理!GU212 -> 0 | GT161: =+生産管理!GV212 -> 0 | GU161: =+生産管理!GW212 -> 0 | GV161: =+生産管理!GX212 -> 0 | GW161: =+生産管理!GY212 -> 0 | GX161: =+生産管理!GZ212 -> 0 | GY161: =+生産管理!HA212 -> 0 | GZ161: =+生産管理!HB212 -> 0 | HA161: =+生産管理!HC212 -> 0 | HB161: =+生産管理!HD212 -> 0 | HC161: =+生産管理!HE212 -> 0 | HD161: =+生産管理!HF212 -> 0 | HE161: =+生産管理!HG212 -> 0 | HF161: =+生産管理!HH212 -> 0 | HG161: =+生産管理!HI212 -> 0 | HH161: =+生産管理!HJ212 -> 0 | HI161: =+生産管理!HK212 -> 0 | HJ161: =+生産管理!HL212 -> 0 | HK161: =+生産管理!HM212 -> 0 | HL161: =+生産管理!HN212 -> 0 | HM161: =+生産管理!HO212 -> 0 | HN161: =+生産管理!HP212 -> 0 | HO161: =+生産管理!HQ212 -> 0 | HP161: =+生産管理!HR212 -> 0 | HQ161: =+生産管理!HS212 -> 0 | HR161: =+生産管理!HT212 -> 0 | HS161: =+生産管理!HU212 -> 0 | HT161: =+生産管理!HV212 -> 0 | HU161: =+生産管理!HW212 -> 0 | HV161: =+生産管理!HX212 -> 0 | HW161: =+生産管理!HY212 -> 0 | HX161: =+生産管理!HZ212 -> 0 | HY161: =+生産管理!IA212 -> 0 | HZ161: =+生産管理!IB212 -> 0 | IA161: =+生産管理!IC212 -> 0
A162: 16 | B162: MEA_LC | C162: 16 | D162: MEA_LC | F162: =N161 -> 0 | G162: 0 | H162: 0 | I162: 0 | J162: 0 | K162: 0 | L162: 0 | M162: 鋳造数 | N162: 0 | O162: 0 | P162: 0 | Q162: 0 | R162: 0 | S162: 0 | T162: 0
A163: 16 | B163: MEA_LC | C163: 16 | D163: MEA_LC | F163: =N161 -> 0 | G163: 0 | H163: 0 | I163: 0 | J163: 0 | K163: 0 | L163: 0 | M163: 捨吹① | N163: 0 | O163: 0 | P163: 0 | Q163: 0 | R163: 0 | S163: 0 | T163: 0
A164: 16 | B164: MEA_LC | C164: 16 | D164: MEA_LC | F164: =N161 -> 0 | G164: 0 | H164: 0 | I164: 0 | J164: 0 | K164: 0 | L164: 0 | M164: 捨吹② | N164: 0 | O164: 0 | P164: 0 | Q164: 0 | R164: 0 | S164: 0 | T164: 0
A165: 16 | B165: MEA_LC | C165: 16 | D165: MEA_LC | F165: =N161 -> 0 | G165: 0 | H165: 0 | I165: 0 | J165: 0 | K165: 0 | L165: 0 | M165: 廃却品 | N165: 0 | O165: 0 | P165: 0 | Q165: 0 | R165: 0 | S165: 0 | T165: 0
A166: 16 | B166: MEA_LC | C166: 16 | D166: MEA_LC | F166: =N161 -> 0 | G166: 0 | H166: 0 | I166: 0 | J166: 0 | K166: 0 | L166: 0 | M166: 良品 | N166: 0 | O166: 0 | P166: 0 | Q166: 0 | R166: 0 | S166: 0 | T166: 0 | V166: =SUM(V162-V163-V164-V165) -> 0 | W166: 0 | X166: 0 | Y166: 0 | Z166: 0 | AA166: 0 | AB166: 0 | AC166: 0 | AD166: 0 | AE166: 0 | AF166: 0 | AG166: 0 | AH166: 0 | AI166: 0 | AJ166: 0 | AK166: 0 | AL166: 0 | AM166: 0 | AN166: 0 | AO166: 0 | AP166: 0 | AQ166: 0 | AR166: 0 | AS166: 0 | AT166: 0 | AU166: 0 | AV166: 0 | AW166: 0 | AX166: 0 | AY166: 0 | AZ166: 0 | BA166: 0 | BB166: 0 | BC166: 0 | BD166: 0 | BE166: 0 | BF166: 0 | BG166: 0 | BH166: 0 | BI166: 0 | BJ166: 0 | BK166: 0 | BL166: 0 | BM166: 0 | BN166: 0 | BO166: 0 | BP166: 0 | BQ166: 0 | BR166: 0 | BS166: 0 | BT166: 0 | BU166: 0 | BV166: 0 | BW166: 0 | BX166: 0 | BY166: 0 | BZ166: 0 | CA166: 0 | CB166: 0 | CC166: 0 | CD166: 0 | CE166: 0 | CF166: 0 | CG166: 0 | CH166: =SUM(CH162-CH163-CH164-CH165) -> 0 | CI166: 0 | CJ166: 0 | CK166: 0 | CL166: 0 | CM166: 0 | CN166: 0 | CO166: 0 | CP166: 0 | CQ166: 0 | CR166: 0 | CS166: 0 | CT166: 0 | CU166: 0 | CV166: 0 | CW166: 0 | CX166: 0 | CY166: 0 | CZ166: 0 | DA166: 0 | DB166: 0 | DC166: 0 | DD166: 0 | DE166: 0 | DF166: 0 | DG166: 0 | DH166: 0 | DI166: 0 | DJ166: 0 | DK166: 0 | DL166: 0 | DM166: 0 | DN166: 0 | DO166: 0 | DP166: 0 | DQ166: 0 | DR166: 0 | DS166: 0 | DT166: 0 | DU166: 0 | DV166: 0 | DW166: 0 | DX166: 0 | DY166: 0 | DZ166: 0 | EA166: 0 | EB166: 0 | EC166: 0 | ED166: 0 | EE166: 0 | EF166: 0 | EG166: 0 | EH166: 0 | EI166: 0 | EJ166: 0 | EK166: 0 | EL166: 0 | EM166: 0 | EN166: 0 | EO166: 0 | EP166: 0 | EQ166: 0 | ER166: 0 | ES166: 0 | ET166: =SUM(ET162-ET163-ET164-ET165) -> 0 | EU166: 0 | EV166: 0 | EW166: 0 | EX166: 0 | EY166: 0 | EZ166: 0 | FA166: 0 | FB166: 0 | FC166: 0 | FD166: 0 | FE166: 0 | FF166: 0 | FG166: 0 | FH166: 0 | FI166: 0 | FJ166: 0 | FK166: 0 | FL166: 0 | FM166: 0 | FN166: 0 | FO166: 0 | FP166: 0 | FQ166: 0 | FR166: 0 | FS166: 0 | FT166: 0 | FU166: 0 | FV166: 0 | FW166: 0 | FX166: 0 | FY166: 0 | FZ166: 0 | GA166: 0 | GB166: 0 | GC166: 0 | GD166: 0 | GE166: 0 | GF166: 0 | GG166: 0 | GH166: 0 | GI166: 0 | GJ166: 0 | GK166: 0 | GL166: 0 | GM166: 0 | GN166: 0 | GO166: 0 | GP166: 0 | GQ166: 0 | GR166: 0 | GS166: 0 | GT166: 0 | GU166: 0 | GV166: 0 | GW166: 0 | GX166: 0 | GY166: 0 | GZ166: 0 | HA166: 0 | HB166: 0 | HC166: 0 | HD166: 0 | HE166: 0 | HF166: =SUM(HF162-HF163-HF164-HF165) -> 0 | HG166: 0 | HH166: 0 | HI166: 0 | HJ166: 0 | HK166: 0 | HL166: 0 | HM166: 0 | HN166: 0 | HO166: 0 | HP166: 0 | HQ166: 0 | HR166: 0 | HS166: 0 | HT166: 0 | HU166: 0 | HV166: 0 | HW166: 0 | HX166: 0 | HY166: 0 | HZ166: 0 | IA166: =SUM(IA162-IA163-IA164-IA165) -> 0
